{"text_format":"1","workbook":"xlsx","n_sheets":7,"sheets":["Analysis","IDPs","WhoLeft","Returnees","Summary for a month","Admin2","admin2_new"],"not_rendered":{"charts":0,"images":0,"macros":1,"external_links":0,"defined_names":58,"comments":0,"pivot_tables":5},"unopened":[],"bounds":{"document_bytes":16777216,"sheet_cells":100000,"rows_first":2000,"rows_last":500,"rows_between":2000,"halvings":0,"cell_chars":16384,"cell_head_chars":4096},"cells_cut":0,"cells_raw":0,"read":"whole","date_system":"1900"}

{"sheet":"Analysis","index":0,"n_rows":33,"n_cols":5,"rows_kept":33,"cut":false,"hidden":false,"merged":[[8,1,9,1]]}
[]
[null,null,"From","To"]
[null,"Day",17,23]
[null,"Month",3,3]
[null,"Year",2024,2024]
[null,"Full Date",{"$f":"DATE(year,monthFrom,dayFrom)","v":"2024-03-17"},{"$f":"DATE(yearTo,monthTo,dayTo)","v":"2024-03-23"}]
[]
[]
[null,"Governorate of Displacement","IDP HH Displaced during the week","IDP HH who left displaced location within the week","Total IDP HH"]
[null,null,{"$f":"\"\"&TEXT(dayFrom,\"00\")&\"\"&IF(monthFrom<>monthTo,\" \"&TEXT(DATE(year,monthFrom,1),\"mmm\"),\"\")&IF(yearFrom<>yearTo,\" \"&yearFrom,\"\")&\" to \"&TEXT(dayTo,\"00\")&\" \"&TEXT(DATE(year,monthTo,1),\"mmm\")&IF(yearFrom<>yearTo,\" \"&yearTo,\"\")","v":"17 to 23 Mar"},{"$f":"\"\"&TEXT(dayFrom,\"00\")&\"\"&IF(monthFrom<>monthTo,\" \"&TEXT(DATE(year,monthFrom,1),\"mmm\"),\"\")&IF(yearFrom<>yearTo,\" \"&yearFrom,\"\")&\" to \"&TEXT(dayTo,\"00\")&\" \"&TEXT(DATE(year,monthTo,1),\"mmm\")&IF(yearFrom<>yearTo,\" \"&yearTo,\"\")","v":"17 to 23 Mar"},{"$f":"\"01 Jan\"&IF(yearFrom<>yearTo,\" \"&yearFrom,\"\")&\" to \"&TEXT(dayTo,\"00\")&\" \"&TEXT(DATE(year,monthTo,1),\"mmm\")&IF(yearFrom<>yearTo,\" \"&yearTo,\"\")","v":"01 Jan to 23 Mar"}]
[null,"Hajjah","N/A","N/A","N/A"]
[null,"Ad Dali",{"$f":"SUMIFS(IDPs[Total Number Of Households],IDPs[Date of Event],\">=\" & from,IDPs[Date of Event],\"<=\" & to,IDPs[Governorate],\"=\"&B12)","v":2},{"$f":"SUMIFS(WhoLeft[Total Number of Households],WhoLeft[Date of Event],\">=\" & from,WhoLeft[Date of Event],\"<=\" & to,WhoLeft[Governorate],\"=\"&B12)","v":0},{"$f":"SUMIFS(IDPs[Total Number Of Households],IDPs[Date of Event],\">=\" & DATE(year,1,1),IDPs[Date of Event],\"<=\" & to,IDPs[Governorate],\"=\"&B12)","v":18}]
[null,"Al Hodeidah",{"$f":"SUMIFS(IDPs[Total Number Of Households],IDPs[Date of Event],\">=\" & from,IDPs[Date of Event],\"<=\" & to,IDPs[Governorate],\"=\"&B13)","v":5},{"$f":"SUMIFS(WhoLeft[Total Number of Households],WhoLeft[Date of Event],\">=\" & from,WhoLeft[Date of Event],\"<=\" & to,WhoLeft[Governorate],\"=\"&B13)","v":0},{"$f":"SUMIFS(IDPs[Total Number Of Households],IDPs[Date of Event],\">=\" & DATE(year,1,1),IDPs[Date of Event],\"<=\" & to,IDPs[Governorate],\"=\"&B13)","v":242}]
[null,"Taiz",{"$f":"SUMIFS(IDPs[Total Number Of Households],IDPs[Date of Event],\">=\" & from,IDPs[Date of Event],\"<=\" & to,IDPs[Governorate],\"=\"&B14)","v":5},{"$f":"SUMIFS(WhoLeft[Total Number of Households],WhoLeft[Date of Event],\">=\" & from,WhoLeft[Date of Event],\"<=\" & to,WhoLeft[Governorate],\"=\"&B14)","v":0},{"$f":"SUMIFS(IDPs[Total Number Of Households],IDPs[Date of Event],\">=\" & DATE(year,1,1),IDPs[Date of Event],\"<=\" & to,IDPs[Governorate],\"=\"&B14)","v":261}]
[null,"Sanaa City","N/A","N/A","N/A"]
[null,"Ibb","N/A","N/A","N/A"]
[null,"Marib",{"$f":"SUMIFS(IDPs[Total Number Of Households],IDPs[Date of Event],\">=\" & from,IDPs[Date of Event],\"<=\" & to,IDPs[Governorate],\"=\"&B17)","v":22},{"$f":"SUMIFS(WhoLeft[Total Number of Households],WhoLeft[Date of Event],\">=\" & from,WhoLeft[Date of Event],\"<=\" & to,WhoLeft[Governorate],\"=\"&B17)","v":0},{"$f":"SUMIFS(IDPs[Total Number Of Households],IDPs[Date of Event],\">=\" & DATE(year,1,1),IDPs[Date of Event],\"<=\" & to,IDPs[Governorate],\"=\"&B17)","v":349}]
[null,"Amran","N/A","N/A","N/A"]
[null,"Sanaa","N/A","N/A","N/A"]
[null,"Shabwah",{"$f":"SUMIFS(IDPs[Total Number Of Households],IDPs[Date of Event],\">=\" & from,IDPs[Date of Event],\"<=\" & to,IDPs[Governorate],\"=\"&B20)","v":0},{"$f":"SUMIFS(WhoLeft[Total Number of Households],WhoLeft[Date of Event],\">=\" & from,WhoLeft[Date of Event],\"<=\" & to,WhoLeft[Governorate],\"=\"&B20)","v":0},{"$f":"SUMIFS(IDPs[Total Number Of Households],IDPs[Date of Event],\">=\" & DATE(year,1,1),IDPs[Date of Event],\"<=\" & to,IDPs[Governorate],\"=\"&B20)","v":0}]
[null,"Lahj",{"$f":"SUMIFS(IDPs[Total Number Of Households],IDPs[Date of Event],\">=\" & from,IDPs[Date of Event],\"<=\" & to,IDPs[Governorate],\"=\"&B21)","v":0},{"$f":"SUMIFS(WhoLeft[Total Number of Households],WhoLeft[Date of Event],\">=\" & from,WhoLeft[Date of Event],\"<=\" & to,WhoLeft[Governorate],\"=\"&B21)","v":0},{"$f":"SUMIFS(IDPs[Total Number Of Households],IDPs[Date of Event],\">=\" & DATE(year,1,1),IDPs[Date of Event],\"<=\" & to,IDPs[Governorate],\"=\"&B21)","v":9}]
[null,"Aden",{"$f":"SUMIFS(IDPs[Total Number Of Households],IDPs[Date of Event],\">=\" & from,IDPs[Date of Event],\"<=\" & to,IDPs[Governorate],\"=\"&B22)","v":0},{"$f":"SUMIFS(WhoLeft[Total Number of Households],WhoLeft[Date of Event],\">=\" & from,WhoLeft[Date of Event],\"<=\" & to,WhoLeft[Governorate],\"=\"&B22)","v":0},{"$f":"SUMIFS(IDPs[Total Number Of Households],IDPs[Date of Event],\">=\" & DATE(year,1,1),IDPs[Date of Event],\"<=\" & to,IDPs[Governorate],\"=\"&B22)","v":0}]
[null,"Sadah","N/A","N/A","N/A"]
[null,"Abyan",{"$f":"SUMIFS(IDPs[Total Number Of Households],IDPs[Date of Event],\">=\" & from,IDPs[Date of Event],\"<=\" & to,IDPs[Governorate],\"=\"&B24)","v":0},{"$f":"SUMIFS(WhoLeft[Total Number of Households],WhoLeft[Date of Event],\">=\" & from,WhoLeft[Date of Event],\"<=\" & to,WhoLeft[Governorate],\"=\"&B24)","v":0},{"$f":"SUMIFS(IDPs[Total Number Of Households],IDPs[Date of Event],\">=\" & DATE(year,1,1),IDPs[Date of Event],\"<=\" & to,IDPs[Governorate],\"=\"&B24)","v":0}]
[null,"Dhamar","N/A","N/A","N/A"]
[null,"Hadramawt",{"$f":"SUMIFS(IDPs[Total Number Of Households],IDPs[Date of Event],\">=\" & from,IDPs[Date of Event],\"<=\" & to,IDPs[Governorate],\"=\"&B26)","v":0},{"$f":"SUMIFS(WhoLeft[Total Number of Households],WhoLeft[Date of Event],\">=\" & from,WhoLeft[Date of Event],\"<=\" & to,WhoLeft[Governorate],\"=\"&B26)","v":0},{"$f":"SUMIFS(IDPs[Total Number Of Households],IDPs[Date of Event],\">=\" & DATE(year,1,1),IDPs[Date of Event],\"<=\" & to,IDPs[Governorate],\"=\"&B26)","v":0}]
[null,"Al Bayda",{"$f":"SUMIFS(IDPs[Total Number Of Households],IDPs[Date of Event],\">=\" & from,IDPs[Date of Event],\"<=\" & to,IDPs[Governorate],\"=\"&B27)","v":0},{"$f":"SUMIFS(WhoLeft[Total Number of Households],WhoLeft[Date of Event],\">=\" & from,WhoLeft[Date of Event],\"<=\" & to,WhoLeft[Governorate],\"=\"&B27)","v":0},{"$f":"SUMIFS(IDPs[Total Number Of Households],IDPs[Date of Event],\">=\" & DATE(year,1,1),IDPs[Date of Event],\"<=\" & to,IDPs[Governorate],\"=\"&B27)","v":0}]
[null,"Al Jawf",{"$f":"SUMIFS(IDPs[Total Number Of Households],IDPs[Date of Event],\">=\" & from,IDPs[Date of Event],\"<=\" & to,IDPs[Governorate],\"=\"&B28)","v":0},{"$f":"SUMIFS(WhoLeft[Total Number of Households],WhoLeft[Date of Event],\">=\" & from,WhoLeft[Date of Event],\"<=\" & to,WhoLeft[Governorate],\"=\"&B28)","v":0},{"$f":"SUMIFS(IDPs[Total Number Of Households],IDPs[Date of Event],\">=\" & DATE(year,1,1),IDPs[Date of Event],\"<=\" & to,IDPs[Governorate],\"=\"&B28)","v":0}]
[null,"Raymah","N/A","N/A","N/A"]
[null,"Al Mahwit","N/A","N/A","N/A"]
[null,"Socotra",{"$f":"SUMIFS(IDPs[Total Number Of Households],IDPs[Date of Event],\">=\" & from,IDPs[Date of Event],\"<=\" & to,IDPs[Governorate],\"=\"&B31)","v":0},{"$f":"SUMIFS(WhoLeft[Total Number of Households],WhoLeft[Date of Event],\">=\" & from,WhoLeft[Date of Event],\"<=\" & to,WhoLeft[Governorate],\"=\"&B31)","v":0},{"$f":"SUMIFS(IDPs[Total Number Of Households],IDPs[Date of Event],\">=\" & DATE(year,1,1),IDPs[Date of Event],\"<=\" & to,IDPs[Governorate],\"=\"&B31)","v":0}]
[null,"Al Maharah",{"$f":"SUMIFS(IDPs[Total Number Of Households],IDPs[Date of Event],\">=\" & from,IDPs[Date of Event],\"<=\" & to,IDPs[Governorate],\"=\"&B32)","v":0},{"$f":"SUMIFS(WhoLeft[Total Number of Households],WhoLeft[Date of Event],\">=\" & from,WhoLeft[Date of Event],\"<=\" & to,WhoLeft[Governorate],\"=\"&B32)","v":0},{"$f":"SUMIFS(IDPs[Total Number Of Households],IDPs[Date of Event],\">=\" & DATE(year,1,1),IDPs[Date of Event],\"<=\" & to,IDPs[Governorate],\"=\"&B32)","v":0}]
[null,"Total",{"$f":"SUM(C11:C32)","v":34},{"$f":"SUM(D11:D32)","v":0},{"$f":"SUM(E11:E32)","v":879}]

{"sheet":"IDPs","index":1,"n_rows":490,"n_cols":36,"rows_kept":490,"cut":false,"hidden":false,"merged":[]}
["Encoding Date","Date of Assessment","Gov_Pcode","Governorate","Governorate_ar","Dis_Pcode","District","District_ar","Population Type","Type of Tracking","Date of Event","Gov_Coming_Pcode","Governorate Coming From","Governorate_ar Coming From","Dis_Coming_Pcode","District Coming From","District_ar Coming From","Reason for Displacement","Primary Event Description for the Majority","Is Most of this Group Coming From Previous Displacement","Is The Governorate of Departure Their Governorate of Origin","Is The District of Departure Their District of Origin","Total Number Of Households","Needs Water","Needs Food Assistance","Needs Health Service","Needs Financial Support","Needs Non Food Items","Needs Sanitation and Hygien","Needs Shelter","Needs Education","Needs Livelihood","Needs Protection Services","Is West Coast","Displaced from Same Governorate","Displaced from Same District"]
["2024-01-04","2024-01-04","YE15","Taiz","تعز","YE1511","Al Misrakh","المسراخ","IDPs","Rapid Tracking","2024-01-01","YE18","Al Hodeidah","الحديدة","YE1819","Hays","حيس","Conflict Reasons","General Insecure Conditions","No",null,null,1,0,1,0,0,0,0,0,0,0,0,{"$f":"IF(OR(COUNTIF(WestCoast[],IDPs[[#This Row],[Dis_Pcode]])>=1,COUNTIF(WestCoast[],#REF!)>=1),\"Yes\",\"No\")","v":"No"},{"$f":"IF(IDPs[[#This Row],[Gov_Pcode]]=IDPs[[#This Row],[Gov_Coming_Pcode]],\"Yes\",\"No\")","v":"No"},{"$f":"IF(IDPs[[#This Row],[Dis_Pcode]]=IDPs[[#This Row],[Dis_Coming_Pcode]],\"Yes\",\"No\")","v":"No"}]
["2024-01-06","2024-01-01","YE26","Marib","مأرب","YE2609","Harib","حريب","IDPs","Rapid Tracking","2024-01-01","YE26","Marib","مأرب","YE2614","Jabal Murad","جبل مراد","Economic Reasons","Unemployment / Salary Cut","No",null,null,2,0,0,0,1,1,0,0,0,0,0,{"$f":"IF(OR(COUNTIF(WestCoast[],IDPs[[#This Row],[Dis_Pcode]])>=1,COUNTIF(WestCoast[],#REF!)>=1),\"Yes\",\"No\")","v":"No"},{"$f":"IF(IDPs[[#This Row],[Gov_Pcode]]=IDPs[[#This Row],[Gov_Coming_Pcode]],\"Yes\",\"No\")","v":"Yes"},{"$f":"IF(IDPs[[#This Row],[Dis_Pcode]]=IDPs[[#This Row],[Dis_Coming_Pcode]],\"Yes\",\"No\")","v":"No"}]
["2024-01-06","2024-01-01","YE26","Marib","مأرب","YE2612","Marib City","مدينة مأرب","IDPs","Rapid Tracking","2024-01-01","YE17","Hajjah","حجة","YE1730","Washhah","وشحة","Conflict Reasons","General Insecure Conditions","No",null,null,1,0,1,0,0,0,0,0,0,0,0,{"$f":"IF(OR(COUNTIF(WestCoast[],IDPs[[#This Row],[Dis_Pcode]])>=1,COUNTIF(WestCoast[],#REF!)>=1),\"Yes\",\"No\")","v":"No"},{"$f":"IF(IDPs[[#This Row],[Gov_Pcode]]=IDPs[[#This Row],[Gov_Coming_Pcode]],\"Yes\",\"No\")","v":"No"},{"$f":"IF(IDPs[[#This Row],[Dis_Pcode]]=IDPs[[#This Row],[Dis_Coming_Pcode]],\"Yes\",\"No\")","v":"No"}]
["2024-01-06","2024-01-02","YE26","Marib","مأرب","YE2613","Marib","مأرب","IDPs","Rapid Tracking","2024-01-01","YE18","Al Hodeidah","الحديدة","YE1813","Al Marawiah","المراوعة","Economic Reasons","Increasing market prices","No",null,null,1,0,0,0,0,0,0,1,0,0,0,{"$f":"IF(OR(COUNTIF(WestCoast[],IDPs[[#This Row],[Dis_Pcode]])>=1,COUNTIF(WestCoast[],#REF!)>=1),\"Yes\",\"No\")","v":"No"},{"$f":"IF(IDPs[[#This Row],[Gov_Pcode]]=IDPs[[#This Row],[Gov_Coming_Pcode]],\"Yes\",\"No\")","v":"No"},{"$f":"IF(IDPs[[#This Row],[Dis_Pcode]]=IDPs[[#This Row],[Dis_Coming_Pcode]],\"Yes\",\"No\")","v":"No"}]
["2024-01-06","2024-01-02","YE26","Marib","مأرب","YE2613","Marib","مأرب","IDPs","Rapid Tracking","2024-01-01","YE11","Ibb","إب","YE1111","Al Odayn","العدين","Economic Reasons","Increasing market prices","No",null,null,1,0,0,0,0,0,0,1,0,0,0,{"$f":"IF(OR(COUNTIF(WestCoast[],IDPs[[#This Row],[Dis_Pcode]])>=1,COUNTIF(WestCoast[],#REF!)>=1),\"Yes\",\"No\")","v":"No"},{"$f":"IF(IDPs[[#This Row],[Gov_Pcode]]=IDPs[[#This Row],[Gov_Coming_Pcode]],\"Yes\",\"No\")","v":"No"},{"$f":"IF(IDPs[[#This Row],[Dis_Pcode]]=IDPs[[#This Row],[Dis_Coming_Pcode]],\"Yes\",\"No\")","v":"No"}]
["2024-01-06","2024-01-04","YE26","Marib","مأرب","YE2613","Marib","مأرب","IDPs","Rapid Tracking","2024-01-01","YE26","Marib","مأرب","YE2607","Al Jubah","الجوبة","Economic Reasons","Increasing market prices","No",null,null,1,0,0,0,0,0,0,1,0,0,0,{"$f":"IF(OR(COUNTIF(WestCoast[],IDPs[[#This Row],[Dis_Pcode]])>=1,COUNTIF(WestCoast[],#REF!)>=1),\"Yes\",\"No\")","v":"No"},{"$f":"IF(IDPs[[#This Row],[Gov_Pcode]]=IDPs[[#This Row],[Gov_Coming_Pcode]],\"Yes\",\"No\")","v":"Yes"},{"$f":"IF(IDPs[[#This Row],[Dis_Pcode]]=IDPs[[#This Row],[Dis_Coming_Pcode]],\"Yes\",\"No\")","v":"No"}]
["2024-01-04","2024-01-04","YE15","Taiz","تعز","YE1505","Al Makha","المخا","IDPs","Rapid Tracking","2024-01-02","YE18","Al Hodeidah","الحديدة","YE1819","Hays","حيس","Conflict Reasons","General Insecure Conditions","No",null,null,3,0,0,0,3,0,0,0,0,0,0,{"$f":"IF(OR(COUNTIF(WestCoast[],IDPs[[#This Row],[Dis_Pcode]])>=1,COUNTIF(WestCoast[],#REF!)>=1),\"Yes\",\"No\")","v":"Yes"},{"$f":"IF(IDPs[[#This Row],[Gov_Pcode]]=IDPs[[#This Row],[Gov_Coming_Pcode]],\"Yes\",\"No\")","v":"No"},{"$f":"IF(IDPs[[#This Row],[Dis_Pcode]]=IDPs[[#This Row],[Dis_Coming_Pcode]],\"Yes\",\"No\")","v":"No"}]
["2024-01-06","2024-01-06","YE18","Al Hodeidah","الحديدة","YE1819","Hays","حيس","IDPs","Rapid Tracking","2024-01-02","YE18","Al Hodeidah","الحديدة","YE1825","Al Jarrahi","الجراحي","Conflict Reasons","Combat / Shelling","No",null,null,2,0,1,0,0,0,0,1,0,0,0,{"$f":"IF(OR(COUNTIF(WestCoast[],IDPs[[#This Row],[Dis_Pcode]])>=1,COUNTIF(WestCoast[],#REF!)>=1),\"Yes\",\"No\")","v":"Yes"},{"$f":"IF(IDPs[[#This Row],[Gov_Pcode]]=IDPs[[#This Row],[Gov_Coming_Pcode]],\"Yes\",\"No\")","v":"Yes"},{"$f":"IF(IDPs[[#This Row],[Dis_Pcode]]=IDPs[[#This Row],[Dis_Coming_Pcode]],\"Yes\",\"No\")","v":"No"}]
["2024-01-06","2024-01-02","YE26","Marib","مأرب","YE2613","Marib","مأرب","IDPs","Rapid Tracking","2024-01-02","YE18","Al Hodeidah","الحديدة","YE1814","Ad Durayhimi","الدريهمي","Economic Reasons","Increasing market prices","No",null,null,1,0,0,0,0,0,0,1,0,0,0,{"$f":"IF(OR(COUNTIF(WestCoast[],IDPs[[#This Row],[Dis_Pcode]])>=1,COUNTIF(WestCoast[],#REF!)>=1),\"Yes\",\"No\")","v":"No"},{"$f":"IF(IDPs[[#This Row],[Gov_Pcode]]=IDPs[[#This Row],[Gov_Coming_Pcode]],\"Yes\",\"No\")","v":"No"},{"$f":"IF(IDPs[[#This Row],[Dis_Pcode]]=IDPs[[#This Row],[Dis_Coming_Pcode]],\"Yes\",\"No\")","v":"No"}]
["2024-01-06","2024-01-04","YE26","Marib","مأرب","YE2612","Marib City","مدينة مأرب","IDPs","Rapid Tracking","2024-01-02","YE29","Amran","عمران","YE2916","Maswar","مسور","Economic Reasons","Unemployment / Salary Cut","No",null,null,1,0,1,0,0,0,0,0,0,0,0,{"$f":"IF(OR(COUNTIF(WestCoast[],IDPs[[#This Row],[Dis_Pcode]])>=1,COUNTIF(WestCoast[],#REF!)>=1),\"Yes\",\"No\")","v":"No"},{"$f":"IF(IDPs[[#This Row],[Gov_Pcode]]=IDPs[[#This Row],[Gov_Coming_Pcode]],\"Yes\",\"No\")","v":"No"},{"$f":"IF(IDPs[[#This Row],[Dis_Pcode]]=IDPs[[#This Row],[Dis_Coming_Pcode]],\"Yes\",\"No\")","v":"No"}]
["2024-01-04","2024-01-04","YE15","Taiz","تعز","YE1505","Al Makha","المخا","IDPs","Rapid Tracking","2024-01-03","YE15","Taiz","تعز","YE1511","Al Misrakh","المسراخ","Conflict Reasons","General Insecure Conditions","No",null,null,4,0,0,0,4,0,0,0,0,0,0,{"$f":"IF(OR(COUNTIF(WestCoast[],IDPs[[#This Row],[Dis_Pcode]])>=1,COUNTIF(WestCoast[],#REF!)>=1),\"Yes\",\"No\")","v":"Yes"},{"$f":"IF(IDPs[[#This Row],[Gov_Pcode]]=IDPs[[#This Row],[Gov_Coming_Pcode]],\"Yes\",\"No\")","v":"Yes"},{"$f":"IF(IDPs[[#This Row],[Dis_Pcode]]=IDPs[[#This Row],[Dis_Coming_Pcode]],\"Yes\",\"No\")","v":"No"}]
["2024-01-06","2024-01-02","YE26","Marib","مأرب","YE2613","Marib","مأرب","IDPs","Rapid Tracking","2024-01-03","YE26","Marib","مأرب","YE2609","Harib","حريب","Conflict Reasons","General Insecure Conditions","No",null,null,1,0,0,0,0,0,0,1,0,0,0,{"$f":"IF(OR(COUNTIF(WestCoast[],IDPs[[#This Row],[Dis_Pcode]])>=1,COUNTIF(WestCoast[],#REF!)>=1),\"Yes\",\"No\")","v":"No"},{"$f":"IF(IDPs[[#This Row],[Gov_Pcode]]=IDPs[[#This Row],[Gov_Coming_Pcode]],\"Yes\",\"No\")","v":"Yes"},{"$f":"IF(IDPs[[#This Row],[Dis_Pcode]]=IDPs[[#This Row],[Dis_Coming_Pcode]],\"Yes\",\"No\")","v":"No"}]
["2024-01-09","2024-01-09","YE18","Al Hodeidah","الحديدة","YE1819","Hays","حيس","IDPs","Rapid Tracking","2024-01-02","YE18","Al Hodeidah","الحديدة","YE1819","Hays","حيس","Conflict Reasons","Combat / Shelling","No",null,null,1,0,0,0,0,0,0,1,0,0,0,{"$f":"IF(OR(COUNTIF(WestCoast[],IDPs[[#This Row],[Dis_Pcode]])>=1,COUNTIF(WestCoast[],#REF!)>=1),\"Yes\",\"No\")","v":"Yes"},{"$f":"IF(IDPs[[#This Row],[Gov_Pcode]]=IDPs[[#This Row],[Gov_Coming_Pcode]],\"Yes\",\"No\")","v":"Yes"},{"$f":"IF(IDPs[[#This Row],[Dis_Pcode]]=IDPs[[#This Row],[Dis_Coming_Pcode]],\"Yes\",\"No\")","v":"Yes"}]
["2024-01-09","2024-01-08","YE18","Al Hodeidah","الحديدة","YE1819","Hays","حيس","IDPs","Rapid Tracking","2024-01-02","YE15","Taiz","تعز","YE1504","Maqbanah","مقبنة","Conflict Reasons","Combat / Shelling","No",null,null,2,0,1,0,0,0,0,1,0,0,0,{"$f":"IF(OR(COUNTIF(WestCoast[],IDPs[[#This Row],[Dis_Pcode]])>=1,COUNTIF(WestCoast[],#REF!)>=1),\"Yes\",\"No\")","v":"Yes"},{"$f":"IF(IDPs[[#This Row],[Gov_Pcode]]=IDPs[[#This Row],[Gov_Coming_Pcode]],\"Yes\",\"No\")","v":"No"},{"$f":"IF(IDPs[[#This Row],[Dis_Pcode]]=IDPs[[#This Row],[Dis_Coming_Pcode]],\"Yes\",\"No\")","v":"No"}]
["2024-01-09","2024-01-08","YE18","Al Hodeidah","الحديدة","YE1819","Hays","حيس","IDPs","Rapid Tracking","2024-01-02","YE18","Al Hodeidah","الحديدة","YE1819","Hays","حيس","Conflict Reasons","Combat / Shelling","No",null,null,1,0,0,0,0,0,0,1,0,0,0,{"$f":"IF(OR(COUNTIF(WestCoast[],IDPs[[#This Row],[Dis_Pcode]])>=1,COUNTIF(WestCoast[],#REF!)>=1),\"Yes\",\"No\")","v":"Yes"},{"$f":"IF(IDPs[[#This Row],[Gov_Pcode]]=IDPs[[#This Row],[Gov_Coming_Pcode]],\"Yes\",\"No\")","v":"Yes"},{"$f":"IF(IDPs[[#This Row],[Dis_Pcode]]=IDPs[[#This Row],[Dis_Coming_Pcode]],\"Yes\",\"No\")","v":"Yes"}]
["2024-01-09","2024-01-08","YE18","Al Hodeidah","الحديدة","YE1820","Al Khukhah","الخوخة","IDPs","Rapid Tracking","2024-01-02","YE18","Al Hodeidah","الحديدة","YE1826","At Tuhayta","التحيتا","Conflict Reasons","Combat / Shelling","Yes","Yes","Yes",1,0,1,0,0,0,0,0,0,0,0,{"$f":"IF(OR(COUNTIF(WestCoast[],IDPs[[#This Row],[Dis_Pcode]])>=1,COUNTIF(WestCoast[],#REF!)>=1),\"Yes\",\"No\")","v":"Yes"},{"$f":"IF(IDPs[[#This Row],[Gov_Pcode]]=IDPs[[#This Row],[Gov_Coming_Pcode]],\"Yes\",\"No\")","v":"Yes"},{"$f":"IF(IDPs[[#This Row],[Dis_Pcode]]=IDPs[[#This Row],[Dis_Coming_Pcode]],\"Yes\",\"No\")","v":"No"}]
["2024-01-09","2024-01-08","YE18","Al Hodeidah","الحديدة","YE1819","Hays","حيس","IDPs","Rapid Tracking","2024-01-03","YE15","Taiz","تعز","YE1504","Maqbanah","مقبنة","Conflict Reasons","Combat / Shelling","No",null,null,2,0,0,0,0,0,0,2,0,0,0,{"$f":"IF(OR(COUNTIF(WestCoast[],IDPs[[#This Row],[Dis_Pcode]])>=1,COUNTIF(WestCoast[],#REF!)>=1),\"Yes\",\"No\")","v":"Yes"},{"$f":"IF(IDPs[[#This Row],[Gov_Pcode]]=IDPs[[#This Row],[Gov_Coming_Pcode]],\"Yes\",\"No\")","v":"No"},{"$f":"IF(IDPs[[#This Row],[Dis_Pcode]]=IDPs[[#This Row],[Dis_Coming_Pcode]],\"Yes\",\"No\")","v":"No"}]
["2024-01-09","2024-01-08","YE18","Al Hodeidah","الحديدة","YE1820","Al Khukhah","الخوخة","IDPs","Rapid Tracking","2024-01-04","YE20","Dhamar","ذمار","YE2011","Dawran Anis","ضوران أنس","Economic Reasons","Other economic reason","No",null,null,1,0,1,0,0,0,0,0,0,0,0,{"$f":"IF(OR(COUNTIF(WestCoast[],IDPs[[#This Row],[Dis_Pcode]])>=1,COUNTIF(WestCoast[],#REF!)>=1),\"Yes\",\"No\")","v":"Yes"},{"$f":"IF(IDPs[[#This Row],[Gov_Pcode]]=IDPs[[#This Row],[Gov_Coming_Pcode]],\"Yes\",\"No\")","v":"No"},{"$f":"IF(IDPs[[#This Row],[Dis_Pcode]]=IDPs[[#This Row],[Dis_Coming_Pcode]],\"Yes\",\"No\")","v":"No"}]
["2024-01-09","2024-01-08","YE18","Al Hodeidah","الحديدة","YE1820","Al Khukhah","الخوخة","IDPs","Rapid Tracking","2024-01-04","YE11","Ibb","إب","YE1101","Al Qafr","القفر","Economic Reasons","Other economic reason","No",null,null,1,0,0,0,0,0,0,1,0,0,0,{"$f":"IF(OR(COUNTIF(WestCoast[],IDPs[[#This Row],[Dis_Pcode]])>=1,COUNTIF(WestCoast[],#REF!)>=1),\"Yes\",\"No\")","v":"Yes"},{"$f":"IF(IDPs[[#This Row],[Gov_Pcode]]=IDPs[[#This Row],[Gov_Coming_Pcode]],\"Yes\",\"No\")","v":"No"},{"$f":"IF(IDPs[[#This Row],[Dis_Pcode]]=IDPs[[#This Row],[Dis_Coming_Pcode]],\"Yes\",\"No\")","v":"No"}]
["2024-01-10","2024-01-09","YE18","Al Hodeidah","الحديدة","YE1820","Al Khukhah","الخوخة","IDPs","Rapid Tracking","2024-01-04","YE11","Ibb","إب","YE1116","Dhi As Sufal","ذي السفال","Economic Reasons","Other economic reason","No",null,null,1,0,0,0,0,0,0,0,0,1,0,{"$f":"IF(OR(COUNTIF(WestCoast[],IDPs[[#This Row],[Dis_Pcode]])>=1,COUNTIF(WestCoast[],#REF!)>=1),\"Yes\",\"No\")","v":"Yes"},{"$f":"IF(IDPs[[#This Row],[Gov_Pcode]]=IDPs[[#This Row],[Gov_Coming_Pcode]],\"Yes\",\"No\")","v":"No"},{"$f":"IF(IDPs[[#This Row],[Dis_Pcode]]=IDPs[[#This Row],[Dis_Coming_Pcode]],\"Yes\",\"No\")","v":"No"}]
["2024-01-13","2024-01-08","YE26","Marib","مأرب","YE2613","Marib","مأرب","IDPs","Rapid Tracking","2024-01-04","YE15","Taiz","تعز","YE1503","Sharab Ar Rawnah","شرعب الرونة","Economic Reasons","Unemployment / Salary Cut","Don't Know",null,null,1,0,0,0,0,0,0,1,0,0,0,{"$f":"IF(OR(COUNTIF(WestCoast[],IDPs[[#This Row],[Dis_Pcode]])>=1,COUNTIF(WestCoast[],#REF!)>=1),\"Yes\",\"No\")","v":"No"},{"$f":"IF(IDPs[[#This Row],[Gov_Pcode]]=IDPs[[#This Row],[Gov_Coming_Pcode]],\"Yes\",\"No\")","v":"No"},{"$f":"IF(IDPs[[#This Row],[Dis_Pcode]]=IDPs[[#This Row],[Dis_Coming_Pcode]],\"Yes\",\"No\")","v":"No"}]
["2024-01-13","2024-01-08","YE26","Marib","مأرب","YE2613","Marib","مأرب","IDPs","Rapid Tracking","2024-01-04","YE26","Marib","مأرب","YE2601","Majzar","مجزر","Conflict Reasons","General Insecure Conditions","Yes","No",null,1,0,0,0,0,0,0,1,0,0,0,{"$f":"IF(OR(COUNTIF(WestCoast[],IDPs[[#This Row],[Dis_Pcode]])>=1,COUNTIF(WestCoast[],#REF!)>=1),\"Yes\",\"No\")","v":"No"},{"$f":"IF(IDPs[[#This Row],[Gov_Pcode]]=IDPs[[#This Row],[Gov_Coming_Pcode]],\"Yes\",\"No\")","v":"Yes"},{"$f":"IF(IDPs[[#This Row],[Dis_Pcode]]=IDPs[[#This Row],[Dis_Coming_Pcode]],\"Yes\",\"No\")","v":"No"}]
["2024-01-09","2024-01-09","YE18","Al Hodeidah","الحديدة","YE1819","Hays","حيس","IDPs","Rapid Tracking","2024-01-05","YE15","Taiz","تعز","YE1504","Maqbanah","مقبنة","Conflict Reasons","Combat / Shelling","No",null,null,2,0,1,0,0,0,0,1,0,0,0,{"$f":"IF(OR(COUNTIF(WestCoast[],IDPs[[#This Row],[Dis_Pcode]])>=1,COUNTIF(WestCoast[],#REF!)>=1),\"Yes\",\"No\")","v":"Yes"},{"$f":"IF(IDPs[[#This Row],[Gov_Pcode]]=IDPs[[#This Row],[Gov_Coming_Pcode]],\"Yes\",\"No\")","v":"No"},{"$f":"IF(IDPs[[#This Row],[Dis_Pcode]]=IDPs[[#This Row],[Dis_Coming_Pcode]],\"Yes\",\"No\")","v":"No"}]
["2024-01-09","2024-01-08","YE18","Al Hodeidah","الحديدة","YE1820","Al Khukhah","الخوخة","IDPs","Rapid Tracking","2024-01-05","YE15","Taiz","تعز","YE1511","Al Misrakh","المسراخ","Economic Reasons","Unemployment / Salary Cut","No",null,null,1,0,1,0,0,0,0,0,0,0,0,{"$f":"IF(OR(COUNTIF(WestCoast[],IDPs[[#This Row],[Dis_Pcode]])>=1,COUNTIF(WestCoast[],#REF!)>=1),\"Yes\",\"No\")","v":"Yes"},{"$f":"IF(IDPs[[#This Row],[Gov_Pcode]]=IDPs[[#This Row],[Gov_Coming_Pcode]],\"Yes\",\"No\")","v":"No"},{"$f":"IF(IDPs[[#This Row],[Dis_Pcode]]=IDPs[[#This Row],[Dis_Coming_Pcode]],\"Yes\",\"No\")","v":"No"}]
["2024-01-13","2024-01-07","YE26","Marib","مأرب","YE2612","Marib City","مدينة مأرب","IDPs","Rapid Tracking","2024-01-05","YE17","Hajjah","حجة","YE1705","Hayran","حيران","Conflict Reasons","General Insecure Conditions","No",null,null,1,0,0,0,0,0,0,1,0,0,0,{"$f":"IF(OR(COUNTIF(WestCoast[],IDPs[[#This Row],[Dis_Pcode]])>=1,COUNTIF(WestCoast[],#REF!)>=1),\"Yes\",\"No\")","v":"No"},{"$f":"IF(IDPs[[#This Row],[Gov_Pcode]]=IDPs[[#This Row],[Gov_Coming_Pcode]],\"Yes\",\"No\")","v":"No"},{"$f":"IF(IDPs[[#This Row],[Dis_Pcode]]=IDPs[[#This Row],[Dis_Coming_Pcode]],\"Yes\",\"No\")","v":"No"}]
["2024-01-13","2024-01-08","YE26","Marib","مأرب","YE2612","Marib City","مدينة مأرب","IDPs","Rapid Tracking","2024-01-05","YE23","Sanaa","صنعاء","YE2306","Bilad Ar Rus","بلاد الروس","Conflict Reasons","General Insecure Conditions","No",null,null,1,0,0,0,0,1,0,0,0,0,0,{"$f":"IF(OR(COUNTIF(WestCoast[],IDPs[[#This Row],[Dis_Pcode]])>=1,COUNTIF(WestCoast[],#REF!)>=1),\"Yes\",\"No\")","v":"No"},{"$f":"IF(IDPs[[#This Row],[Gov_Pcode]]=IDPs[[#This Row],[Gov_Coming_Pcode]],\"Yes\",\"No\")","v":"No"},{"$f":"IF(IDPs[[#This Row],[Dis_Pcode]]=IDPs[[#This Row],[Dis_Coming_Pcode]],\"Yes\",\"No\")","v":"No"}]
["2024-01-13","2024-01-08","YE26","Marib","مأرب","YE2613","Marib","مأرب","IDPs","Rapid Tracking","2024-01-05","YE18","Al Hodeidah","الحديدة","YE1807","Az Zaydiah","الزيدية","Economic Reasons","Other economic reason","No",null,null,1,0,0,0,0,0,0,1,0,0,0,{"$f":"IF(OR(COUNTIF(WestCoast[],IDPs[[#This Row],[Dis_Pcode]])>=1,COUNTIF(WestCoast[],#REF!)>=1),\"Yes\",\"No\")","v":"No"},{"$f":"IF(IDPs[[#This Row],[Gov_Pcode]]=IDPs[[#This Row],[Gov_Coming_Pcode]],\"Yes\",\"No\")","v":"No"},{"$f":"IF(IDPs[[#This Row],[Dis_Pcode]]=IDPs[[#This Row],[Dis_Coming_Pcode]],\"Yes\",\"No\")","v":"No"}]
["2024-01-13","2024-01-10","YE26","Marib","مأرب","YE2613","Marib","مأرب","IDPs","Rapid Tracking","2024-01-05","YE11","Ibb","إب","YE1111","Al Odayn","العدين","Conflict Reasons","General Insecure Conditions","No",null,null,1,0,0,0,0,0,0,1,0,0,0,{"$f":"IF(OR(COUNTIF(WestCoast[],IDPs[[#This Row],[Dis_Pcode]])>=1,COUNTIF(WestCoast[],#REF!)>=1),\"Yes\",\"No\")","v":"No"},{"$f":"IF(IDPs[[#This Row],[Gov_Pcode]]=IDPs[[#This Row],[Gov_Coming_Pcode]],\"Yes\",\"No\")","v":"No"},{"$f":"IF(IDPs[[#This Row],[Dis_Pcode]]=IDPs[[#This Row],[Dis_Coming_Pcode]],\"Yes\",\"No\")","v":"No"}]
["2024-01-13","2024-01-11","YE26","Marib","مأرب","YE2613","Marib","مأرب","IDPs","Rapid Tracking","2024-01-05","YE18","Al Hodeidah","الحديدة","YE1819","Hays","حيس","Conflict Reasons","General Insecure Conditions","No",null,null,1,0,0,0,0,0,0,1,0,0,0,{"$f":"IF(OR(COUNTIF(WestCoast[],IDPs[[#This Row],[Dis_Pcode]])>=1,COUNTIF(WestCoast[],#REF!)>=1),\"Yes\",\"No\")","v":"No"},{"$f":"IF(IDPs[[#This Row],[Gov_Pcode]]=IDPs[[#This Row],[Gov_Coming_Pcode]],\"Yes\",\"No\")","v":"No"},{"$f":"IF(IDPs[[#This Row],[Dis_Pcode]]=IDPs[[#This Row],[Dis_Coming_Pcode]],\"Yes\",\"No\")","v":"No"}]
["2024-01-13","2024-01-11","YE26","Marib","مأرب","YE2613","Marib","مأرب","IDPs","Rapid Tracking","2024-01-05","YE11","Ibb","إب","YE1112","Jiblah","جبلة","Conflict Reasons","General Insecure Conditions","No",null,null,1,0,0,0,0,0,0,1,0,0,0,{"$f":"IF(OR(COUNTIF(WestCoast[],IDPs[[#This Row],[Dis_Pcode]])>=1,COUNTIF(WestCoast[],#REF!)>=1),\"Yes\",\"No\")","v":"No"},{"$f":"IF(IDPs[[#This Row],[Gov_Pcode]]=IDPs[[#This Row],[Gov_Coming_Pcode]],\"Yes\",\"No\")","v":"No"},{"$f":"IF(IDPs[[#This Row],[Dis_Pcode]]=IDPs[[#This Row],[Dis_Coming_Pcode]],\"Yes\",\"No\")","v":"No"}]
["2024-01-13","2024-01-11","YE26","Marib","مأرب","YE2613","Marib","مأرب","IDPs","Rapid Tracking","2024-01-05","YE18","Al Hodeidah","الحديدة","YE1819","Hays","حيس","Economic Reasons","Increasing market prices","No",null,null,1,0,0,0,0,0,0,1,0,0,0,{"$f":"IF(OR(COUNTIF(WestCoast[],IDPs[[#This Row],[Dis_Pcode]])>=1,COUNTIF(WestCoast[],#REF!)>=1),\"Yes\",\"No\")","v":"No"},{"$f":"IF(IDPs[[#This Row],[Gov_Pcode]]=IDPs[[#This Row],[Gov_Coming_Pcode]],\"Yes\",\"No\")","v":"No"},{"$f":"IF(IDPs[[#This Row],[Dis_Pcode]]=IDPs[[#This Row],[Dis_Coming_Pcode]],\"Yes\",\"No\")","v":"No"}]
["2024-01-11","2024-01-11","YE25","Lahj","لحج","YE2515","Tuban","تبن","IDPs","Rapid Tracking","2024-01-06","YE15","Taiz","تعز","YE1504","Maqbanah","مقبنة","Conflict Reasons","General Insecure Conditions","No",null,null,1,0,1,0,0,0,0,0,0,0,0,{"$f":"IF(OR(COUNTIF(WestCoast[],IDPs[[#This Row],[Dis_Pcode]])>=1,COUNTIF(WestCoast[],#REF!)>=1),\"Yes\",\"No\")","v":"No"},{"$f":"IF(IDPs[[#This Row],[Gov_Pcode]]=IDPs[[#This Row],[Gov_Coming_Pcode]],\"Yes\",\"No\")","v":"No"},{"$f":"IF(IDPs[[#This Row],[Dis_Pcode]]=IDPs[[#This Row],[Dis_Coming_Pcode]],\"Yes\",\"No\")","v":"No"}]
["2024-01-11","2024-01-11","YE25","Lahj","لحج","YE2515","Tuban","تبن","IDPs","Rapid Tracking","2024-01-06","YE15","Taiz","تعز","YE1504","Maqbanah","مقبنة","Conflict Reasons","General Insecure Conditions","No",null,null,1,0,1,0,0,0,0,0,0,0,0,{"$f":"IF(OR(COUNTIF(WestCoast[],IDPs[[#This Row],[Dis_Pcode]])>=1,COUNTIF(WestCoast[],#REF!)>=1),\"Yes\",\"No\")","v":"No"},{"$f":"IF(IDPs[[#This Row],[Gov_Pcode]]=IDPs[[#This Row],[Gov_Coming_Pcode]],\"Yes\",\"No\")","v":"No"},{"$f":"IF(IDPs[[#This Row],[Dis_Pcode]]=IDPs[[#This Row],[Dis_Coming_Pcode]],\"Yes\",\"No\")","v":"No"}]
["2024-01-13","2024-01-08","YE26","Marib","مأرب","YE2613","Marib","مأرب","IDPs","Rapid Tracking","2024-01-06","YE11","Ibb","إب","YE1101","Al Qafr","القفر","Economic Reasons","Unemployment / Salary Cut","No",null,null,1,0,0,0,0,0,0,1,0,0,0,{"$f":"IF(OR(COUNTIF(WestCoast[],IDPs[[#This Row],[Dis_Pcode]])>=1,COUNTIF(WestCoast[],#REF!)>=1),\"Yes\",\"No\")","v":"No"},{"$f":"IF(IDPs[[#This Row],[Gov_Pcode]]=IDPs[[#This Row],[Gov_Coming_Pcode]],\"Yes\",\"No\")","v":"No"},{"$f":"IF(IDPs[[#This Row],[Dis_Pcode]]=IDPs[[#This Row],[Dis_Coming_Pcode]],\"Yes\",\"No\")","v":"No"}]
["2024-01-13","2024-01-10","YE26","Marib","مأرب","YE2613","Marib","مأرب","IDPs","Rapid Tracking","2024-01-06","YE26","Marib","مأرب","YE2602","Raghwan","رغوان","Economic Reasons","Unemployment / Salary Cut","No",null,null,2,0,0,0,0,0,0,1,0,1,0,{"$f":"IF(OR(COUNTIF(WestCoast[],IDPs[[#This Row],[Dis_Pcode]])>=1,COUNTIF(WestCoast[],#REF!)>=1),\"Yes\",\"No\")","v":"No"},{"$f":"IF(IDPs[[#This Row],[Gov_Pcode]]=IDPs[[#This Row],[Gov_Coming_Pcode]],\"Yes\",\"No\")","v":"Yes"},{"$f":"IF(IDPs[[#This Row],[Dis_Pcode]]=IDPs[[#This Row],[Dis_Coming_Pcode]],\"Yes\",\"No\")","v":"No"}]
["2024-01-13","2024-01-10","YE26","Marib","مأرب","YE2613","Marib","مأرب","IDPs","Rapid Tracking","2024-01-06","YE18","Al Hodeidah","الحديدة","YE1814","Ad Durayhimi","الدريهمي","Economic Reasons","Increasing market prices","Don't Know",null,null,1,0,0,0,0,0,0,1,0,0,0,{"$f":"IF(OR(COUNTIF(WestCoast[],IDPs[[#This Row],[Dis_Pcode]])>=1,COUNTIF(WestCoast[],#REF!)>=1),\"Yes\",\"No\")","v":"No"},{"$f":"IF(IDPs[[#This Row],[Gov_Pcode]]=IDPs[[#This Row],[Gov_Coming_Pcode]],\"Yes\",\"No\")","v":"No"},{"$f":"IF(IDPs[[#This Row],[Dis_Pcode]]=IDPs[[#This Row],[Dis_Coming_Pcode]],\"Yes\",\"No\")","v":"No"}]
["2024-01-09","2024-01-08","YE18","Al Hodeidah","الحديدة","YE1820","Al Khukhah","الخوخة","IDPs","Rapid Tracking","2024-01-07","YE18","Al Hodeidah","الحديدة","YE1826","At Tuhayta","التحيتا","Conflict Reasons","Combat / Shelling","No",null,null,1,0,0,0,0,0,0,1,0,0,0,{"$f":"IF(OR(COUNTIF(WestCoast[],IDPs[[#This Row],[Dis_Pcode]])>=1,COUNTIF(WestCoast[],#REF!)>=1),\"Yes\",\"No\")","v":"Yes"},{"$f":"IF(IDPs[[#This Row],[Gov_Pcode]]=IDPs[[#This Row],[Gov_Coming_Pcode]],\"Yes\",\"No\")","v":"Yes"},{"$f":"IF(IDPs[[#This Row],[Dis_Pcode]]=IDPs[[#This Row],[Dis_Coming_Pcode]],\"Yes\",\"No\")","v":"No"}]
["2024-01-10","2024-01-09","YE18","Al Hodeidah","الحديدة","YE1820","Al Khukhah","الخوخة","IDPs","Rapid Tracking","2024-01-07","YE11","Ibb","إب","YE1101","Al Qafr","القفر","Economic Reasons","Other economic reason","No",null,null,1,0,0,0,0,0,0,0,0,1,0,{"$f":"IF(OR(COUNTIF(WestCoast[],IDPs[[#This Row],[Dis_Pcode]])>=1,COUNTIF(WestCoast[],#REF!)>=1),\"Yes\",\"No\")","v":"Yes"},{"$f":"IF(IDPs[[#This Row],[Gov_Pcode]]=IDPs[[#This Row],[Gov_Coming_Pcode]],\"Yes\",\"No\")","v":"No"},{"$f":"IF(IDPs[[#This Row],[Dis_Pcode]]=IDPs[[#This Row],[Dis_Coming_Pcode]],\"Yes\",\"No\")","v":"No"}]
["2024-01-12","2024-01-12","YE15","Taiz","تعز","YE1513","As Silw","الصلو","IDPs","Rapid Tracking","2024-01-07","YE15","Taiz","تعز","YE1513","As Silw","الصلو","Economic Reasons","Other economic reason","No",null,null,1,0,0,0,1,0,0,0,0,0,0,{"$f":"IF(OR(COUNTIF(WestCoast[],IDPs[[#This Row],[Dis_Pcode]])>=1,COUNTIF(WestCoast[],#REF!)>=1),\"Yes\",\"No\")","v":"No"},{"$f":"IF(IDPs[[#This Row],[Gov_Pcode]]=IDPs[[#This Row],[Gov_Coming_Pcode]],\"Yes\",\"No\")","v":"Yes"},{"$f":"IF(IDPs[[#This Row],[Dis_Pcode]]=IDPs[[#This Row],[Dis_Coming_Pcode]],\"Yes\",\"No\")","v":"Yes"}]
["2024-01-13","2024-01-08","YE26","Marib","مأرب","YE2609","Harib","حريب","IDPs","Rapid Tracking","2024-01-07","YE16","Al Jawf","الجوف","YE1605","Al Hazm","الحزم","Economic Reasons","Unemployment / Salary Cut","Don't Know",null,null,4,0,0,0,2,1,0,1,0,0,0,{"$f":"IF(OR(COUNTIF(WestCoast[],IDPs[[#This Row],[Dis_Pcode]])>=1,COUNTIF(WestCoast[],#REF!)>=1),\"Yes\",\"No\")","v":"No"},{"$f":"IF(IDPs[[#This Row],[Gov_Pcode]]=IDPs[[#This Row],[Gov_Coming_Pcode]],\"Yes\",\"No\")","v":"No"},{"$f":"IF(IDPs[[#This Row],[Dis_Pcode]]=IDPs[[#This Row],[Dis_Coming_Pcode]],\"Yes\",\"No\")","v":"No"}]
["2024-01-13","2024-01-10","YE26","Marib","مأرب","YE2612","Marib City","مدينة مأرب","IDPs","Rapid Tracking","2024-01-07","YE14","Al Bayda","البيضاء","YE1418","Ar Ryashyyah","الرياشية","Economic Reasons","Other economic reason","No",null,null,1,0,0,0,1,0,0,0,0,0,0,{"$f":"IF(OR(COUNTIF(WestCoast[],IDPs[[#This Row],[Dis_Pcode]])>=1,COUNTIF(WestCoast[],#REF!)>=1),\"Yes\",\"No\")","v":"No"},{"$f":"IF(IDPs[[#This Row],[Gov_Pcode]]=IDPs[[#This Row],[Gov_Coming_Pcode]],\"Yes\",\"No\")","v":"No"},{"$f":"IF(IDPs[[#This Row],[Dis_Pcode]]=IDPs[[#This Row],[Dis_Coming_Pcode]],\"Yes\",\"No\")","v":"No"}]
["2024-01-13","2024-01-10","YE26","Marib","مأرب","YE2612","Marib City","مدينة مأرب","IDPs","Rapid Tracking","2024-01-07","YE18","Al Hodeidah","الحديدة","YE1810","Bajil","باجل","Economic Reasons","Unemployment / Salary Cut","No",null,null,1,0,1,0,0,0,0,0,0,0,0,{"$f":"IF(OR(COUNTIF(WestCoast[],IDPs[[#This Row],[Dis_Pcode]])>=1,COUNTIF(WestCoast[],#REF!)>=1),\"Yes\",\"No\")","v":"No"},{"$f":"IF(IDPs[[#This Row],[Gov_Pcode]]=IDPs[[#This Row],[Gov_Coming_Pcode]],\"Yes\",\"No\")","v":"No"},{"$f":"IF(IDPs[[#This Row],[Dis_Pcode]]=IDPs[[#This Row],[Dis_Coming_Pcode]],\"Yes\",\"No\")","v":"No"}]
["2024-01-13","2024-01-10","YE26","Marib","مأرب","YE2613","Marib","مأرب","IDPs","Rapid Tracking","2024-01-07","YE15","Taiz","تعز","YE1519","Salah","صالة","Economic Reasons","Increasing market prices","Yes","No",null,1,0,0,0,0,0,0,1,0,0,0,{"$f":"IF(OR(COUNTIF(WestCoast[],IDPs[[#This Row],[Dis_Pcode]])>=1,COUNTIF(WestCoast[],#REF!)>=1),\"Yes\",\"No\")","v":"No"},{"$f":"IF(IDPs[[#This Row],[Gov_Pcode]]=IDPs[[#This Row],[Gov_Coming_Pcode]],\"Yes\",\"No\")","v":"No"},{"$f":"IF(IDPs[[#This Row],[Dis_Pcode]]=IDPs[[#This Row],[Dis_Coming_Pcode]],\"Yes\",\"No\")","v":"No"}]
["2024-01-13","2024-01-10","YE26","Marib","مأرب","YE2612","Marib City","مدينة مأرب","IDPs","Rapid Tracking","2024-01-08","YE31","Raymah","ريمة","YE3104","Mazhar","مزهر","Conflict Reasons","General Insecure Conditions","No",null,null,1,0,0,0,0,1,0,0,0,0,0,{"$f":"IF(OR(COUNTIF(WestCoast[],IDPs[[#This Row],[Dis_Pcode]])>=1,COUNTIF(WestCoast[],#REF!)>=1),\"Yes\",\"No\")","v":"No"},{"$f":"IF(IDPs[[#This Row],[Gov_Pcode]]=IDPs[[#This Row],[Gov_Coming_Pcode]],\"Yes\",\"No\")","v":"No"},{"$f":"IF(IDPs[[#This Row],[Dis_Pcode]]=IDPs[[#This Row],[Dis_Coming_Pcode]],\"Yes\",\"No\")","v":"No"}]
["2024-01-13","2024-01-11","YE26","Marib","مأرب","YE2612","Marib City","مدينة مأرب","IDPs","Rapid Tracking","2024-01-08","YE26","Marib","مأرب","YE2609","Harib","حريب","Conflict Reasons","Combat / Shelling","No",null,null,1,0,1,0,0,0,0,0,0,0,0,{"$f":"IF(OR(COUNTIF(WestCoast[],IDPs[[#This Row],[Dis_Pcode]])>=1,COUNTIF(WestCoast[],#REF!)>=1),\"Yes\",\"No\")","v":"No"},{"$f":"IF(IDPs[[#This Row],[Gov_Pcode]]=IDPs[[#This Row],[Gov_Coming_Pcode]],\"Yes\",\"No\")","v":"Yes"},{"$f":"IF(IDPs[[#This Row],[Dis_Pcode]]=IDPs[[#This Row],[Dis_Coming_Pcode]],\"Yes\",\"No\")","v":"No"}]
["2024-01-13","2024-01-11","YE26","Marib","مأرب","YE2613","Marib","مأرب","IDPs","Rapid Tracking","2024-01-08","YE13","Sanaa City","أمانة العاصمة","YE1308","Main","معين","Economic Reasons","Increasing market prices","No",null,null,1,0,0,0,0,0,0,1,0,0,0,{"$f":"IF(OR(COUNTIF(WestCoast[],IDPs[[#This Row],[Dis_Pcode]])>=1,COUNTIF(WestCoast[],#REF!)>=1),\"Yes\",\"No\")","v":"No"},{"$f":"IF(IDPs[[#This Row],[Gov_Pcode]]=IDPs[[#This Row],[Gov_Coming_Pcode]],\"Yes\",\"No\")","v":"No"},{"$f":"IF(IDPs[[#This Row],[Dis_Pcode]]=IDPs[[#This Row],[Dis_Coming_Pcode]],\"Yes\",\"No\")","v":"No"}]
["2024-01-13","2024-01-12","YE26","Marib","مأرب","YE2612","Marib City","مدينة مأرب","IDPs","Rapid Tracking","2024-01-08","YE23","Sanaa","صنعاء","YE2302","Arhab","أرحب","Conflict Reasons","General Insecure Conditions","No",null,null,2,0,0,0,0,1,0,1,0,0,0,{"$f":"IF(OR(COUNTIF(WestCoast[],IDPs[[#This Row],[Dis_Pcode]])>=1,COUNTIF(WestCoast[],#REF!)>=1),\"Yes\",\"No\")","v":"No"},{"$f":"IF(IDPs[[#This Row],[Gov_Pcode]]=IDPs[[#This Row],[Gov_Coming_Pcode]],\"Yes\",\"No\")","v":"No"},{"$f":"IF(IDPs[[#This Row],[Dis_Pcode]]=IDPs[[#This Row],[Dis_Coming_Pcode]],\"Yes\",\"No\")","v":"No"}]
["2024-01-13","2024-01-11","YE26","Marib","مأرب","YE2612","Marib City","مدينة مأرب","IDPs","Rapid Tracking","2024-01-09","YE15","Taiz","تعز","YE1508","Jabal Habashi","جبل حبشي","Economic Reasons","Unemployment / Salary Cut","No",null,null,1,0,0,1,0,0,0,0,0,0,0,{"$f":"IF(OR(COUNTIF(WestCoast[],IDPs[[#This Row],[Dis_Pcode]])>=1,COUNTIF(WestCoast[],#REF!)>=1),\"Yes\",\"No\")","v":"No"},{"$f":"IF(IDPs[[#This Row],[Gov_Pcode]]=IDPs[[#This Row],[Gov_Coming_Pcode]],\"Yes\",\"No\")","v":"No"},{"$f":"IF(IDPs[[#This Row],[Dis_Pcode]]=IDPs[[#This Row],[Dis_Coming_Pcode]],\"Yes\",\"No\")","v":"No"}]
["2024-01-13","2024-01-11","YE26","Marib","مأرب","YE2613","Marib","مأرب","IDPs","Rapid Tracking","2024-01-09","YE18","Al Hodeidah","الحديدة","YE1813","Al Marawiah","المراوعة","Economic Reasons","Increasing market prices","No",null,null,1,0,0,0,0,0,0,1,0,0,0,{"$f":"IF(OR(COUNTIF(WestCoast[],IDPs[[#This Row],[Dis_Pcode]])>=1,COUNTIF(WestCoast[],#REF!)>=1),\"Yes\",\"No\")","v":"No"},{"$f":"IF(IDPs[[#This Row],[Gov_Pcode]]=IDPs[[#This Row],[Gov_Coming_Pcode]],\"Yes\",\"No\")","v":"No"},{"$f":"IF(IDPs[[#This Row],[Dis_Pcode]]=IDPs[[#This Row],[Dis_Coming_Pcode]],\"Yes\",\"No\")","v":"No"}]
["2024-01-12","2024-01-12","YE15","Taiz","تعز","YE1505","Al Makha","المخا","IDPs","Rapid Tracking","2024-01-10","YE15","Taiz","تعز","YE1517","Al Mudhaffar","المظفر","Conflict Reasons","General Insecure Conditions","No",null,null,3,0,0,0,3,0,0,0,0,0,0,{"$f":"IF(OR(COUNTIF(WestCoast[],IDPs[[#This Row],[Dis_Pcode]])>=1,COUNTIF(WestCoast[],#REF!)>=1),\"Yes\",\"No\")","v":"Yes"},{"$f":"IF(IDPs[[#This Row],[Gov_Pcode]]=IDPs[[#This Row],[Gov_Coming_Pcode]],\"Yes\",\"No\")","v":"Yes"},{"$f":"IF(IDPs[[#This Row],[Dis_Pcode]]=IDPs[[#This Row],[Dis_Coming_Pcode]],\"Yes\",\"No\")","v":"No"}]
["2024-01-13","2024-01-13","YE18","Al Hodeidah","الحديدة","YE1819","Hays","حيس","IDPs","Rapid Tracking","2024-01-12","YE15","Taiz","تعز","YE1504","Maqbanah","مقبنة","Conflict Reasons","Combat / Shelling","No",null,null,3,0,1,0,0,0,0,2,0,0,0,{"$f":"IF(OR(COUNTIF(WestCoast[],IDPs[[#This Row],[Dis_Pcode]])>=1,COUNTIF(WestCoast[],#REF!)>=1),\"Yes\",\"No\")","v":"Yes"},{"$f":"IF(IDPs[[#This Row],[Gov_Pcode]]=IDPs[[#This Row],[Gov_Coming_Pcode]],\"Yes\",\"No\")","v":"No"},{"$f":"IF(IDPs[[#This Row],[Dis_Pcode]]=IDPs[[#This Row],[Dis_Coming_Pcode]],\"Yes\",\"No\")","v":"No"}]
["2024-01-15","2024-01-14","YE18","Al Hodeidah","الحديدة","YE1819","Hays","حيس","IDPs","Rapid Tracking","2024-01-07","YE18","Al Hodeidah","الحديدة","YE1825","Al Jarrahi","الجراحي","Conflict Reasons","Combat / Shelling","No",null,null,2,0,0,0,0,0,0,2,0,0,0,{"$f":"IF(OR(COUNTIF(WestCoast[],IDPs[[#This Row],[Dis_Pcode]])>=1,COUNTIF(WestCoast[],#REF!)>=1),\"Yes\",\"No\")","v":"Yes"},{"$f":"IF(IDPs[[#This Row],[Gov_Pcode]]=IDPs[[#This Row],[Gov_Coming_Pcode]],\"Yes\",\"No\")","v":"Yes"},{"$f":"IF(IDPs[[#This Row],[Dis_Pcode]]=IDPs[[#This Row],[Dis_Coming_Pcode]],\"Yes\",\"No\")","v":"No"}]
["2024-01-15","2024-01-14","YE18","Al Hodeidah","الحديدة","YE1819","Hays","حيس","IDPs","Rapid Tracking","2024-01-08","YE18","Al Hodeidah","الحديدة","YE1819","Hays","حيس","Conflict Reasons","Combat / Shelling","No",null,null,2,0,0,0,0,0,0,2,0,0,0,{"$f":"IF(OR(COUNTIF(WestCoast[],IDPs[[#This Row],[Dis_Pcode]])>=1,COUNTIF(WestCoast[],#REF!)>=1),\"Yes\",\"No\")","v":"Yes"},{"$f":"IF(IDPs[[#This Row],[Gov_Pcode]]=IDPs[[#This Row],[Gov_Coming_Pcode]],\"Yes\",\"No\")","v":"Yes"},{"$f":"IF(IDPs[[#This Row],[Dis_Pcode]]=IDPs[[#This Row],[Dis_Coming_Pcode]],\"Yes\",\"No\")","v":"Yes"}]
["2024-01-15","2024-01-14","YE18","Al Hodeidah","الحديدة","YE1820","Al Khukhah","الخوخة","IDPs","Rapid Tracking","2024-01-09","YE18","Al Hodeidah","الحديدة","YE1826","At Tuhayta","التحيتا","Conflict Reasons","Combat / Shelling","Yes","Yes","Yes",2,0,2,0,0,0,0,0,0,0,0,{"$f":"IF(OR(COUNTIF(WestCoast[],IDPs[[#This Row],[Dis_Pcode]])>=1,COUNTIF(WestCoast[],#REF!)>=1),\"Yes\",\"No\")","v":"Yes"},{"$f":"IF(IDPs[[#This Row],[Gov_Pcode]]=IDPs[[#This Row],[Gov_Coming_Pcode]],\"Yes\",\"No\")","v":"Yes"},{"$f":"IF(IDPs[[#This Row],[Dis_Pcode]]=IDPs[[#This Row],[Dis_Coming_Pcode]],\"Yes\",\"No\")","v":"No"}]
["2024-01-16","2024-01-16","YE18","Al Hodeidah","الحديدة","YE1820","Al Khukhah","الخوخة","IDPs","Rapid Tracking","2024-01-10","YE18","Al Hodeidah","الحديدة","YE1826","At Tuhayta","التحيتا","Conflict Reasons","Combat / Shelling","Yes","Yes","Yes",2,0,2,0,0,0,0,0,0,0,0,{"$f":"IF(OR(COUNTIF(WestCoast[],IDPs[[#This Row],[Dis_Pcode]])>=1,COUNTIF(WestCoast[],#REF!)>=1),\"Yes\",\"No\")","v":"Yes"},{"$f":"IF(IDPs[[#This Row],[Gov_Pcode]]=IDPs[[#This Row],[Gov_Coming_Pcode]],\"Yes\",\"No\")","v":"Yes"},{"$f":"IF(IDPs[[#This Row],[Dis_Pcode]]=IDPs[[#This Row],[Dis_Coming_Pcode]],\"Yes\",\"No\")","v":"No"}]
["2024-01-20","2024-01-14","YE26","Marib","مأرب","YE2612","Marib City","مدينة مأرب","IDPs","Rapid Tracking","2024-01-10","YE29","Amran","عمران","YE2907","Suwayr","صوير","Conflict Reasons","General Insecure Conditions","No",null,null,1,0,0,0,0,1,0,0,0,0,0,{"$f":"IF(OR(COUNTIF(WestCoast[],IDPs[[#This Row],[Dis_Pcode]])>=1,COUNTIF(WestCoast[],#REF!)>=1),\"Yes\",\"No\")","v":"No"},{"$f":"IF(IDPs[[#This Row],[Gov_Pcode]]=IDPs[[#This Row],[Gov_Coming_Pcode]],\"Yes\",\"No\")","v":"No"},{"$f":"IF(IDPs[[#This Row],[Dis_Pcode]]=IDPs[[#This Row],[Dis_Coming_Pcode]],\"Yes\",\"No\")","v":"No"}]
["2024-01-20","2024-01-15","YE26","Marib","مأرب","YE2613","Marib","مأرب","IDPs","Rapid Tracking","2024-01-10","YE26","Marib","مأرب","YE2611","Al Abdiyah","العبدية","Economic Reasons","Unemployment / Salary Cut","Yes","Yes","No",1,0,0,0,0,0,0,1,0,0,0,{"$f":"IF(OR(COUNTIF(WestCoast[],IDPs[[#This Row],[Dis_Pcode]])>=1,COUNTIF(WestCoast[],#REF!)>=1),\"Yes\",\"No\")","v":"No"},{"$f":"IF(IDPs[[#This Row],[Gov_Pcode]]=IDPs[[#This Row],[Gov_Coming_Pcode]],\"Yes\",\"No\")","v":"Yes"},{"$f":"IF(IDPs[[#This Row],[Dis_Pcode]]=IDPs[[#This Row],[Dis_Coming_Pcode]],\"Yes\",\"No\")","v":"No"}]
["2024-01-15","2024-01-15","YE15","Taiz","تعز","YE1508","Jabal Habashi","جبل حبشي","IDPs","Rapid Tracking","2024-01-11","YE15","Taiz","تعز","YE1504","Maqbanah","مقبنة","Conflict Reasons","General Insecure Conditions","No",null,null,14,0,0,0,14,0,0,0,0,0,0,{"$f":"IF(OR(COUNTIF(WestCoast[],IDPs[[#This Row],[Dis_Pcode]])>=1,COUNTIF(WestCoast[],#REF!)>=1),\"Yes\",\"No\")","v":"No"},{"$f":"IF(IDPs[[#This Row],[Gov_Pcode]]=IDPs[[#This Row],[Gov_Coming_Pcode]],\"Yes\",\"No\")","v":"Yes"},{"$f":"IF(IDPs[[#This Row],[Dis_Pcode]]=IDPs[[#This Row],[Dis_Coming_Pcode]],\"Yes\",\"No\")","v":"No"}]
["2024-01-15","2024-01-15","YE15","Taiz","تعز","YE1508","Jabal Habashi","جبل حبشي","IDPs","Rapid Tracking","2024-01-11","YE15","Taiz","تعز","YE1504","Maqbanah","مقبنة","Conflict Reasons","General Insecure Conditions","No",null,null,3,0,0,0,3,0,0,0,0,0,0,{"$f":"IF(OR(COUNTIF(WestCoast[],IDPs[[#This Row],[Dis_Pcode]])>=1,COUNTIF(WestCoast[],#REF!)>=1),\"Yes\",\"No\")","v":"No"},{"$f":"IF(IDPs[[#This Row],[Gov_Pcode]]=IDPs[[#This Row],[Gov_Coming_Pcode]],\"Yes\",\"No\")","v":"Yes"},{"$f":"IF(IDPs[[#This Row],[Dis_Pcode]]=IDPs[[#This Row],[Dis_Coming_Pcode]],\"Yes\",\"No\")","v":"No"}]
["2024-01-20","2024-01-14","YE26","Marib","مأرب","YE2612","Marib City","مدينة مأرب","IDPs","Rapid Tracking","2024-01-11","YE15","Taiz","تعز","YE1508","Jabal Habashi","جبل حبشي","Economic Reasons","Other economic reason","Yes","No",null,1,0,0,0,1,0,0,0,0,0,0,{"$f":"IF(OR(COUNTIF(WestCoast[],IDPs[[#This Row],[Dis_Pcode]])>=1,COUNTIF(WestCoast[],#REF!)>=1),\"Yes\",\"No\")","v":"No"},{"$f":"IF(IDPs[[#This Row],[Gov_Pcode]]=IDPs[[#This Row],[Gov_Coming_Pcode]],\"Yes\",\"No\")","v":"No"},{"$f":"IF(IDPs[[#This Row],[Dis_Pcode]]=IDPs[[#This Row],[Dis_Coming_Pcode]],\"Yes\",\"No\")","v":"No"}]
["2024-01-20","2024-01-14","YE26","Marib","مأرب","YE2612","Marib City","مدينة مأرب","IDPs","Rapid Tracking","2024-01-11","YE17","Hajjah","حجة","YE1705","Hayran","حيران","Economic Reasons","Unemployment / Salary Cut","Don't Know",null,null,1,0,0,0,0,1,0,0,0,0,0,{"$f":"IF(OR(COUNTIF(WestCoast[],IDPs[[#This Row],[Dis_Pcode]])>=1,COUNTIF(WestCoast[],#REF!)>=1),\"Yes\",\"No\")","v":"No"},{"$f":"IF(IDPs[[#This Row],[Gov_Pcode]]=IDPs[[#This Row],[Gov_Coming_Pcode]],\"Yes\",\"No\")","v":"No"},{"$f":"IF(IDPs[[#This Row],[Dis_Pcode]]=IDPs[[#This Row],[Dis_Coming_Pcode]],\"Yes\",\"No\")","v":"No"}]
["2024-01-20","2024-01-15","YE26","Marib","مأرب","YE2609","Harib","حريب","IDPs","Rapid Tracking","2024-01-11","YE18","Al Hodeidah","الحديدة","YE1826","At Tuhayta","التحيتا","Economic Reasons","Unemployment / Salary Cut","Don't Know",null,null,2,0,0,0,1,1,0,0,0,0,0,{"$f":"IF(OR(COUNTIF(WestCoast[],IDPs[[#This Row],[Dis_Pcode]])>=1,COUNTIF(WestCoast[],#REF!)>=1),\"Yes\",\"No\")","v":"No"},{"$f":"IF(IDPs[[#This Row],[Gov_Pcode]]=IDPs[[#This Row],[Gov_Coming_Pcode]],\"Yes\",\"No\")","v":"No"},{"$f":"IF(IDPs[[#This Row],[Dis_Pcode]]=IDPs[[#This Row],[Dis_Coming_Pcode]],\"Yes\",\"No\")","v":"No"}]
["2024-01-20","2024-01-19","YE15","Taiz","تعز","YE1521","Al Maafer","المعافر","IDPs","Rapid Tracking","2024-01-11","YE15","Taiz","تعز","YE1504","Maqbanah","مقبنة","Conflict Reasons","General Insecure Conditions","Yes","No",null,14,0,0,0,14,0,0,0,0,0,0,{"$f":"IF(OR(COUNTIF(WestCoast[],IDPs[[#This Row],[Dis_Pcode]])>=1,COUNTIF(WestCoast[],#REF!)>=1),\"Yes\",\"No\")","v":"No"},{"$f":"IF(IDPs[[#This Row],[Gov_Pcode]]=IDPs[[#This Row],[Gov_Coming_Pcode]],\"Yes\",\"No\")","v":"Yes"},{"$f":"IF(IDPs[[#This Row],[Dis_Pcode]]=IDPs[[#This Row],[Dis_Coming_Pcode]],\"Yes\",\"No\")","v":"No"}]
["2024-01-15","2024-01-14","YE18","Al Hodeidah","الحديدة","YE1819","Hays","حيس","IDPs","Rapid Tracking","2024-01-12","YE18","Al Hodeidah","الحديدة","YE1819","Hays","حيس","Conflict Reasons","Combat / Shelling","No",null,null,5,0,2,0,0,0,0,3,0,0,0,{"$f":"IF(OR(COUNTIF(WestCoast[],IDPs[[#This Row],[Dis_Pcode]])>=1,COUNTIF(WestCoast[],#REF!)>=1),\"Yes\",\"No\")","v":"Yes"},{"$f":"IF(IDPs[[#This Row],[Gov_Pcode]]=IDPs[[#This Row],[Gov_Coming_Pcode]],\"Yes\",\"No\")","v":"Yes"},{"$f":"IF(IDPs[[#This Row],[Dis_Pcode]]=IDPs[[#This Row],[Dis_Coming_Pcode]],\"Yes\",\"No\")","v":"Yes"}]
["2024-01-16","2024-01-15","YE18","Al Hodeidah","الحديدة","YE1819","Hays","حيس","IDPs","Rapid Tracking","2024-01-12","YE18","Al Hodeidah","الحديدة","YE1819","Hays","حيس","Conflict Reasons","Combat / Shelling","No",null,null,2,0,1,0,0,0,0,1,0,0,0,{"$f":"IF(OR(COUNTIF(WestCoast[],IDPs[[#This Row],[Dis_Pcode]])>=1,COUNTIF(WestCoast[],#REF!)>=1),\"Yes\",\"No\")","v":"Yes"},{"$f":"IF(IDPs[[#This Row],[Gov_Pcode]]=IDPs[[#This Row],[Gov_Coming_Pcode]],\"Yes\",\"No\")","v":"Yes"},{"$f":"IF(IDPs[[#This Row],[Dis_Pcode]]=IDPs[[#This Row],[Dis_Coming_Pcode]],\"Yes\",\"No\")","v":"Yes"}]
["2024-01-17","2024-01-17","YE15","Taiz","تعز","YE1521","Al Maafer","المعافر","IDPs","Rapid Tracking","2024-01-12","YE15","Taiz","تعز","YE1514","Ash Shamayatayn","الشمايتين","Economic Reasons","Unemployment / Salary Cut","Yes","No",null,1,0,0,0,1,0,0,0,0,0,0,{"$f":"IF(OR(COUNTIF(WestCoast[],IDPs[[#This Row],[Dis_Pcode]])>=1,COUNTIF(WestCoast[],#REF!)>=1),\"Yes\",\"No\")","v":"No"},{"$f":"IF(IDPs[[#This Row],[Gov_Pcode]]=IDPs[[#This Row],[Gov_Coming_Pcode]],\"Yes\",\"No\")","v":"Yes"},{"$f":"IF(IDPs[[#This Row],[Dis_Pcode]]=IDPs[[#This Row],[Dis_Coming_Pcode]],\"Yes\",\"No\")","v":"No"}]
["2024-01-20","2024-01-15","YE26","Marib","مأرب","YE2613","Marib","مأرب","IDPs","Rapid Tracking","2024-01-12","YE20","Dhamar","ذمار","YE2001","Al Hada","الحداء","Economic Reasons","Unemployment / Salary Cut","No",null,null,1,0,0,0,0,0,0,0,0,1,0,{"$f":"IF(OR(COUNTIF(WestCoast[],IDPs[[#This Row],[Dis_Pcode]])>=1,COUNTIF(WestCoast[],#REF!)>=1),\"Yes\",\"No\")","v":"No"},{"$f":"IF(IDPs[[#This Row],[Gov_Pcode]]=IDPs[[#This Row],[Gov_Coming_Pcode]],\"Yes\",\"No\")","v":"No"},{"$f":"IF(IDPs[[#This Row],[Dis_Pcode]]=IDPs[[#This Row],[Dis_Coming_Pcode]],\"Yes\",\"No\")","v":"No"}]
["2024-01-15","2024-01-15","YE15","Taiz","تعز","YE1505","Al Makha","المخا","IDPs","Rapid Tracking","2024-01-13","YE18","Al Hodeidah","الحديدة","YE1814","Ad Durayhimi","الدريهمي","Conflict Reasons","General Insecure Conditions","No",null,null,3,0,0,0,3,0,0,0,0,0,0,{"$f":"IF(OR(COUNTIF(WestCoast[],IDPs[[#This Row],[Dis_Pcode]])>=1,COUNTIF(WestCoast[],#REF!)>=1),\"Yes\",\"No\")","v":"Yes"},{"$f":"IF(IDPs[[#This Row],[Gov_Pcode]]=IDPs[[#This Row],[Gov_Coming_Pcode]],\"Yes\",\"No\")","v":"No"},{"$f":"IF(IDPs[[#This Row],[Dis_Pcode]]=IDPs[[#This Row],[Dis_Coming_Pcode]],\"Yes\",\"No\")","v":"No"}]
["2024-01-15","2024-01-14","YE18","Al Hodeidah","الحديدة","YE1819","Hays","حيس","IDPs","Rapid Tracking","2024-01-13","YE18","Al Hodeidah","الحديدة","YE1819","Hays","حيس","Conflict Reasons","Combat / Shelling","No",null,null,1,0,0,0,0,0,0,1,0,0,0,{"$f":"IF(OR(COUNTIF(WestCoast[],IDPs[[#This Row],[Dis_Pcode]])>=1,COUNTIF(WestCoast[],#REF!)>=1),\"Yes\",\"No\")","v":"Yes"},{"$f":"IF(IDPs[[#This Row],[Gov_Pcode]]=IDPs[[#This Row],[Gov_Coming_Pcode]],\"Yes\",\"No\")","v":"Yes"},{"$f":"IF(IDPs[[#This Row],[Dis_Pcode]]=IDPs[[#This Row],[Dis_Coming_Pcode]],\"Yes\",\"No\")","v":"Yes"}]
["2024-01-15","2024-01-14","YE18","Al Hodeidah","الحديدة","YE1819","Hays","حيس","IDPs","Rapid Tracking","2024-01-13","YE15","Taiz","تعز","YE1504","Maqbanah","مقبنة","Conflict Reasons","Combat / Shelling","No",null,null,4,0,2,0,0,0,0,2,0,0,0,{"$f":"IF(OR(COUNTIF(WestCoast[],IDPs[[#This Row],[Dis_Pcode]])>=1,COUNTIF(WestCoast[],#REF!)>=1),\"Yes\",\"No\")","v":"Yes"},{"$f":"IF(IDPs[[#This Row],[Gov_Pcode]]=IDPs[[#This Row],[Gov_Coming_Pcode]],\"Yes\",\"No\")","v":"No"},{"$f":"IF(IDPs[[#This Row],[Dis_Pcode]]=IDPs[[#This Row],[Dis_Coming_Pcode]],\"Yes\",\"No\")","v":"No"}]
["2024-01-16","2024-01-16","YE18","Al Hodeidah","الحديدة","YE1820","Al Khukhah","الخوخة","IDPs","Rapid Tracking","2024-01-13","YE18","Al Hodeidah","الحديدة","YE1817","Bayt Al Faqih","بيت الفقيه","Economic Reasons","Other economic reason","No",null,null,1,0,1,0,0,0,0,0,0,0,0,{"$f":"IF(OR(COUNTIF(WestCoast[],IDPs[[#This Row],[Dis_Pcode]])>=1,COUNTIF(WestCoast[],#REF!)>=1),\"Yes\",\"No\")","v":"Yes"},{"$f":"IF(IDPs[[#This Row],[Gov_Pcode]]=IDPs[[#This Row],[Gov_Coming_Pcode]],\"Yes\",\"No\")","v":"Yes"},{"$f":"IF(IDPs[[#This Row],[Dis_Pcode]]=IDPs[[#This Row],[Dis_Coming_Pcode]],\"Yes\",\"No\")","v":"No"}]
["2024-01-17","2024-01-17","YE15","Taiz","تعز","YE1521","Al Maafer","المعافر","IDPs","Rapid Tracking","2024-01-13","YE15","Taiz","تعز","YE1520","At Taiziyah","التعزية","Conflict Reasons","General Insecure Conditions","Yes","No",null,4,0,0,0,4,0,0,0,0,0,0,{"$f":"IF(OR(COUNTIF(WestCoast[],IDPs[[#This Row],[Dis_Pcode]])>=1,COUNTIF(WestCoast[],#REF!)>=1),\"Yes\",\"No\")","v":"No"},{"$f":"IF(IDPs[[#This Row],[Gov_Pcode]]=IDPs[[#This Row],[Gov_Coming_Pcode]],\"Yes\",\"No\")","v":"Yes"},{"$f":"IF(IDPs[[#This Row],[Dis_Pcode]]=IDPs[[#This Row],[Dis_Coming_Pcode]],\"Yes\",\"No\")","v":"No"}]
["2024-01-20","2024-01-14","YE26","Marib","مأرب","YE2612","Marib City","مدينة مأرب","IDPs","Rapid Tracking","2024-01-13","YE26","Marib","مأرب","YE2602","Raghwan","رغوان","Economic Reasons","Unemployment / Salary Cut","Yes","Yes","Yes",1,0,0,0,0,1,0,0,0,0,0,{"$f":"IF(OR(COUNTIF(WestCoast[],IDPs[[#This Row],[Dis_Pcode]])>=1,COUNTIF(WestCoast[],#REF!)>=1),\"Yes\",\"No\")","v":"No"},{"$f":"IF(IDPs[[#This Row],[Gov_Pcode]]=IDPs[[#This Row],[Gov_Coming_Pcode]],\"Yes\",\"No\")","v":"Yes"},{"$f":"IF(IDPs[[#This Row],[Dis_Pcode]]=IDPs[[#This Row],[Dis_Coming_Pcode]],\"Yes\",\"No\")","v":"No"}]
["2024-01-20","2024-01-14","YE26","Marib","مأرب","YE2612","Marib City","مدينة مأرب","IDPs","Rapid Tracking","2024-01-13","YE15","Taiz","تعز","YE1514","Ash Shamayatayn","الشمايتين","Economic Reasons","Other economic reason","No",null,null,1,0,0,0,0,0,0,1,0,0,0,{"$f":"IF(OR(COUNTIF(WestCoast[],IDPs[[#This Row],[Dis_Pcode]])>=1,COUNTIF(WestCoast[],#REF!)>=1),\"Yes\",\"No\")","v":"No"},{"$f":"IF(IDPs[[#This Row],[Gov_Pcode]]=IDPs[[#This Row],[Gov_Coming_Pcode]],\"Yes\",\"No\")","v":"No"},{"$f":"IF(IDPs[[#This Row],[Dis_Pcode]]=IDPs[[#This Row],[Dis_Coming_Pcode]],\"Yes\",\"No\")","v":"No"}]
["2024-01-20","2024-01-14","YE26","Marib","مأرب","YE2613","Marib","مأرب","IDPs","Rapid Tracking","2024-01-13","YE17","Hajjah","حجة","YE1707","Kushar","كشر","Economic Reasons","Other economic reason","Yes","No",null,1,0,0,0,0,0,0,1,0,0,0,{"$f":"IF(OR(COUNTIF(WestCoast[],IDPs[[#This Row],[Dis_Pcode]])>=1,COUNTIF(WestCoast[],#REF!)>=1),\"Yes\",\"No\")","v":"No"},{"$f":"IF(IDPs[[#This Row],[Gov_Pcode]]=IDPs[[#This Row],[Gov_Coming_Pcode]],\"Yes\",\"No\")","v":"No"},{"$f":"IF(IDPs[[#This Row],[Dis_Pcode]]=IDPs[[#This Row],[Dis_Coming_Pcode]],\"Yes\",\"No\")","v":"No"}]
["2024-01-20","2024-01-15","YE26","Marib","مأرب","YE2612","Marib City","مدينة مأرب","IDPs","Rapid Tracking","2024-01-13","YE17","Hajjah","حجة","YE1703","Midi","ميدي","Conflict Reasons","General Insecure Conditions","No",null,null,1,0,0,0,0,0,0,1,0,0,0,{"$f":"IF(OR(COUNTIF(WestCoast[],IDPs[[#This Row],[Dis_Pcode]])>=1,COUNTIF(WestCoast[],#REF!)>=1),\"Yes\",\"No\")","v":"No"},{"$f":"IF(IDPs[[#This Row],[Gov_Pcode]]=IDPs[[#This Row],[Gov_Coming_Pcode]],\"Yes\",\"No\")","v":"No"},{"$f":"IF(IDPs[[#This Row],[Dis_Pcode]]=IDPs[[#This Row],[Dis_Coming_Pcode]],\"Yes\",\"No\")","v":"No"}]
["2024-01-20","2024-01-17","YE26","Marib","مأرب","YE2613","Marib","مأرب","IDPs","Rapid Tracking","2024-01-13","YE20","Dhamar","ذمار","YE2005","Otmah","عتمة","Conflict Reasons","General Insecure Conditions","No",null,null,1,0,0,0,0,0,0,1,0,0,0,{"$f":"IF(OR(COUNTIF(WestCoast[],IDPs[[#This Row],[Dis_Pcode]])>=1,COUNTIF(WestCoast[],#REF!)>=1),\"Yes\",\"No\")","v":"No"},{"$f":"IF(IDPs[[#This Row],[Gov_Pcode]]=IDPs[[#This Row],[Gov_Coming_Pcode]],\"Yes\",\"No\")","v":"No"},{"$f":"IF(IDPs[[#This Row],[Dis_Pcode]]=IDPs[[#This Row],[Dis_Coming_Pcode]],\"Yes\",\"No\")","v":"No"}]
["2024-01-15","2024-01-15","YE18","Al Hodeidah","الحديدة","YE1820","Al Khukhah","الخوخة","IDPs","Rapid Tracking","2024-01-14","YE15","Taiz","تعز","YE1504","Maqbanah","مقبنة","Conflict Reasons","Combat / Shelling","No",null,null,4,0,4,0,0,0,0,0,0,0,0,{"$f":"IF(OR(COUNTIF(WestCoast[],IDPs[[#This Row],[Dis_Pcode]])>=1,COUNTIF(WestCoast[],#REF!)>=1),\"Yes\",\"No\")","v":"Yes"},{"$f":"IF(IDPs[[#This Row],[Gov_Pcode]]=IDPs[[#This Row],[Gov_Coming_Pcode]],\"Yes\",\"No\")","v":"No"},{"$f":"IF(IDPs[[#This Row],[Dis_Pcode]]=IDPs[[#This Row],[Dis_Coming_Pcode]],\"Yes\",\"No\")","v":"No"}]
["2024-01-16","2024-01-15","YE18","Al Hodeidah","الحديدة","YE1819","Hays","حيس","IDPs","Rapid Tracking","2024-01-14","YE18","Al Hodeidah","الحديدة","YE1825","Al Jarrahi","الجراحي","Conflict Reasons","Combat / Shelling","No",null,null,1,0,0,0,0,0,0,1,0,0,0,{"$f":"IF(OR(COUNTIF(WestCoast[],IDPs[[#This Row],[Dis_Pcode]])>=1,COUNTIF(WestCoast[],#REF!)>=1),\"Yes\",\"No\")","v":"Yes"},{"$f":"IF(IDPs[[#This Row],[Gov_Pcode]]=IDPs[[#This Row],[Gov_Coming_Pcode]],\"Yes\",\"No\")","v":"Yes"},{"$f":"IF(IDPs[[#This Row],[Dis_Pcode]]=IDPs[[#This Row],[Dis_Coming_Pcode]],\"Yes\",\"No\")","v":"No"}]
["2024-01-16","2024-01-16","YE18","Al Hodeidah","الحديدة","YE1820","Al Khukhah","الخوخة","IDPs","Rapid Tracking","2024-01-14","YE18","Al Hodeidah","الحديدة","YE1823","Al Hali","الحالي","Economic Reasons","Unemployment / Salary Cut","No",null,null,2,0,0,0,0,0,0,0,0,2,0,{"$f":"IF(OR(COUNTIF(WestCoast[],IDPs[[#This Row],[Dis_Pcode]])>=1,COUNTIF(WestCoast[],#REF!)>=1),\"Yes\",\"No\")","v":"Yes"},{"$f":"IF(IDPs[[#This Row],[Gov_Pcode]]=IDPs[[#This Row],[Gov_Coming_Pcode]],\"Yes\",\"No\")","v":"Yes"},{"$f":"IF(IDPs[[#This Row],[Dis_Pcode]]=IDPs[[#This Row],[Dis_Coming_Pcode]],\"Yes\",\"No\")","v":"No"}]
["2024-01-20","2024-01-15","YE26","Marib","مأرب","YE2613","Marib","مأرب","IDPs","Rapid Tracking","2024-01-14","YE16","Al Jawf","الجوف","YE1605","Al Hazm","الحزم","Conflict Reasons","General Insecure Conditions","Don't Know",null,null,1,0,0,0,0,0,0,0,0,1,0,{"$f":"IF(OR(COUNTIF(WestCoast[],IDPs[[#This Row],[Dis_Pcode]])>=1,COUNTIF(WestCoast[],#REF!)>=1),\"Yes\",\"No\")","v":"No"},{"$f":"IF(IDPs[[#This Row],[Gov_Pcode]]=IDPs[[#This Row],[Gov_Coming_Pcode]],\"Yes\",\"No\")","v":"No"},{"$f":"IF(IDPs[[#This Row],[Dis_Pcode]]=IDPs[[#This Row],[Dis_Coming_Pcode]],\"Yes\",\"No\")","v":"No"}]
["2024-01-20","2024-01-16","YE26","Marib","مأرب","YE2612","Marib City","مدينة مأرب","IDPs","Rapid Tracking","2024-01-14","YE11","Ibb","إب","YE1104","An Nadirah","النادرة","Conflict Reasons","General Insecure Conditions","No",null,null,1,0,1,0,0,0,0,0,0,0,0,{"$f":"IF(OR(COUNTIF(WestCoast[],IDPs[[#This Row],[Dis_Pcode]])>=1,COUNTIF(WestCoast[],#REF!)>=1),\"Yes\",\"No\")","v":"No"},{"$f":"IF(IDPs[[#This Row],[Gov_Pcode]]=IDPs[[#This Row],[Gov_Coming_Pcode]],\"Yes\",\"No\")","v":"No"},{"$f":"IF(IDPs[[#This Row],[Dis_Pcode]]=IDPs[[#This Row],[Dis_Coming_Pcode]],\"Yes\",\"No\")","v":"No"}]
["2024-01-20","2024-01-16","YE26","Marib","مأرب","YE2612","Marib City","مدينة مأرب","IDPs","Rapid Tracking","2024-01-14","YE26","Marib","مأرب","YE2609","Harib","حريب","Conflict Reasons","Combat / Shelling","No",null,null,1,0,0,0,0,1,0,0,0,0,0,{"$f":"IF(OR(COUNTIF(WestCoast[],IDPs[[#This Row],[Dis_Pcode]])>=1,COUNTIF(WestCoast[],#REF!)>=1),\"Yes\",\"No\")","v":"No"},{"$f":"IF(IDPs[[#This Row],[Gov_Pcode]]=IDPs[[#This Row],[Gov_Coming_Pcode]],\"Yes\",\"No\")","v":"Yes"},{"$f":"IF(IDPs[[#This Row],[Dis_Pcode]]=IDPs[[#This Row],[Dis_Coming_Pcode]],\"Yes\",\"No\")","v":"No"}]
["2024-01-20","2024-01-16","YE26","Marib","مأرب","YE2613","Marib","مأرب","IDPs","Rapid Tracking","2024-01-14","YE29","Amran","عمران","YE2911","Raydah","ريدة","Conflict Reasons","General Insecure Conditions","No",null,null,1,0,0,0,0,0,0,1,0,0,0,{"$f":"IF(OR(COUNTIF(WestCoast[],IDPs[[#This Row],[Dis_Pcode]])>=1,COUNTIF(WestCoast[],#REF!)>=1),\"Yes\",\"No\")","v":"No"},{"$f":"IF(IDPs[[#This Row],[Gov_Pcode]]=IDPs[[#This Row],[Gov_Coming_Pcode]],\"Yes\",\"No\")","v":"No"},{"$f":"IF(IDPs[[#This Row],[Dis_Pcode]]=IDPs[[#This Row],[Dis_Coming_Pcode]],\"Yes\",\"No\")","v":"No"}]
["2024-01-20","2024-01-16","YE26","Marib","مأرب","YE2613","Marib","مأرب","IDPs","Rapid Tracking","2024-01-14","YE18","Al Hodeidah","الحديدة","YE1813","Al Marawiah","المراوعة","Economic Reasons","Increasing market prices","No",null,null,1,0,0,0,0,0,0,1,0,0,0,{"$f":"IF(OR(COUNTIF(WestCoast[],IDPs[[#This Row],[Dis_Pcode]])>=1,COUNTIF(WestCoast[],#REF!)>=1),\"Yes\",\"No\")","v":"No"},{"$f":"IF(IDPs[[#This Row],[Gov_Pcode]]=IDPs[[#This Row],[Gov_Coming_Pcode]],\"Yes\",\"No\")","v":"No"},{"$f":"IF(IDPs[[#This Row],[Dis_Pcode]]=IDPs[[#This Row],[Dis_Coming_Pcode]],\"Yes\",\"No\")","v":"No"}]
["2024-01-20","2024-01-17","YE26","Marib","مأرب","YE2612","Marib City","مدينة مأرب","IDPs","Rapid Tracking","2024-01-14","YE26","Marib","مأرب","YE2602","Raghwan","رغوان","Economic Reasons","Unemployment / Salary Cut","Don't Know",null,null,1,0,0,0,0,1,0,0,0,0,0,{"$f":"IF(OR(COUNTIF(WestCoast[],IDPs[[#This Row],[Dis_Pcode]])>=1,COUNTIF(WestCoast[],#REF!)>=1),\"Yes\",\"No\")","v":"No"},{"$f":"IF(IDPs[[#This Row],[Gov_Pcode]]=IDPs[[#This Row],[Gov_Coming_Pcode]],\"Yes\",\"No\")","v":"Yes"},{"$f":"IF(IDPs[[#This Row],[Dis_Pcode]]=IDPs[[#This Row],[Dis_Coming_Pcode]],\"Yes\",\"No\")","v":"No"}]
["2024-01-20","2024-01-18","YE26","Marib","مأرب","YE2613","Marib","مأرب","IDPs","Rapid Tracking","2024-01-14","YE18","Al Hodeidah","الحديدة","YE1819","Hays","حيس","Conflict Reasons","General Insecure Conditions","No",null,null,2,0,0,0,0,0,0,2,0,0,0,{"$f":"IF(OR(COUNTIF(WestCoast[],IDPs[[#This Row],[Dis_Pcode]])>=1,COUNTIF(WestCoast[],#REF!)>=1),\"Yes\",\"No\")","v":"No"},{"$f":"IF(IDPs[[#This Row],[Gov_Pcode]]=IDPs[[#This Row],[Gov_Coming_Pcode]],\"Yes\",\"No\")","v":"No"},{"$f":"IF(IDPs[[#This Row],[Dis_Pcode]]=IDPs[[#This Row],[Dis_Coming_Pcode]],\"Yes\",\"No\")","v":"No"}]
["2024-01-20","2024-01-18","YE25","Lahj","لحج","YE2515","Tuban","تبن","IDPs","Rapid Tracking","2024-01-14","YE18","Al Hodeidah","الحديدة","YE1822","Al Mina","الميناء","Conflict Reasons","General Insecure Conditions","No",null,null,1,0,1,0,0,0,0,0,0,0,0,{"$f":"IF(OR(COUNTIF(WestCoast[],IDPs[[#This Row],[Dis_Pcode]])>=1,COUNTIF(WestCoast[],#REF!)>=1),\"Yes\",\"No\")","v":"No"},{"$f":"IF(IDPs[[#This Row],[Gov_Pcode]]=IDPs[[#This Row],[Gov_Coming_Pcode]],\"Yes\",\"No\")","v":"No"},{"$f":"IF(IDPs[[#This Row],[Dis_Pcode]]=IDPs[[#This Row],[Dis_Coming_Pcode]],\"Yes\",\"No\")","v":"No"}]
["2024-01-16","2024-01-16","YE18","Al Hodeidah","الحديدة","YE1820","Al Khukhah","الخوخة","IDPs","Rapid Tracking","2024-01-15","YE18","Al Hodeidah","الحديدة","YE1821","Al Hawak","الحوك","Economic Reasons","Other economic reason","No",null,null,1,0,0,0,0,0,0,0,0,1,0,{"$f":"IF(OR(COUNTIF(WestCoast[],IDPs[[#This Row],[Dis_Pcode]])>=1,COUNTIF(WestCoast[],#REF!)>=1),\"Yes\",\"No\")","v":"Yes"},{"$f":"IF(IDPs[[#This Row],[Gov_Pcode]]=IDPs[[#This Row],[Gov_Coming_Pcode]],\"Yes\",\"No\")","v":"Yes"},{"$f":"IF(IDPs[[#This Row],[Dis_Pcode]]=IDPs[[#This Row],[Dis_Coming_Pcode]],\"Yes\",\"No\")","v":"No"}]
["2024-01-19","2024-01-19","YE15","Taiz","تعز","YE1505","Al Makha","المخا","IDPs","Rapid Tracking","2024-01-15","YE15","Taiz","تعز","YE1520","At Taiziyah","التعزية","Conflict Reasons","General Insecure Conditions","No",null,null,2,0,0,0,2,0,0,0,0,0,0,{"$f":"IF(OR(COUNTIF(WestCoast[],IDPs[[#This Row],[Dis_Pcode]])>=1,COUNTIF(WestCoast[],#REF!)>=1),\"Yes\",\"No\")","v":"Yes"},{"$f":"IF(IDPs[[#This Row],[Gov_Pcode]]=IDPs[[#This Row],[Gov_Coming_Pcode]],\"Yes\",\"No\")","v":"Yes"},{"$f":"IF(IDPs[[#This Row],[Dis_Pcode]]=IDPs[[#This Row],[Dis_Coming_Pcode]],\"Yes\",\"No\")","v":"No"}]
["2024-01-20","2024-01-16","YE26","Marib","مأرب","YE2612","Marib City","مدينة مأرب","IDPs","Rapid Tracking","2024-01-15","YE16","Al Jawf","الجوف","YE1601","Khab wa Ash Shaf","خب و الشعف","Conflict Reasons","General Insecure Conditions","No",null,null,1,0,0,0,0,0,0,1,0,0,0,{"$f":"IF(OR(COUNTIF(WestCoast[],IDPs[[#This Row],[Dis_Pcode]])>=1,COUNTIF(WestCoast[],#REF!)>=1),\"Yes\",\"No\")","v":"No"},{"$f":"IF(IDPs[[#This Row],[Gov_Pcode]]=IDPs[[#This Row],[Gov_Coming_Pcode]],\"Yes\",\"No\")","v":"No"},{"$f":"IF(IDPs[[#This Row],[Dis_Pcode]]=IDPs[[#This Row],[Dis_Coming_Pcode]],\"Yes\",\"No\")","v":"No"}]
["2024-01-20","2024-01-16","YE26","Marib","مأرب","YE2613","Marib","مأرب","IDPs","Rapid Tracking","2024-01-15","YE17","Hajjah","حجة","YE1713","Qafl Shammar","قفل شمر","Economic Reasons","Increasing market prices","No",null,null,1,0,0,0,0,0,0,1,0,0,0,{"$f":"IF(OR(COUNTIF(WestCoast[],IDPs[[#This Row],[Dis_Pcode]])>=1,COUNTIF(WestCoast[],#REF!)>=1),\"Yes\",\"No\")","v":"No"},{"$f":"IF(IDPs[[#This Row],[Gov_Pcode]]=IDPs[[#This Row],[Gov_Coming_Pcode]],\"Yes\",\"No\")","v":"No"},{"$f":"IF(IDPs[[#This Row],[Dis_Pcode]]=IDPs[[#This Row],[Dis_Coming_Pcode]],\"Yes\",\"No\")","v":"No"}]
["2024-01-20","2024-01-16","YE26","Marib","مأرب","YE2613","Marib","مأرب","IDPs","Rapid Tracking","2024-01-15","YE16","Al Jawf","الجوف","YE1601","Khab wa Ash Shaf","خب و الشعف","Conflict Reasons","General Insecure Conditions","Yes","Yes","Yes",1,0,0,0,0,0,0,1,0,0,0,{"$f":"IF(OR(COUNTIF(WestCoast[],IDPs[[#This Row],[Dis_Pcode]])>=1,COUNTIF(WestCoast[],#REF!)>=1),\"Yes\",\"No\")","v":"No"},{"$f":"IF(IDPs[[#This Row],[Gov_Pcode]]=IDPs[[#This Row],[Gov_Coming_Pcode]],\"Yes\",\"No\")","v":"No"},{"$f":"IF(IDPs[[#This Row],[Dis_Pcode]]=IDPs[[#This Row],[Dis_Coming_Pcode]],\"Yes\",\"No\")","v":"No"}]
["2024-01-20","2024-01-17","YE26","Marib","مأرب","YE2612","Marib City","مدينة مأرب","IDPs","Rapid Tracking","2024-01-15","YE15","Taiz","تعز","YE1514","Ash Shamayatayn","الشمايتين","Economic Reasons","Other economic reason","No",null,null,1,0,0,0,0,0,0,0,0,1,0,{"$f":"IF(OR(COUNTIF(WestCoast[],IDPs[[#This Row],[Dis_Pcode]])>=1,COUNTIF(WestCoast[],#REF!)>=1),\"Yes\",\"No\")","v":"No"},{"$f":"IF(IDPs[[#This Row],[Gov_Pcode]]=IDPs[[#This Row],[Gov_Coming_Pcode]],\"Yes\",\"No\")","v":"No"},{"$f":"IF(IDPs[[#This Row],[Dis_Pcode]]=IDPs[[#This Row],[Dis_Coming_Pcode]],\"Yes\",\"No\")","v":"No"}]
["2024-01-20","2024-01-17","YE26","Marib","مأرب","YE2612","Marib City","مدينة مأرب","IDPs","Rapid Tracking","2024-01-15","YE26","Marib","مأرب","YE2609","Harib","حريب","Conflict Reasons","General Insecure Conditions","Don't Know",null,null,1,0,0,0,0,1,0,0,0,0,0,{"$f":"IF(OR(COUNTIF(WestCoast[],IDPs[[#This Row],[Dis_Pcode]])>=1,COUNTIF(WestCoast[],#REF!)>=1),\"Yes\",\"No\")","v":"No"},{"$f":"IF(IDPs[[#This Row],[Gov_Pcode]]=IDPs[[#This Row],[Gov_Coming_Pcode]],\"Yes\",\"No\")","v":"Yes"},{"$f":"IF(IDPs[[#This Row],[Dis_Pcode]]=IDPs[[#This Row],[Dis_Coming_Pcode]],\"Yes\",\"No\")","v":"No"}]
["2024-01-20","2024-01-17","YE26","Marib","مأرب","YE2613","Marib","مأرب","IDPs","Rapid Tracking","2024-01-15","YE18","Al Hodeidah","الحديدة","YE1807","Az Zaydiah","الزيدية","Economic Reasons","Other economic reason","No",null,null,1,0,0,0,0,0,0,0,0,1,0,{"$f":"IF(OR(COUNTIF(WestCoast[],IDPs[[#This Row],[Dis_Pcode]])>=1,COUNTIF(WestCoast[],#REF!)>=1),\"Yes\",\"No\")","v":"No"},{"$f":"IF(IDPs[[#This Row],[Gov_Pcode]]=IDPs[[#This Row],[Gov_Coming_Pcode]],\"Yes\",\"No\")","v":"No"},{"$f":"IF(IDPs[[#This Row],[Dis_Pcode]]=IDPs[[#This Row],[Dis_Coming_Pcode]],\"Yes\",\"No\")","v":"No"}]
["2024-01-20","2024-01-18","YE26","Marib","مأرب","YE2612","Marib City","مدينة مأرب","IDPs","Rapid Tracking","2024-01-15","YE31","Raymah","ريمة","YE3105","Kusmah","كسمة","Economic Reasons","Unemployment / Salary Cut","No",null,null,1,0,0,0,1,0,0,0,0,0,0,{"$f":"IF(OR(COUNTIF(WestCoast[],IDPs[[#This Row],[Dis_Pcode]])>=1,COUNTIF(WestCoast[],#REF!)>=1),\"Yes\",\"No\")","v":"No"},{"$f":"IF(IDPs[[#This Row],[Gov_Pcode]]=IDPs[[#This Row],[Gov_Coming_Pcode]],\"Yes\",\"No\")","v":"No"},{"$f":"IF(IDPs[[#This Row],[Dis_Pcode]]=IDPs[[#This Row],[Dis_Coming_Pcode]],\"Yes\",\"No\")","v":"No"}]
["2024-01-20","2024-01-18","YE26","Marib","مأرب","YE2612","Marib City","مدينة مأرب","IDPs","Rapid Tracking","2024-01-15","YE18","Al Hodeidah","الحديدة","YE1818","Jabal Ras","جبل راس","Economic Reasons","Unemployment / Salary Cut","Don't Know",null,null,2,0,0,0,0,1,1,0,0,0,0,{"$f":"IF(OR(COUNTIF(WestCoast[],IDPs[[#This Row],[Dis_Pcode]])>=1,COUNTIF(WestCoast[],#REF!)>=1),\"Yes\",\"No\")","v":"No"},{"$f":"IF(IDPs[[#This Row],[Gov_Pcode]]=IDPs[[#This Row],[Gov_Coming_Pcode]],\"Yes\",\"No\")","v":"No"},{"$f":"IF(IDPs[[#This Row],[Dis_Pcode]]=IDPs[[#This Row],[Dis_Coming_Pcode]],\"Yes\",\"No\")","v":"No"}]
["2024-01-20","2024-01-18","YE26","Marib","مأرب","YE2612","Marib City","مدينة مأرب","IDPs","Rapid Tracking","2024-01-15","YE11","Ibb","إب","YE1109","Hazm Al Odayn","حزم العدين","Conflict Reasons","General Insecure Conditions","No",null,null,1,0,0,0,1,0,0,0,0,0,0,{"$f":"IF(OR(COUNTIF(WestCoast[],IDPs[[#This Row],[Dis_Pcode]])>=1,COUNTIF(WestCoast[],#REF!)>=1),\"Yes\",\"No\")","v":"No"},{"$f":"IF(IDPs[[#This Row],[Gov_Pcode]]=IDPs[[#This Row],[Gov_Coming_Pcode]],\"Yes\",\"No\")","v":"No"},{"$f":"IF(IDPs[[#This Row],[Dis_Pcode]]=IDPs[[#This Row],[Dis_Coming_Pcode]],\"Yes\",\"No\")","v":"No"}]
["2024-01-20","2024-01-18","YE26","Marib","مأرب","YE2612","Marib City","مدينة مأرب","IDPs","Rapid Tracking","2024-01-15","YE15","Taiz","تعز","YE1520","At Taiziyah","التعزية","Economic Reasons","Unemployment / Salary Cut","No",null,null,1,0,0,0,0,0,0,1,0,0,0,{"$f":"IF(OR(COUNTIF(WestCoast[],IDPs[[#This Row],[Dis_Pcode]])>=1,COUNTIF(WestCoast[],#REF!)>=1),\"Yes\",\"No\")","v":"No"},{"$f":"IF(IDPs[[#This Row],[Gov_Pcode]]=IDPs[[#This Row],[Gov_Coming_Pcode]],\"Yes\",\"No\")","v":"No"},{"$f":"IF(IDPs[[#This Row],[Dis_Pcode]]=IDPs[[#This Row],[Dis_Coming_Pcode]],\"Yes\",\"No\")","v":"No"}]
["2024-01-20","2024-01-18","YE26","Marib","مأرب","YE2612","Marib City","مدينة مأرب","IDPs","Rapid Tracking","2024-01-15","YE21","Shabwah","شبوة","YE2107","Bayhan","بيحان","Economic Reasons","Other economic reason","No",null,null,2,0,0,0,0,2,0,0,0,0,0,{"$f":"IF(OR(COUNTIF(WestCoast[],IDPs[[#This Row],[Dis_Pcode]])>=1,COUNTIF(WestCoast[],#REF!)>=1),\"Yes\",\"No\")","v":"No"},{"$f":"IF(IDPs[[#This Row],[Gov_Pcode]]=IDPs[[#This Row],[Gov_Coming_Pcode]],\"Yes\",\"No\")","v":"No"},{"$f":"IF(IDPs[[#This Row],[Dis_Pcode]]=IDPs[[#This Row],[Dis_Coming_Pcode]],\"Yes\",\"No\")","v":"No"}]
["2024-01-20","2024-01-18","YE26","Marib","مأرب","YE2612","Marib City","مدينة مأرب","IDPs","Rapid Tracking","2024-01-15","YE15","Taiz","تعز","YE1521","Al Maafer","المعافر","Economic Reasons","Unemployment / Salary Cut","No",null,null,1,0,0,0,0,1,0,0,0,0,0,{"$f":"IF(OR(COUNTIF(WestCoast[],IDPs[[#This Row],[Dis_Pcode]])>=1,COUNTIF(WestCoast[],#REF!)>=1),\"Yes\",\"No\")","v":"No"},{"$f":"IF(IDPs[[#This Row],[Gov_Pcode]]=IDPs[[#This Row],[Gov_Coming_Pcode]],\"Yes\",\"No\")","v":"No"},{"$f":"IF(IDPs[[#This Row],[Dis_Pcode]]=IDPs[[#This Row],[Dis_Coming_Pcode]],\"Yes\",\"No\")","v":"No"}]
["2024-01-20","2024-01-18","YE25","Lahj","لحج","YE2515","Tuban","تبن","IDPs","Rapid Tracking","2024-01-15","YE20","Dhamar","ذمار","YE2008","Dhamar City","مدينة ذمار","Conflict Reasons","General Insecure Conditions","No",null,null,1,0,1,0,0,0,0,0,0,0,0,{"$f":"IF(OR(COUNTIF(WestCoast[],IDPs[[#This Row],[Dis_Pcode]])>=1,COUNTIF(WestCoast[],#REF!)>=1),\"Yes\",\"No\")","v":"No"},{"$f":"IF(IDPs[[#This Row],[Gov_Pcode]]=IDPs[[#This Row],[Gov_Coming_Pcode]],\"Yes\",\"No\")","v":"No"},{"$f":"IF(IDPs[[#This Row],[Dis_Pcode]]=IDPs[[#This Row],[Dis_Coming_Pcode]],\"Yes\",\"No\")","v":"No"}]
["2024-01-19","2024-01-19","YE15","Taiz","تعز","YE1505","Al Makha","المخا","IDPs","Rapid Tracking","2024-01-16","YE18","Al Hodeidah","الحديدة","YE1824","Zabid","زبيد","Conflict Reasons","General Insecure Conditions","No",null,null,1,0,0,0,1,0,0,0,0,0,0,{"$f":"IF(OR(COUNTIF(WestCoast[],IDPs[[#This Row],[Dis_Pcode]])>=1,COUNTIF(WestCoast[],#REF!)>=1),\"Yes\",\"No\")","v":"Yes"},{"$f":"IF(IDPs[[#This Row],[Gov_Pcode]]=IDPs[[#This Row],[Gov_Coming_Pcode]],\"Yes\",\"No\")","v":"No"},{"$f":"IF(IDPs[[#This Row],[Dis_Pcode]]=IDPs[[#This Row],[Dis_Coming_Pcode]],\"Yes\",\"No\")","v":"No"}]
["2024-01-20","2024-01-16","YE26","Marib","مأرب","YE2613","Marib","مأرب","IDPs","Rapid Tracking","2024-01-16","YE15","Taiz","تعز","YE1502","Sharab As Salam","شرعب السلام","Economic Reasons","Increasing market prices","No",null,null,1,0,0,0,0,0,0,1,0,0,0,{"$f":"IF(OR(COUNTIF(WestCoast[],IDPs[[#This Row],[Dis_Pcode]])>=1,COUNTIF(WestCoast[],#REF!)>=1),\"Yes\",\"No\")","v":"No"},{"$f":"IF(IDPs[[#This Row],[Gov_Pcode]]=IDPs[[#This Row],[Gov_Coming_Pcode]],\"Yes\",\"No\")","v":"No"},{"$f":"IF(IDPs[[#This Row],[Dis_Pcode]]=IDPs[[#This Row],[Dis_Coming_Pcode]],\"Yes\",\"No\")","v":"No"}]
["2024-01-19","2024-01-19","YE15","Taiz","تعز","YE1505","Al Makha","المخا","IDPs","Rapid Tracking","2024-01-17","YE15","Taiz","تعز","YE1504","Maqbanah","مقبنة","Conflict Reasons","General Insecure Conditions","No",null,null,2,0,0,0,2,0,0,0,0,0,0,{"$f":"IF(OR(COUNTIF(WestCoast[],IDPs[[#This Row],[Dis_Pcode]])>=1,COUNTIF(WestCoast[],#REF!)>=1),\"Yes\",\"No\")","v":"Yes"},{"$f":"IF(IDPs[[#This Row],[Gov_Pcode]]=IDPs[[#This Row],[Gov_Coming_Pcode]],\"Yes\",\"No\")","v":"Yes"},{"$f":"IF(IDPs[[#This Row],[Dis_Pcode]]=IDPs[[#This Row],[Dis_Coming_Pcode]],\"Yes\",\"No\")","v":"No"}]
["2024-01-20","2024-01-18","YE26","Marib","مأرب","YE2609","Harib","حريب","IDPs","Rapid Tracking","2024-01-17","YE26","Marib","مأرب","YE2609","Harib","حريب","Conflict Reasons","Combat / Shelling","No",null,null,4,0,0,0,2,0,1,1,0,0,0,{"$f":"IF(OR(COUNTIF(WestCoast[],IDPs[[#This Row],[Dis_Pcode]])>=1,COUNTIF(WestCoast[],#REF!)>=1),\"Yes\",\"No\")","v":"No"},{"$f":"IF(IDPs[[#This Row],[Gov_Pcode]]=IDPs[[#This Row],[Gov_Coming_Pcode]],\"Yes\",\"No\")","v":"Yes"},{"$f":"IF(IDPs[[#This Row],[Dis_Pcode]]=IDPs[[#This Row],[Dis_Coming_Pcode]],\"Yes\",\"No\")","v":"Yes"}]
["2024-01-20","2024-01-18","YE26","Marib","مأرب","YE2612","Marib City","مدينة مأرب","IDPs","Rapid Tracking","2024-01-17","YE11","Ibb","إب","YE1106","As Saddah","السدة","Economic Reasons","Other economic reason","No",null,null,1,0,0,0,0,0,1,0,0,0,0,{"$f":"IF(OR(COUNTIF(WestCoast[],IDPs[[#This Row],[Dis_Pcode]])>=1,COUNTIF(WestCoast[],#REF!)>=1),\"Yes\",\"No\")","v":"No"},{"$f":"IF(IDPs[[#This Row],[Gov_Pcode]]=IDPs[[#This Row],[Gov_Coming_Pcode]],\"Yes\",\"No\")","v":"No"},{"$f":"IF(IDPs[[#This Row],[Dis_Pcode]]=IDPs[[#This Row],[Dis_Coming_Pcode]],\"Yes\",\"No\")","v":"No"}]
["2024-01-20","2024-01-18","YE26","Marib","مأرب","YE2613","Marib","مأرب","IDPs","Rapid Tracking","2024-01-17","YE31","Raymah","ريمة","YE3102","As Salafiyyah","السلفية","Economic Reasons","Increasing market prices","No",null,null,2,0,0,0,2,0,0,0,0,0,0,{"$f":"IF(OR(COUNTIF(WestCoast[],IDPs[[#This Row],[Dis_Pcode]])>=1,COUNTIF(WestCoast[],#REF!)>=1),\"Yes\",\"No\")","v":"No"},{"$f":"IF(IDPs[[#This Row],[Gov_Pcode]]=IDPs[[#This Row],[Gov_Coming_Pcode]],\"Yes\",\"No\")","v":"No"},{"$f":"IF(IDPs[[#This Row],[Dis_Pcode]]=IDPs[[#This Row],[Dis_Coming_Pcode]],\"Yes\",\"No\")","v":"No"}]
["2024-01-20","2024-01-20","YE30","Ad Dali","الضالع","YE3006","Ad Dali","الضالع","IDPs","Rapid Tracking","2024-01-17","YE30","Ad Dali","الضالع","YE3009","Al Husha","الحشاء","Economic Reasons","Unemployment / Salary Cut","No",null,null,1,0,0,0,1,0,0,0,0,0,0,{"$f":"IF(OR(COUNTIF(WestCoast[],IDPs[[#This Row],[Dis_Pcode]])>=1,COUNTIF(WestCoast[],#REF!)>=1),\"Yes\",\"No\")","v":"No"},{"$f":"IF(IDPs[[#This Row],[Gov_Pcode]]=IDPs[[#This Row],[Gov_Coming_Pcode]],\"Yes\",\"No\")","v":"Yes"},{"$f":"IF(IDPs[[#This Row],[Dis_Pcode]]=IDPs[[#This Row],[Dis_Coming_Pcode]],\"Yes\",\"No\")","v":"No"}]
["2024-01-20","2024-01-18","YE26","Marib","مأرب","YE2609","Harib","حريب","IDPs","Rapid Tracking","2024-01-18","YE26","Marib","مأرب","YE2609","Harib","حريب","Conflict Reasons","Combat / Shelling","No",null,null,3,0,0,0,1,1,0,1,0,0,0,{"$f":"IF(OR(COUNTIF(WestCoast[],IDPs[[#This Row],[Dis_Pcode]])>=1,COUNTIF(WestCoast[],#REF!)>=1),\"Yes\",\"No\")","v":"No"},{"$f":"IF(IDPs[[#This Row],[Gov_Pcode]]=IDPs[[#This Row],[Gov_Coming_Pcode]],\"Yes\",\"No\")","v":"Yes"},{"$f":"IF(IDPs[[#This Row],[Dis_Pcode]]=IDPs[[#This Row],[Dis_Coming_Pcode]],\"Yes\",\"No\")","v":"Yes"}]
["2024-01-20","2024-01-19","YE26","Marib","مأرب","YE2612","Marib City","مدينة مأرب","IDPs","Rapid Tracking","2024-01-18","YE16","Al Jawf","الجوف","YE1606","Al Mutun","المتون","Conflict Reasons","General Insecure Conditions","No",null,null,1,0,0,0,0,0,0,1,0,0,0,{"$f":"IF(OR(COUNTIF(WestCoast[],IDPs[[#This Row],[Dis_Pcode]])>=1,COUNTIF(WestCoast[],#REF!)>=1),\"Yes\",\"No\")","v":"No"},{"$f":"IF(IDPs[[#This Row],[Gov_Pcode]]=IDPs[[#This Row],[Gov_Coming_Pcode]],\"Yes\",\"No\")","v":"No"},{"$f":"IF(IDPs[[#This Row],[Dis_Pcode]]=IDPs[[#This Row],[Dis_Coming_Pcode]],\"Yes\",\"No\")","v":"No"}]
["2024-01-21","2024-01-21","YE26","Marib","مأرب","YE2612","Marib City","مدينة مأرب","IDPs","Rapid Tracking","2024-01-18","YE20","Dhamar","ذمار","YE2001","Al Hada","الحداء","Conflict Reasons","General Insecure Conditions","No",null,null,2,0,0,0,1,0,0,1,0,0,0,{"$f":"IF(OR(COUNTIF(WestCoast[],IDPs[[#This Row],[Dis_Pcode]])>=1,COUNTIF(WestCoast[],#REF!)>=1),\"Yes\",\"No\")","v":"No"},{"$f":"IF(IDPs[[#This Row],[Gov_Pcode]]=IDPs[[#This Row],[Gov_Coming_Pcode]],\"Yes\",\"No\")","v":"No"},{"$f":"IF(IDPs[[#This Row],[Dis_Pcode]]=IDPs[[#This Row],[Dis_Coming_Pcode]],\"Yes\",\"No\")","v":"No"}]
["2024-01-26","2024-01-23","YE18","Al Hodeidah","الحديدة","YE1820","Al Khukhah","الخوخة","IDPs","Rapid Tracking","2024-01-17","YE18","Al Hodeidah","الحديدة","YE1825","Al Jarrahi","الجراحي","Conflict Reasons","Combat / Shelling","No",null,null,4,0,0,0,0,0,0,4,0,0,0,{"$f":"IF(OR(COUNTIF(WestCoast[],IDPs[[#This Row],[Dis_Pcode]])>=1,COUNTIF(WestCoast[],#REF!)>=1),\"Yes\",\"No\")","v":"Yes"},{"$f":"IF(IDPs[[#This Row],[Gov_Pcode]]=IDPs[[#This Row],[Gov_Coming_Pcode]],\"Yes\",\"No\")","v":"Yes"},{"$f":"IF(IDPs[[#This Row],[Dis_Pcode]]=IDPs[[#This Row],[Dis_Coming_Pcode]],\"Yes\",\"No\")","v":"No"}]
["2024-01-26","2024-01-23","YE18","Al Hodeidah","الحديدة","YE1820","Al Khukhah","الخوخة","IDPs","Rapid Tracking","2024-01-17","YE15","Taiz","تعز","YE1504","Maqbanah","مقبنة","Conflict Reasons","Combat / Shelling","No",null,null,4,0,0,0,0,0,0,4,0,0,0,{"$f":"IF(OR(COUNTIF(WestCoast[],IDPs[[#This Row],[Dis_Pcode]])>=1,COUNTIF(WestCoast[],#REF!)>=1),\"Yes\",\"No\")","v":"Yes"},{"$f":"IF(IDPs[[#This Row],[Gov_Pcode]]=IDPs[[#This Row],[Gov_Coming_Pcode]],\"Yes\",\"No\")","v":"No"},{"$f":"IF(IDPs[[#This Row],[Dis_Pcode]]=IDPs[[#This Row],[Dis_Coming_Pcode]],\"Yes\",\"No\")","v":"No"}]
["2024-01-26","2024-01-23","YE18","Al Hodeidah","الحديدة","YE1820","Al Khukhah","الخوخة","IDPs","Rapid Tracking","2024-01-17","YE18","Al Hodeidah","الحديدة","YE1826","At Tuhayta","التحيتا","Conflict Reasons","Combat / Shelling","No",null,null,1,0,0,0,0,0,0,1,0,0,0,{"$f":"IF(OR(COUNTIF(WestCoast[],IDPs[[#This Row],[Dis_Pcode]])>=1,COUNTIF(WestCoast[],#REF!)>=1),\"Yes\",\"No\")","v":"Yes"},{"$f":"IF(IDPs[[#This Row],[Gov_Pcode]]=IDPs[[#This Row],[Gov_Coming_Pcode]],\"Yes\",\"No\")","v":"Yes"},{"$f":"IF(IDPs[[#This Row],[Dis_Pcode]]=IDPs[[#This Row],[Dis_Coming_Pcode]],\"Yes\",\"No\")","v":"No"}]
["2024-01-26","2024-01-24","YE18","Al Hodeidah","الحديدة","YE1820","Al Khukhah","الخوخة","IDPs","Rapid Tracking","2024-01-17","YE18","Al Hodeidah","الحديدة","YE1821","Al Hawak","الحوك","Economic Reasons","Other economic reason","No",null,null,1,0,0,0,0,0,0,1,0,0,0,{"$f":"IF(OR(COUNTIF(WestCoast[],IDPs[[#This Row],[Dis_Pcode]])>=1,COUNTIF(WestCoast[],#REF!)>=1),\"Yes\",\"No\")","v":"Yes"},{"$f":"IF(IDPs[[#This Row],[Gov_Pcode]]=IDPs[[#This Row],[Gov_Coming_Pcode]],\"Yes\",\"No\")","v":"Yes"},{"$f":"IF(IDPs[[#This Row],[Dis_Pcode]]=IDPs[[#This Row],[Dis_Coming_Pcode]],\"Yes\",\"No\")","v":"No"}]
["2024-01-26","2024-01-26","YE15","Taiz","تعز","YE1508","Jabal Habashi","جبل حبشي","IDPs","Rapid Tracking","2024-01-18","YE15","Taiz","تعز","YE1504","Maqbanah","مقبنة","Conflict Reasons","General Insecure Conditions","Yes","No",null,6,0,0,0,6,0,0,0,0,0,0,{"$f":"IF(OR(COUNTIF(WestCoast[],IDPs[[#This Row],[Dis_Pcode]])>=1,COUNTIF(WestCoast[],#REF!)>=1),\"Yes\",\"No\")","v":"No"},{"$f":"IF(IDPs[[#This Row],[Gov_Pcode]]=IDPs[[#This Row],[Gov_Coming_Pcode]],\"Yes\",\"No\")","v":"Yes"},{"$f":"IF(IDPs[[#This Row],[Dis_Pcode]]=IDPs[[#This Row],[Dis_Coming_Pcode]],\"Yes\",\"No\")","v":"No"}]
["2024-01-26","2024-01-23","YE18","Al Hodeidah","الحديدة","YE1820","Al Khukhah","الخوخة","IDPs","Rapid Tracking","2024-01-18","YE18","Al Hodeidah","الحديدة","YE1826","At Tuhayta","التحيتا","Conflict Reasons","Combat / Shelling","No",null,null,3,0,0,0,0,0,0,3,0,0,0,{"$f":"IF(OR(COUNTIF(WestCoast[],IDPs[[#This Row],[Dis_Pcode]])>=1,COUNTIF(WestCoast[],#REF!)>=1),\"Yes\",\"No\")","v":"Yes"},{"$f":"IF(IDPs[[#This Row],[Gov_Pcode]]=IDPs[[#This Row],[Gov_Coming_Pcode]],\"Yes\",\"No\")","v":"Yes"},{"$f":"IF(IDPs[[#This Row],[Dis_Pcode]]=IDPs[[#This Row],[Dis_Coming_Pcode]],\"Yes\",\"No\")","v":"No"}]
["2024-01-27","2024-01-27","YE18","Al Hodeidah","الحديدة","YE1820","Al Khukhah","الخوخة","IDPs","Rapid Tracking","2024-01-18","YE18","Al Hodeidah","الحديدة","YE1821","Al Hawak","الحوك","Conflict Reasons","Combat / Shelling","No",null,null,3,0,3,0,0,0,0,0,0,0,0,{"$f":"IF(OR(COUNTIF(WestCoast[],IDPs[[#This Row],[Dis_Pcode]])>=1,COUNTIF(WestCoast[],#REF!)>=1),\"Yes\",\"No\")","v":"Yes"},{"$f":"IF(IDPs[[#This Row],[Gov_Pcode]]=IDPs[[#This Row],[Gov_Coming_Pcode]],\"Yes\",\"No\")","v":"Yes"},{"$f":"IF(IDPs[[#This Row],[Dis_Pcode]]=IDPs[[#This Row],[Dis_Coming_Pcode]],\"Yes\",\"No\")","v":"No"}]
["2024-01-26","2024-01-24","YE18","Al Hodeidah","الحديدة","YE1820","Al Khukhah","الخوخة","IDPs","Rapid Tracking","2024-01-19","YE15","Taiz","تعز","YE1504","Maqbanah","مقبنة","Conflict Reasons","Combat / Shelling","No",null,null,2,0,0,0,0,0,0,2,0,0,0,{"$f":"IF(OR(COUNTIF(WestCoast[],IDPs[[#This Row],[Dis_Pcode]])>=1,COUNTIF(WestCoast[],#REF!)>=1),\"Yes\",\"No\")","v":"Yes"},{"$f":"IF(IDPs[[#This Row],[Gov_Pcode]]=IDPs[[#This Row],[Gov_Coming_Pcode]],\"Yes\",\"No\")","v":"No"},{"$f":"IF(IDPs[[#This Row],[Dis_Pcode]]=IDPs[[#This Row],[Dis_Coming_Pcode]],\"Yes\",\"No\")","v":"No"}]
["2024-01-27","2024-01-22","YE26","Marib","مأرب","YE2613","Marib","مأرب","IDPs","Rapid Tracking","2024-01-19","YE15","Taiz","تعز","YE1503","Sharab Ar Rawnah","شرعب الرونة","Conflict Reasons","General Insecure Conditions","No",null,null,1,0,0,0,0,0,0,1,0,0,0,{"$f":"IF(OR(COUNTIF(WestCoast[],IDPs[[#This Row],[Dis_Pcode]])>=1,COUNTIF(WestCoast[],#REF!)>=1),\"Yes\",\"No\")","v":"No"},{"$f":"IF(IDPs[[#This Row],[Gov_Pcode]]=IDPs[[#This Row],[Gov_Coming_Pcode]],\"Yes\",\"No\")","v":"No"},{"$f":"IF(IDPs[[#This Row],[Dis_Pcode]]=IDPs[[#This Row],[Dis_Coming_Pcode]],\"Yes\",\"No\")","v":"No"}]
["2024-01-27","2024-01-23","YE26","Marib","مأرب","YE2612","Marib City","مدينة مأرب","IDPs","Rapid Tracking","2024-01-19","YE17","Hajjah","حجة","YE1729","Hajjah","حجة","Conflict Reasons","General Insecure Conditions","No",null,null,1,0,0,0,0,0,0,1,0,0,0,{"$f":"IF(OR(COUNTIF(WestCoast[],IDPs[[#This Row],[Dis_Pcode]])>=1,COUNTIF(WestCoast[],#REF!)>=1),\"Yes\",\"No\")","v":"No"},{"$f":"IF(IDPs[[#This Row],[Gov_Pcode]]=IDPs[[#This Row],[Gov_Coming_Pcode]],\"Yes\",\"No\")","v":"No"},{"$f":"IF(IDPs[[#This Row],[Dis_Pcode]]=IDPs[[#This Row],[Dis_Coming_Pcode]],\"Yes\",\"No\")","v":"No"}]
["2024-01-27","2024-01-23","YE26","Marib","مأرب","YE2613","Marib","مأرب","IDPs","Rapid Tracking","2024-01-19","YE16","Al Jawf","الجوف","YE1605","Al Hazm","الحزم","Conflict Reasons","General Insecure Conditions","Yes","No",null,1,0,0,0,0,0,0,1,0,0,0,{"$f":"IF(OR(COUNTIF(WestCoast[],IDPs[[#This Row],[Dis_Pcode]])>=1,COUNTIF(WestCoast[],#REF!)>=1),\"Yes\",\"No\")","v":"No"},{"$f":"IF(IDPs[[#This Row],[Gov_Pcode]]=IDPs[[#This Row],[Gov_Coming_Pcode]],\"Yes\",\"No\")","v":"No"},{"$f":"IF(IDPs[[#This Row],[Dis_Pcode]]=IDPs[[#This Row],[Dis_Coming_Pcode]],\"Yes\",\"No\")","v":"No"}]
["2024-01-27","2024-01-24","YE26","Marib","مأرب","YE2612","Marib City","مدينة مأرب","IDPs","Rapid Tracking","2024-01-19","YE18","Al Hodeidah","الحديدة","YE1813","Al Marawiah","المراوعة","Conflict Reasons","General Insecure Conditions","Don't Know",null,null,1,0,0,0,0,0,0,1,0,0,0,{"$f":"IF(OR(COUNTIF(WestCoast[],IDPs[[#This Row],[Dis_Pcode]])>=1,COUNTIF(WestCoast[],#REF!)>=1),\"Yes\",\"No\")","v":"No"},{"$f":"IF(IDPs[[#This Row],[Gov_Pcode]]=IDPs[[#This Row],[Gov_Coming_Pcode]],\"Yes\",\"No\")","v":"No"},{"$f":"IF(IDPs[[#This Row],[Dis_Pcode]]=IDPs[[#This Row],[Dis_Coming_Pcode]],\"Yes\",\"No\")","v":"No"}]
["2024-01-27","2024-01-27","YE18","Al Hodeidah","الحديدة","YE1820","Al Khukhah","الخوخة","IDPs","Rapid Tracking","2024-01-19","YE18","Al Hodeidah","الحديدة","YE1826","At Tuhayta","التحيتا","Conflict Reasons","Combat / Shelling","No",null,null,3,0,0,0,0,3,0,0,0,0,0,{"$f":"IF(OR(COUNTIF(WestCoast[],IDPs[[#This Row],[Dis_Pcode]])>=1,COUNTIF(WestCoast[],#REF!)>=1),\"Yes\",\"No\")","v":"Yes"},{"$f":"IF(IDPs[[#This Row],[Gov_Pcode]]=IDPs[[#This Row],[Gov_Coming_Pcode]],\"Yes\",\"No\")","v":"Yes"},{"$f":"IF(IDPs[[#This Row],[Dis_Pcode]]=IDPs[[#This Row],[Dis_Coming_Pcode]],\"Yes\",\"No\")","v":"No"}]
["2024-01-26","2024-01-24","YE18","Al Hodeidah","الحديدة","YE1820","Al Khukhah","الخوخة","IDPs","Rapid Tracking","2024-01-20","YE18","Al Hodeidah","الحديدة","YE1819","Hays","حيس","Conflict Reasons","Combat / Shelling","No",null,null,2,0,0,0,0,0,0,2,0,0,0,{"$f":"IF(OR(COUNTIF(WestCoast[],IDPs[[#This Row],[Dis_Pcode]])>=1,COUNTIF(WestCoast[],#REF!)>=1),\"Yes\",\"No\")","v":"Yes"},{"$f":"IF(IDPs[[#This Row],[Gov_Pcode]]=IDPs[[#This Row],[Gov_Coming_Pcode]],\"Yes\",\"No\")","v":"Yes"},{"$f":"IF(IDPs[[#This Row],[Dis_Pcode]]=IDPs[[#This Row],[Dis_Coming_Pcode]],\"Yes\",\"No\")","v":"No"}]
["2024-01-27","2024-01-22","YE26","Marib","مأرب","YE2612","Marib City","مدينة مأرب","IDPs","Rapid Tracking","2024-01-20","YE17","Hajjah","حجة","YE1720","Mabyan","مبين","Economic Reasons","Unemployment / Salary Cut","No",null,null,1,0,0,0,0,0,0,0,0,1,0,{"$f":"IF(OR(COUNTIF(WestCoast[],IDPs[[#This Row],[Dis_Pcode]])>=1,COUNTIF(WestCoast[],#REF!)>=1),\"Yes\",\"No\")","v":"No"},{"$f":"IF(IDPs[[#This Row],[Gov_Pcode]]=IDPs[[#This Row],[Gov_Coming_Pcode]],\"Yes\",\"No\")","v":"No"},{"$f":"IF(IDPs[[#This Row],[Dis_Pcode]]=IDPs[[#This Row],[Dis_Coming_Pcode]],\"Yes\",\"No\")","v":"No"}]
["2024-01-27","2024-01-25","YE26","Marib","مأرب","YE2613","Marib","مأرب","IDPs","Rapid Tracking","2024-01-20","YE20","Dhamar","ذمار","YE2005","Otmah","عتمة","Economic Reasons","Other economic reason","No",null,null,2,0,0,0,0,0,0,2,0,0,0,{"$f":"IF(OR(COUNTIF(WestCoast[],IDPs[[#This Row],[Dis_Pcode]])>=1,COUNTIF(WestCoast[],#REF!)>=1),\"Yes\",\"No\")","v":"No"},{"$f":"IF(IDPs[[#This Row],[Gov_Pcode]]=IDPs[[#This Row],[Gov_Coming_Pcode]],\"Yes\",\"No\")","v":"No"},{"$f":"IF(IDPs[[#This Row],[Dis_Pcode]]=IDPs[[#This Row],[Dis_Coming_Pcode]],\"Yes\",\"No\")","v":"No"}]
["2024-01-27","2024-01-26","YE26","Marib","مأرب","YE2612","Marib City","مدينة مأرب","IDPs","Rapid Tracking","2024-01-20","YE18","Al Hodeidah","الحديدة","YE1813","Al Marawiah","المراوعة","Conflict Reasons","General Insecure Conditions","No",null,null,1,0,0,0,1,0,0,0,0,0,0,{"$f":"IF(OR(COUNTIF(WestCoast[],IDPs[[#This Row],[Dis_Pcode]])>=1,COUNTIF(WestCoast[],#REF!)>=1),\"Yes\",\"No\")","v":"No"},{"$f":"IF(IDPs[[#This Row],[Gov_Pcode]]=IDPs[[#This Row],[Gov_Coming_Pcode]],\"Yes\",\"No\")","v":"No"},{"$f":"IF(IDPs[[#This Row],[Dis_Pcode]]=IDPs[[#This Row],[Dis_Coming_Pcode]],\"Yes\",\"No\")","v":"No"}]
["2024-01-27","2024-01-27","YE18","Al Hodeidah","الحديدة","YE1820","Al Khukhah","الخوخة","IDPs","Rapid Tracking","2024-01-20","YE15","Taiz","تعز","YE1504","Maqbanah","مقبنة","Conflict Reasons","Combat / Shelling","No",null,null,3,0,0,0,0,3,0,0,0,0,0,{"$f":"IF(OR(COUNTIF(WestCoast[],IDPs[[#This Row],[Dis_Pcode]])>=1,COUNTIF(WestCoast[],#REF!)>=1),\"Yes\",\"No\")","v":"Yes"},{"$f":"IF(IDPs[[#This Row],[Gov_Pcode]]=IDPs[[#This Row],[Gov_Coming_Pcode]],\"Yes\",\"No\")","v":"No"},{"$f":"IF(IDPs[[#This Row],[Dis_Pcode]]=IDPs[[#This Row],[Dis_Coming_Pcode]],\"Yes\",\"No\")","v":"No"}]
["2024-01-26","2024-01-21","YE18","Al Hodeidah","الحديدة","YE1819","Hays","حيس","IDPs","Rapid Tracking","2024-01-21","YE18","Al Hodeidah","الحديدة","YE1819","Hays","حيس","Conflict Reasons","Combat / Shelling","No",null,null,4,0,0,0,4,0,0,0,0,0,0,{"$f":"IF(OR(COUNTIF(WestCoast[],IDPs[[#This Row],[Dis_Pcode]])>=1,COUNTIF(WestCoast[],#REF!)>=1),\"Yes\",\"No\")","v":"Yes"},{"$f":"IF(IDPs[[#This Row],[Gov_Pcode]]=IDPs[[#This Row],[Gov_Coming_Pcode]],\"Yes\",\"No\")","v":"Yes"},{"$f":"IF(IDPs[[#This Row],[Dis_Pcode]]=IDPs[[#This Row],[Dis_Coming_Pcode]],\"Yes\",\"No\")","v":"Yes"}]
["2024-01-27","2024-01-22","YE26","Marib","مأرب","YE2613","Marib","مأرب","IDPs","Rapid Tracking","2024-01-21","YE29","Amran","عمران","YE2919","Khamir","خمر","Economic Reasons","Other economic reason","No",null,null,1,0,0,0,0,0,0,0,0,1,0,{"$f":"IF(OR(COUNTIF(WestCoast[],IDPs[[#This Row],[Dis_Pcode]])>=1,COUNTIF(WestCoast[],#REF!)>=1),\"Yes\",\"No\")","v":"No"},{"$f":"IF(IDPs[[#This Row],[Gov_Pcode]]=IDPs[[#This Row],[Gov_Coming_Pcode]],\"Yes\",\"No\")","v":"No"},{"$f":"IF(IDPs[[#This Row],[Dis_Pcode]]=IDPs[[#This Row],[Dis_Coming_Pcode]],\"Yes\",\"No\")","v":"No"}]
["2024-01-27","2024-01-23","YE26","Marib","مأرب","YE2612","Marib City","مدينة مأرب","IDPs","Rapid Tracking","2024-01-21","YE15","Taiz","تعز","YE1513","As Silw","الصلو","Economic Reasons","Other economic reason","No",null,null,1,0,0,0,1,0,0,0,0,0,0,{"$f":"IF(OR(COUNTIF(WestCoast[],IDPs[[#This Row],[Dis_Pcode]])>=1,COUNTIF(WestCoast[],#REF!)>=1),\"Yes\",\"No\")","v":"No"},{"$f":"IF(IDPs[[#This Row],[Gov_Pcode]]=IDPs[[#This Row],[Gov_Coming_Pcode]],\"Yes\",\"No\")","v":"No"},{"$f":"IF(IDPs[[#This Row],[Dis_Pcode]]=IDPs[[#This Row],[Dis_Coming_Pcode]],\"Yes\",\"No\")","v":"No"}]
["2024-01-27","2024-01-23","YE26","Marib","مأرب","YE2612","Marib City","مدينة مأرب","IDPs","Rapid Tracking","2024-01-21","YE15","Taiz","تعز","YE1520","At Taiziyah","التعزية","Economic Reasons","Unemployment / Salary Cut","No",null,null,1,0,1,0,0,0,0,0,0,0,0,{"$f":"IF(OR(COUNTIF(WestCoast[],IDPs[[#This Row],[Dis_Pcode]])>=1,COUNTIF(WestCoast[],#REF!)>=1),\"Yes\",\"No\")","v":"No"},{"$f":"IF(IDPs[[#This Row],[Gov_Pcode]]=IDPs[[#This Row],[Gov_Coming_Pcode]],\"Yes\",\"No\")","v":"No"},{"$f":"IF(IDPs[[#This Row],[Dis_Pcode]]=IDPs[[#This Row],[Dis_Coming_Pcode]],\"Yes\",\"No\")","v":"No"}]
["2024-01-27","2024-01-27","YE18","Al Hodeidah","الحديدة","YE1820","Al Khukhah","الخوخة","IDPs","Rapid Tracking","2024-01-21","YE18","Al Hodeidah","الحديدة","YE1823","Al Hali","الحالي","Conflict Reasons","Combat / Shelling","No",null,null,2,0,2,0,0,0,0,0,0,0,0,{"$f":"IF(OR(COUNTIF(WestCoast[],IDPs[[#This Row],[Dis_Pcode]])>=1,COUNTIF(WestCoast[],#REF!)>=1),\"Yes\",\"No\")","v":"Yes"},{"$f":"IF(IDPs[[#This Row],[Gov_Pcode]]=IDPs[[#This Row],[Gov_Coming_Pcode]],\"Yes\",\"No\")","v":"Yes"},{"$f":"IF(IDPs[[#This Row],[Dis_Pcode]]=IDPs[[#This Row],[Dis_Coming_Pcode]],\"Yes\",\"No\")","v":"No"}]
["2024-01-27","2024-01-24","YE26","Marib","مأرب","YE2612","Marib City","مدينة مأرب","IDPs","Rapid Tracking","2024-01-22","YE29","Amran","عمران","YE2902","Huth","حوث","Economic Reasons","Unemployment / Salary Cut","No",null,null,1,0,1,0,0,0,0,0,0,0,0,{"$f":"IF(OR(COUNTIF(WestCoast[],IDPs[[#This Row],[Dis_Pcode]])>=1,COUNTIF(WestCoast[],#REF!)>=1),\"Yes\",\"No\")","v":"No"},{"$f":"IF(IDPs[[#This Row],[Gov_Pcode]]=IDPs[[#This Row],[Gov_Coming_Pcode]],\"Yes\",\"No\")","v":"No"},{"$f":"IF(IDPs[[#This Row],[Dis_Pcode]]=IDPs[[#This Row],[Dis_Coming_Pcode]],\"Yes\",\"No\")","v":"No"}]
["2024-01-27","2024-01-26","YE26","Marib","مأرب","YE2612","Marib City","مدينة مأرب","IDPs","Rapid Tracking","2024-01-22","YE11","Ibb","إب","YE1101","Al Qafr","القفر","Economic Reasons","Unemployment / Salary Cut","No",null,null,1,0,0,0,0,0,0,1,0,0,0,{"$f":"IF(OR(COUNTIF(WestCoast[],IDPs[[#This Row],[Dis_Pcode]])>=1,COUNTIF(WestCoast[],#REF!)>=1),\"Yes\",\"No\")","v":"No"},{"$f":"IF(IDPs[[#This Row],[Gov_Pcode]]=IDPs[[#This Row],[Gov_Coming_Pcode]],\"Yes\",\"No\")","v":"No"},{"$f":"IF(IDPs[[#This Row],[Dis_Pcode]]=IDPs[[#This Row],[Dis_Coming_Pcode]],\"Yes\",\"No\")","v":"No"}]
["2024-01-26","2024-01-25","YE30","Ad Dali","الضالع","YE3006","Ad Dali","الضالع","IDPs","Rapid Tracking","2024-01-23","YE23","Sanaa","صنعاء","YE2307","Bani Matar","بني مطر","Conflict Reasons","General Insecure Conditions","No",null,null,1,0,0,0,0,0,0,1,0,0,0,{"$f":"IF(OR(COUNTIF(WestCoast[],IDPs[[#This Row],[Dis_Pcode]])>=1,COUNTIF(WestCoast[],#REF!)>=1),\"Yes\",\"No\")","v":"No"},{"$f":"IF(IDPs[[#This Row],[Gov_Pcode]]=IDPs[[#This Row],[Gov_Coming_Pcode]],\"Yes\",\"No\")","v":"No"},{"$f":"IF(IDPs[[#This Row],[Dis_Pcode]]=IDPs[[#This Row],[Dis_Coming_Pcode]],\"Yes\",\"No\")","v":"No"}]
["2024-01-26","2024-01-24","YE18","Al Hodeidah","الحديدة","YE1819","Hays","حيس","IDPs","Rapid Tracking","2024-01-23","YE18","Al Hodeidah","الحديدة","YE1819","Hays","حيس","Conflict Reasons","Combat / Shelling","No",null,null,2,0,0,0,2,0,0,0,0,0,0,{"$f":"IF(OR(COUNTIF(WestCoast[],IDPs[[#This Row],[Dis_Pcode]])>=1,COUNTIF(WestCoast[],#REF!)>=1),\"Yes\",\"No\")","v":"Yes"},{"$f":"IF(IDPs[[#This Row],[Gov_Pcode]]=IDPs[[#This Row],[Gov_Coming_Pcode]],\"Yes\",\"No\")","v":"Yes"},{"$f":"IF(IDPs[[#This Row],[Dis_Pcode]]=IDPs[[#This Row],[Dis_Coming_Pcode]],\"Yes\",\"No\")","v":"Yes"}]
["2024-01-26","2024-01-24","YE18","Al Hodeidah","الحديدة","YE1819","Hays","حيس","IDPs","Rapid Tracking","2024-01-23","YE18","Al Hodeidah","الحديدة","YE1825","Al Jarrahi","الجراحي","Conflict Reasons","Combat / Shelling","No",null,null,2,0,0,0,2,0,0,0,0,0,0,{"$f":"IF(OR(COUNTIF(WestCoast[],IDPs[[#This Row],[Dis_Pcode]])>=1,COUNTIF(WestCoast[],#REF!)>=1),\"Yes\",\"No\")","v":"Yes"},{"$f":"IF(IDPs[[#This Row],[Gov_Pcode]]=IDPs[[#This Row],[Gov_Coming_Pcode]],\"Yes\",\"No\")","v":"Yes"},{"$f":"IF(IDPs[[#This Row],[Dis_Pcode]]=IDPs[[#This Row],[Dis_Coming_Pcode]],\"Yes\",\"No\")","v":"No"}]
["2024-01-26","2024-01-24","YE18","Al Hodeidah","الحديدة","YE1819","Hays","حيس","IDPs","Rapid Tracking","2024-01-23","YE18","Al Hodeidah","الحديدة","YE1818","Jabal Ras","جبل راس","Conflict Reasons","Combat / Shelling","No",null,null,2,0,0,0,2,0,0,0,0,0,0,{"$f":"IF(OR(COUNTIF(WestCoast[],IDPs[[#This Row],[Dis_Pcode]])>=1,COUNTIF(WestCoast[],#REF!)>=1),\"Yes\",\"No\")","v":"Yes"},{"$f":"IF(IDPs[[#This Row],[Gov_Pcode]]=IDPs[[#This Row],[Gov_Coming_Pcode]],\"Yes\",\"No\")","v":"Yes"},{"$f":"IF(IDPs[[#This Row],[Dis_Pcode]]=IDPs[[#This Row],[Dis_Coming_Pcode]],\"Yes\",\"No\")","v":"No"}]
["2024-01-26","2024-01-24","YE18","Al Hodeidah","الحديدة","YE1819","Hays","حيس","IDPs","Rapid Tracking","2024-01-23","YE18","Al Hodeidah","الحديدة","YE1819","Hays","حيس","Conflict Reasons","Combat / Shelling","No",null,null,1,0,0,0,1,0,0,0,0,0,0,{"$f":"IF(OR(COUNTIF(WestCoast[],IDPs[[#This Row],[Dis_Pcode]])>=1,COUNTIF(WestCoast[],#REF!)>=1),\"Yes\",\"No\")","v":"Yes"},{"$f":"IF(IDPs[[#This Row],[Gov_Pcode]]=IDPs[[#This Row],[Gov_Coming_Pcode]],\"Yes\",\"No\")","v":"Yes"},{"$f":"IF(IDPs[[#This Row],[Dis_Pcode]]=IDPs[[#This Row],[Dis_Coming_Pcode]],\"Yes\",\"No\")","v":"Yes"}]
["2024-01-27","2024-01-24","YE26","Marib","مأرب","YE2612","Marib City","مدينة مأرب","IDPs","Rapid Tracking","2024-01-23","YE11","Ibb","إب","YE1103","Ar Radmah","الرضمة","Economic Reasons","Other economic reason","No",null,null,1,0,0,0,0,0,0,0,0,1,0,{"$f":"IF(OR(COUNTIF(WestCoast[],IDPs[[#This Row],[Dis_Pcode]])>=1,COUNTIF(WestCoast[],#REF!)>=1),\"Yes\",\"No\")","v":"No"},{"$f":"IF(IDPs[[#This Row],[Gov_Pcode]]=IDPs[[#This Row],[Gov_Coming_Pcode]],\"Yes\",\"No\")","v":"No"},{"$f":"IF(IDPs[[#This Row],[Dis_Pcode]]=IDPs[[#This Row],[Dis_Coming_Pcode]],\"Yes\",\"No\")","v":"No"}]
["2024-01-27","2024-01-26","YE26","Marib","مأرب","YE2612","Marib City","مدينة مأرب","IDPs","Rapid Tracking","2024-01-25","YE21","Shabwah","شبوة","YE2112","As Said","الصعيد","Economic Reasons","Increasing market prices","No",null,null,1,0,0,0,0,1,0,0,0,0,0,{"$f":"IF(OR(COUNTIF(WestCoast[],IDPs[[#This Row],[Dis_Pcode]])>=1,COUNTIF(WestCoast[],#REF!)>=1),\"Yes\",\"No\")","v":"No"},{"$f":"IF(IDPs[[#This Row],[Gov_Pcode]]=IDPs[[#This Row],[Gov_Coming_Pcode]],\"Yes\",\"No\")","v":"No"},{"$f":"IF(IDPs[[#This Row],[Dis_Pcode]]=IDPs[[#This Row],[Dis_Coming_Pcode]],\"Yes\",\"No\")","v":"No"}]
["2024-02-02","2024-02-01","YE15","Taiz","تعز","YE1508","Jabal Habashi","جبل حبشي","IDPs","Rapid Tracking","2024-01-24","YE15","Taiz","تعز","YE1504","Maqbanah","مقبنة","Conflict Reasons","General Insecure Conditions","No",null,null,20,0,0,0,20,0,0,0,0,0,0,{"$f":"IF(OR(COUNTIF(WestCoast[],IDPs[[#This Row],[Dis_Pcode]])>=1,COUNTIF(WestCoast[],#REF!)>=1),\"Yes\",\"No\")","v":"No"},{"$f":"IF(IDPs[[#This Row],[Gov_Pcode]]=IDPs[[#This Row],[Gov_Coming_Pcode]],\"Yes\",\"No\")","v":"Yes"},{"$f":"IF(IDPs[[#This Row],[Dis_Pcode]]=IDPs[[#This Row],[Dis_Coming_Pcode]],\"Yes\",\"No\")","v":"No"}]
["2024-02-02","2024-01-28","YE26","Marib","مأرب","YE2612","Marib City","مدينة مأرب","IDPs","Rapid Tracking","2024-01-24","YE17","Hajjah","حجة","YE1713","Qafl Shammar","قفل شمر","Economic Reasons","Unemployment / Salary Cut","Don't Know",null,null,1,0,0,0,0,0,0,1,0,0,0,{"$f":"IF(OR(COUNTIF(WestCoast[],IDPs[[#This Row],[Dis_Pcode]])>=1,COUNTIF(WestCoast[],#REF!)>=1),\"Yes\",\"No\")","v":"No"},{"$f":"IF(IDPs[[#This Row],[Gov_Pcode]]=IDPs[[#This Row],[Gov_Coming_Pcode]],\"Yes\",\"No\")","v":"No"},{"$f":"IF(IDPs[[#This Row],[Dis_Pcode]]=IDPs[[#This Row],[Dis_Coming_Pcode]],\"Yes\",\"No\")","v":"No"}]
["2024-01-30","2024-01-30","YE30","Ad Dali","الضالع","YE3006","Ad Dali","الضالع","IDPs","Rapid Tracking","2024-01-25","YE15","Taiz","تعز","YE1517","Al Mudhaffar","المظفر","Economic Reasons","Unemployment / Salary Cut","No",null,null,1,0,0,0,0,0,0,1,0,0,0,{"$f":"IF(OR(COUNTIF(WestCoast[],IDPs[[#This Row],[Dis_Pcode]])>=1,COUNTIF(WestCoast[],#REF!)>=1),\"Yes\",\"No\")","v":"No"},{"$f":"IF(IDPs[[#This Row],[Gov_Pcode]]=IDPs[[#This Row],[Gov_Coming_Pcode]],\"Yes\",\"No\")","v":"No"},{"$f":"IF(IDPs[[#This Row],[Dis_Pcode]]=IDPs[[#This Row],[Dis_Coming_Pcode]],\"Yes\",\"No\")","v":"No"}]
["2024-02-02","2024-01-28","YE26","Marib","مأرب","YE2612","Marib City","مدينة مأرب","IDPs","Rapid Tracking","2024-01-25","YE22","Sadah","صعدة","YE2211","Sahar","سحار","Conflict Reasons","General Insecure Conditions","No",null,null,1,0,0,0,1,0,0,0,0,0,0,{"$f":"IF(OR(COUNTIF(WestCoast[],IDPs[[#This Row],[Dis_Pcode]])>=1,COUNTIF(WestCoast[],#REF!)>=1),\"Yes\",\"No\")","v":"No"},{"$f":"IF(IDPs[[#This Row],[Gov_Pcode]]=IDPs[[#This Row],[Gov_Coming_Pcode]],\"Yes\",\"No\")","v":"No"},{"$f":"IF(IDPs[[#This Row],[Dis_Pcode]]=IDPs[[#This Row],[Dis_Coming_Pcode]],\"Yes\",\"No\")","v":"No"}]
["2024-02-02","2024-01-28","YE26","Marib","مأرب","YE2612","Marib City","مدينة مأرب","IDPs","Rapid Tracking","2024-01-25","YE23","Sanaa","صنعاء","YE2312","Khawlan","خولان","Economic Reasons","Other economic reason","No",null,null,1,0,0,0,0,0,0,1,0,0,0,{"$f":"IF(OR(COUNTIF(WestCoast[],IDPs[[#This Row],[Dis_Pcode]])>=1,COUNTIF(WestCoast[],#REF!)>=1),\"Yes\",\"No\")","v":"No"},{"$f":"IF(IDPs[[#This Row],[Gov_Pcode]]=IDPs[[#This Row],[Gov_Coming_Pcode]],\"Yes\",\"No\")","v":"No"},{"$f":"IF(IDPs[[#This Row],[Dis_Pcode]]=IDPs[[#This Row],[Dis_Coming_Pcode]],\"Yes\",\"No\")","v":"No"}]
["2024-02-02","2024-01-28","YE26","Marib","مأرب","YE2612","Marib City","مدينة مأرب","IDPs","Rapid Tracking","2024-01-25","YE13","Sanaa City","أمانة العاصمة","YE1305","As Sabin","السبعين","Conflict Reasons","General Insecure Conditions","No",null,null,1,0,0,0,1,0,0,0,0,0,0,{"$f":"IF(OR(COUNTIF(WestCoast[],IDPs[[#This Row],[Dis_Pcode]])>=1,COUNTIF(WestCoast[],#REF!)>=1),\"Yes\",\"No\")","v":"No"},{"$f":"IF(IDPs[[#This Row],[Gov_Pcode]]=IDPs[[#This Row],[Gov_Coming_Pcode]],\"Yes\",\"No\")","v":"No"},{"$f":"IF(IDPs[[#This Row],[Dis_Pcode]]=IDPs[[#This Row],[Dis_Coming_Pcode]],\"Yes\",\"No\")","v":"No"}]
["2024-02-02","2024-01-28","YE26","Marib","مأرب","YE2613","Marib","مأرب","IDPs","Rapid Tracking","2024-01-25","YE17","Hajjah","حجة","YE1704","Abs","عبس","Economic Reasons","Increasing market prices","No",null,null,1,0,0,0,0,0,0,1,0,0,0,{"$f":"IF(OR(COUNTIF(WestCoast[],IDPs[[#This Row],[Dis_Pcode]])>=1,COUNTIF(WestCoast[],#REF!)>=1),\"Yes\",\"No\")","v":"No"},{"$f":"IF(IDPs[[#This Row],[Gov_Pcode]]=IDPs[[#This Row],[Gov_Coming_Pcode]],\"Yes\",\"No\")","v":"No"},{"$f":"IF(IDPs[[#This Row],[Dis_Pcode]]=IDPs[[#This Row],[Dis_Coming_Pcode]],\"Yes\",\"No\")","v":"No"}]
["2024-02-02","2024-02-01","YE26","Marib","مأرب","YE2612","Marib City","مدينة مأرب","IDPs","Rapid Tracking","2024-01-25","YE18","Al Hodeidah","الحديدة","YE1810","Bajil","باجل","Economic Reasons","Unemployment / Salary Cut","No",null,null,1,0,0,0,1,0,0,0,0,0,0,{"$f":"IF(OR(COUNTIF(WestCoast[],IDPs[[#This Row],[Dis_Pcode]])>=1,COUNTIF(WestCoast[],#REF!)>=1),\"Yes\",\"No\")","v":"No"},{"$f":"IF(IDPs[[#This Row],[Gov_Pcode]]=IDPs[[#This Row],[Gov_Coming_Pcode]],\"Yes\",\"No\")","v":"No"},{"$f":"IF(IDPs[[#This Row],[Dis_Pcode]]=IDPs[[#This Row],[Dis_Coming_Pcode]],\"Yes\",\"No\")","v":"No"}]
["2024-02-03","2024-01-31","YE18","Al Hodeidah","الحديدة","YE1819","Hays","حيس","IDPs","Rapid Tracking","2024-01-25","YE15","Taiz","تعز","YE1504","Maqbanah","مقبنة","Conflict Reasons","Combat / Shelling","No",null,null,2,0,1,0,0,0,0,1,0,0,0,{"$f":"IF(OR(COUNTIF(WestCoast[],IDPs[[#This Row],[Dis_Pcode]])>=1,COUNTIF(WestCoast[],#REF!)>=1),\"Yes\",\"No\")","v":"Yes"},{"$f":"IF(IDPs[[#This Row],[Gov_Pcode]]=IDPs[[#This Row],[Gov_Coming_Pcode]],\"Yes\",\"No\")","v":"No"},{"$f":"IF(IDPs[[#This Row],[Dis_Pcode]]=IDPs[[#This Row],[Dis_Coming_Pcode]],\"Yes\",\"No\")","v":"No"}]
["2024-02-03","2024-02-01","YE18","Al Hodeidah","الحديدة","YE1820","Al Khukhah","الخوخة","IDPs","Rapid Tracking","2024-01-25","YE18","Al Hodeidah","الحديدة","YE1819","Hays","حيس","Conflict Reasons","Combat / Shelling","No",null,null,1,0,0,0,0,0,0,1,0,0,0,{"$f":"IF(OR(COUNTIF(WestCoast[],IDPs[[#This Row],[Dis_Pcode]])>=1,COUNTIF(WestCoast[],#REF!)>=1),\"Yes\",\"No\")","v":"Yes"},{"$f":"IF(IDPs[[#This Row],[Gov_Pcode]]=IDPs[[#This Row],[Gov_Coming_Pcode]],\"Yes\",\"No\")","v":"Yes"},{"$f":"IF(IDPs[[#This Row],[Dis_Pcode]]=IDPs[[#This Row],[Dis_Coming_Pcode]],\"Yes\",\"No\")","v":"No"}]
["2024-02-03","2024-02-01","YE18","Al Hodeidah","الحديدة","YE1820","Al Khukhah","الخوخة","IDPs","Rapid Tracking","2024-01-25","YE15","Taiz","تعز","YE1516","Hayfan","حيفان","Conflict Reasons","Combat / Shelling","No",null,null,1,0,1,0,0,0,0,0,0,0,0,{"$f":"IF(OR(COUNTIF(WestCoast[],IDPs[[#This Row],[Dis_Pcode]])>=1,COUNTIF(WestCoast[],#REF!)>=1),\"Yes\",\"No\")","v":"Yes"},{"$f":"IF(IDPs[[#This Row],[Gov_Pcode]]=IDPs[[#This Row],[Gov_Coming_Pcode]],\"Yes\",\"No\")","v":"No"},{"$f":"IF(IDPs[[#This Row],[Dis_Pcode]]=IDPs[[#This Row],[Dis_Coming_Pcode]],\"Yes\",\"No\")","v":"No"}]
["2024-02-03","2024-02-01","YE18","Al Hodeidah","الحديدة","YE1820","Al Khukhah","الخوخة","IDPs","Rapid Tracking","2024-01-25","YE18","Al Hodeidah","الحديدة","YE1826","At Tuhayta","التحيتا","Conflict Reasons","Combat / Shelling","Yes","Yes","Yes",2,0,1,0,0,0,0,1,0,0,0,{"$f":"IF(OR(COUNTIF(WestCoast[],IDPs[[#This Row],[Dis_Pcode]])>=1,COUNTIF(WestCoast[],#REF!)>=1),\"Yes\",\"No\")","v":"Yes"},{"$f":"IF(IDPs[[#This Row],[Gov_Pcode]]=IDPs[[#This Row],[Gov_Coming_Pcode]],\"Yes\",\"No\")","v":"Yes"},{"$f":"IF(IDPs[[#This Row],[Dis_Pcode]]=IDPs[[#This Row],[Dis_Coming_Pcode]],\"Yes\",\"No\")","v":"No"}]
["2024-01-30","2024-01-29","YE15","Taiz","تعز","YE1505","Al Makha","المخا","IDPs","Rapid Tracking","2024-01-26","YE11","Ibb","إب","YE1111","Al Odayn","العدين","Conflict Reasons","General Insecure Conditions","No",null,null,3,0,0,0,3,0,0,0,0,0,0,{"$f":"IF(OR(COUNTIF(WestCoast[],IDPs[[#This Row],[Dis_Pcode]])>=1,COUNTIF(WestCoast[],#REF!)>=1),\"Yes\",\"No\")","v":"Yes"},{"$f":"IF(IDPs[[#This Row],[Gov_Pcode]]=IDPs[[#This Row],[Gov_Coming_Pcode]],\"Yes\",\"No\")","v":"No"},{"$f":"IF(IDPs[[#This Row],[Dis_Pcode]]=IDPs[[#This Row],[Dis_Coming_Pcode]],\"Yes\",\"No\")","v":"No"}]
["2024-02-02","2024-01-27","YE26","Marib","مأرب","YE2612","Marib City","مدينة مأرب","IDPs","Rapid Tracking","2024-01-26","YE16","Al Jawf","الجوف","YE1610","Barat Al Anan","برط العنان","Conflict Reasons","Combat / Shelling","No",null,null,1,0,0,0,0,0,0,1,0,0,0,{"$f":"IF(OR(COUNTIF(WestCoast[],IDPs[[#This Row],[Dis_Pcode]])>=1,COUNTIF(WestCoast[],#REF!)>=1),\"Yes\",\"No\")","v":"No"},{"$f":"IF(IDPs[[#This Row],[Gov_Pcode]]=IDPs[[#This Row],[Gov_Coming_Pcode]],\"Yes\",\"No\")","v":"No"},{"$f":"IF(IDPs[[#This Row],[Dis_Pcode]]=IDPs[[#This Row],[Dis_Coming_Pcode]],\"Yes\",\"No\")","v":"No"}]
["2024-02-02","2024-01-29","YE26","Marib","مأرب","YE2613","Marib","مأرب","IDPs","Rapid Tracking","2024-01-26","YE23","Sanaa","صنعاء","YE2312","Khawlan","خولان","Economic Reasons","Unemployment / Salary Cut","No",null,null,1,0,0,0,0,0,0,0,0,1,0,{"$f":"IF(OR(COUNTIF(WestCoast[],IDPs[[#This Row],[Dis_Pcode]])>=1,COUNTIF(WestCoast[],#REF!)>=1),\"Yes\",\"No\")","v":"No"},{"$f":"IF(IDPs[[#This Row],[Gov_Pcode]]=IDPs[[#This Row],[Gov_Coming_Pcode]],\"Yes\",\"No\")","v":"No"},{"$f":"IF(IDPs[[#This Row],[Dis_Pcode]]=IDPs[[#This Row],[Dis_Coming_Pcode]],\"Yes\",\"No\")","v":"No"}]
["2024-02-02","2024-01-30","YE26","Marib","مأرب","YE2613","Marib","مأرب","IDPs","Rapid Tracking","2024-01-26","YE16","Al Jawf","الجوف","YE1610","Barat Al Anan","برط العنان","Conflict Reasons","General Insecure Conditions","Don't Know",null,null,1,0,0,0,0,0,0,1,0,0,0,{"$f":"IF(OR(COUNTIF(WestCoast[],IDPs[[#This Row],[Dis_Pcode]])>=1,COUNTIF(WestCoast[],#REF!)>=1),\"Yes\",\"No\")","v":"No"},{"$f":"IF(IDPs[[#This Row],[Gov_Pcode]]=IDPs[[#This Row],[Gov_Coming_Pcode]],\"Yes\",\"No\")","v":"No"},{"$f":"IF(IDPs[[#This Row],[Dis_Pcode]]=IDPs[[#This Row],[Dis_Coming_Pcode]],\"Yes\",\"No\")","v":"No"}]
["2024-02-02","2024-01-30","YE26","Marib","مأرب","YE2613","Marib","مأرب","IDPs","Rapid Tracking","2024-01-26","YE13","Sanaa City","أمانة العاصمة","YE1308","Main","معين","Economic Reasons","Increasing market prices","Yes","No",null,1,0,0,0,0,0,0,1,0,0,0,{"$f":"IF(OR(COUNTIF(WestCoast[],IDPs[[#This Row],[Dis_Pcode]])>=1,COUNTIF(WestCoast[],#REF!)>=1),\"Yes\",\"No\")","v":"No"},{"$f":"IF(IDPs[[#This Row],[Gov_Pcode]]=IDPs[[#This Row],[Gov_Coming_Pcode]],\"Yes\",\"No\")","v":"No"},{"$f":"IF(IDPs[[#This Row],[Dis_Pcode]]=IDPs[[#This Row],[Dis_Coming_Pcode]],\"Yes\",\"No\")","v":"No"}]
["2024-02-03","2024-02-02","YE18","Al Hodeidah","الحديدة","YE1820","Al Khukhah","الخوخة","IDPs","Rapid Tracking","2024-01-26","YE18","Al Hodeidah","الحديدة","YE1826","At Tuhayta","التحيتا","Conflict Reasons","Combat / Shelling","No",null,null,1,0,1,0,0,0,0,0,0,0,0,{"$f":"IF(OR(COUNTIF(WestCoast[],IDPs[[#This Row],[Dis_Pcode]])>=1,COUNTIF(WestCoast[],#REF!)>=1),\"Yes\",\"No\")","v":"Yes"},{"$f":"IF(IDPs[[#This Row],[Gov_Pcode]]=IDPs[[#This Row],[Gov_Coming_Pcode]],\"Yes\",\"No\")","v":"Yes"},{"$f":"IF(IDPs[[#This Row],[Dis_Pcode]]=IDPs[[#This Row],[Dis_Coming_Pcode]],\"Yes\",\"No\")","v":"No"}]
["2024-01-30","2024-01-29","YE15","Taiz","تعز","YE1505","Al Makha","المخا","IDPs","Rapid Tracking","2024-01-27","YE15","Taiz","تعز","YE1504","Maqbanah","مقبنة","Conflict Reasons","General Insecure Conditions","No",null,null,2,0,0,0,2,0,0,0,0,0,0,{"$f":"IF(OR(COUNTIF(WestCoast[],IDPs[[#This Row],[Dis_Pcode]])>=1,COUNTIF(WestCoast[],#REF!)>=1),\"Yes\",\"No\")","v":"Yes"},{"$f":"IF(IDPs[[#This Row],[Gov_Pcode]]=IDPs[[#This Row],[Gov_Coming_Pcode]],\"Yes\",\"No\")","v":"Yes"},{"$f":"IF(IDPs[[#This Row],[Dis_Pcode]]=IDPs[[#This Row],[Dis_Coming_Pcode]],\"Yes\",\"No\")","v":"No"}]
["2024-02-02","2024-01-28","YE26","Marib","مأرب","YE2612","Marib City","مدينة مأرب","IDPs","Rapid Tracking","2024-01-27","YE26","Marib","مأرب","YE2601","Majzar","مجزر","Conflict Reasons","General Insecure Conditions","Don't Know",null,null,1,0,0,0,0,0,0,1,0,0,0,{"$f":"IF(OR(COUNTIF(WestCoast[],IDPs[[#This Row],[Dis_Pcode]])>=1,COUNTIF(WestCoast[],#REF!)>=1),\"Yes\",\"No\")","v":"No"},{"$f":"IF(IDPs[[#This Row],[Gov_Pcode]]=IDPs[[#This Row],[Gov_Coming_Pcode]],\"Yes\",\"No\")","v":"Yes"},{"$f":"IF(IDPs[[#This Row],[Dis_Pcode]]=IDPs[[#This Row],[Dis_Coming_Pcode]],\"Yes\",\"No\")","v":"No"}]
["2024-02-02","2024-01-28","YE26","Marib","مأرب","YE2612","Marib City","مدينة مأرب","IDPs","Rapid Tracking","2024-01-27","YE17","Hajjah","حجة","YE1704","Abs","عبس","Economic Reasons","Unemployment / Salary Cut","No",null,null,2,0,1,0,0,0,0,1,0,0,0,{"$f":"IF(OR(COUNTIF(WestCoast[],IDPs[[#This Row],[Dis_Pcode]])>=1,COUNTIF(WestCoast[],#REF!)>=1),\"Yes\",\"No\")","v":"No"},{"$f":"IF(IDPs[[#This Row],[Gov_Pcode]]=IDPs[[#This Row],[Gov_Coming_Pcode]],\"Yes\",\"No\")","v":"No"},{"$f":"IF(IDPs[[#This Row],[Dis_Pcode]]=IDPs[[#This Row],[Dis_Coming_Pcode]],\"Yes\",\"No\")","v":"No"}]
["2024-02-02","2024-01-29","YE26","Marib","مأرب","YE2613","Marib","مأرب","IDPs","Rapid Tracking","2024-01-27","YE26","Marib","مأرب","YE2605","Bidbadah","بدبدة","Conflict Reasons","General Insecure Conditions","No",null,null,1,0,0,0,0,0,0,1,0,0,0,{"$f":"IF(OR(COUNTIF(WestCoast[],IDPs[[#This Row],[Dis_Pcode]])>=1,COUNTIF(WestCoast[],#REF!)>=1),\"Yes\",\"No\")","v":"No"},{"$f":"IF(IDPs[[#This Row],[Gov_Pcode]]=IDPs[[#This Row],[Gov_Coming_Pcode]],\"Yes\",\"No\")","v":"Yes"},{"$f":"IF(IDPs[[#This Row],[Dis_Pcode]]=IDPs[[#This Row],[Dis_Coming_Pcode]],\"Yes\",\"No\")","v":"No"}]
["2024-02-02","2024-01-30","YE26","Marib","مأرب","YE2612","Marib City","مدينة مأرب","IDPs","Rapid Tracking","2024-01-27","YE26","Marib","مأرب","YE2609","Harib","حريب","Conflict Reasons","Combat / Shelling","No",null,null,2,0,0,0,1,0,0,1,0,0,0,{"$f":"IF(OR(COUNTIF(WestCoast[],IDPs[[#This Row],[Dis_Pcode]])>=1,COUNTIF(WestCoast[],#REF!)>=1),\"Yes\",\"No\")","v":"No"},{"$f":"IF(IDPs[[#This Row],[Gov_Pcode]]=IDPs[[#This Row],[Gov_Coming_Pcode]],\"Yes\",\"No\")","v":"Yes"},{"$f":"IF(IDPs[[#This Row],[Dis_Pcode]]=IDPs[[#This Row],[Dis_Coming_Pcode]],\"Yes\",\"No\")","v":"No"}]
["2024-02-02","2024-01-30","YE26","Marib","مأرب","YE2613","Marib","مأرب","IDPs","Rapid Tracking","2024-01-27","YE20","Dhamar","ذمار","YE2002","Jahran","جهران","Economic Reasons","Increasing market prices","Yes","No",null,1,0,0,0,0,0,0,1,0,0,0,{"$f":"IF(OR(COUNTIF(WestCoast[],IDPs[[#This Row],[Dis_Pcode]])>=1,COUNTIF(WestCoast[],#REF!)>=1),\"Yes\",\"No\")","v":"No"},{"$f":"IF(IDPs[[#This Row],[Gov_Pcode]]=IDPs[[#This Row],[Gov_Coming_Pcode]],\"Yes\",\"No\")","v":"No"},{"$f":"IF(IDPs[[#This Row],[Dis_Pcode]]=IDPs[[#This Row],[Dis_Coming_Pcode]],\"Yes\",\"No\")","v":"No"}]
["2024-02-02","2024-01-30","YE26","Marib","مأرب","YE2613","Marib","مأرب","IDPs","Rapid Tracking","2024-01-27","YE20","Dhamar","ذمار","YE2011","Dawran Anis","ضوران أنس","Economic Reasons","Other economic reason","No",null,null,2,0,0,0,0,0,0,1,0,1,0,{"$f":"IF(OR(COUNTIF(WestCoast[],IDPs[[#This Row],[Dis_Pcode]])>=1,COUNTIF(WestCoast[],#REF!)>=1),\"Yes\",\"No\")","v":"No"},{"$f":"IF(IDPs[[#This Row],[Gov_Pcode]]=IDPs[[#This Row],[Gov_Coming_Pcode]],\"Yes\",\"No\")","v":"No"},{"$f":"IF(IDPs[[#This Row],[Dis_Pcode]]=IDPs[[#This Row],[Dis_Coming_Pcode]],\"Yes\",\"No\")","v":"No"}]
["2024-02-02","2024-02-01","YE26","Marib","مأرب","YE2612","Marib City","مدينة مأرب","IDPs","Rapid Tracking","2024-01-27","YE26","Marib","مأرب","YE2609","Harib","حريب","Conflict Reasons","Combat / Shelling","No",null,null,2,0,0,0,0,0,0,2,0,0,0,{"$f":"IF(OR(COUNTIF(WestCoast[],IDPs[[#This Row],[Dis_Pcode]])>=1,COUNTIF(WestCoast[],#REF!)>=1),\"Yes\",\"No\")","v":"No"},{"$f":"IF(IDPs[[#This Row],[Gov_Pcode]]=IDPs[[#This Row],[Gov_Coming_Pcode]],\"Yes\",\"No\")","v":"Yes"},{"$f":"IF(IDPs[[#This Row],[Dis_Pcode]]=IDPs[[#This Row],[Dis_Coming_Pcode]],\"Yes\",\"No\")","v":"No"}]
["2024-02-03","2024-01-31","YE18","Al Hodeidah","الحديدة","YE1819","Hays","حيس","IDPs","Rapid Tracking","2024-01-27","YE18","Al Hodeidah","الحديدة","YE1823","Al Hali","الحالي","Conflict Reasons","General Insecure Conditions","No",null,null,1,0,0,0,0,0,0,1,0,0,0,{"$f":"IF(OR(COUNTIF(WestCoast[],IDPs[[#This Row],[Dis_Pcode]])>=1,COUNTIF(WestCoast[],#REF!)>=1),\"Yes\",\"No\")","v":"Yes"},{"$f":"IF(IDPs[[#This Row],[Gov_Pcode]]=IDPs[[#This Row],[Gov_Coming_Pcode]],\"Yes\",\"No\")","v":"Yes"},{"$f":"IF(IDPs[[#This Row],[Dis_Pcode]]=IDPs[[#This Row],[Dis_Coming_Pcode]],\"Yes\",\"No\")","v":"No"}]
["2024-02-03","2024-01-31","YE18","Al Hodeidah","الحديدة","YE1819","Hays","حيس","IDPs","Rapid Tracking","2024-01-27","YE31","Raymah","ريمة","YE3102","As Salafiyyah","السلفية","Conflict Reasons","General Insecure Conditions","No",null,null,1,0,0,0,0,0,0,1,0,0,0,{"$f":"IF(OR(COUNTIF(WestCoast[],IDPs[[#This Row],[Dis_Pcode]])>=1,COUNTIF(WestCoast[],#REF!)>=1),\"Yes\",\"No\")","v":"Yes"},{"$f":"IF(IDPs[[#This Row],[Gov_Pcode]]=IDPs[[#This Row],[Gov_Coming_Pcode]],\"Yes\",\"No\")","v":"No"},{"$f":"IF(IDPs[[#This Row],[Dis_Pcode]]=IDPs[[#This Row],[Dis_Coming_Pcode]],\"Yes\",\"No\")","v":"No"}]
["2024-02-02","2024-01-30","YE26","Marib","مأرب","YE2613","Marib","مأرب","IDPs","Rapid Tracking","2024-01-28","YE16","Al Jawf","الجوف","YE1605","Al Hazm","الحزم","Conflict Reasons","General Insecure Conditions","No",null,null,1,0,0,0,0,0,0,1,0,0,0,{"$f":"IF(OR(COUNTIF(WestCoast[],IDPs[[#This Row],[Dis_Pcode]])>=1,COUNTIF(WestCoast[],#REF!)>=1),\"Yes\",\"No\")","v":"No"},{"$f":"IF(IDPs[[#This Row],[Gov_Pcode]]=IDPs[[#This Row],[Gov_Coming_Pcode]],\"Yes\",\"No\")","v":"No"},{"$f":"IF(IDPs[[#This Row],[Dis_Pcode]]=IDPs[[#This Row],[Dis_Coming_Pcode]],\"Yes\",\"No\")","v":"No"}]
["2024-02-02","2024-01-30","YE26","Marib","مأرب","YE2613","Marib","مأرب","IDPs","Rapid Tracking","2024-01-28","YE21","Shabwah","شبوة","YE2113","Ataq","عتق","Economic Reasons","Unemployment / Salary Cut","No",null,null,1,0,0,0,0,0,0,0,0,1,0,{"$f":"IF(OR(COUNTIF(WestCoast[],IDPs[[#This Row],[Dis_Pcode]])>=1,COUNTIF(WestCoast[],#REF!)>=1),\"Yes\",\"No\")","v":"No"},{"$f":"IF(IDPs[[#This Row],[Gov_Pcode]]=IDPs[[#This Row],[Gov_Coming_Pcode]],\"Yes\",\"No\")","v":"No"},{"$f":"IF(IDPs[[#This Row],[Dis_Pcode]]=IDPs[[#This Row],[Dis_Coming_Pcode]],\"Yes\",\"No\")","v":"No"}]
["2024-02-02","2024-01-31","YE26","Marib","مأرب","YE2612","Marib City","مدينة مأرب","IDPs","Rapid Tracking","2024-01-28","YE26","Marib","مأرب","YE2609","Harib","حريب","Conflict Reasons","Combat / Shelling","No",null,null,1,0,0,0,0,0,0,1,0,0,0,{"$f":"IF(OR(COUNTIF(WestCoast[],IDPs[[#This Row],[Dis_Pcode]])>=1,COUNTIF(WestCoast[],#REF!)>=1),\"Yes\",\"No\")","v":"No"},{"$f":"IF(IDPs[[#This Row],[Gov_Pcode]]=IDPs[[#This Row],[Gov_Coming_Pcode]],\"Yes\",\"No\")","v":"Yes"},{"$f":"IF(IDPs[[#This Row],[Dis_Pcode]]=IDPs[[#This Row],[Dis_Coming_Pcode]],\"Yes\",\"No\")","v":"No"}]
["2024-02-02","2024-02-01","YE26","Marib","مأرب","YE2612","Marib City","مدينة مأرب","IDPs","Rapid Tracking","2024-01-28","YE15","Taiz","تعز","YE1520","At Taiziyah","التعزية","Economic Reasons","Unemployment / Salary Cut","No",null,null,1,0,0,0,1,0,0,0,0,0,0,{"$f":"IF(OR(COUNTIF(WestCoast[],IDPs[[#This Row],[Dis_Pcode]])>=1,COUNTIF(WestCoast[],#REF!)>=1),\"Yes\",\"No\")","v":"No"},{"$f":"IF(IDPs[[#This Row],[Gov_Pcode]]=IDPs[[#This Row],[Gov_Coming_Pcode]],\"Yes\",\"No\")","v":"No"},{"$f":"IF(IDPs[[#This Row],[Dis_Pcode]]=IDPs[[#This Row],[Dis_Coming_Pcode]],\"Yes\",\"No\")","v":"No"}]
["2024-02-03","2024-02-02","YE18","Al Hodeidah","الحديدة","YE1820","Al Khukhah","الخوخة","IDPs","Rapid Tracking","2024-01-28","YE18","Al Hodeidah","الحديدة","YE1823","Al Hali","الحالي","Conflict Reasons","General Insecure Conditions","No",null,null,1,0,1,0,0,0,0,0,0,0,0,{"$f":"IF(OR(COUNTIF(WestCoast[],IDPs[[#This Row],[Dis_Pcode]])>=1,COUNTIF(WestCoast[],#REF!)>=1),\"Yes\",\"No\")","v":"Yes"},{"$f":"IF(IDPs[[#This Row],[Gov_Pcode]]=IDPs[[#This Row],[Gov_Coming_Pcode]],\"Yes\",\"No\")","v":"Yes"},{"$f":"IF(IDPs[[#This Row],[Dis_Pcode]]=IDPs[[#This Row],[Dis_Coming_Pcode]],\"Yes\",\"No\")","v":"No"}]
["2024-02-03","2024-02-01","YE18","Al Hodeidah","الحديدة","YE1820","Al Khukhah","الخوخة","IDPs","Rapid Tracking","2024-01-28","YE18","Al Hodeidah","الحديدة","YE1826","At Tuhayta","التحيتا","Conflict Reasons","Combat / Shelling","Yes","Yes","Yes",2,0,2,0,0,0,0,0,0,0,0,{"$f":"IF(OR(COUNTIF(WestCoast[],IDPs[[#This Row],[Dis_Pcode]])>=1,COUNTIF(WestCoast[],#REF!)>=1),\"Yes\",\"No\")","v":"Yes"},{"$f":"IF(IDPs[[#This Row],[Gov_Pcode]]=IDPs[[#This Row],[Gov_Coming_Pcode]],\"Yes\",\"No\")","v":"Yes"},{"$f":"IF(IDPs[[#This Row],[Dis_Pcode]]=IDPs[[#This Row],[Dis_Coming_Pcode]],\"Yes\",\"No\")","v":"No"}]
["2024-02-03","2024-01-30","YE18","Al Hodeidah","الحديدة","YE1819","Hays","حيس","IDPs","Rapid Tracking","2024-01-28","YE18","Al Hodeidah","الحديدة","YE1825","Al Jarrahi","الجراحي","Conflict Reasons","Combat / Shelling","No",null,null,3,0,1,0,0,0,0,2,0,0,0,{"$f":"IF(OR(COUNTIF(WestCoast[],IDPs[[#This Row],[Dis_Pcode]])>=1,COUNTIF(WestCoast[],#REF!)>=1),\"Yes\",\"No\")","v":"Yes"},{"$f":"IF(IDPs[[#This Row],[Gov_Pcode]]=IDPs[[#This Row],[Gov_Coming_Pcode]],\"Yes\",\"No\")","v":"Yes"},{"$f":"IF(IDPs[[#This Row],[Dis_Pcode]]=IDPs[[#This Row],[Dis_Coming_Pcode]],\"Yes\",\"No\")","v":"No"}]
["2024-02-03","2024-02-01","YE25","Lahj","لحج","YE2515","Tuban","تبن","IDPs","Rapid Tracking","2024-01-28","YE18","Al Hodeidah","الحديدة","YE1817","Bayt Al Faqih","بيت الفقيه","Conflict Reasons","General Insecure Conditions","No",null,null,1,0,1,0,0,0,0,0,0,0,0,{"$f":"IF(OR(COUNTIF(WestCoast[],IDPs[[#This Row],[Dis_Pcode]])>=1,COUNTIF(WestCoast[],#REF!)>=1),\"Yes\",\"No\")","v":"No"},{"$f":"IF(IDPs[[#This Row],[Gov_Pcode]]=IDPs[[#This Row],[Gov_Coming_Pcode]],\"Yes\",\"No\")","v":"No"},{"$f":"IF(IDPs[[#This Row],[Dis_Pcode]]=IDPs[[#This Row],[Dis_Coming_Pcode]],\"Yes\",\"No\")","v":"No"}]
["2024-02-02","2024-01-30","YE26","Marib","مأرب","YE2612","Marib City","مدينة مأرب","IDPs","Rapid Tracking","2024-01-29","YE17","Hajjah","حجة","YE1704","Abs","عبس","Economic Reasons","Unemployment / Salary Cut","No",null,null,2,0,0,0,0,1,1,0,0,0,0,{"$f":"IF(OR(COUNTIF(WestCoast[],IDPs[[#This Row],[Dis_Pcode]])>=1,COUNTIF(WestCoast[],#REF!)>=1),\"Yes\",\"No\")","v":"No"},{"$f":"IF(IDPs[[#This Row],[Gov_Pcode]]=IDPs[[#This Row],[Gov_Coming_Pcode]],\"Yes\",\"No\")","v":"No"},{"$f":"IF(IDPs[[#This Row],[Dis_Pcode]]=IDPs[[#This Row],[Dis_Coming_Pcode]],\"Yes\",\"No\")","v":"No"}]
["2024-02-02","2024-02-01","YE26","Marib","مأرب","YE2612","Marib City","مدينة مأرب","IDPs","Rapid Tracking","2024-01-29","YE15","Taiz","تعز","YE1522","Al Mawasit","المواسط","Economic Reasons","Unemployment / Salary Cut","No",null,null,1,0,1,0,0,0,0,0,0,0,0,{"$f":"IF(OR(COUNTIF(WestCoast[],IDPs[[#This Row],[Dis_Pcode]])>=1,COUNTIF(WestCoast[],#REF!)>=1),\"Yes\",\"No\")","v":"No"},{"$f":"IF(IDPs[[#This Row],[Gov_Pcode]]=IDPs[[#This Row],[Gov_Coming_Pcode]],\"Yes\",\"No\")","v":"No"},{"$f":"IF(IDPs[[#This Row],[Dis_Pcode]]=IDPs[[#This Row],[Dis_Coming_Pcode]],\"Yes\",\"No\")","v":"No"}]
["2024-02-03","2024-02-01","YE25","Lahj","لحج","YE2515","Tuban","تبن","IDPs","Rapid Tracking","2024-01-29","YE15","Taiz","تعز","YE1512","Dimnat Khadir","خدير","Conflict Reasons","General Insecure Conditions","No",null,null,1,0,1,0,0,0,0,0,0,0,0,{"$f":"IF(OR(COUNTIF(WestCoast[],IDPs[[#This Row],[Dis_Pcode]])>=1,COUNTIF(WestCoast[],#REF!)>=1),\"Yes\",\"No\")","v":"No"},{"$f":"IF(IDPs[[#This Row],[Gov_Pcode]]=IDPs[[#This Row],[Gov_Coming_Pcode]],\"Yes\",\"No\")","v":"No"},{"$f":"IF(IDPs[[#This Row],[Dis_Pcode]]=IDPs[[#This Row],[Dis_Coming_Pcode]],\"Yes\",\"No\")","v":"No"}]
["2024-02-02","2024-01-31","YE26","Marib","مأرب","YE2609","Harib","حريب","IDPs","Rapid Tracking","2024-01-30","YE26","Marib","مأرب","YE2609","Harib","حريب","Conflict Reasons","Combat / Shelling","No",null,null,11,0,0,0,4,3,0,4,0,0,0,{"$f":"IF(OR(COUNTIF(WestCoast[],IDPs[[#This Row],[Dis_Pcode]])>=1,COUNTIF(WestCoast[],#REF!)>=1),\"Yes\",\"No\")","v":"No"},{"$f":"IF(IDPs[[#This Row],[Gov_Pcode]]=IDPs[[#This Row],[Gov_Coming_Pcode]],\"Yes\",\"No\")","v":"Yes"},{"$f":"IF(IDPs[[#This Row],[Dis_Pcode]]=IDPs[[#This Row],[Dis_Coming_Pcode]],\"Yes\",\"No\")","v":"Yes"}]
["2024-02-02","2024-02-01","YE26","Marib","مأرب","YE2612","Marib City","مدينة مأرب","IDPs","Rapid Tracking","2024-01-30","YE29","Amran","عمران","YE2910","Kharif","خارف","Conflict Reasons","General Insecure Conditions","No",null,null,2,0,0,0,0,1,0,1,0,0,0,{"$f":"IF(OR(COUNTIF(WestCoast[],IDPs[[#This Row],[Dis_Pcode]])>=1,COUNTIF(WestCoast[],#REF!)>=1),\"Yes\",\"No\")","v":"No"},{"$f":"IF(IDPs[[#This Row],[Gov_Pcode]]=IDPs[[#This Row],[Gov_Coming_Pcode]],\"Yes\",\"No\")","v":"No"},{"$f":"IF(IDPs[[#This Row],[Dis_Pcode]]=IDPs[[#This Row],[Dis_Coming_Pcode]],\"Yes\",\"No\")","v":"No"}]
["2024-02-03","2024-02-01","YE18","Al Hodeidah","الحديدة","YE1819","Hays","حيس","IDPs","Rapid Tracking","2024-02-01","YE15","Taiz","تعز","YE1504","Maqbanah","مقبنة","Conflict Reasons","Combat / Shelling","No",null,null,1,0,0,0,0,0,0,1,0,0,0,{"$f":"IF(OR(COUNTIF(WestCoast[],IDPs[[#This Row],[Dis_Pcode]])>=1,COUNTIF(WestCoast[],#REF!)>=1),\"Yes\",\"No\")","v":"Yes"},{"$f":"IF(IDPs[[#This Row],[Gov_Pcode]]=IDPs[[#This Row],[Gov_Coming_Pcode]],\"Yes\",\"No\")","v":"No"},{"$f":"IF(IDPs[[#This Row],[Dis_Pcode]]=IDPs[[#This Row],[Dis_Coming_Pcode]],\"Yes\",\"No\")","v":"No"}]
["2024-02-03","2024-02-01","YE18","Al Hodeidah","الحديدة","YE1819","Hays","حيس","IDPs","Rapid Tracking","2024-02-01","YE18","Al Hodeidah","الحديدة","YE1818","Jabal Ras","جبل راس","Conflict Reasons","Combat / Shelling","No",null,null,1,0,0,0,0,0,0,1,0,0,0,{"$f":"IF(OR(COUNTIF(WestCoast[],IDPs[[#This Row],[Dis_Pcode]])>=1,COUNTIF(WestCoast[],#REF!)>=1),\"Yes\",\"No\")","v":"Yes"},{"$f":"IF(IDPs[[#This Row],[Gov_Pcode]]=IDPs[[#This Row],[Gov_Coming_Pcode]],\"Yes\",\"No\")","v":"Yes"},{"$f":"IF(IDPs[[#This Row],[Dis_Pcode]]=IDPs[[#This Row],[Dis_Coming_Pcode]],\"Yes\",\"No\")","v":"No"}]
["2024-02-07","2024-02-07","YE18","Al Hodeidah","الحديدة","YE1820","Al Khukhah","الخوخة","IDPs","Rapid Tracking","2024-01-31","YE18","Al Hodeidah","الحديدة","YE1825","Al Jarrahi","الجراحي","Conflict Reasons","Combat / Shelling","No",null,null,1,0,0,0,0,0,0,1,0,0,0,{"$f":"IF(OR(COUNTIF(WestCoast[],IDPs[[#This Row],[Dis_Pcode]])>=1,COUNTIF(WestCoast[],#REF!)>=1),\"Yes\",\"No\")","v":"Yes"},{"$f":"IF(IDPs[[#This Row],[Gov_Pcode]]=IDPs[[#This Row],[Gov_Coming_Pcode]],\"Yes\",\"No\")","v":"Yes"},{"$f":"IF(IDPs[[#This Row],[Dis_Pcode]]=IDPs[[#This Row],[Dis_Coming_Pcode]],\"Yes\",\"No\")","v":"No"}]
["2024-02-07","2024-02-07","YE18","Al Hodeidah","الحديدة","YE1820","Al Khukhah","الخوخة","IDPs","Rapid Tracking","2024-01-31","YE18","Al Hodeidah","الحديدة","YE1826","At Tuhayta","التحيتا","Conflict Reasons","Combat / Shelling","Yes","Yes","Yes",4,0,4,0,0,0,0,0,0,0,0,{"$f":"IF(OR(COUNTIF(WestCoast[],IDPs[[#This Row],[Dis_Pcode]])>=1,COUNTIF(WestCoast[],#REF!)>=1),\"Yes\",\"No\")","v":"Yes"},{"$f":"IF(IDPs[[#This Row],[Gov_Pcode]]=IDPs[[#This Row],[Gov_Coming_Pcode]],\"Yes\",\"No\")","v":"Yes"},{"$f":"IF(IDPs[[#This Row],[Dis_Pcode]]=IDPs[[#This Row],[Dis_Coming_Pcode]],\"Yes\",\"No\")","v":"No"}]
["2024-02-06","2024-02-05","YE15","Taiz","تعز","YE1521","Al Maafer","المعافر","IDPs","Rapid Tracking","2024-02-01","YE15","Taiz","تعز","YE1504","Maqbanah","مقبنة","Conflict Reasons","General Insecure Conditions","Yes","No",null,1,0,0,0,1,0,0,0,0,0,0,{"$f":"IF(OR(COUNTIF(WestCoast[],IDPs[[#This Row],[Dis_Pcode]])>=1,COUNTIF(WestCoast[],#REF!)>=1),\"Yes\",\"No\")","v":"No"},{"$f":"IF(IDPs[[#This Row],[Gov_Pcode]]=IDPs[[#This Row],[Gov_Coming_Pcode]],\"Yes\",\"No\")","v":"Yes"},{"$f":"IF(IDPs[[#This Row],[Dis_Pcode]]=IDPs[[#This Row],[Dis_Coming_Pcode]],\"Yes\",\"No\")","v":"No"}]
["2024-02-07","2024-02-06","YE18","Al Hodeidah","الحديدة","YE1820","Al Khukhah","الخوخة","IDPs","Rapid Tracking","2024-02-01","YE18","Al Hodeidah","الحديدة","YE1810","Bajil","باجل","Economic Reasons","Other economic reason","No",null,null,1,0,1,0,0,0,0,0,0,0,0,{"$f":"IF(OR(COUNTIF(WestCoast[],IDPs[[#This Row],[Dis_Pcode]])>=1,COUNTIF(WestCoast[],#REF!)>=1),\"Yes\",\"No\")","v":"Yes"},{"$f":"IF(IDPs[[#This Row],[Gov_Pcode]]=IDPs[[#This Row],[Gov_Coming_Pcode]],\"Yes\",\"No\")","v":"Yes"},{"$f":"IF(IDPs[[#This Row],[Dis_Pcode]]=IDPs[[#This Row],[Dis_Coming_Pcode]],\"Yes\",\"No\")","v":"No"}]
["2024-02-07","2024-02-06","YE18","Al Hodeidah","الحديدة","YE1820","Al Khukhah","الخوخة","IDPs","Rapid Tracking","2024-02-01","YE18","Al Hodeidah","الحديدة","YE1823","Al Hali","الحالي","Economic Reasons","Other economic reason","No",null,null,1,0,1,0,0,0,0,0,0,0,0,{"$f":"IF(OR(COUNTIF(WestCoast[],IDPs[[#This Row],[Dis_Pcode]])>=1,COUNTIF(WestCoast[],#REF!)>=1),\"Yes\",\"No\")","v":"Yes"},{"$f":"IF(IDPs[[#This Row],[Gov_Pcode]]=IDPs[[#This Row],[Gov_Coming_Pcode]],\"Yes\",\"No\")","v":"Yes"},{"$f":"IF(IDPs[[#This Row],[Dis_Pcode]]=IDPs[[#This Row],[Dis_Coming_Pcode]],\"Yes\",\"No\")","v":"No"}]
["2024-02-07","2024-02-06","YE18","Al Hodeidah","الحديدة","YE1820","Al Khukhah","الخوخة","IDPs","Rapid Tracking","2024-02-01","YE18","Al Hodeidah","الحديدة","YE1806","Al Qanawis","القناوص","Economic Reasons","Other economic reason","No",null,null,2,0,1,0,0,0,0,0,0,1,0,{"$f":"IF(OR(COUNTIF(WestCoast[],IDPs[[#This Row],[Dis_Pcode]])>=1,COUNTIF(WestCoast[],#REF!)>=1),\"Yes\",\"No\")","v":"Yes"},{"$f":"IF(IDPs[[#This Row],[Gov_Pcode]]=IDPs[[#This Row],[Gov_Coming_Pcode]],\"Yes\",\"No\")","v":"Yes"},{"$f":"IF(IDPs[[#This Row],[Dis_Pcode]]=IDPs[[#This Row],[Dis_Coming_Pcode]],\"Yes\",\"No\")","v":"No"}]
["2024-02-07","2024-02-07","YE18","Al Hodeidah","الحديدة","YE1820","Al Khukhah","الخوخة","IDPs","Rapid Tracking","2024-02-01","YE18","Al Hodeidah","الحديدة","YE1817","Bayt Al Faqih","بيت الفقيه","Economic Reasons","Unemployment / Salary Cut","No",null,null,1,0,0,0,0,0,0,1,0,0,0,{"$f":"IF(OR(COUNTIF(WestCoast[],IDPs[[#This Row],[Dis_Pcode]])>=1,COUNTIF(WestCoast[],#REF!)>=1),\"Yes\",\"No\")","v":"Yes"},{"$f":"IF(IDPs[[#This Row],[Gov_Pcode]]=IDPs[[#This Row],[Gov_Coming_Pcode]],\"Yes\",\"No\")","v":"Yes"},{"$f":"IF(IDPs[[#This Row],[Dis_Pcode]]=IDPs[[#This Row],[Dis_Coming_Pcode]],\"Yes\",\"No\")","v":"No"}]
["2024-02-10","2024-02-02","YE26","Marib","مأرب","YE2612","Marib City","مدينة مأرب","IDPs","Rapid Tracking","2024-02-01","YE26","Marib","مأرب","YE2609","Harib","حريب","Conflict Reasons","Combat / Shelling","No",null,null,2,0,0,0,1,0,0,0,0,0,1,{"$f":"IF(OR(COUNTIF(WestCoast[],IDPs[[#This Row],[Dis_Pcode]])>=1,COUNTIF(WestCoast[],#REF!)>=1),\"Yes\",\"No\")","v":"No"},{"$f":"IF(IDPs[[#This Row],[Gov_Pcode]]=IDPs[[#This Row],[Gov_Coming_Pcode]],\"Yes\",\"No\")","v":"Yes"},{"$f":"IF(IDPs[[#This Row],[Dis_Pcode]]=IDPs[[#This Row],[Dis_Coming_Pcode]],\"Yes\",\"No\")","v":"No"}]
["2024-02-10","2024-02-04","YE26","Marib","مأرب","YE2612","Marib City","مدينة مأرب","IDPs","Rapid Tracking","2024-02-01","YE16","Al Jawf","الجوف","YE1609","Al Khalaq","الخلق","Conflict Reasons","General Insecure Conditions","No",null,null,1,0,0,0,0,0,0,1,0,0,0,{"$f":"IF(OR(COUNTIF(WestCoast[],IDPs[[#This Row],[Dis_Pcode]])>=1,COUNTIF(WestCoast[],#REF!)>=1),\"Yes\",\"No\")","v":"No"},{"$f":"IF(IDPs[[#This Row],[Gov_Pcode]]=IDPs[[#This Row],[Gov_Coming_Pcode]],\"Yes\",\"No\")","v":"No"},{"$f":"IF(IDPs[[#This Row],[Dis_Pcode]]=IDPs[[#This Row],[Dis_Coming_Pcode]],\"Yes\",\"No\")","v":"No"}]
["2024-02-10","2024-02-05","YE26","Marib","مأرب","YE2612","Marib City","مدينة مأرب","IDPs","Rapid Tracking","2024-02-01","YE13","Sanaa City","أمانة العاصمة","YE1308","Main","معين","Conflict Reasons","Combat / Shelling","No",null,null,1,0,0,0,1,0,0,0,0,0,0,{"$f":"IF(OR(COUNTIF(WestCoast[],IDPs[[#This Row],[Dis_Pcode]])>=1,COUNTIF(WestCoast[],#REF!)>=1),\"Yes\",\"No\")","v":"No"},{"$f":"IF(IDPs[[#This Row],[Gov_Pcode]]=IDPs[[#This Row],[Gov_Coming_Pcode]],\"Yes\",\"No\")","v":"No"},{"$f":"IF(IDPs[[#This Row],[Dis_Pcode]]=IDPs[[#This Row],[Dis_Coming_Pcode]],\"Yes\",\"No\")","v":"No"}]
["2024-02-10","2024-02-05","YE26","Marib","مأرب","YE2612","Marib City","مدينة مأرب","IDPs","Rapid Tracking","2024-02-01","YE19","Hadramawt","حضرموت","YE1906","Al Abr","العبر","Economic Reasons","Unemployment / Salary Cut","No",null,null,2,0,0,0,0,2,0,0,0,0,0,{"$f":"IF(OR(COUNTIF(WestCoast[],IDPs[[#This Row],[Dis_Pcode]])>=1,COUNTIF(WestCoast[],#REF!)>=1),\"Yes\",\"No\")","v":"No"},{"$f":"IF(IDPs[[#This Row],[Gov_Pcode]]=IDPs[[#This Row],[Gov_Coming_Pcode]],\"Yes\",\"No\")","v":"No"},{"$f":"IF(IDPs[[#This Row],[Dis_Pcode]]=IDPs[[#This Row],[Dis_Coming_Pcode]],\"Yes\",\"No\")","v":"No"}]
["2024-02-10","2024-02-06","YE26","Marib","مأرب","YE2612","Marib City","مدينة مأرب","IDPs","Rapid Tracking","2024-02-01","YE15","Taiz","تعز","YE1507","Mawza","موزع","Economic Reasons","Other economic reason","No",null,null,2,0,1,1,0,0,0,0,0,0,0,{"$f":"IF(OR(COUNTIF(WestCoast[],IDPs[[#This Row],[Dis_Pcode]])>=1,COUNTIF(WestCoast[],#REF!)>=1),\"Yes\",\"No\")","v":"No"},{"$f":"IF(IDPs[[#This Row],[Gov_Pcode]]=IDPs[[#This Row],[Gov_Coming_Pcode]],\"Yes\",\"No\")","v":"No"},{"$f":"IF(IDPs[[#This Row],[Dis_Pcode]]=IDPs[[#This Row],[Dis_Coming_Pcode]],\"Yes\",\"No\")","v":"No"}]
["2024-02-10","2024-02-10","YE15","Taiz","تعز","YE1519","Salah","صالة","IDPs","Rapid Tracking","2024-02-01","YE15","Taiz","تعز","YE1511","Al Misrakh","المسراخ","Conflict Reasons","General Insecure Conditions","No",null,null,3,0,3,0,0,0,0,0,0,0,0,{"$f":"IF(OR(COUNTIF(WestCoast[],IDPs[[#This Row],[Dis_Pcode]])>=1,COUNTIF(WestCoast[],#REF!)>=1),\"Yes\",\"No\")","v":"No"},{"$f":"IF(IDPs[[#This Row],[Gov_Pcode]]=IDPs[[#This Row],[Gov_Coming_Pcode]],\"Yes\",\"No\")","v":"Yes"},{"$f":"IF(IDPs[[#This Row],[Dis_Pcode]]=IDPs[[#This Row],[Dis_Coming_Pcode]],\"Yes\",\"No\")","v":"No"}]
["2024-02-06","2024-02-05","YE15","Taiz","تعز","YE1521","Al Maafer","المعافر","IDPs","Rapid Tracking","2024-02-02","YE15","Taiz","تعز","YE1520","At Taiziyah","التعزية","Conflict Reasons","General Insecure Conditions","Yes","No",null,1,0,0,0,1,0,0,0,0,0,0,{"$f":"IF(OR(COUNTIF(WestCoast[],IDPs[[#This Row],[Dis_Pcode]])>=1,COUNTIF(WestCoast[],#REF!)>=1),\"Yes\",\"No\")","v":"No"},{"$f":"IF(IDPs[[#This Row],[Gov_Pcode]]=IDPs[[#This Row],[Gov_Coming_Pcode]],\"Yes\",\"No\")","v":"Yes"},{"$f":"IF(IDPs[[#This Row],[Dis_Pcode]]=IDPs[[#This Row],[Dis_Coming_Pcode]],\"Yes\",\"No\")","v":"No"}]
["2024-02-07","2024-02-06","YE18","Al Hodeidah","الحديدة","YE1819","Hays","حيس","IDPs","Rapid Tracking","2024-02-02","YE18","Al Hodeidah","الحديدة","YE1825","Al Jarrahi","الجراحي","Conflict Reasons","Combat / Shelling","No",null,null,1,0,0,0,0,0,0,1,0,0,0,{"$f":"IF(OR(COUNTIF(WestCoast[],IDPs[[#This Row],[Dis_Pcode]])>=1,COUNTIF(WestCoast[],#REF!)>=1),\"Yes\",\"No\")","v":"Yes"},{"$f":"IF(IDPs[[#This Row],[Gov_Pcode]]=IDPs[[#This Row],[Gov_Coming_Pcode]],\"Yes\",\"No\")","v":"Yes"},{"$f":"IF(IDPs[[#This Row],[Dis_Pcode]]=IDPs[[#This Row],[Dis_Coming_Pcode]],\"Yes\",\"No\")","v":"No"}]
["2024-02-10","2024-02-04","YE26","Marib","مأرب","YE2612","Marib City","مدينة مأرب","IDPs","Rapid Tracking","2024-02-02","YE26","Marib","مأرب","YE2607","Al Jubah","الجوبة","Economic Reasons","Other economic reason","No",null,null,1,0,0,0,0,0,0,0,0,1,0,{"$f":"IF(OR(COUNTIF(WestCoast[],IDPs[[#This Row],[Dis_Pcode]])>=1,COUNTIF(WestCoast[],#REF!)>=1),\"Yes\",\"No\")","v":"No"},{"$f":"IF(IDPs[[#This Row],[Gov_Pcode]]=IDPs[[#This Row],[Gov_Coming_Pcode]],\"Yes\",\"No\")","v":"Yes"},{"$f":"IF(IDPs[[#This Row],[Dis_Pcode]]=IDPs[[#This Row],[Dis_Coming_Pcode]],\"Yes\",\"No\")","v":"No"}]
["2024-02-10","2024-02-04","YE26","Marib","مأرب","YE2612","Marib City","مدينة مأرب","IDPs","Rapid Tracking","2024-02-02","YE14","Al Bayda","البيضاء","YE1402","Nati","ناطع","Conflict Reasons","Combat / Shelling","No",null,null,1,0,0,0,0,0,0,1,0,0,0,{"$f":"IF(OR(COUNTIF(WestCoast[],IDPs[[#This Row],[Dis_Pcode]])>=1,COUNTIF(WestCoast[],#REF!)>=1),\"Yes\",\"No\")","v":"No"},{"$f":"IF(IDPs[[#This Row],[Gov_Pcode]]=IDPs[[#This Row],[Gov_Coming_Pcode]],\"Yes\",\"No\")","v":"No"},{"$f":"IF(IDPs[[#This Row],[Dis_Pcode]]=IDPs[[#This Row],[Dis_Coming_Pcode]],\"Yes\",\"No\")","v":"No"}]
["2024-02-10","2024-02-07","YE26","Marib","مأرب","YE2612","Marib City","مدينة مأرب","IDPs","Rapid Tracking","2024-02-02","YE11","Ibb","إب","YE1117","Mudhaykhirah","مذيخرة","Economic Reasons","Unemployment / Salary Cut","No",null,null,1,0,0,0,0,0,0,1,0,0,0,{"$f":"IF(OR(COUNTIF(WestCoast[],IDPs[[#This Row],[Dis_Pcode]])>=1,COUNTIF(WestCoast[],#REF!)>=1),\"Yes\",\"No\")","v":"No"},{"$f":"IF(IDPs[[#This Row],[Gov_Pcode]]=IDPs[[#This Row],[Gov_Coming_Pcode]],\"Yes\",\"No\")","v":"No"},{"$f":"IF(IDPs[[#This Row],[Dis_Pcode]]=IDPs[[#This Row],[Dis_Coming_Pcode]],\"Yes\",\"No\")","v":"No"}]
["2024-02-10","2024-02-09","YE26","Marib","مأرب","YE2613","Marib","مأرب","IDPs","Rapid Tracking","2024-02-02","YE19","Hadramawt","حضرموت","YE1910","Sayun","سيئون","Economic Reasons","Increasing market prices","No",null,null,1,0,0,0,0,0,0,1,0,0,0,{"$f":"IF(OR(COUNTIF(WestCoast[],IDPs[[#This Row],[Dis_Pcode]])>=1,COUNTIF(WestCoast[],#REF!)>=1),\"Yes\",\"No\")","v":"No"},{"$f":"IF(IDPs[[#This Row],[Gov_Pcode]]=IDPs[[#This Row],[Gov_Coming_Pcode]],\"Yes\",\"No\")","v":"No"},{"$f":"IF(IDPs[[#This Row],[Dis_Pcode]]=IDPs[[#This Row],[Dis_Coming_Pcode]],\"Yes\",\"No\")","v":"No"}]
["2024-02-10","2024-02-10","YE15","Taiz","تعز","YE1518","Al Qahirah","القاهرة","IDPs","Rapid Tracking","2024-02-02","YE15","Taiz","تعز","YE1513","As Silw","الصلو","Conflict Reasons","General Insecure Conditions","No",null,null,2,0,0,0,2,0,0,0,0,0,0,{"$f":"IF(OR(COUNTIF(WestCoast[],IDPs[[#This Row],[Dis_Pcode]])>=1,COUNTIF(WestCoast[],#REF!)>=1),\"Yes\",\"No\")","v":"No"},{"$f":"IF(IDPs[[#This Row],[Gov_Pcode]]=IDPs[[#This Row],[Gov_Coming_Pcode]],\"Yes\",\"No\")","v":"Yes"},{"$f":"IF(IDPs[[#This Row],[Dis_Pcode]]=IDPs[[#This Row],[Dis_Coming_Pcode]],\"Yes\",\"No\")","v":"No"}]
["2024-02-08","2024-02-08","YE18","Al Hodeidah","الحديدة","YE1820","Al Khukhah","الخوخة","IDPs","Rapid Tracking","2024-02-03","YE18","Al Hodeidah","الحديدة","YE1826","At Tuhayta","التحيتا","Conflict Reasons","Combat / Shelling","Yes","Yes","Yes",2,0,2,0,0,0,0,0,0,0,0,{"$f":"IF(OR(COUNTIF(WestCoast[],IDPs[[#This Row],[Dis_Pcode]])>=1,COUNTIF(WestCoast[],#REF!)>=1),\"Yes\",\"No\")","v":"Yes"},{"$f":"IF(IDPs[[#This Row],[Gov_Pcode]]=IDPs[[#This Row],[Gov_Coming_Pcode]],\"Yes\",\"No\")","v":"Yes"},{"$f":"IF(IDPs[[#This Row],[Dis_Pcode]]=IDPs[[#This Row],[Dis_Coming_Pcode]],\"Yes\",\"No\")","v":"No"}]
["2024-02-10","2024-02-05","YE26","Marib","مأرب","YE2612","Marib City","مدينة مأرب","IDPs","Rapid Tracking","2024-02-03","YE26","Marib","مأرب","YE2609","Harib","حريب","Conflict Reasons","Combat / Shelling","No",null,null,2,0,0,0,0,0,0,2,0,0,0,{"$f":"IF(OR(COUNTIF(WestCoast[],IDPs[[#This Row],[Dis_Pcode]])>=1,COUNTIF(WestCoast[],#REF!)>=1),\"Yes\",\"No\")","v":"No"},{"$f":"IF(IDPs[[#This Row],[Gov_Pcode]]=IDPs[[#This Row],[Gov_Coming_Pcode]],\"Yes\",\"No\")","v":"Yes"},{"$f":"IF(IDPs[[#This Row],[Dis_Pcode]]=IDPs[[#This Row],[Dis_Coming_Pcode]],\"Yes\",\"No\")","v":"No"}]
["2024-02-10","2024-02-05","YE26","Marib","مأرب","YE2612","Marib City","مدينة مأرب","IDPs","Rapid Tracking","2024-02-03","YE18","Al Hodeidah","الحديدة","YE1810","Bajil","باجل","Economic Reasons","Unemployment / Salary Cut","No",null,null,1,0,0,0,0,1,0,0,0,0,0,{"$f":"IF(OR(COUNTIF(WestCoast[],IDPs[[#This Row],[Dis_Pcode]])>=1,COUNTIF(WestCoast[],#REF!)>=1),\"Yes\",\"No\")","v":"No"},{"$f":"IF(IDPs[[#This Row],[Gov_Pcode]]=IDPs[[#This Row],[Gov_Coming_Pcode]],\"Yes\",\"No\")","v":"No"},{"$f":"IF(IDPs[[#This Row],[Dis_Pcode]]=IDPs[[#This Row],[Dis_Coming_Pcode]],\"Yes\",\"No\")","v":"No"}]
["2024-02-10","2024-02-06","YE26","Marib","مأرب","YE2609","Harib","حريب","IDPs","Rapid Tracking","2024-02-03","YE20","Dhamar","ذمار","YE2012","Al Manar","المنار","Economic Reasons","Unemployment / Salary Cut","No",null,null,2,0,0,0,1,1,0,0,0,0,0,{"$f":"IF(OR(COUNTIF(WestCoast[],IDPs[[#This Row],[Dis_Pcode]])>=1,COUNTIF(WestCoast[],#REF!)>=1),\"Yes\",\"No\")","v":"No"},{"$f":"IF(IDPs[[#This Row],[Gov_Pcode]]=IDPs[[#This Row],[Gov_Coming_Pcode]],\"Yes\",\"No\")","v":"No"},{"$f":"IF(IDPs[[#This Row],[Dis_Pcode]]=IDPs[[#This Row],[Dis_Coming_Pcode]],\"Yes\",\"No\")","v":"No"}]
["2024-02-10","2024-02-06","YE26","Marib","مأرب","YE2612","Marib City","مدينة مأرب","IDPs","Rapid Tracking","2024-02-03","YE18","Al Hodeidah","الحديدة","YE1813","Al Marawiah","المراوعة","Economic Reasons","Other economic reason","No",null,null,1,0,0,0,1,0,0,0,0,0,0,{"$f":"IF(OR(COUNTIF(WestCoast[],IDPs[[#This Row],[Dis_Pcode]])>=1,COUNTIF(WestCoast[],#REF!)>=1),\"Yes\",\"No\")","v":"No"},{"$f":"IF(IDPs[[#This Row],[Gov_Pcode]]=IDPs[[#This Row],[Gov_Coming_Pcode]],\"Yes\",\"No\")","v":"No"},{"$f":"IF(IDPs[[#This Row],[Dis_Pcode]]=IDPs[[#This Row],[Dis_Coming_Pcode]],\"Yes\",\"No\")","v":"No"}]
["2024-02-10","2024-02-06","YE26","Marib","مأرب","YE2612","Marib City","مدينة مأرب","IDPs","Rapid Tracking","2024-02-03","YE18","Al Hodeidah","الحديدة","YE1820","Al Khukhah","الخوخة","Economic Reasons","Other economic reason","No",null,null,1,0,0,0,0,0,0,1,0,0,0,{"$f":"IF(OR(COUNTIF(WestCoast[],IDPs[[#This Row],[Dis_Pcode]])>=1,COUNTIF(WestCoast[],#REF!)>=1),\"Yes\",\"No\")","v":"No"},{"$f":"IF(IDPs[[#This Row],[Gov_Pcode]]=IDPs[[#This Row],[Gov_Coming_Pcode]],\"Yes\",\"No\")","v":"No"},{"$f":"IF(IDPs[[#This Row],[Dis_Pcode]]=IDPs[[#This Row],[Dis_Coming_Pcode]],\"Yes\",\"No\")","v":"No"}]
["2024-02-10","2024-02-07","YE26","Marib","مأرب","YE2612","Marib City","مدينة مأرب","IDPs","Rapid Tracking","2024-02-03","YE18","Al Hodeidah","الحديدة","YE1816","Al Mansuriyah","المنصورية","Economic Reasons","Unemployment / Salary Cut","No",null,null,1,0,0,0,0,0,0,1,0,0,0,{"$f":"IF(OR(COUNTIF(WestCoast[],IDPs[[#This Row],[Dis_Pcode]])>=1,COUNTIF(WestCoast[],#REF!)>=1),\"Yes\",\"No\")","v":"No"},{"$f":"IF(IDPs[[#This Row],[Gov_Pcode]]=IDPs[[#This Row],[Gov_Coming_Pcode]],\"Yes\",\"No\")","v":"No"},{"$f":"IF(IDPs[[#This Row],[Dis_Pcode]]=IDPs[[#This Row],[Dis_Coming_Pcode]],\"Yes\",\"No\")","v":"No"}]
["2024-02-10","2024-02-08","YE26","Marib","مأرب","YE2613","Marib","مأرب","IDPs","Rapid Tracking","2024-02-03","YE17","Hajjah","حجة","YE1703","Midi","ميدي","Economic Reasons","Other economic reason","No",null,null,2,0,0,0,0,0,0,2,0,0,0,{"$f":"IF(OR(COUNTIF(WestCoast[],IDPs[[#This Row],[Dis_Pcode]])>=1,COUNTIF(WestCoast[],#REF!)>=1),\"Yes\",\"No\")","v":"No"},{"$f":"IF(IDPs[[#This Row],[Gov_Pcode]]=IDPs[[#This Row],[Gov_Coming_Pcode]],\"Yes\",\"No\")","v":"No"},{"$f":"IF(IDPs[[#This Row],[Dis_Pcode]]=IDPs[[#This Row],[Dis_Coming_Pcode]],\"Yes\",\"No\")","v":"No"}]
["2024-02-10","2024-02-10","YE15","Taiz","تعز","YE1513","As Silw","الصلو","IDPs","Rapid Tracking","2024-02-03","YE15","Taiz","تعز","YE1513","As Silw","الصلو","Economic Reasons","Other economic reason","Yes","No",null,1,0,0,0,1,0,0,0,0,0,0,{"$f":"IF(OR(COUNTIF(WestCoast[],IDPs[[#This Row],[Dis_Pcode]])>=1,COUNTIF(WestCoast[],#REF!)>=1),\"Yes\",\"No\")","v":"No"},{"$f":"IF(IDPs[[#This Row],[Gov_Pcode]]=IDPs[[#This Row],[Gov_Coming_Pcode]],\"Yes\",\"No\")","v":"Yes"},{"$f":"IF(IDPs[[#This Row],[Dis_Pcode]]=IDPs[[#This Row],[Dis_Coming_Pcode]],\"Yes\",\"No\")","v":"Yes"}]
["2024-02-10","2024-02-10","YE15","Taiz","تعز","YE1517","Al Mudhaffar","المظفر","IDPs","Rapid Tracking","2024-02-03","YE18","Al Hodeidah","الحديدة","YE1825","Al Jarrahi","الجراحي","Conflict Reasons","General Insecure Conditions","No",null,null,1,0,1,0,0,0,0,0,0,0,0,{"$f":"IF(OR(COUNTIF(WestCoast[],IDPs[[#This Row],[Dis_Pcode]])>=1,COUNTIF(WestCoast[],#REF!)>=1),\"Yes\",\"No\")","v":"No"},{"$f":"IF(IDPs[[#This Row],[Gov_Pcode]]=IDPs[[#This Row],[Gov_Coming_Pcode]],\"Yes\",\"No\")","v":"No"},{"$f":"IF(IDPs[[#This Row],[Dis_Pcode]]=IDPs[[#This Row],[Dis_Coming_Pcode]],\"Yes\",\"No\")","v":"No"}]
["2024-02-08","2024-02-08","YE18","Al Hodeidah","الحديدة","YE1820","Al Khukhah","الخوخة","IDPs","Rapid Tracking","2024-02-04","YE18","Al Hodeidah","الحديدة","YE1814","Ad Durayhimi","الدريهمي","Economic Reasons","Other economic reason","No",null,null,1,0,0,0,0,0,0,0,0,1,0,{"$f":"IF(OR(COUNTIF(WestCoast[],IDPs[[#This Row],[Dis_Pcode]])>=1,COUNTIF(WestCoast[],#REF!)>=1),\"Yes\",\"No\")","v":"Yes"},{"$f":"IF(IDPs[[#This Row],[Gov_Pcode]]=IDPs[[#This Row],[Gov_Coming_Pcode]],\"Yes\",\"No\")","v":"Yes"},{"$f":"IF(IDPs[[#This Row],[Dis_Pcode]]=IDPs[[#This Row],[Dis_Coming_Pcode]],\"Yes\",\"No\")","v":"No"}]
["2024-02-10","2024-02-06","YE26","Marib","مأرب","YE2609","Harib","حريب","IDPs","Rapid Tracking","2024-02-04","YE11","Ibb","إب","YE1109","Hazm Al Odayn","حزم العدين","Economic Reasons","Unemployment / Salary Cut","No",null,null,1,0,0,0,1,0,0,0,0,0,0,{"$f":"IF(OR(COUNTIF(WestCoast[],IDPs[[#This Row],[Dis_Pcode]])>=1,COUNTIF(WestCoast[],#REF!)>=1),\"Yes\",\"No\")","v":"No"},{"$f":"IF(IDPs[[#This Row],[Gov_Pcode]]=IDPs[[#This Row],[Gov_Coming_Pcode]],\"Yes\",\"No\")","v":"No"},{"$f":"IF(IDPs[[#This Row],[Dis_Pcode]]=IDPs[[#This Row],[Dis_Coming_Pcode]],\"Yes\",\"No\")","v":"No"}]
["2024-02-10","2024-02-07","YE26","Marib","مأرب","YE2612","Marib City","مدينة مأرب","IDPs","Rapid Tracking","2024-02-04","YE15","Taiz","تعز","YE1505","Al Makha","المخا","Conflict Reasons","General Insecure Conditions","No",null,null,1,0,0,0,1,0,0,0,0,0,0,{"$f":"IF(OR(COUNTIF(WestCoast[],IDPs[[#This Row],[Dis_Pcode]])>=1,COUNTIF(WestCoast[],#REF!)>=1),\"Yes\",\"No\")","v":"No"},{"$f":"IF(IDPs[[#This Row],[Gov_Pcode]]=IDPs[[#This Row],[Gov_Coming_Pcode]],\"Yes\",\"No\")","v":"No"},{"$f":"IF(IDPs[[#This Row],[Dis_Pcode]]=IDPs[[#This Row],[Dis_Coming_Pcode]],\"Yes\",\"No\")","v":"No"}]
["2024-02-10","2024-02-08","YE26","Marib","مأرب","YE2612","Marib City","مدينة مأرب","IDPs","Rapid Tracking","2024-02-04","YE11","Ibb","إب","YE1107","Al Makhadir","المخادر","Economic Reasons","Unemployment / Salary Cut","No",null,null,1,0,0,0,1,0,0,0,0,0,0,{"$f":"IF(OR(COUNTIF(WestCoast[],IDPs[[#This Row],[Dis_Pcode]])>=1,COUNTIF(WestCoast[],#REF!)>=1),\"Yes\",\"No\")","v":"No"},{"$f":"IF(IDPs[[#This Row],[Gov_Pcode]]=IDPs[[#This Row],[Gov_Coming_Pcode]],\"Yes\",\"No\")","v":"No"},{"$f":"IF(IDPs[[#This Row],[Dis_Pcode]]=IDPs[[#This Row],[Dis_Coming_Pcode]],\"Yes\",\"No\")","v":"No"}]
["2024-02-10","2024-02-08","YE26","Marib","مأرب","YE2613","Marib","مأرب","IDPs","Rapid Tracking","2024-02-04","YE23","Sanaa","صنعاء","YE2314","Bani Dabyan","بني ضبيان","Economic Reasons","Unemployment / Salary Cut","No",null,null,1,0,0,0,0,0,0,1,0,0,0,{"$f":"IF(OR(COUNTIF(WestCoast[],IDPs[[#This Row],[Dis_Pcode]])>=1,COUNTIF(WestCoast[],#REF!)>=1),\"Yes\",\"No\")","v":"No"},{"$f":"IF(IDPs[[#This Row],[Gov_Pcode]]=IDPs[[#This Row],[Gov_Coming_Pcode]],\"Yes\",\"No\")","v":"No"},{"$f":"IF(IDPs[[#This Row],[Dis_Pcode]]=IDPs[[#This Row],[Dis_Coming_Pcode]],\"Yes\",\"No\")","v":"No"}]
["2024-02-08","2024-02-08","YE18","Al Hodeidah","الحديدة","YE1820","Al Khukhah","الخوخة","IDPs","Rapid Tracking","2024-02-05","YE18","Al Hodeidah","الحديدة","YE1814","Ad Durayhimi","الدريهمي","Conflict Reasons","General Insecure Conditions","No",null,null,1,0,0,0,0,0,0,1,0,0,0,{"$f":"IF(OR(COUNTIF(WestCoast[],IDPs[[#This Row],[Dis_Pcode]])>=1,COUNTIF(WestCoast[],#REF!)>=1),\"Yes\",\"No\")","v":"Yes"},{"$f":"IF(IDPs[[#This Row],[Gov_Pcode]]=IDPs[[#This Row],[Gov_Coming_Pcode]],\"Yes\",\"No\")","v":"Yes"},{"$f":"IF(IDPs[[#This Row],[Dis_Pcode]]=IDPs[[#This Row],[Dis_Coming_Pcode]],\"Yes\",\"No\")","v":"No"}]
["2024-02-08","2024-02-08","YE18","Al Hodeidah","الحديدة","YE1820","Al Khukhah","الخوخة","IDPs","Rapid Tracking","2024-02-05","YE18","Al Hodeidah","الحديدة","YE1826","At Tuhayta","التحيتا","Conflict Reasons","Combat / Shelling","Yes","Yes","Yes",1,0,1,0,0,0,0,0,0,0,0,{"$f":"IF(OR(COUNTIF(WestCoast[],IDPs[[#This Row],[Dis_Pcode]])>=1,COUNTIF(WestCoast[],#REF!)>=1),\"Yes\",\"No\")","v":"Yes"},{"$f":"IF(IDPs[[#This Row],[Gov_Pcode]]=IDPs[[#This Row],[Gov_Coming_Pcode]],\"Yes\",\"No\")","v":"Yes"},{"$f":"IF(IDPs[[#This Row],[Dis_Pcode]]=IDPs[[#This Row],[Dis_Coming_Pcode]],\"Yes\",\"No\")","v":"No"}]
["2024-02-08","2024-02-08","YE18","Al Hodeidah","الحديدة","YE1820","Al Khukhah","الخوخة","IDPs","Rapid Tracking","2024-02-05","YE18","Al Hodeidah","الحديدة","YE1826","At Tuhayta","التحيتا","Conflict Reasons","Combat / Shelling","Yes","Yes","Yes",2,0,2,0,0,0,0,0,0,0,0,{"$f":"IF(OR(COUNTIF(WestCoast[],IDPs[[#This Row],[Dis_Pcode]])>=1,COUNTIF(WestCoast[],#REF!)>=1),\"Yes\",\"No\")","v":"Yes"},{"$f":"IF(IDPs[[#This Row],[Gov_Pcode]]=IDPs[[#This Row],[Gov_Coming_Pcode]],\"Yes\",\"No\")","v":"Yes"},{"$f":"IF(IDPs[[#This Row],[Dis_Pcode]]=IDPs[[#This Row],[Dis_Coming_Pcode]],\"Yes\",\"No\")","v":"No"}]
["2024-02-10","2024-02-06","YE26","Marib","مأرب","YE2612","Marib City","مدينة مأرب","IDPs","Rapid Tracking","2024-02-05","YE18","Al Hodeidah","الحديدة","YE1823","Al Hali","الحالي","Economic Reasons","Unemployment / Salary Cut","No",null,null,1,0,0,0,0,1,0,0,0,0,0,{"$f":"IF(OR(COUNTIF(WestCoast[],IDPs[[#This Row],[Dis_Pcode]])>=1,COUNTIF(WestCoast[],#REF!)>=1),\"Yes\",\"No\")","v":"No"},{"$f":"IF(IDPs[[#This Row],[Gov_Pcode]]=IDPs[[#This Row],[Gov_Coming_Pcode]],\"Yes\",\"No\")","v":"No"},{"$f":"IF(IDPs[[#This Row],[Dis_Pcode]]=IDPs[[#This Row],[Dis_Coming_Pcode]],\"Yes\",\"No\")","v":"No"}]
["2024-02-10","2024-02-10","YE15","Taiz","تعز","YE1517","Al Mudhaffar","المظفر","IDPs","Rapid Tracking","2024-02-05","YE15","Taiz","تعز","YE1520","At Taiziyah","التعزية","Conflict Reasons","General Insecure Conditions","No",null,null,1,0,1,0,0,0,0,0,0,0,0,{"$f":"IF(OR(COUNTIF(WestCoast[],IDPs[[#This Row],[Dis_Pcode]])>=1,COUNTIF(WestCoast[],#REF!)>=1),\"Yes\",\"No\")","v":"No"},{"$f":"IF(IDPs[[#This Row],[Gov_Pcode]]=IDPs[[#This Row],[Gov_Coming_Pcode]],\"Yes\",\"No\")","v":"Yes"},{"$f":"IF(IDPs[[#This Row],[Dis_Pcode]]=IDPs[[#This Row],[Dis_Coming_Pcode]],\"Yes\",\"No\")","v":"No"}]
["2024-02-08","2024-02-08","YE18","Al Hodeidah","الحديدة","YE1820","Al Khukhah","الخوخة","IDPs","Rapid Tracking","2024-02-06","YE18","Al Hodeidah","الحديدة","YE1825","Al Jarrahi","الجراحي","Conflict Reasons","Combat / Shelling","Yes","Yes","Yes",1,0,0,0,0,0,0,1,0,0,0,{"$f":"IF(OR(COUNTIF(WestCoast[],IDPs[[#This Row],[Dis_Pcode]])>=1,COUNTIF(WestCoast[],#REF!)>=1),\"Yes\",\"No\")","v":"Yes"},{"$f":"IF(IDPs[[#This Row],[Gov_Pcode]]=IDPs[[#This Row],[Gov_Coming_Pcode]],\"Yes\",\"No\")","v":"Yes"},{"$f":"IF(IDPs[[#This Row],[Dis_Pcode]]=IDPs[[#This Row],[Dis_Coming_Pcode]],\"Yes\",\"No\")","v":"No"}]
["2024-02-10","2024-02-10","YE18","Al Hodeidah","الحديدة","YE1819","Hays","حيس","IDPs","Rapid Tracking","2024-02-06","YE18","Al Hodeidah","الحديدة","YE1819","Hays","حيس","Conflict Reasons","Combat / Shelling","No",null,null,3,0,1,0,0,1,0,1,0,0,0,{"$f":"IF(OR(COUNTIF(WestCoast[],IDPs[[#This Row],[Dis_Pcode]])>=1,COUNTIF(WestCoast[],#REF!)>=1),\"Yes\",\"No\")","v":"Yes"},{"$f":"IF(IDPs[[#This Row],[Gov_Pcode]]=IDPs[[#This Row],[Gov_Coming_Pcode]],\"Yes\",\"No\")","v":"Yes"},{"$f":"IF(IDPs[[#This Row],[Dis_Pcode]]=IDPs[[#This Row],[Dis_Coming_Pcode]],\"Yes\",\"No\")","v":"Yes"}]
["2024-02-10","2024-02-08","YE26","Marib","مأرب","YE2612","Marib City","مدينة مأرب","IDPs","Rapid Tracking","2024-02-06","YE15","Taiz","تعز","YE1501","Mawiyah","ماوية","Economic Reasons","Increasing market prices","No",null,null,1,0,1,0,0,0,0,0,0,0,0,{"$f":"IF(OR(COUNTIF(WestCoast[],IDPs[[#This Row],[Dis_Pcode]])>=1,COUNTIF(WestCoast[],#REF!)>=1),\"Yes\",\"No\")","v":"No"},{"$f":"IF(IDPs[[#This Row],[Gov_Pcode]]=IDPs[[#This Row],[Gov_Coming_Pcode]],\"Yes\",\"No\")","v":"No"},{"$f":"IF(IDPs[[#This Row],[Dis_Pcode]]=IDPs[[#This Row],[Dis_Coming_Pcode]],\"Yes\",\"No\")","v":"No"}]
["2024-02-10","2024-02-08","YE26","Marib","مأرب","YE2612","Marib City","مدينة مأرب","IDPs","Rapid Tracking","2024-02-06","YE23","Sanaa","صنعاء","YE2302","Arhab","أرحب","Conflict Reasons","General Insecure Conditions","No",null,null,1,0,0,0,0,1,0,0,0,0,0,{"$f":"IF(OR(COUNTIF(WestCoast[],IDPs[[#This Row],[Dis_Pcode]])>=1,COUNTIF(WestCoast[],#REF!)>=1),\"Yes\",\"No\")","v":"No"},{"$f":"IF(IDPs[[#This Row],[Gov_Pcode]]=IDPs[[#This Row],[Gov_Coming_Pcode]],\"Yes\",\"No\")","v":"No"},{"$f":"IF(IDPs[[#This Row],[Dis_Pcode]]=IDPs[[#This Row],[Dis_Coming_Pcode]],\"Yes\",\"No\")","v":"No"}]
["2024-02-10","2024-02-08","YE26","Marib","مأرب","YE2612","Marib City","مدينة مأرب","IDPs","Rapid Tracking","2024-02-06","YE15","Taiz","تعز","YE1518","Al Qahirah","القاهرة","Economic Reasons","Unemployment / Salary Cut","No",null,null,1,0,0,0,1,0,0,0,0,0,0,{"$f":"IF(OR(COUNTIF(WestCoast[],IDPs[[#This Row],[Dis_Pcode]])>=1,COUNTIF(WestCoast[],#REF!)>=1),\"Yes\",\"No\")","v":"No"},{"$f":"IF(IDPs[[#This Row],[Gov_Pcode]]=IDPs[[#This Row],[Gov_Coming_Pcode]],\"Yes\",\"No\")","v":"No"},{"$f":"IF(IDPs[[#This Row],[Dis_Pcode]]=IDPs[[#This Row],[Dis_Coming_Pcode]],\"Yes\",\"No\")","v":"No"}]
["2024-02-10","2024-02-10","YE30","Ad Dali","الضالع","YE3008","Al Azariq","الأزارق","IDPs","Rapid Tracking","2024-02-08","YE13","Sanaa City","أمانة العاصمة","YE1309","Ath Thawrah","الثورة","Conflict Reasons","General Insecure Conditions","No",null,null,1,0,0,0,0,0,0,1,0,0,0,{"$f":"IF(OR(COUNTIF(WestCoast[],IDPs[[#This Row],[Dis_Pcode]])>=1,COUNTIF(WestCoast[],#REF!)>=1),\"Yes\",\"No\")","v":"No"},{"$f":"IF(IDPs[[#This Row],[Gov_Pcode]]=IDPs[[#This Row],[Gov_Coming_Pcode]],\"Yes\",\"No\")","v":"No"},{"$f":"IF(IDPs[[#This Row],[Dis_Pcode]]=IDPs[[#This Row],[Dis_Coming_Pcode]],\"Yes\",\"No\")","v":"No"}]
["2024-02-12","2024-02-11","YE15","Taiz","تعز","YE1519","Salah","صالة","IDPs","Rapid Tracking","2024-02-03","YE15","Taiz","تعز","YE1510","Sabir Al Mawadim","صبر الموادم","Conflict Reasons","General Insecure Conditions","No",null,null,3,0,0,0,3,0,0,0,0,0,0,{"$f":"IF(OR(COUNTIF(WestCoast[],IDPs[[#This Row],[Dis_Pcode]])>=1,COUNTIF(WestCoast[],#REF!)>=1),\"Yes\",\"No\")","v":"No"},{"$f":"IF(IDPs[[#This Row],[Gov_Pcode]]=IDPs[[#This Row],[Gov_Coming_Pcode]],\"Yes\",\"No\")","v":"Yes"},{"$f":"IF(IDPs[[#This Row],[Dis_Pcode]]=IDPs[[#This Row],[Dis_Coming_Pcode]],\"Yes\",\"No\")","v":"No"}]
["2024-02-12","2024-02-12","YE15","Taiz","تعز","YE1508","Jabal Habashi","جبل حبشي","IDPs","Rapid Tracking","2024-02-04","YE15","Taiz","تعز","YE1504","Maqbanah","مقبنة","Conflict Reasons","Combat / Shelling","No",null,null,6,0,0,0,6,0,0,0,0,0,0,{"$f":"IF(OR(COUNTIF(WestCoast[],IDPs[[#This Row],[Dis_Pcode]])>=1,COUNTIF(WestCoast[],#REF!)>=1),\"Yes\",\"No\")","v":"No"},{"$f":"IF(IDPs[[#This Row],[Gov_Pcode]]=IDPs[[#This Row],[Gov_Coming_Pcode]],\"Yes\",\"No\")","v":"Yes"},{"$f":"IF(IDPs[[#This Row],[Dis_Pcode]]=IDPs[[#This Row],[Dis_Coming_Pcode]],\"Yes\",\"No\")","v":"No"}]
["2024-02-13","2024-02-13","YE18","Al Hodeidah","الحديدة","YE1820","Al Khukhah","الخوخة","IDPs","Rapid Tracking","2024-02-04","YE18","Al Hodeidah","الحديدة","YE1824","Zabid","زبيد","Economic Reasons","Other economic reason","No",null,null,1,0,1,0,0,0,0,0,0,0,0,{"$f":"IF(OR(COUNTIF(WestCoast[],IDPs[[#This Row],[Dis_Pcode]])>=1,COUNTIF(WestCoast[],#REF!)>=1),\"Yes\",\"No\")","v":"Yes"},{"$f":"IF(IDPs[[#This Row],[Gov_Pcode]]=IDPs[[#This Row],[Gov_Coming_Pcode]],\"Yes\",\"No\")","v":"Yes"},{"$f":"IF(IDPs[[#This Row],[Dis_Pcode]]=IDPs[[#This Row],[Dis_Coming_Pcode]],\"Yes\",\"No\")","v":"No"}]
["2024-02-12","2024-02-12","YE15","Taiz","تعز","YE1508","Jabal Habashi","جبل حبشي","IDPs","Rapid Tracking","2024-02-05","YE15","Taiz","تعز","YE1504","Maqbanah","مقبنة","Conflict Reasons","Combat / Shelling","No",null,null,7,0,0,0,7,0,0,0,0,0,0,{"$f":"IF(OR(COUNTIF(WestCoast[],IDPs[[#This Row],[Dis_Pcode]])>=1,COUNTIF(WestCoast[],#REF!)>=1),\"Yes\",\"No\")","v":"No"},{"$f":"IF(IDPs[[#This Row],[Gov_Pcode]]=IDPs[[#This Row],[Gov_Coming_Pcode]],\"Yes\",\"No\")","v":"Yes"},{"$f":"IF(IDPs[[#This Row],[Dis_Pcode]]=IDPs[[#This Row],[Dis_Coming_Pcode]],\"Yes\",\"No\")","v":"No"}]
["2024-02-13","2024-02-13","YE18","Al Hodeidah","الحديدة","YE1820","Al Khukhah","الخوخة","IDPs","Rapid Tracking","2024-02-05","YE18","Al Hodeidah","الحديدة","YE1826","At Tuhayta","التحيتا","Conflict Reasons","Combat / Shelling","Yes","Yes","Yes",4,0,2,0,0,0,0,2,0,0,0,{"$f":"IF(OR(COUNTIF(WestCoast[],IDPs[[#This Row],[Dis_Pcode]])>=1,COUNTIF(WestCoast[],#REF!)>=1),\"Yes\",\"No\")","v":"Yes"},{"$f":"IF(IDPs[[#This Row],[Gov_Pcode]]=IDPs[[#This Row],[Gov_Coming_Pcode]],\"Yes\",\"No\")","v":"Yes"},{"$f":"IF(IDPs[[#This Row],[Dis_Pcode]]=IDPs[[#This Row],[Dis_Coming_Pcode]],\"Yes\",\"No\")","v":"No"}]
["2024-02-11","2024-02-11","YE18","Al Hodeidah","الحديدة","YE1819","Hays","حيس","IDPs","Rapid Tracking","2024-02-07","YE15","Taiz","تعز","YE1504","Maqbanah","مقبنة","Conflict Reasons","Combat / Shelling","No",null,null,2,0,1,0,0,0,0,1,0,0,0,{"$f":"IF(OR(COUNTIF(WestCoast[],IDPs[[#This Row],[Dis_Pcode]])>=1,COUNTIF(WestCoast[],#REF!)>=1),\"Yes\",\"No\")","v":"Yes"},{"$f":"IF(IDPs[[#This Row],[Gov_Pcode]]=IDPs[[#This Row],[Gov_Coming_Pcode]],\"Yes\",\"No\")","v":"No"},{"$f":"IF(IDPs[[#This Row],[Dis_Pcode]]=IDPs[[#This Row],[Dis_Coming_Pcode]],\"Yes\",\"No\")","v":"No"}]
["2024-02-11","2024-02-11","YE18","Al Hodeidah","الحديدة","YE1819","Hays","حيس","IDPs","Rapid Tracking","2024-02-07","YE18","Al Hodeidah","الحديدة","YE1826","At Tuhayta","التحيتا","Conflict Reasons","Combat / Shelling","No",null,null,1,0,0,0,0,0,0,1,0,0,0,{"$f":"IF(OR(COUNTIF(WestCoast[],IDPs[[#This Row],[Dis_Pcode]])>=1,COUNTIF(WestCoast[],#REF!)>=1),\"Yes\",\"No\")","v":"Yes"},{"$f":"IF(IDPs[[#This Row],[Gov_Pcode]]=IDPs[[#This Row],[Gov_Coming_Pcode]],\"Yes\",\"No\")","v":"Yes"},{"$f":"IF(IDPs[[#This Row],[Dis_Pcode]]=IDPs[[#This Row],[Dis_Coming_Pcode]],\"Yes\",\"No\")","v":"No"}]
["2024-02-12","2024-02-12","YE15","Taiz","تعز","YE1508","Jabal Habashi","جبل حبشي","IDPs","Rapid Tracking","2024-02-07","YE18","Al Hodeidah","الحديدة","YE1819","Hays","حيس","Conflict Reasons","Combat / Shelling","No",null,null,2,0,0,0,2,0,0,0,0,0,0,{"$f":"IF(OR(COUNTIF(WestCoast[],IDPs[[#This Row],[Dis_Pcode]])>=1,COUNTIF(WestCoast[],#REF!)>=1),\"Yes\",\"No\")","v":"No"},{"$f":"IF(IDPs[[#This Row],[Gov_Pcode]]=IDPs[[#This Row],[Gov_Coming_Pcode]],\"Yes\",\"No\")","v":"No"},{"$f":"IF(IDPs[[#This Row],[Dis_Pcode]]=IDPs[[#This Row],[Dis_Coming_Pcode]],\"Yes\",\"No\")","v":"No"}]
["2024-02-12","2024-02-12","YE15","Taiz","تعز","YE1508","Jabal Habashi","جبل حبشي","IDPs","Rapid Tracking","2024-02-07","YE15","Taiz","تعز","YE1508","Jabal Habashi","جبل حبشي","Conflict Reasons","Combat / Shelling","No",null,null,1,0,0,0,1,0,0,0,0,0,0,{"$f":"IF(OR(COUNTIF(WestCoast[],IDPs[[#This Row],[Dis_Pcode]])>=1,COUNTIF(WestCoast[],#REF!)>=1),\"Yes\",\"No\")","v":"No"},{"$f":"IF(IDPs[[#This Row],[Gov_Pcode]]=IDPs[[#This Row],[Gov_Coming_Pcode]],\"Yes\",\"No\")","v":"Yes"},{"$f":"IF(IDPs[[#This Row],[Dis_Pcode]]=IDPs[[#This Row],[Dis_Coming_Pcode]],\"Yes\",\"No\")","v":"Yes"}]
["2024-02-16","2024-02-11","YE26","Marib","مأرب","YE2612","Marib City","مدينة مأرب","IDPs","Rapid Tracking","2024-02-07","YE16","Al Jawf","الجوف","YE1606","Al Mutun","المتون","Economic Reasons","Unemployment / Salary Cut","No",null,null,2,0,1,0,0,1,0,0,0,0,0,{"$f":"IF(OR(COUNTIF(WestCoast[],IDPs[[#This Row],[Dis_Pcode]])>=1,COUNTIF(WestCoast[],#REF!)>=1),\"Yes\",\"No\")","v":"No"},{"$f":"IF(IDPs[[#This Row],[Gov_Pcode]]=IDPs[[#This Row],[Gov_Coming_Pcode]],\"Yes\",\"No\")","v":"No"},{"$f":"IF(IDPs[[#This Row],[Dis_Pcode]]=IDPs[[#This Row],[Dis_Coming_Pcode]],\"Yes\",\"No\")","v":"No"}]
["2024-02-16","2024-02-12","YE26","Marib","مأرب","YE2612","Marib City","مدينة مأرب","IDPs","Rapid Tracking","2024-02-07","YE15","Taiz","تعز","YE1502","Sharab As Salam","شرعب السلام","Economic Reasons","Unemployment / Salary Cut","No",null,null,1,0,1,0,0,0,0,0,0,0,0,{"$f":"IF(OR(COUNTIF(WestCoast[],IDPs[[#This Row],[Dis_Pcode]])>=1,COUNTIF(WestCoast[],#REF!)>=1),\"Yes\",\"No\")","v":"No"},{"$f":"IF(IDPs[[#This Row],[Gov_Pcode]]=IDPs[[#This Row],[Gov_Coming_Pcode]],\"Yes\",\"No\")","v":"No"},{"$f":"IF(IDPs[[#This Row],[Dis_Pcode]]=IDPs[[#This Row],[Dis_Coming_Pcode]],\"Yes\",\"No\")","v":"No"}]
["2024-02-16","2024-02-11","YE26","Marib","مأرب","YE2612","Marib City","مدينة مأرب","IDPs","Rapid Tracking","2024-02-08","YE26","Marib","مأرب","YE2603","Madghal Al Jidan","مدغل الجدعان","Economic Reasons","Unemployment / Salary Cut","No",null,null,2,0,1,1,0,0,0,0,0,0,0,{"$f":"IF(OR(COUNTIF(WestCoast[],IDPs[[#This Row],[Dis_Pcode]])>=1,COUNTIF(WestCoast[],#REF!)>=1),\"Yes\",\"No\")","v":"No"},{"$f":"IF(IDPs[[#This Row],[Gov_Pcode]]=IDPs[[#This Row],[Gov_Coming_Pcode]],\"Yes\",\"No\")","v":"Yes"},{"$f":"IF(IDPs[[#This Row],[Dis_Pcode]]=IDPs[[#This Row],[Dis_Coming_Pcode]],\"Yes\",\"No\")","v":"No"}]
["2024-02-16","2024-02-12","YE26","Marib","مأرب","YE2613","Marib","مأرب","IDPs","Rapid Tracking","2024-02-08","YE18","Al Hodeidah","الحديدة","YE1815","As Sukhnah","السخنة","Economic Reasons","Other economic reason","No",null,null,1,0,0,0,0,0,0,0,0,1,0,{"$f":"IF(OR(COUNTIF(WestCoast[],IDPs[[#This Row],[Dis_Pcode]])>=1,COUNTIF(WestCoast[],#REF!)>=1),\"Yes\",\"No\")","v":"No"},{"$f":"IF(IDPs[[#This Row],[Gov_Pcode]]=IDPs[[#This Row],[Gov_Coming_Pcode]],\"Yes\",\"No\")","v":"No"},{"$f":"IF(IDPs[[#This Row],[Dis_Pcode]]=IDPs[[#This Row],[Dis_Coming_Pcode]],\"Yes\",\"No\")","v":"No"}]
["2024-02-16","2024-02-13","YE26","Marib","مأرب","YE2612","Marib City","مدينة مأرب","IDPs","Rapid Tracking","2024-02-08","YE20","Dhamar","ذمار","YE2001","Al Hada","الحداء","Economic Reasons","Unemployment / Salary Cut","No",null,null,1,0,0,0,0,0,0,0,0,1,0,{"$f":"IF(OR(COUNTIF(WestCoast[],IDPs[[#This Row],[Dis_Pcode]])>=1,COUNTIF(WestCoast[],#REF!)>=1),\"Yes\",\"No\")","v":"No"},{"$f":"IF(IDPs[[#This Row],[Gov_Pcode]]=IDPs[[#This Row],[Gov_Coming_Pcode]],\"Yes\",\"No\")","v":"No"},{"$f":"IF(IDPs[[#This Row],[Dis_Pcode]]=IDPs[[#This Row],[Dis_Coming_Pcode]],\"Yes\",\"No\")","v":"No"}]
["2024-02-11","2024-02-11","YE18","Al Hodeidah","الحديدة","YE1819","Hays","حيس","IDPs","Rapid Tracking","2024-02-09","YE18","Al Hodeidah","الحديدة","YE1818","Jabal Ras","جبل راس","Conflict Reasons","Combat / Shelling","No",null,null,1,0,0,0,0,0,0,1,0,0,0,{"$f":"IF(OR(COUNTIF(WestCoast[],IDPs[[#This Row],[Dis_Pcode]])>=1,COUNTIF(WestCoast[],#REF!)>=1),\"Yes\",\"No\")","v":"Yes"},{"$f":"IF(IDPs[[#This Row],[Gov_Pcode]]=IDPs[[#This Row],[Gov_Coming_Pcode]],\"Yes\",\"No\")","v":"Yes"},{"$f":"IF(IDPs[[#This Row],[Dis_Pcode]]=IDPs[[#This Row],[Dis_Coming_Pcode]],\"Yes\",\"No\")","v":"No"}]
["2024-02-12","2024-02-11","YE15","Taiz","تعز","YE1521","Al Maafer","المعافر","IDPs","Rapid Tracking","2024-02-09","YE15","Taiz","تعز","YE1508","Jabal Habashi","جبل حبشي","Conflict Reasons","General Insecure Conditions","Yes","No",null,1,0,0,0,1,0,0,0,0,0,0,{"$f":"IF(OR(COUNTIF(WestCoast[],IDPs[[#This Row],[Dis_Pcode]])>=1,COUNTIF(WestCoast[],#REF!)>=1),\"Yes\",\"No\")","v":"No"},{"$f":"IF(IDPs[[#This Row],[Gov_Pcode]]=IDPs[[#This Row],[Gov_Coming_Pcode]],\"Yes\",\"No\")","v":"Yes"},{"$f":"IF(IDPs[[#This Row],[Dis_Pcode]]=IDPs[[#This Row],[Dis_Coming_Pcode]],\"Yes\",\"No\")","v":"No"}]
["2024-02-16","2024-02-11","YE26","Marib","مأرب","YE2612","Marib City","مدينة مأرب","IDPs","Rapid Tracking","2024-02-09","YE15","Taiz","تعز","YE1504","Maqbanah","مقبنة","Economic Reasons","Unemployment / Salary Cut","No",null,null,1,0,1,0,0,0,0,0,0,0,0,{"$f":"IF(OR(COUNTIF(WestCoast[],IDPs[[#This Row],[Dis_Pcode]])>=1,COUNTIF(WestCoast[],#REF!)>=1),\"Yes\",\"No\")","v":"No"},{"$f":"IF(IDPs[[#This Row],[Gov_Pcode]]=IDPs[[#This Row],[Gov_Coming_Pcode]],\"Yes\",\"No\")","v":"No"},{"$f":"IF(IDPs[[#This Row],[Dis_Pcode]]=IDPs[[#This Row],[Dis_Coming_Pcode]],\"Yes\",\"No\")","v":"No"}]
["2024-02-16","2024-02-11","YE26","Marib","مأرب","YE2612","Marib City","مدينة مأرب","IDPs","Rapid Tracking","2024-02-09","YE12","Abyan","أبين","YE1209","Ahwar","أحور","Economic Reasons","Unemployment / Salary Cut","No",null,null,1,0,1,0,0,0,0,0,0,0,0,{"$f":"IF(OR(COUNTIF(WestCoast[],IDPs[[#This Row],[Dis_Pcode]])>=1,COUNTIF(WestCoast[],#REF!)>=1),\"Yes\",\"No\")","v":"No"},{"$f":"IF(IDPs[[#This Row],[Gov_Pcode]]=IDPs[[#This Row],[Gov_Coming_Pcode]],\"Yes\",\"No\")","v":"No"},{"$f":"IF(IDPs[[#This Row],[Dis_Pcode]]=IDPs[[#This Row],[Dis_Coming_Pcode]],\"Yes\",\"No\")","v":"No"}]
["2024-02-16","2024-02-12","YE26","Marib","مأرب","YE2609","Harib","حريب","IDPs","Rapid Tracking","2024-02-09","YE26","Marib","مأرب","YE2609","Harib","حريب","Conflict Reasons","Combat / Shelling","No",null,null,4,0,0,0,2,1,0,1,0,0,0,{"$f":"IF(OR(COUNTIF(WestCoast[],IDPs[[#This Row],[Dis_Pcode]])>=1,COUNTIF(WestCoast[],#REF!)>=1),\"Yes\",\"No\")","v":"No"},{"$f":"IF(IDPs[[#This Row],[Gov_Pcode]]=IDPs[[#This Row],[Gov_Coming_Pcode]],\"Yes\",\"No\")","v":"Yes"},{"$f":"IF(IDPs[[#This Row],[Dis_Pcode]]=IDPs[[#This Row],[Dis_Coming_Pcode]],\"Yes\",\"No\")","v":"Yes"}]
["2024-02-16","2024-02-12","YE26","Marib","مأرب","YE2612","Marib City","مدينة مأرب","IDPs","Rapid Tracking","2024-02-09","YE20","Dhamar","ذمار","YE2002","Jahran","جهران","Conflict Reasons","General Insecure Conditions","No",null,null,1,0,1,0,0,0,0,0,0,0,0,{"$f":"IF(OR(COUNTIF(WestCoast[],IDPs[[#This Row],[Dis_Pcode]])>=1,COUNTIF(WestCoast[],#REF!)>=1),\"Yes\",\"No\")","v":"No"},{"$f":"IF(IDPs[[#This Row],[Gov_Pcode]]=IDPs[[#This Row],[Gov_Coming_Pcode]],\"Yes\",\"No\")","v":"No"},{"$f":"IF(IDPs[[#This Row],[Dis_Pcode]]=IDPs[[#This Row],[Dis_Coming_Pcode]],\"Yes\",\"No\")","v":"No"}]
["2024-02-16","2024-02-14","YE26","Marib","مأرب","YE2613","Marib","مأرب","IDPs","Rapid Tracking","2024-02-09","YE17","Hajjah","حجة","YE1709","Kuhlan Ash Sharaf","كحلان الشرف","Economic Reasons","Other economic reason","No",null,null,1,0,1,0,0,0,0,0,0,0,0,{"$f":"IF(OR(COUNTIF(WestCoast[],IDPs[[#This Row],[Dis_Pcode]])>=1,COUNTIF(WestCoast[],#REF!)>=1),\"Yes\",\"No\")","v":"No"},{"$f":"IF(IDPs[[#This Row],[Gov_Pcode]]=IDPs[[#This Row],[Gov_Coming_Pcode]],\"Yes\",\"No\")","v":"No"},{"$f":"IF(IDPs[[#This Row],[Dis_Pcode]]=IDPs[[#This Row],[Dis_Coming_Pcode]],\"Yes\",\"No\")","v":"No"}]
["2024-02-16","2024-02-12","YE26","Marib","مأرب","YE2609","Harib","حريب","IDPs","Rapid Tracking","2024-02-10","YE26","Marib","مأرب","YE2609","Harib","حريب","Conflict Reasons","Combat / Shelling","No",null,null,3,0,0,0,1,1,0,1,0,0,0,{"$f":"IF(OR(COUNTIF(WestCoast[],IDPs[[#This Row],[Dis_Pcode]])>=1,COUNTIF(WestCoast[],#REF!)>=1),\"Yes\",\"No\")","v":"No"},{"$f":"IF(IDPs[[#This Row],[Gov_Pcode]]=IDPs[[#This Row],[Gov_Coming_Pcode]],\"Yes\",\"No\")","v":"Yes"},{"$f":"IF(IDPs[[#This Row],[Dis_Pcode]]=IDPs[[#This Row],[Dis_Coming_Pcode]],\"Yes\",\"No\")","v":"Yes"}]
["2024-02-16","2024-02-12","YE26","Marib","مأرب","YE2612","Marib City","مدينة مأرب","IDPs","Rapid Tracking","2024-02-10","YE22","Sadah","صعدة","YE2201","Baqim","باقم","Conflict Reasons","General Insecure Conditions","No",null,null,1,0,0,0,1,0,0,0,0,0,0,{"$f":"IF(OR(COUNTIF(WestCoast[],IDPs[[#This Row],[Dis_Pcode]])>=1,COUNTIF(WestCoast[],#REF!)>=1),\"Yes\",\"No\")","v":"No"},{"$f":"IF(IDPs[[#This Row],[Gov_Pcode]]=IDPs[[#This Row],[Gov_Coming_Pcode]],\"Yes\",\"No\")","v":"No"},{"$f":"IF(IDPs[[#This Row],[Dis_Pcode]]=IDPs[[#This Row],[Dis_Coming_Pcode]],\"Yes\",\"No\")","v":"No"}]
["2024-02-16","2024-02-12","YE26","Marib","مأرب","YE2612","Marib City","مدينة مأرب","IDPs","Rapid Tracking","2024-02-10","YE31","Raymah","ريمة","YE3104","Mazhar","مزهر","Economic Reasons","Unemployment / Salary Cut","No",null,null,2,0,1,0,1,0,0,0,0,0,0,{"$f":"IF(OR(COUNTIF(WestCoast[],IDPs[[#This Row],[Dis_Pcode]])>=1,COUNTIF(WestCoast[],#REF!)>=1),\"Yes\",\"No\")","v":"No"},{"$f":"IF(IDPs[[#This Row],[Gov_Pcode]]=IDPs[[#This Row],[Gov_Coming_Pcode]],\"Yes\",\"No\")","v":"No"},{"$f":"IF(IDPs[[#This Row],[Dis_Pcode]]=IDPs[[#This Row],[Dis_Coming_Pcode]],\"Yes\",\"No\")","v":"No"}]
["2024-02-16","2024-02-14","YE26","Marib","مأرب","YE2613","Marib","مأرب","IDPs","Rapid Tracking","2024-02-10","YE26","Marib","مأرب","YE2609","Harib","حريب","Conflict Reasons","Combat / Shelling","No",null,null,1,0,0,0,0,0,0,1,0,0,0,{"$f":"IF(OR(COUNTIF(WestCoast[],IDPs[[#This Row],[Dis_Pcode]])>=1,COUNTIF(WestCoast[],#REF!)>=1),\"Yes\",\"No\")","v":"No"},{"$f":"IF(IDPs[[#This Row],[Gov_Pcode]]=IDPs[[#This Row],[Gov_Coming_Pcode]],\"Yes\",\"No\")","v":"Yes"},{"$f":"IF(IDPs[[#This Row],[Dis_Pcode]]=IDPs[[#This Row],[Dis_Coming_Pcode]],\"Yes\",\"No\")","v":"No"}]
["2024-02-16","2024-02-14","YE26","Marib","مأرب","YE2613","Marib","مأرب","IDPs","Rapid Tracking","2024-02-10","YE26","Marib","مأرب","YE2605","Bidbadah","بدبدة","Economic Reasons","Unemployment / Salary Cut","No",null,null,1,0,1,0,0,0,0,0,0,0,0,{"$f":"IF(OR(COUNTIF(WestCoast[],IDPs[[#This Row],[Dis_Pcode]])>=1,COUNTIF(WestCoast[],#REF!)>=1),\"Yes\",\"No\")","v":"No"},{"$f":"IF(IDPs[[#This Row],[Gov_Pcode]]=IDPs[[#This Row],[Gov_Coming_Pcode]],\"Yes\",\"No\")","v":"Yes"},{"$f":"IF(IDPs[[#This Row],[Dis_Pcode]]=IDPs[[#This Row],[Dis_Coming_Pcode]],\"Yes\",\"No\")","v":"No"}]
["2024-02-16","2024-02-15","YE26","Marib","مأرب","YE2612","Marib City","مدينة مأرب","IDPs","Rapid Tracking","2024-02-10","YE11","Ibb","إب","YE1120","Ibb","إب","Economic Reasons","Increasing market prices","No",null,null,1,0,1,0,0,0,0,0,0,0,0,{"$f":"IF(OR(COUNTIF(WestCoast[],IDPs[[#This Row],[Dis_Pcode]])>=1,COUNTIF(WestCoast[],#REF!)>=1),\"Yes\",\"No\")","v":"No"},{"$f":"IF(IDPs[[#This Row],[Gov_Pcode]]=IDPs[[#This Row],[Gov_Coming_Pcode]],\"Yes\",\"No\")","v":"No"},{"$f":"IF(IDPs[[#This Row],[Dis_Pcode]]=IDPs[[#This Row],[Dis_Coming_Pcode]],\"Yes\",\"No\")","v":"No"}]
["2024-02-16","2024-02-15","YE26","Marib","مأرب","YE2613","Marib","مأرب","IDPs","Rapid Tracking","2024-02-10","YE15","Taiz","تعز","YE1510","Sabir Al Mawadim","صبر الموادم","Economic Reasons","Other economic reason","No",null,null,1,0,0,0,0,0,0,1,0,0,0,{"$f":"IF(OR(COUNTIF(WestCoast[],IDPs[[#This Row],[Dis_Pcode]])>=1,COUNTIF(WestCoast[],#REF!)>=1),\"Yes\",\"No\")","v":"No"},{"$f":"IF(IDPs[[#This Row],[Gov_Pcode]]=IDPs[[#This Row],[Gov_Coming_Pcode]],\"Yes\",\"No\")","v":"No"},{"$f":"IF(IDPs[[#This Row],[Dis_Pcode]]=IDPs[[#This Row],[Dis_Coming_Pcode]],\"Yes\",\"No\")","v":"No"}]
["2024-02-16","2024-02-15","YE26","Marib","مأرب","YE2613","Marib","مأرب","IDPs","Rapid Tracking","2024-02-10","YE18","Al Hodeidah","الحديدة","YE1813","Al Marawiah","المراوعة","Economic Reasons","Other economic reason","No",null,null,2,0,2,0,0,0,0,0,0,0,0,{"$f":"IF(OR(COUNTIF(WestCoast[],IDPs[[#This Row],[Dis_Pcode]])>=1,COUNTIF(WestCoast[],#REF!)>=1),\"Yes\",\"No\")","v":"No"},{"$f":"IF(IDPs[[#This Row],[Gov_Pcode]]=IDPs[[#This Row],[Gov_Coming_Pcode]],\"Yes\",\"No\")","v":"No"},{"$f":"IF(IDPs[[#This Row],[Dis_Pcode]]=IDPs[[#This Row],[Dis_Coming_Pcode]],\"Yes\",\"No\")","v":"No"}]
["2024-02-15","2024-02-15","YE18","Al Hodeidah","الحديدة","YE1820","Al Khukhah","الخوخة","IDPs","Rapid Tracking","2024-02-11","YE15","Taiz","تعز","YE1504","Maqbanah","مقبنة","Conflict Reasons","Combat / Shelling","No",null,null,1,0,0,0,0,0,0,1,0,0,0,{"$f":"IF(OR(COUNTIF(WestCoast[],IDPs[[#This Row],[Dis_Pcode]])>=1,COUNTIF(WestCoast[],#REF!)>=1),\"Yes\",\"No\")","v":"Yes"},{"$f":"IF(IDPs[[#This Row],[Gov_Pcode]]=IDPs[[#This Row],[Gov_Coming_Pcode]],\"Yes\",\"No\")","v":"No"},{"$f":"IF(IDPs[[#This Row],[Dis_Pcode]]=IDPs[[#This Row],[Dis_Coming_Pcode]],\"Yes\",\"No\")","v":"No"}]
["2024-02-16","2024-02-12","YE26","Marib","مأرب","YE2612","Marib City","مدينة مأرب","IDPs","Rapid Tracking","2024-02-11","YE26","Marib","مأرب","YE2609","Harib","حريب","Conflict Reasons","Combat / Shelling","No",null,null,1,0,0,0,0,0,0,1,0,0,0,{"$f":"IF(OR(COUNTIF(WestCoast[],IDPs[[#This Row],[Dis_Pcode]])>=1,COUNTIF(WestCoast[],#REF!)>=1),\"Yes\",\"No\")","v":"No"},{"$f":"IF(IDPs[[#This Row],[Gov_Pcode]]=IDPs[[#This Row],[Gov_Coming_Pcode]],\"Yes\",\"No\")","v":"Yes"},{"$f":"IF(IDPs[[#This Row],[Dis_Pcode]]=IDPs[[#This Row],[Dis_Coming_Pcode]],\"Yes\",\"No\")","v":"No"}]
["2024-02-16","2024-02-13","YE26","Marib","مأرب","YE2612","Marib City","مدينة مأرب","IDPs","Rapid Tracking","2024-02-11","YE26","Marib","مأرب","YE2609","Harib","حريب","Conflict Reasons","Combat / Shelling","No",null,null,2,0,0,0,0,0,0,2,0,0,0,{"$f":"IF(OR(COUNTIF(WestCoast[],IDPs[[#This Row],[Dis_Pcode]])>=1,COUNTIF(WestCoast[],#REF!)>=1),\"Yes\",\"No\")","v":"No"},{"$f":"IF(IDPs[[#This Row],[Gov_Pcode]]=IDPs[[#This Row],[Gov_Coming_Pcode]],\"Yes\",\"No\")","v":"Yes"},{"$f":"IF(IDPs[[#This Row],[Dis_Pcode]]=IDPs[[#This Row],[Dis_Coming_Pcode]],\"Yes\",\"No\")","v":"No"}]
["2024-02-16","2024-02-15","YE26","Marib","مأرب","YE2609","Harib","حريب","IDPs","Rapid Tracking","2024-02-11","YE18","Al Hodeidah","الحديدة","YE1806","Al Qanawis","القناوص","Economic Reasons","Unemployment / Salary Cut","No",null,null,1,0,1,0,0,0,0,0,0,0,0,{"$f":"IF(OR(COUNTIF(WestCoast[],IDPs[[#This Row],[Dis_Pcode]])>=1,COUNTIF(WestCoast[],#REF!)>=1),\"Yes\",\"No\")","v":"No"},{"$f":"IF(IDPs[[#This Row],[Gov_Pcode]]=IDPs[[#This Row],[Gov_Coming_Pcode]],\"Yes\",\"No\")","v":"No"},{"$f":"IF(IDPs[[#This Row],[Dis_Pcode]]=IDPs[[#This Row],[Dis_Coming_Pcode]],\"Yes\",\"No\")","v":"No"}]
["2024-02-16","2024-02-15","YE26","Marib","مأرب","YE2613","Marib","مأرب","IDPs","Rapid Tracking","2024-02-11","YE26","Marib","مأرب","YE2601","Majzar","مجزر","Economic Reasons","Unemployment / Salary Cut","No",null,null,1,0,1,0,0,0,0,0,0,0,0,{"$f":"IF(OR(COUNTIF(WestCoast[],IDPs[[#This Row],[Dis_Pcode]])>=1,COUNTIF(WestCoast[],#REF!)>=1),\"Yes\",\"No\")","v":"No"},{"$f":"IF(IDPs[[#This Row],[Gov_Pcode]]=IDPs[[#This Row],[Gov_Coming_Pcode]],\"Yes\",\"No\")","v":"Yes"},{"$f":"IF(IDPs[[#This Row],[Dis_Pcode]]=IDPs[[#This Row],[Dis_Coming_Pcode]],\"Yes\",\"No\")","v":"No"}]
["2024-02-16","2024-02-15","YE26","Marib","مأرب","YE2613","Marib","مأرب","IDPs","Rapid Tracking","2024-02-11","YE21","Shabwah","شبوة","YE2107","Bayhan","بيحان","Economic Reasons","Increasing market prices","No",null,null,1,0,1,0,0,0,0,0,0,0,0,{"$f":"IF(OR(COUNTIF(WestCoast[],IDPs[[#This Row],[Dis_Pcode]])>=1,COUNTIF(WestCoast[],#REF!)>=1),\"Yes\",\"No\")","v":"No"},{"$f":"IF(IDPs[[#This Row],[Gov_Pcode]]=IDPs[[#This Row],[Gov_Coming_Pcode]],\"Yes\",\"No\")","v":"No"},{"$f":"IF(IDPs[[#This Row],[Dis_Pcode]]=IDPs[[#This Row],[Dis_Coming_Pcode]],\"Yes\",\"No\")","v":"No"}]
["2024-02-17","2024-02-17","YE15","Taiz","تعز","YE1504","Maqbanah","مقبنة","IDPs","Rapid Tracking","2024-02-11","YE15","Taiz","تعز","YE1504","Maqbanah","مقبنة","Economic Reasons","Other economic reason","Yes","No",null,1,0,1,0,0,0,0,0,0,0,0,{"$f":"IF(OR(COUNTIF(WestCoast[],IDPs[[#This Row],[Dis_Pcode]])>=1,COUNTIF(WestCoast[],#REF!)>=1),\"Yes\",\"No\")","v":"No"},{"$f":"IF(IDPs[[#This Row],[Gov_Pcode]]=IDPs[[#This Row],[Gov_Coming_Pcode]],\"Yes\",\"No\")","v":"Yes"},{"$f":"IF(IDPs[[#This Row],[Dis_Pcode]]=IDPs[[#This Row],[Dis_Coming_Pcode]],\"Yes\",\"No\")","v":"Yes"}]
["2024-02-17","2024-02-15","YE25","Lahj","لحج","YE2515","Tuban","تبن","IDPs","Rapid Tracking","2024-02-11","YE18","Al Hodeidah","الحديدة","YE1826","At Tuhayta","التحيتا","Conflict Reasons","General Insecure Conditions","No",null,null,1,0,1,0,0,0,0,0,0,0,0,{"$f":"IF(OR(COUNTIF(WestCoast[],IDPs[[#This Row],[Dis_Pcode]])>=1,COUNTIF(WestCoast[],#REF!)>=1),\"Yes\",\"No\")","v":"No"},{"$f":"IF(IDPs[[#This Row],[Gov_Pcode]]=IDPs[[#This Row],[Gov_Coming_Pcode]],\"Yes\",\"No\")","v":"No"},{"$f":"IF(IDPs[[#This Row],[Dis_Pcode]]=IDPs[[#This Row],[Dis_Coming_Pcode]],\"Yes\",\"No\")","v":"No"}]
["2024-02-16","2024-02-14","YE26","Marib","مأرب","YE2613","Marib","مأرب","IDPs","Rapid Tracking","2024-02-12","YE16","Al Jawf","الجوف","YE1601","Khab wa Ash Shaf","خب و الشعف","Economic Reasons","Unemployment / Salary Cut","Yes","Yes","Yes",1,0,0,0,0,0,0,1,0,0,0,{"$f":"IF(OR(COUNTIF(WestCoast[],IDPs[[#This Row],[Dis_Pcode]])>=1,COUNTIF(WestCoast[],#REF!)>=1),\"Yes\",\"No\")","v":"No"},{"$f":"IF(IDPs[[#This Row],[Gov_Pcode]]=IDPs[[#This Row],[Gov_Coming_Pcode]],\"Yes\",\"No\")","v":"No"},{"$f":"IF(IDPs[[#This Row],[Dis_Pcode]]=IDPs[[#This Row],[Dis_Coming_Pcode]],\"Yes\",\"No\")","v":"No"}]
["2024-02-16","2024-02-15","YE26","Marib","مأرب","YE2609","Harib","حريب","IDPs","Rapid Tracking","2024-02-12","YE26","Marib","مأرب","YE2609","Harib","حريب","Conflict Reasons","Combat / Shelling","No",null,null,2,0,0,0,1,0,0,1,0,0,0,{"$f":"IF(OR(COUNTIF(WestCoast[],IDPs[[#This Row],[Dis_Pcode]])>=1,COUNTIF(WestCoast[],#REF!)>=1),\"Yes\",\"No\")","v":"No"},{"$f":"IF(IDPs[[#This Row],[Gov_Pcode]]=IDPs[[#This Row],[Gov_Coming_Pcode]],\"Yes\",\"No\")","v":"Yes"},{"$f":"IF(IDPs[[#This Row],[Dis_Pcode]]=IDPs[[#This Row],[Dis_Coming_Pcode]],\"Yes\",\"No\")","v":"Yes"}]
["2024-02-16","2024-02-15","YE26","Marib","مأرب","YE2613","Marib","مأرب","IDPs","Rapid Tracking","2024-02-12","YE16","Al Jawf","الجوف","YE1601","Khab wa Ash Shaf","خب و الشعف","Economic Reasons","Unemployment / Salary Cut","No",null,null,1,0,1,0,0,0,0,0,0,0,0,{"$f":"IF(OR(COUNTIF(WestCoast[],IDPs[[#This Row],[Dis_Pcode]])>=1,COUNTIF(WestCoast[],#REF!)>=1),\"Yes\",\"No\")","v":"No"},{"$f":"IF(IDPs[[#This Row],[Gov_Pcode]]=IDPs[[#This Row],[Gov_Coming_Pcode]],\"Yes\",\"No\")","v":"No"},{"$f":"IF(IDPs[[#This Row],[Dis_Pcode]]=IDPs[[#This Row],[Dis_Coming_Pcode]],\"Yes\",\"No\")","v":"No"}]
["2024-02-16","2024-02-15","YE26","Marib","مأرب","YE2612","Marib City","مدينة مأرب","IDPs","Rapid Tracking","2024-02-12","YE23","Sanaa","صنعاء","YE2303","Nihm","نهم","Conflict Reasons","General Insecure Conditions","No",null,null,2,0,1,0,0,1,0,0,0,0,0,{"$f":"IF(OR(COUNTIF(WestCoast[],IDPs[[#This Row],[Dis_Pcode]])>=1,COUNTIF(WestCoast[],#REF!)>=1),\"Yes\",\"No\")","v":"No"},{"$f":"IF(IDPs[[#This Row],[Gov_Pcode]]=IDPs[[#This Row],[Gov_Coming_Pcode]],\"Yes\",\"No\")","v":"No"},{"$f":"IF(IDPs[[#This Row],[Dis_Pcode]]=IDPs[[#This Row],[Dis_Coming_Pcode]],\"Yes\",\"No\")","v":"No"}]
["2024-02-16","2024-02-15","YE26","Marib","مأرب","YE2613","Marib","مأرب","IDPs","Rapid Tracking","2024-02-12","YE14","Al Bayda","البيضاء","YE1413","Rada","رداع","Conflict Reasons","General Insecure Conditions","No",null,null,1,0,0,0,0,0,0,0,0,1,0,{"$f":"IF(OR(COUNTIF(WestCoast[],IDPs[[#This Row],[Dis_Pcode]])>=1,COUNTIF(WestCoast[],#REF!)>=1),\"Yes\",\"No\")","v":"No"},{"$f":"IF(IDPs[[#This Row],[Gov_Pcode]]=IDPs[[#This Row],[Gov_Coming_Pcode]],\"Yes\",\"No\")","v":"No"},{"$f":"IF(IDPs[[#This Row],[Dis_Pcode]]=IDPs[[#This Row],[Dis_Coming_Pcode]],\"Yes\",\"No\")","v":"No"}]
["2024-02-16","2024-02-16","YE26","Marib","مأرب","YE2612","Marib City","مدينة مأرب","IDPs","Rapid Tracking","2024-02-12","YE29","Amran","عمران","YE2901","Harf Sufyan","حرف سفيان","Conflict Reasons","General Insecure Conditions","No",null,null,1,0,0,0,1,0,0,0,0,0,0,{"$f":"IF(OR(COUNTIF(WestCoast[],IDPs[[#This Row],[Dis_Pcode]])>=1,COUNTIF(WestCoast[],#REF!)>=1),\"Yes\",\"No\")","v":"No"},{"$f":"IF(IDPs[[#This Row],[Gov_Pcode]]=IDPs[[#This Row],[Gov_Coming_Pcode]],\"Yes\",\"No\")","v":"No"},{"$f":"IF(IDPs[[#This Row],[Dis_Pcode]]=IDPs[[#This Row],[Dis_Coming_Pcode]],\"Yes\",\"No\")","v":"No"}]
["2024-02-16","2024-02-16","YE26","Marib","مأرب","YE2612","Marib City","مدينة مأرب","IDPs","Rapid Tracking","2024-02-12","YE11","Ibb","إب","YE1111","Al Odayn","العدين","Economic Reasons","Unemployment / Salary Cut","No",null,null,1,0,0,0,0,0,0,1,0,0,0,{"$f":"IF(OR(COUNTIF(WestCoast[],IDPs[[#This Row],[Dis_Pcode]])>=1,COUNTIF(WestCoast[],#REF!)>=1),\"Yes\",\"No\")","v":"No"},{"$f":"IF(IDPs[[#This Row],[Gov_Pcode]]=IDPs[[#This Row],[Gov_Coming_Pcode]],\"Yes\",\"No\")","v":"No"},{"$f":"IF(IDPs[[#This Row],[Dis_Pcode]]=IDPs[[#This Row],[Dis_Coming_Pcode]],\"Yes\",\"No\")","v":"No"}]
["2024-02-17","2024-02-17","YE30","Ad Dali","الضالع","YE3006","Ad Dali","الضالع","IDPs","Rapid Tracking","2024-02-12","YE30","Ad Dali","الضالع","YE3009","Al Husha","الحشاء","Conflict Reasons","General Insecure Conditions","No",null,null,1,0,0,0,0,0,0,1,0,0,0,{"$f":"IF(OR(COUNTIF(WestCoast[],IDPs[[#This Row],[Dis_Pcode]])>=1,COUNTIF(WestCoast[],#REF!)>=1),\"Yes\",\"No\")","v":"No"},{"$f":"IF(IDPs[[#This Row],[Gov_Pcode]]=IDPs[[#This Row],[Gov_Coming_Pcode]],\"Yes\",\"No\")","v":"Yes"},{"$f":"IF(IDPs[[#This Row],[Dis_Pcode]]=IDPs[[#This Row],[Dis_Coming_Pcode]],\"Yes\",\"No\")","v":"No"}]
["2024-02-16","2024-02-15","YE26","Marib","مأرب","YE2612","Marib City","مدينة مأرب","IDPs","Rapid Tracking","2024-02-13","YE15","Taiz","تعز","YE1502","Sharab As Salam","شرعب السلام","Economic Reasons","Unemployment / Salary Cut","No",null,null,1,0,0,0,0,0,1,0,0,0,0,{"$f":"IF(OR(COUNTIF(WestCoast[],IDPs[[#This Row],[Dis_Pcode]])>=1,COUNTIF(WestCoast[],#REF!)>=1),\"Yes\",\"No\")","v":"No"},{"$f":"IF(IDPs[[#This Row],[Gov_Pcode]]=IDPs[[#This Row],[Gov_Coming_Pcode]],\"Yes\",\"No\")","v":"No"},{"$f":"IF(IDPs[[#This Row],[Dis_Pcode]]=IDPs[[#This Row],[Dis_Coming_Pcode]],\"Yes\",\"No\")","v":"No"}]
["2024-02-16","2024-02-15","YE26","Marib","مأرب","YE2613","Marib","مأرب","IDPs","Rapid Tracking","2024-02-13","YE26","Marib","مأرب","YE2609","Harib","حريب","Conflict Reasons","Combat / Shelling","No",null,null,1,0,1,0,0,0,0,0,0,0,0,{"$f":"IF(OR(COUNTIF(WestCoast[],IDPs[[#This Row],[Dis_Pcode]])>=1,COUNTIF(WestCoast[],#REF!)>=1),\"Yes\",\"No\")","v":"No"},{"$f":"IF(IDPs[[#This Row],[Gov_Pcode]]=IDPs[[#This Row],[Gov_Coming_Pcode]],\"Yes\",\"No\")","v":"Yes"},{"$f":"IF(IDPs[[#This Row],[Dis_Pcode]]=IDPs[[#This Row],[Dis_Coming_Pcode]],\"Yes\",\"No\")","v":"No"}]
["2024-02-16","2024-02-15","YE26","Marib","مأرب","YE2613","Marib","مأرب","IDPs","Rapid Tracking","2024-02-13","YE16","Al Jawf","الجوف","YE1601","Khab wa Ash Shaf","خب و الشعف","Economic Reasons","Other economic reason","No",null,null,1,0,1,0,0,0,0,0,0,0,0,{"$f":"IF(OR(COUNTIF(WestCoast[],IDPs[[#This Row],[Dis_Pcode]])>=1,COUNTIF(WestCoast[],#REF!)>=1),\"Yes\",\"No\")","v":"No"},{"$f":"IF(IDPs[[#This Row],[Gov_Pcode]]=IDPs[[#This Row],[Gov_Coming_Pcode]],\"Yes\",\"No\")","v":"No"},{"$f":"IF(IDPs[[#This Row],[Dis_Pcode]]=IDPs[[#This Row],[Dis_Coming_Pcode]],\"Yes\",\"No\")","v":"No"}]
["2024-02-16","2024-02-16","YE26","Marib","مأرب","YE2612","Marib City","مدينة مأرب","IDPs","Rapid Tracking","2024-02-13","YE23","Sanaa","صنعاء","YE2303","Nihm","نهم","Conflict Reasons","General Insecure Conditions","No",null,null,1,0,0,0,1,0,0,0,0,0,0,{"$f":"IF(OR(COUNTIF(WestCoast[],IDPs[[#This Row],[Dis_Pcode]])>=1,COUNTIF(WestCoast[],#REF!)>=1),\"Yes\",\"No\")","v":"No"},{"$f":"IF(IDPs[[#This Row],[Gov_Pcode]]=IDPs[[#This Row],[Gov_Coming_Pcode]],\"Yes\",\"No\")","v":"No"},{"$f":"IF(IDPs[[#This Row],[Dis_Pcode]]=IDPs[[#This Row],[Dis_Coming_Pcode]],\"Yes\",\"No\")","v":"No"}]
["2024-02-17","2024-02-17","YE15","Taiz","تعز","YE1518","Al Qahirah","القاهرة","IDPs","Rapid Tracking","2024-02-13","YE15","Taiz","تعز","YE1504","Maqbanah","مقبنة","Conflict Reasons","General Insecure Conditions","No",null,null,1,0,0,0,1,0,0,0,0,0,0,{"$f":"IF(OR(COUNTIF(WestCoast[],IDPs[[#This Row],[Dis_Pcode]])>=1,COUNTIF(WestCoast[],#REF!)>=1),\"Yes\",\"No\")","v":"No"},{"$f":"IF(IDPs[[#This Row],[Gov_Pcode]]=IDPs[[#This Row],[Gov_Coming_Pcode]],\"Yes\",\"No\")","v":"Yes"},{"$f":"IF(IDPs[[#This Row],[Dis_Pcode]]=IDPs[[#This Row],[Dis_Coming_Pcode]],\"Yes\",\"No\")","v":"No"}]
["2024-02-17","2024-02-17","YE30","Ad Dali","الضالع","YE3006","Ad Dali","الضالع","IDPs","Rapid Tracking","2024-02-14","YE11","Ibb","إب","YE1116","Dhi As Sufal","ذي السفال","Conflict Reasons","General Insecure Conditions","No",null,null,1,0,0,0,0,0,0,1,0,0,0,{"$f":"IF(OR(COUNTIF(WestCoast[],IDPs[[#This Row],[Dis_Pcode]])>=1,COUNTIF(WestCoast[],#REF!)>=1),\"Yes\",\"No\")","v":"No"},{"$f":"IF(IDPs[[#This Row],[Gov_Pcode]]=IDPs[[#This Row],[Gov_Coming_Pcode]],\"Yes\",\"No\")","v":"No"},{"$f":"IF(IDPs[[#This Row],[Dis_Pcode]]=IDPs[[#This Row],[Dis_Coming_Pcode]],\"Yes\",\"No\")","v":"No"}]
["2024-02-16","2024-02-15","YE26","Marib","مأرب","YE2613","Marib","مأرب","IDPs","Rapid Tracking","2024-02-15","YE15","Taiz","تعز","YE1502","Sharab As Salam","شرعب السلام","Economic Reasons","Other economic reason","No",null,null,1,0,1,0,0,0,0,0,0,0,0,{"$f":"IF(OR(COUNTIF(WestCoast[],IDPs[[#This Row],[Dis_Pcode]])>=1,COUNTIF(WestCoast[],#REF!)>=1),\"Yes\",\"No\")","v":"No"},{"$f":"IF(IDPs[[#This Row],[Gov_Pcode]]=IDPs[[#This Row],[Gov_Coming_Pcode]],\"Yes\",\"No\")","v":"No"},{"$f":"IF(IDPs[[#This Row],[Dis_Pcode]]=IDPs[[#This Row],[Dis_Coming_Pcode]],\"Yes\",\"No\")","v":"No"}]
["2024-02-17","2024-02-15","YE25","Lahj","لحج","YE2515","Tuban","تبن","IDPs","Rapid Tracking","2024-02-15","YE18","Al Hodeidah","الحديدة","YE1826","At Tuhayta","التحيتا","Conflict Reasons","General Insecure Conditions","No",null,null,1,0,1,0,0,0,0,0,0,0,0,{"$f":"IF(OR(COUNTIF(WestCoast[],IDPs[[#This Row],[Dis_Pcode]])>=1,COUNTIF(WestCoast[],#REF!)>=1),\"Yes\",\"No\")","v":"No"},{"$f":"IF(IDPs[[#This Row],[Gov_Pcode]]=IDPs[[#This Row],[Gov_Coming_Pcode]],\"Yes\",\"No\")","v":"No"},{"$f":"IF(IDPs[[#This Row],[Dis_Pcode]]=IDPs[[#This Row],[Dis_Coming_Pcode]],\"Yes\",\"No\")","v":"No"}]
["2024-02-17","2024-02-15","YE25","Lahj","لحج","YE2515","Tuban","تبن","IDPs","Rapid Tracking","2024-02-15","YE15","Taiz","تعز","YE1510","Sabir Al Mawadim","صبر الموادم","Conflict Reasons","General Insecure Conditions","No",null,null,1,0,1,0,0,0,0,0,0,0,0,{"$f":"IF(OR(COUNTIF(WestCoast[],IDPs[[#This Row],[Dis_Pcode]])>=1,COUNTIF(WestCoast[],#REF!)>=1),\"Yes\",\"No\")","v":"No"},{"$f":"IF(IDPs[[#This Row],[Gov_Pcode]]=IDPs[[#This Row],[Gov_Coming_Pcode]],\"Yes\",\"No\")","v":"No"},{"$f":"IF(IDPs[[#This Row],[Dis_Pcode]]=IDPs[[#This Row],[Dis_Coming_Pcode]],\"Yes\",\"No\")","v":"No"}]
["2024-02-17","2024-02-16","YE18","Al Hodeidah","الحديدة","YE1819","Hays","حيس","IDPs","Rapid Tracking","2024-02-16","YE18","Al Hodeidah","الحديدة","YE1819","Hays","حيس","Conflict Reasons","Combat / Shelling","No",null,null,6,0,2,0,0,1,0,3,0,0,0,{"$f":"IF(OR(COUNTIF(WestCoast[],IDPs[[#This Row],[Dis_Pcode]])>=1,COUNTIF(WestCoast[],#REF!)>=1),\"Yes\",\"No\")","v":"Yes"},{"$f":"IF(IDPs[[#This Row],[Gov_Pcode]]=IDPs[[#This Row],[Gov_Coming_Pcode]],\"Yes\",\"No\")","v":"Yes"},{"$f":"IF(IDPs[[#This Row],[Dis_Pcode]]=IDPs[[#This Row],[Dis_Coming_Pcode]],\"Yes\",\"No\")","v":"Yes"}]
["2024-02-17","2024-02-17","YE15","Taiz","تعز","YE1504","Maqbanah","مقبنة","IDPs","Rapid Tracking","2024-02-17","YE15","Taiz","تعز","YE1504","Maqbanah","مقبنة","Economic Reasons","Other economic reason","Yes","No",null,2,0,2,0,0,0,0,0,0,0,0,{"$f":"IF(OR(COUNTIF(WestCoast[],IDPs[[#This Row],[Dis_Pcode]])>=1,COUNTIF(WestCoast[],#REF!)>=1),\"Yes\",\"No\")","v":"No"},{"$f":"IF(IDPs[[#This Row],[Gov_Pcode]]=IDPs[[#This Row],[Gov_Coming_Pcode]],\"Yes\",\"No\")","v":"Yes"},{"$f":"IF(IDPs[[#This Row],[Dis_Pcode]]=IDPs[[#This Row],[Dis_Coming_Pcode]],\"Yes\",\"No\")","v":"Yes"}]
["2024-02-20","2024-02-20","YE18","Al Hodeidah","الحديدة","YE1820","Al Khukhah","الخوخة","IDPs","Rapid Tracking","2024-02-11","YE18","Al Hodeidah","الحديدة","YE1826","At Tuhayta","التحيتا","Conflict Reasons","Combat / Shelling","No",null,null,1,0,0,0,0,0,0,1,0,0,0,{"$f":"IF(OR(COUNTIF(WestCoast[],IDPs[[#This Row],[Dis_Pcode]])>=1,COUNTIF(WestCoast[],#REF!)>=1),\"Yes\",\"No\")","v":"Yes"},{"$f":"IF(IDPs[[#This Row],[Gov_Pcode]]=IDPs[[#This Row],[Gov_Coming_Pcode]],\"Yes\",\"No\")","v":"Yes"},{"$f":"IF(IDPs[[#This Row],[Dis_Pcode]]=IDPs[[#This Row],[Dis_Coming_Pcode]],\"Yes\",\"No\")","v":"No"}]
["2024-02-20","2024-02-20","YE18","Al Hodeidah","الحديدة","YE1820","Al Khukhah","الخوخة","IDPs","Rapid Tracking","2024-02-12","YE18","Al Hodeidah","الحديدة","YE1821","Al Hawak","الحوك","Economic Reasons","Unemployment / Salary Cut","No",null,null,2,0,0,0,0,0,0,1,0,1,0,{"$f":"IF(OR(COUNTIF(WestCoast[],IDPs[[#This Row],[Dis_Pcode]])>=1,COUNTIF(WestCoast[],#REF!)>=1),\"Yes\",\"No\")","v":"Yes"},{"$f":"IF(IDPs[[#This Row],[Gov_Pcode]]=IDPs[[#This Row],[Gov_Coming_Pcode]],\"Yes\",\"No\")","v":"Yes"},{"$f":"IF(IDPs[[#This Row],[Dis_Pcode]]=IDPs[[#This Row],[Dis_Coming_Pcode]],\"Yes\",\"No\")","v":"No"}]
["2024-02-20","2024-02-20","YE18","Al Hodeidah","الحديدة","YE1820","Al Khukhah","الخوخة","IDPs","Rapid Tracking","2024-02-12","YE18","Al Hodeidah","الحديدة","YE1826","At Tuhayta","التحيتا","Conflict Reasons","Combat / Shelling","Yes","Yes","Yes",3,0,3,0,0,0,0,0,0,0,0,{"$f":"IF(OR(COUNTIF(WestCoast[],IDPs[[#This Row],[Dis_Pcode]])>=1,COUNTIF(WestCoast[],#REF!)>=1),\"Yes\",\"No\")","v":"Yes"},{"$f":"IF(IDPs[[#This Row],[Gov_Pcode]]=IDPs[[#This Row],[Gov_Coming_Pcode]],\"Yes\",\"No\")","v":"Yes"},{"$f":"IF(IDPs[[#This Row],[Dis_Pcode]]=IDPs[[#This Row],[Dis_Coming_Pcode]],\"Yes\",\"No\")","v":"No"}]
["2024-02-20","2024-02-20","YE18","Al Hodeidah","الحديدة","YE1820","Al Khukhah","الخوخة","IDPs","Rapid Tracking","2024-02-13","YE18","Al Hodeidah","الحديدة","YE1825","Al Jarrahi","الجراحي","Conflict Reasons","Combat / Shelling","No",null,null,1,0,0,0,0,0,0,1,0,0,0,{"$f":"IF(OR(COUNTIF(WestCoast[],IDPs[[#This Row],[Dis_Pcode]])>=1,COUNTIF(WestCoast[],#REF!)>=1),\"Yes\",\"No\")","v":"Yes"},{"$f":"IF(IDPs[[#This Row],[Gov_Pcode]]=IDPs[[#This Row],[Gov_Coming_Pcode]],\"Yes\",\"No\")","v":"Yes"},{"$f":"IF(IDPs[[#This Row],[Dis_Pcode]]=IDPs[[#This Row],[Dis_Coming_Pcode]],\"Yes\",\"No\")","v":"No"}]
["2024-02-20","2024-02-20","YE15","Taiz","تعز","YE1508","Jabal Habashi","جبل حبشي","IDPs","Rapid Tracking","2024-02-14","YE15","Taiz","تعز","YE1504","Maqbanah","مقبنة","Conflict Reasons","General Insecure Conditions","Yes","No",null,11,0,0,0,11,0,0,0,0,0,0,{"$f":"IF(OR(COUNTIF(WestCoast[],IDPs[[#This Row],[Dis_Pcode]])>=1,COUNTIF(WestCoast[],#REF!)>=1),\"Yes\",\"No\")","v":"No"},{"$f":"IF(IDPs[[#This Row],[Gov_Pcode]]=IDPs[[#This Row],[Gov_Coming_Pcode]],\"Yes\",\"No\")","v":"Yes"},{"$f":"IF(IDPs[[#This Row],[Dis_Pcode]]=IDPs[[#This Row],[Dis_Coming_Pcode]],\"Yes\",\"No\")","v":"No"}]
["2024-02-18","2024-02-18","YE18","Al Hodeidah","الحديدة","YE1819","Hays","حيس","IDPs","Rapid Tracking","2024-02-15","YE15","Taiz","تعز","YE1504","Maqbanah","مقبنة","Conflict Reasons","Combat / Shelling","No",null,null,2,0,1,0,0,0,0,1,0,0,0,{"$f":"IF(OR(COUNTIF(WestCoast[],IDPs[[#This Row],[Dis_Pcode]])>=1,COUNTIF(WestCoast[],#REF!)>=1),\"Yes\",\"No\")","v":"Yes"},{"$f":"IF(IDPs[[#This Row],[Gov_Pcode]]=IDPs[[#This Row],[Gov_Coming_Pcode]],\"Yes\",\"No\")","v":"No"},{"$f":"IF(IDPs[[#This Row],[Dis_Pcode]]=IDPs[[#This Row],[Dis_Coming_Pcode]],\"Yes\",\"No\")","v":"No"}]
["2024-02-21","2024-02-21","YE15","Taiz","تعز","YE1511","Al Misrakh","المسراخ","IDPs","Rapid Tracking","2024-02-15","YE15","Taiz","تعز","YE1512","Dimnat Khadir","خدير","Conflict Reasons","General Insecure Conditions","No",null,null,1,0,1,0,0,0,0,0,0,0,0,{"$f":"IF(OR(COUNTIF(WestCoast[],IDPs[[#This Row],[Dis_Pcode]])>=1,COUNTIF(WestCoast[],#REF!)>=1),\"Yes\",\"No\")","v":"No"},{"$f":"IF(IDPs[[#This Row],[Gov_Pcode]]=IDPs[[#This Row],[Gov_Coming_Pcode]],\"Yes\",\"No\")","v":"Yes"},{"$f":"IF(IDPs[[#This Row],[Dis_Pcode]]=IDPs[[#This Row],[Dis_Coming_Pcode]],\"Yes\",\"No\")","v":"No"}]
["2024-02-22","2024-02-22","YE15","Taiz","تعز","YE1518","Al Qahirah","القاهرة","IDPs","Rapid Tracking","2024-02-15","YE15","Taiz","تعز","YE1504","Maqbanah","مقبنة","Conflict Reasons","General Insecure Conditions","No",null,null,1,0,1,0,0,0,0,0,0,0,0,{"$f":"IF(OR(COUNTIF(WestCoast[],IDPs[[#This Row],[Dis_Pcode]])>=1,COUNTIF(WestCoast[],#REF!)>=1),\"Yes\",\"No\")","v":"No"},{"$f":"IF(IDPs[[#This Row],[Gov_Pcode]]=IDPs[[#This Row],[Gov_Coming_Pcode]],\"Yes\",\"No\")","v":"Yes"},{"$f":"IF(IDPs[[#This Row],[Dis_Pcode]]=IDPs[[#This Row],[Dis_Coming_Pcode]],\"Yes\",\"No\")","v":"No"}]
["2024-02-22","2024-02-22","YE15","Taiz","تعز","YE1518","Al Qahirah","القاهرة","IDPs","Rapid Tracking","2024-02-15","YE15","Taiz","تعز","YE1505","Al Makha","المخا","Conflict Reasons","General Insecure Conditions","No",null,null,1,0,1,0,0,0,0,0,0,0,0,{"$f":"IF(OR(COUNTIF(WestCoast[],IDPs[[#This Row],[Dis_Pcode]])>=1,COUNTIF(WestCoast[],#REF!)>=1),\"Yes\",\"No\")","v":"No"},{"$f":"IF(IDPs[[#This Row],[Gov_Pcode]]=IDPs[[#This Row],[Gov_Coming_Pcode]],\"Yes\",\"No\")","v":"Yes"},{"$f":"IF(IDPs[[#This Row],[Dis_Pcode]]=IDPs[[#This Row],[Dis_Coming_Pcode]],\"Yes\",\"No\")","v":"No"}]
["2024-02-24","2024-02-20","YE26","Marib","مأرب","YE2612","Marib City","مدينة مأرب","IDPs","Rapid Tracking","2024-02-15","YE17","Hajjah","حجة","YE1707","Kushar","كشر","Economic Reasons","Unemployment / Salary Cut","No",null,null,1,0,0,0,0,0,0,1,0,0,0,{"$f":"IF(OR(COUNTIF(WestCoast[],IDPs[[#This Row],[Dis_Pcode]])>=1,COUNTIF(WestCoast[],#REF!)>=1),\"Yes\",\"No\")","v":"No"},{"$f":"IF(IDPs[[#This Row],[Gov_Pcode]]=IDPs[[#This Row],[Gov_Coming_Pcode]],\"Yes\",\"No\")","v":"No"},{"$f":"IF(IDPs[[#This Row],[Dis_Pcode]]=IDPs[[#This Row],[Dis_Coming_Pcode]],\"Yes\",\"No\")","v":"No"}]
["2024-02-24","2024-02-20","YE26","Marib","مأرب","YE2612","Marib City","مدينة مأرب","IDPs","Rapid Tracking","2024-02-15","YE18","Al Hodeidah","الحديدة","YE1813","Al Marawiah","المراوعة","Economic Reasons","Other economic reason","No",null,null,1,0,0,1,0,0,0,0,0,0,0,{"$f":"IF(OR(COUNTIF(WestCoast[],IDPs[[#This Row],[Dis_Pcode]])>=1,COUNTIF(WestCoast[],#REF!)>=1),\"Yes\",\"No\")","v":"No"},{"$f":"IF(IDPs[[#This Row],[Gov_Pcode]]=IDPs[[#This Row],[Gov_Coming_Pcode]],\"Yes\",\"No\")","v":"No"},{"$f":"IF(IDPs[[#This Row],[Dis_Pcode]]=IDPs[[#This Row],[Dis_Coming_Pcode]],\"Yes\",\"No\")","v":"No"}]
["2024-02-24","2024-02-22","YE26","Marib","مأرب","YE2613","Marib","مأرب","IDPs","Rapid Tracking","2024-02-15","YE15","Taiz","تعز","YE1508","Jabal Habashi","جبل حبشي","Economic Reasons","Unemployment / Salary Cut","No",null,null,1,0,0,0,0,0,0,1,0,0,0,{"$f":"IF(OR(COUNTIF(WestCoast[],IDPs[[#This Row],[Dis_Pcode]])>=1,COUNTIF(WestCoast[],#REF!)>=1),\"Yes\",\"No\")","v":"No"},{"$f":"IF(IDPs[[#This Row],[Gov_Pcode]]=IDPs[[#This Row],[Gov_Coming_Pcode]],\"Yes\",\"No\")","v":"No"},{"$f":"IF(IDPs[[#This Row],[Dis_Pcode]]=IDPs[[#This Row],[Dis_Coming_Pcode]],\"Yes\",\"No\")","v":"No"}]
["2024-02-24","2024-02-18","YE26","Marib","مأرب","YE2613","Marib","مأرب","IDPs","Rapid Tracking","2024-02-15","YE26","Marib","مأرب","YE2601","Majzar","مجزر","Conflict Reasons","General Insecure Conditions","No",null,null,1,0,0,0,0,0,0,0,0,1,0,{"$f":"IF(OR(COUNTIF(WestCoast[],IDPs[[#This Row],[Dis_Pcode]])>=1,COUNTIF(WestCoast[],#REF!)>=1),\"Yes\",\"No\")","v":"No"},{"$f":"IF(IDPs[[#This Row],[Gov_Pcode]]=IDPs[[#This Row],[Gov_Coming_Pcode]],\"Yes\",\"No\")","v":"Yes"},{"$f":"IF(IDPs[[#This Row],[Dis_Pcode]]=IDPs[[#This Row],[Dis_Coming_Pcode]],\"Yes\",\"No\")","v":"No"}]
["2024-02-24","2024-02-21","YE26","Marib","مأرب","YE2613","Marib","مأرب","IDPs","Rapid Tracking","2024-02-16","YE31","Raymah","ريمة","YE3102","As Salafiyyah","السلفية","Economic Reasons","Unemployment / Salary Cut","No",null,null,1,0,0,0,0,0,0,1,0,0,0,{"$f":"IF(OR(COUNTIF(WestCoast[],IDPs[[#This Row],[Dis_Pcode]])>=1,COUNTIF(WestCoast[],#REF!)>=1),\"Yes\",\"No\")","v":"No"},{"$f":"IF(IDPs[[#This Row],[Gov_Pcode]]=IDPs[[#This Row],[Gov_Coming_Pcode]],\"Yes\",\"No\")","v":"No"},{"$f":"IF(IDPs[[#This Row],[Dis_Pcode]]=IDPs[[#This Row],[Dis_Coming_Pcode]],\"Yes\",\"No\")","v":"No"}]
["2024-02-24","2024-02-18","YE26","Marib","مأرب","YE2613","Marib","مأرب","IDPs","Rapid Tracking","2024-02-16","YE26","Marib","مأرب","YE2602","Raghwan","رغوان","Economic Reasons","Other economic reason","No",null,null,2,0,0,0,0,1,0,1,0,0,0,{"$f":"IF(OR(COUNTIF(WestCoast[],IDPs[[#This Row],[Dis_Pcode]])>=1,COUNTIF(WestCoast[],#REF!)>=1),\"Yes\",\"No\")","v":"No"},{"$f":"IF(IDPs[[#This Row],[Gov_Pcode]]=IDPs[[#This Row],[Gov_Coming_Pcode]],\"Yes\",\"No\")","v":"Yes"},{"$f":"IF(IDPs[[#This Row],[Dis_Pcode]]=IDPs[[#This Row],[Dis_Coming_Pcode]],\"Yes\",\"No\")","v":"No"}]
["2024-02-24","2024-02-18","YE26","Marib","مأرب","YE2612","Marib City","مدينة مأرب","IDPs","Rapid Tracking","2024-02-17","YE31","Raymah","ريمة","YE3101","Bilad Attaam","بلاد الطعام","Economic Reasons","Other economic reason","No",null,null,1,0,0,0,1,0,0,0,0,0,0,{"$f":"IF(OR(COUNTIF(WestCoast[],IDPs[[#This Row],[Dis_Pcode]])>=1,COUNTIF(WestCoast[],#REF!)>=1),\"Yes\",\"No\")","v":"No"},{"$f":"IF(IDPs[[#This Row],[Gov_Pcode]]=IDPs[[#This Row],[Gov_Coming_Pcode]],\"Yes\",\"No\")","v":"No"},{"$f":"IF(IDPs[[#This Row],[Dis_Pcode]]=IDPs[[#This Row],[Dis_Coming_Pcode]],\"Yes\",\"No\")","v":"No"}]
["2024-02-24","2024-02-20","YE26","Marib","مأرب","YE2613","Marib","مأرب","IDPs","Rapid Tracking","2024-02-17","YE15","Taiz","تعز","YE1514","Ash Shamayatayn","الشمايتين","Economic Reasons","Other economic reason","No",null,null,1,0,0,0,0,0,0,0,0,1,0,{"$f":"IF(OR(COUNTIF(WestCoast[],IDPs[[#This Row],[Dis_Pcode]])>=1,COUNTIF(WestCoast[],#REF!)>=1),\"Yes\",\"No\")","v":"No"},{"$f":"IF(IDPs[[#This Row],[Gov_Pcode]]=IDPs[[#This Row],[Gov_Coming_Pcode]],\"Yes\",\"No\")","v":"No"},{"$f":"IF(IDPs[[#This Row],[Dis_Pcode]]=IDPs[[#This Row],[Dis_Coming_Pcode]],\"Yes\",\"No\")","v":"No"}]
["2024-02-24","2024-02-21","YE26","Marib","مأرب","YE2613","Marib","مأرب","IDPs","Rapid Tracking","2024-02-17","YE21","Shabwah","شبوة","YE2113","Ataq","عتق","Economic Reasons","Increasing market prices","No",null,null,2,0,0,0,0,0,0,2,0,0,0,{"$f":"IF(OR(COUNTIF(WestCoast[],IDPs[[#This Row],[Dis_Pcode]])>=1,COUNTIF(WestCoast[],#REF!)>=1),\"Yes\",\"No\")","v":"No"},{"$f":"IF(IDPs[[#This Row],[Gov_Pcode]]=IDPs[[#This Row],[Gov_Coming_Pcode]],\"Yes\",\"No\")","v":"No"},{"$f":"IF(IDPs[[#This Row],[Dis_Pcode]]=IDPs[[#This Row],[Dis_Coming_Pcode]],\"Yes\",\"No\")","v":"No"}]
["2024-02-24","2024-02-22","YE26","Marib","مأرب","YE2613","Marib","مأرب","IDPs","Rapid Tracking","2024-02-17","YE20","Dhamar","ذمار","YE2012","Al Manar","المنار","Economic Reasons","Unemployment / Salary Cut","No",null,null,1,0,0,0,0,0,0,1,0,0,0,{"$f":"IF(OR(COUNTIF(WestCoast[],IDPs[[#This Row],[Dis_Pcode]])>=1,COUNTIF(WestCoast[],#REF!)>=1),\"Yes\",\"No\")","v":"No"},{"$f":"IF(IDPs[[#This Row],[Gov_Pcode]]=IDPs[[#This Row],[Gov_Coming_Pcode]],\"Yes\",\"No\")","v":"No"},{"$f":"IF(IDPs[[#This Row],[Dis_Pcode]]=IDPs[[#This Row],[Dis_Coming_Pcode]],\"Yes\",\"No\")","v":"No"}]
["2024-02-18","2024-02-18","YE18","Al Hodeidah","الحديدة","YE1819","Hays","حيس","IDPs","Rapid Tracking","2024-02-18","YE18","Al Hodeidah","الحديدة","YE1819","Hays","حيس","Conflict Reasons","Combat / Shelling","No",null,null,1,0,0,0,0,0,0,1,0,0,0,{"$f":"IF(OR(COUNTIF(WestCoast[],IDPs[[#This Row],[Dis_Pcode]])>=1,COUNTIF(WestCoast[],#REF!)>=1),\"Yes\",\"No\")","v":"Yes"},{"$f":"IF(IDPs[[#This Row],[Gov_Pcode]]=IDPs[[#This Row],[Gov_Coming_Pcode]],\"Yes\",\"No\")","v":"Yes"},{"$f":"IF(IDPs[[#This Row],[Dis_Pcode]]=IDPs[[#This Row],[Dis_Coming_Pcode]],\"Yes\",\"No\")","v":"Yes"}]
["2024-02-24","2024-02-20","YE26","Marib","مأرب","YE2612","Marib City","مدينة مأرب","IDPs","Rapid Tracking","2024-02-18","YE15","Taiz","تعز","YE1501","Mawiyah","ماوية","Economic Reasons","Other economic reason","No",null,null,1,0,0,1,0,0,0,0,0,0,0,{"$f":"IF(OR(COUNTIF(WestCoast[],IDPs[[#This Row],[Dis_Pcode]])>=1,COUNTIF(WestCoast[],#REF!)>=1),\"Yes\",\"No\")","v":"No"},{"$f":"IF(IDPs[[#This Row],[Gov_Pcode]]=IDPs[[#This Row],[Gov_Coming_Pcode]],\"Yes\",\"No\")","v":"No"},{"$f":"IF(IDPs[[#This Row],[Dis_Pcode]]=IDPs[[#This Row],[Dis_Coming_Pcode]],\"Yes\",\"No\")","v":"No"}]
["2024-02-24","2024-02-20","YE26","Marib","مأرب","YE2612","Marib City","مدينة مأرب","IDPs","Rapid Tracking","2024-02-18","YE15","Taiz","تعز","YE1520","At Taiziyah","التعزية","Conflict Reasons","General Insecure Conditions","No",null,null,1,0,0,0,1,0,0,0,0,0,0,{"$f":"IF(OR(COUNTIF(WestCoast[],IDPs[[#This Row],[Dis_Pcode]])>=1,COUNTIF(WestCoast[],#REF!)>=1),\"Yes\",\"No\")","v":"No"},{"$f":"IF(IDPs[[#This Row],[Gov_Pcode]]=IDPs[[#This Row],[Gov_Coming_Pcode]],\"Yes\",\"No\")","v":"No"},{"$f":"IF(IDPs[[#This Row],[Dis_Pcode]]=IDPs[[#This Row],[Dis_Coming_Pcode]],\"Yes\",\"No\")","v":"No"}]
["2024-02-24","2024-02-20","YE26","Marib","مأرب","YE2613","Marib","مأرب","IDPs","Rapid Tracking","2024-02-18","YE11","Ibb","إب","YE1109","Hazm Al Odayn","حزم العدين","Conflict Reasons","General Insecure Conditions","No",null,null,1,0,1,0,0,0,0,0,0,0,0,{"$f":"IF(OR(COUNTIF(WestCoast[],IDPs[[#This Row],[Dis_Pcode]])>=1,COUNTIF(WestCoast[],#REF!)>=1),\"Yes\",\"No\")","v":"No"},{"$f":"IF(IDPs[[#This Row],[Gov_Pcode]]=IDPs[[#This Row],[Gov_Coming_Pcode]],\"Yes\",\"No\")","v":"No"},{"$f":"IF(IDPs[[#This Row],[Dis_Pcode]]=IDPs[[#This Row],[Dis_Coming_Pcode]],\"Yes\",\"No\")","v":"No"}]
["2024-02-24","2024-02-22","YE26","Marib","مأرب","YE2613","Marib","مأرب","IDPs","Rapid Tracking","2024-02-18","YE18","Al Hodeidah","الحديدة","YE1810","Bajil","باجل","Economic Reasons","Other economic reason","No",null,null,1,0,0,0,0,0,0,0,0,1,0,{"$f":"IF(OR(COUNTIF(WestCoast[],IDPs[[#This Row],[Dis_Pcode]])>=1,COUNTIF(WestCoast[],#REF!)>=1),\"Yes\",\"No\")","v":"No"},{"$f":"IF(IDPs[[#This Row],[Gov_Pcode]]=IDPs[[#This Row],[Gov_Coming_Pcode]],\"Yes\",\"No\")","v":"No"},{"$f":"IF(IDPs[[#This Row],[Dis_Pcode]]=IDPs[[#This Row],[Dis_Coming_Pcode]],\"Yes\",\"No\")","v":"No"}]
["2024-02-20","2024-02-20","YE15","Taiz","تعز","YE1505","Al Makha","المخا","IDPs","Rapid Tracking","2024-02-19","YE15","Taiz","تعز","YE1507","Mawza","موزع","Conflict Reasons","General Insecure Conditions","No",null,null,1,0,0,0,1,0,0,0,0,0,0,{"$f":"IF(OR(COUNTIF(WestCoast[],IDPs[[#This Row],[Dis_Pcode]])>=1,COUNTIF(WestCoast[],#REF!)>=1),\"Yes\",\"No\")","v":"Yes"},{"$f":"IF(IDPs[[#This Row],[Gov_Pcode]]=IDPs[[#This Row],[Gov_Coming_Pcode]],\"Yes\",\"No\")","v":"Yes"},{"$f":"IF(IDPs[[#This Row],[Dis_Pcode]]=IDPs[[#This Row],[Dis_Coming_Pcode]],\"Yes\",\"No\")","v":"No"}]
["2024-02-20","2024-02-20","YE15","Taiz","تعز","YE1505","Al Makha","المخا","IDPs","Rapid Tracking","2024-02-19","YE15","Taiz","تعز","YE1517","Al Mudhaffar","المظفر","Conflict Reasons","General Insecure Conditions","No",null,null,1,0,0,0,1,0,0,0,0,0,0,{"$f":"IF(OR(COUNTIF(WestCoast[],IDPs[[#This Row],[Dis_Pcode]])>=1,COUNTIF(WestCoast[],#REF!)>=1),\"Yes\",\"No\")","v":"Yes"},{"$f":"IF(IDPs[[#This Row],[Gov_Pcode]]=IDPs[[#This Row],[Gov_Coming_Pcode]],\"Yes\",\"No\")","v":"Yes"},{"$f":"IF(IDPs[[#This Row],[Dis_Pcode]]=IDPs[[#This Row],[Dis_Coming_Pcode]],\"Yes\",\"No\")","v":"No"}]
["2024-02-24","2024-02-20","YE26","Marib","مأرب","YE2612","Marib City","مدينة مأرب","IDPs","Rapid Tracking","2024-02-19","YE18","Al Hodeidah","الحديدة","YE1810","Bajil","باجل","Economic Reasons","Unemployment / Salary Cut","No",null,null,1,0,1,0,0,0,0,0,0,0,0,{"$f":"IF(OR(COUNTIF(WestCoast[],IDPs[[#This Row],[Dis_Pcode]])>=1,COUNTIF(WestCoast[],#REF!)>=1),\"Yes\",\"No\")","v":"No"},{"$f":"IF(IDPs[[#This Row],[Gov_Pcode]]=IDPs[[#This Row],[Gov_Coming_Pcode]],\"Yes\",\"No\")","v":"No"},{"$f":"IF(IDPs[[#This Row],[Dis_Pcode]]=IDPs[[#This Row],[Dis_Coming_Pcode]],\"Yes\",\"No\")","v":"No"}]
["2024-02-24","2024-02-20","YE26","Marib","مأرب","YE2612","Marib City","مدينة مأرب","IDPs","Rapid Tracking","2024-02-19","YE18","Al Hodeidah","الحديدة","YE1818","Jabal Ras","جبل راس","Economic Reasons","Unemployment / Salary Cut","No",null,null,1,0,0,0,0,0,0,1,0,0,0,{"$f":"IF(OR(COUNTIF(WestCoast[],IDPs[[#This Row],[Dis_Pcode]])>=1,COUNTIF(WestCoast[],#REF!)>=1),\"Yes\",\"No\")","v":"No"},{"$f":"IF(IDPs[[#This Row],[Gov_Pcode]]=IDPs[[#This Row],[Gov_Coming_Pcode]],\"Yes\",\"No\")","v":"No"},{"$f":"IF(IDPs[[#This Row],[Dis_Pcode]]=IDPs[[#This Row],[Dis_Coming_Pcode]],\"Yes\",\"No\")","v":"No"}]
["2024-02-24","2024-02-21","YE26","Marib","مأرب","YE2612","Marib City","مدينة مأرب","IDPs","Rapid Tracking","2024-02-19","YE23","Sanaa","صنعاء","YE2305","Sanhan wa Bani Bahlul","سنحان وبني بهلول","Conflict Reasons","Combat / Shelling","No",null,null,1,0,1,0,0,0,0,0,0,0,0,{"$f":"IF(OR(COUNTIF(WestCoast[],IDPs[[#This Row],[Dis_Pcode]])>=1,COUNTIF(WestCoast[],#REF!)>=1),\"Yes\",\"No\")","v":"No"},{"$f":"IF(IDPs[[#This Row],[Gov_Pcode]]=IDPs[[#This Row],[Gov_Coming_Pcode]],\"Yes\",\"No\")","v":"No"},{"$f":"IF(IDPs[[#This Row],[Dis_Pcode]]=IDPs[[#This Row],[Dis_Coming_Pcode]],\"Yes\",\"No\")","v":"No"}]
["2024-02-24","2024-02-24","YE26","Marib","مأرب","YE2612","Marib City","مدينة مأرب","IDPs","Rapid Tracking","2024-02-19","YE18","Al Hodeidah","الحديدة","YE1823","Al Hali","الحالي","Conflict Reasons","General Insecure Conditions","No",null,null,1,0,0,0,1,0,0,0,0,0,0,{"$f":"IF(OR(COUNTIF(WestCoast[],IDPs[[#This Row],[Dis_Pcode]])>=1,COUNTIF(WestCoast[],#REF!)>=1),\"Yes\",\"No\")","v":"No"},{"$f":"IF(IDPs[[#This Row],[Gov_Pcode]]=IDPs[[#This Row],[Gov_Coming_Pcode]],\"Yes\",\"No\")","v":"No"},{"$f":"IF(IDPs[[#This Row],[Dis_Pcode]]=IDPs[[#This Row],[Dis_Coming_Pcode]],\"Yes\",\"No\")","v":"No"}]
["2024-02-24","2024-02-24","YE30","Ad Dali","الضالع","YE3008","Al Azariq","الأزارق","IDPs","Rapid Tracking","2024-02-20","YE30","Ad Dali","الضالع","YE3009","Al Husha","الحشاء","Conflict Reasons","General Insecure Conditions","No",null,null,1,0,0,0,0,0,0,1,0,0,0,{"$f":"IF(OR(COUNTIF(WestCoast[],IDPs[[#This Row],[Dis_Pcode]])>=1,COUNTIF(WestCoast[],#REF!)>=1),\"Yes\",\"No\")","v":"No"},{"$f":"IF(IDPs[[#This Row],[Gov_Pcode]]=IDPs[[#This Row],[Gov_Coming_Pcode]],\"Yes\",\"No\")","v":"Yes"},{"$f":"IF(IDPs[[#This Row],[Dis_Pcode]]=IDPs[[#This Row],[Dis_Coming_Pcode]],\"Yes\",\"No\")","v":"No"}]
["2024-02-24","2024-02-22","YE26","Marib","مأرب","YE2612","Marib City","مدينة مأرب","IDPs","Rapid Tracking","2024-02-20","YE26","Marib","مأرب","YE2609","Harib","حريب","Conflict Reasons","Combat / Shelling","No",null,null,2,0,0,0,1,0,0,1,0,0,0,{"$f":"IF(OR(COUNTIF(WestCoast[],IDPs[[#This Row],[Dis_Pcode]])>=1,COUNTIF(WestCoast[],#REF!)>=1),\"Yes\",\"No\")","v":"No"},{"$f":"IF(IDPs[[#This Row],[Gov_Pcode]]=IDPs[[#This Row],[Gov_Coming_Pcode]],\"Yes\",\"No\")","v":"Yes"},{"$f":"IF(IDPs[[#This Row],[Dis_Pcode]]=IDPs[[#This Row],[Dis_Coming_Pcode]],\"Yes\",\"No\")","v":"No"}]
["2024-02-24","2024-02-22","YE26","Marib","مأرب","YE2613","Marib","مأرب","IDPs","Rapid Tracking","2024-02-20","YE31","Raymah","ريمة","YE3102","As Salafiyyah","السلفية","Economic Reasons","Other economic reason","No",null,null,1,0,0,0,0,0,0,0,0,1,0,{"$f":"IF(OR(COUNTIF(WestCoast[],IDPs[[#This Row],[Dis_Pcode]])>=1,COUNTIF(WestCoast[],#REF!)>=1),\"Yes\",\"No\")","v":"No"},{"$f":"IF(IDPs[[#This Row],[Gov_Pcode]]=IDPs[[#This Row],[Gov_Coming_Pcode]],\"Yes\",\"No\")","v":"No"},{"$f":"IF(IDPs[[#This Row],[Dis_Pcode]]=IDPs[[#This Row],[Dis_Coming_Pcode]],\"Yes\",\"No\")","v":"No"}]
["2024-02-24","2024-02-24","YE30","Ad Dali","الضالع","YE3008","Al Azariq","الأزارق","IDPs","Rapid Tracking","2024-02-22","YE15","Taiz","تعز","YE1501","Mawiyah","ماوية","Conflict Reasons","General Insecure Conditions","No",null,null,1,0,0,0,0,0,0,1,0,0,0,{"$f":"IF(OR(COUNTIF(WestCoast[],IDPs[[#This Row],[Dis_Pcode]])>=1,COUNTIF(WestCoast[],#REF!)>=1),\"Yes\",\"No\")","v":"No"},{"$f":"IF(IDPs[[#This Row],[Gov_Pcode]]=IDPs[[#This Row],[Gov_Coming_Pcode]],\"Yes\",\"No\")","v":"No"},{"$f":"IF(IDPs[[#This Row],[Dis_Pcode]]=IDPs[[#This Row],[Dis_Coming_Pcode]],\"Yes\",\"No\")","v":"No"}]
["2024-02-24","2024-02-24","YE26","Marib","مأرب","YE2612","Marib City","مدينة مأرب","IDPs","Rapid Tracking","2024-02-22","YE29","Amran","عمران","YE2901","Harf Sufyan","حرف سفيان","Economic Reasons","Unemployment / Salary Cut","No",null,null,1,0,0,0,0,0,0,0,0,1,0,{"$f":"IF(OR(COUNTIF(WestCoast[],IDPs[[#This Row],[Dis_Pcode]])>=1,COUNTIF(WestCoast[],#REF!)>=1),\"Yes\",\"No\")","v":"No"},{"$f":"IF(IDPs[[#This Row],[Gov_Pcode]]=IDPs[[#This Row],[Gov_Coming_Pcode]],\"Yes\",\"No\")","v":"No"},{"$f":"IF(IDPs[[#This Row],[Dis_Pcode]]=IDPs[[#This Row],[Dis_Coming_Pcode]],\"Yes\",\"No\")","v":"No"}]
["2024-02-24","2024-02-24","YE26","Marib","مأرب","YE2612","Marib City","مدينة مأرب","IDPs","Rapid Tracking","2024-02-22","YE13","Sanaa City","أمانة العاصمة","YE1308","Main","معين","Economic Reasons","Unemployment / Salary Cut","No",null,null,1,0,0,0,0,0,0,1,0,0,0,{"$f":"IF(OR(COUNTIF(WestCoast[],IDPs[[#This Row],[Dis_Pcode]])>=1,COUNTIF(WestCoast[],#REF!)>=1),\"Yes\",\"No\")","v":"No"},{"$f":"IF(IDPs[[#This Row],[Gov_Pcode]]=IDPs[[#This Row],[Gov_Coming_Pcode]],\"Yes\",\"No\")","v":"No"},{"$f":"IF(IDPs[[#This Row],[Dis_Pcode]]=IDPs[[#This Row],[Dis_Coming_Pcode]],\"Yes\",\"No\")","v":"No"}]
["2024-02-24","2024-02-24","YE26","Marib","مأرب","YE2612","Marib City","مدينة مأرب","IDPs","Rapid Tracking","2024-02-22","YE26","Marib","مأرب","YE2608","Rahabah","رحبة","Conflict Reasons","General Insecure Conditions","No",null,null,3,0,0,0,2,0,0,1,0,0,0,{"$f":"IF(OR(COUNTIF(WestCoast[],IDPs[[#This Row],[Dis_Pcode]])>=1,COUNTIF(WestCoast[],#REF!)>=1),\"Yes\",\"No\")","v":"No"},{"$f":"IF(IDPs[[#This Row],[Gov_Pcode]]=IDPs[[#This Row],[Gov_Coming_Pcode]],\"Yes\",\"No\")","v":"Yes"},{"$f":"IF(IDPs[[#This Row],[Dis_Pcode]]=IDPs[[#This Row],[Dis_Coming_Pcode]],\"Yes\",\"No\")","v":"No"}]
["2024-02-27","2024-02-27","YE18","Al Hodeidah","الحديدة","YE1820","Al Khukhah","الخوخة","IDPs","Rapid Tracking","2024-02-20","YE15","Taiz","تعز","YE1519","Salah","صالة","Economic Reasons","Other economic reason","No",null,null,1,0,0,0,0,0,0,1,0,0,0,{"$f":"IF(OR(COUNTIF(WestCoast[],IDPs[[#This Row],[Dis_Pcode]])>=1,COUNTIF(WestCoast[],#REF!)>=1),\"Yes\",\"No\")","v":"Yes"},{"$f":"IF(IDPs[[#This Row],[Gov_Pcode]]=IDPs[[#This Row],[Gov_Coming_Pcode]],\"Yes\",\"No\")","v":"No"},{"$f":"IF(IDPs[[#This Row],[Dis_Pcode]]=IDPs[[#This Row],[Dis_Coming_Pcode]],\"Yes\",\"No\")","v":"No"}]
["2024-02-28","2024-02-28","YE15","Taiz","تعز","YE1522","Al Mawasit","المواسط","IDPs","Rapid Tracking","2024-02-20","YE18","Al Hodeidah","الحديدة","YE1819","Hays","حيس","Economic Reasons","Other economic reason","No",null,null,1,0,1,0,0,0,0,0,0,0,0,{"$f":"IF(OR(COUNTIF(WestCoast[],IDPs[[#This Row],[Dis_Pcode]])>=1,COUNTIF(WestCoast[],#REF!)>=1),\"Yes\",\"No\")","v":"No"},{"$f":"IF(IDPs[[#This Row],[Gov_Pcode]]=IDPs[[#This Row],[Gov_Coming_Pcode]],\"Yes\",\"No\")","v":"No"},{"$f":"IF(IDPs[[#This Row],[Dis_Pcode]]=IDPs[[#This Row],[Dis_Coming_Pcode]],\"Yes\",\"No\")","v":"No"}]
["2024-02-27","2024-02-27","YE18","Al Hodeidah","الحديدة","YE1820","Al Khukhah","الخوخة","IDPs","Rapid Tracking","2024-02-21","YE18","Al Hodeidah","الحديدة","YE1823","Al Hali","الحالي","Economic Reasons","Unemployment / Salary Cut","No",null,null,1,0,1,0,0,0,0,0,0,0,0,{"$f":"IF(OR(COUNTIF(WestCoast[],IDPs[[#This Row],[Dis_Pcode]])>=1,COUNTIF(WestCoast[],#REF!)>=1),\"Yes\",\"No\")","v":"Yes"},{"$f":"IF(IDPs[[#This Row],[Gov_Pcode]]=IDPs[[#This Row],[Gov_Coming_Pcode]],\"Yes\",\"No\")","v":"Yes"},{"$f":"IF(IDPs[[#This Row],[Dis_Pcode]]=IDPs[[#This Row],[Dis_Coming_Pcode]],\"Yes\",\"No\")","v":"No"}]
["2024-02-27","2024-02-27","YE18","Al Hodeidah","الحديدة","YE1820","Al Khukhah","الخوخة","IDPs","Rapid Tracking","2024-02-21","YE18","Al Hodeidah","الحديدة","YE1825","Al Jarrahi","الجراحي","Conflict Reasons","Combat / Shelling","No",null,null,6,0,2,0,0,1,0,3,0,0,0,{"$f":"IF(OR(COUNTIF(WestCoast[],IDPs[[#This Row],[Dis_Pcode]])>=1,COUNTIF(WestCoast[],#REF!)>=1),\"Yes\",\"No\")","v":"Yes"},{"$f":"IF(IDPs[[#This Row],[Gov_Pcode]]=IDPs[[#This Row],[Gov_Coming_Pcode]],\"Yes\",\"No\")","v":"Yes"},{"$f":"IF(IDPs[[#This Row],[Dis_Pcode]]=IDPs[[#This Row],[Dis_Coming_Pcode]],\"Yes\",\"No\")","v":"No"}]
["2024-02-27","2024-02-26","YE18","Al Hodeidah","الحديدة","YE1820","Al Khukhah","الخوخة","IDPs","Rapid Tracking","2024-02-21","YE18","Al Hodeidah","الحديدة","YE1826","At Tuhayta","التحيتا","Conflict Reasons","Combat / Shelling","Yes","Yes","Yes",2,0,2,0,0,0,0,0,0,0,0,{"$f":"IF(OR(COUNTIF(WestCoast[],IDPs[[#This Row],[Dis_Pcode]])>=1,COUNTIF(WestCoast[],#REF!)>=1),\"Yes\",\"No\")","v":"Yes"},{"$f":"IF(IDPs[[#This Row],[Gov_Pcode]]=IDPs[[#This Row],[Gov_Coming_Pcode]],\"Yes\",\"No\")","v":"Yes"},{"$f":"IF(IDPs[[#This Row],[Dis_Pcode]]=IDPs[[#This Row],[Dis_Coming_Pcode]],\"Yes\",\"No\")","v":"No"}]
["2024-02-29","2024-02-28","YE18","Al Hodeidah","الحديدة","YE1819","Hays","حيس","IDPs","Rapid Tracking","2024-02-21","YE18","Al Hodeidah","الحديدة","YE1822","Al Mina","الميناء","Conflict Reasons","Combat / Shelling","No",null,null,5,0,1,0,0,1,0,3,0,0,0,{"$f":"IF(OR(COUNTIF(WestCoast[],IDPs[[#This Row],[Dis_Pcode]])>=1,COUNTIF(WestCoast[],#REF!)>=1),\"Yes\",\"No\")","v":"Yes"},{"$f":"IF(IDPs[[#This Row],[Gov_Pcode]]=IDPs[[#This Row],[Gov_Coming_Pcode]],\"Yes\",\"No\")","v":"Yes"},{"$f":"IF(IDPs[[#This Row],[Dis_Pcode]]=IDPs[[#This Row],[Dis_Coming_Pcode]],\"Yes\",\"No\")","v":"No"}]
["2024-02-27","2024-02-27","YE18","Al Hodeidah","الحديدة","YE1820","Al Khukhah","الخوخة","IDPs","Rapid Tracking","2024-02-22","YE15","Taiz","تعز","YE1504","Maqbanah","مقبنة","Conflict Reasons","Combat / Shelling","No",null,null,4,0,2,0,0,0,0,2,0,0,0,{"$f":"IF(OR(COUNTIF(WestCoast[],IDPs[[#This Row],[Dis_Pcode]])>=1,COUNTIF(WestCoast[],#REF!)>=1),\"Yes\",\"No\")","v":"Yes"},{"$f":"IF(IDPs[[#This Row],[Gov_Pcode]]=IDPs[[#This Row],[Gov_Coming_Pcode]],\"Yes\",\"No\")","v":"No"},{"$f":"IF(IDPs[[#This Row],[Dis_Pcode]]=IDPs[[#This Row],[Dis_Coming_Pcode]],\"Yes\",\"No\")","v":"No"}]
["2024-02-27","2024-02-27","YE18","Al Hodeidah","الحديدة","YE1820","Al Khukhah","الخوخة","IDPs","Rapid Tracking","2024-02-22","YE18","Al Hodeidah","الحديدة","YE1825","Al Jarrahi","الجراحي","Conflict Reasons","Combat / Shelling","No",null,null,2,0,0,0,0,0,0,2,0,0,0,{"$f":"IF(OR(COUNTIF(WestCoast[],IDPs[[#This Row],[Dis_Pcode]])>=1,COUNTIF(WestCoast[],#REF!)>=1),\"Yes\",\"No\")","v":"Yes"},{"$f":"IF(IDPs[[#This Row],[Gov_Pcode]]=IDPs[[#This Row],[Gov_Coming_Pcode]],\"Yes\",\"No\")","v":"Yes"},{"$f":"IF(IDPs[[#This Row],[Dis_Pcode]]=IDPs[[#This Row],[Dis_Coming_Pcode]],\"Yes\",\"No\")","v":"No"}]
["2024-02-29","2024-02-28","YE18","Al Hodeidah","الحديدة","YE1820","Al Khukhah","الخوخة","IDPs","Rapid Tracking","2024-02-22","YE18","Al Hodeidah","الحديدة","YE1826","At Tuhayta","التحيتا","Conflict Reasons","Combat / Shelling","Yes","Yes","Yes",2,0,2,0,0,0,0,0,0,0,0,{"$f":"IF(OR(COUNTIF(WestCoast[],IDPs[[#This Row],[Dis_Pcode]])>=1,COUNTIF(WestCoast[],#REF!)>=1),\"Yes\",\"No\")","v":"Yes"},{"$f":"IF(IDPs[[#This Row],[Gov_Pcode]]=IDPs[[#This Row],[Gov_Coming_Pcode]],\"Yes\",\"No\")","v":"Yes"},{"$f":"IF(IDPs[[#This Row],[Dis_Pcode]]=IDPs[[#This Row],[Dis_Coming_Pcode]],\"Yes\",\"No\")","v":"No"}]
["2024-02-27","2024-02-27","YE18","Al Hodeidah","الحديدة","YE1820","Al Khukhah","الخوخة","IDPs","Rapid Tracking","2024-02-23","YE18","Al Hodeidah","الحديدة","YE1823","Al Hali","الحالي","Economic Reasons","Other economic reason","No",null,null,1,0,0,0,0,0,0,1,0,0,0,{"$f":"IF(OR(COUNTIF(WestCoast[],IDPs[[#This Row],[Dis_Pcode]])>=1,COUNTIF(WestCoast[],#REF!)>=1),\"Yes\",\"No\")","v":"Yes"},{"$f":"IF(IDPs[[#This Row],[Gov_Pcode]]=IDPs[[#This Row],[Gov_Coming_Pcode]],\"Yes\",\"No\")","v":"Yes"},{"$f":"IF(IDPs[[#This Row],[Dis_Pcode]]=IDPs[[#This Row],[Dis_Coming_Pcode]],\"Yes\",\"No\")","v":"No"}]
["2024-03-02","2024-02-25","YE26","Marib","مأرب","YE2612","Marib City","مدينة مأرب","IDPs","Rapid Tracking","2024-02-23","YE17","Hajjah","حجة","YE1704","Abs","عبس","Economic Reasons","Unemployment / Salary Cut","No",null,null,2,0,0,0,1,1,0,0,0,0,0,{"$f":"IF(OR(COUNTIF(WestCoast[],IDPs[[#This Row],[Dis_Pcode]])>=1,COUNTIF(WestCoast[],#REF!)>=1),\"Yes\",\"No\")","v":"No"},{"$f":"IF(IDPs[[#This Row],[Gov_Pcode]]=IDPs[[#This Row],[Gov_Coming_Pcode]],\"Yes\",\"No\")","v":"No"},{"$f":"IF(IDPs[[#This Row],[Dis_Pcode]]=IDPs[[#This Row],[Dis_Coming_Pcode]],\"Yes\",\"No\")","v":"No"}]
["2024-02-27","2024-02-27","YE18","Al Hodeidah","الحديدة","YE1820","Al Khukhah","الخوخة","IDPs","Rapid Tracking","2024-02-24","YE18","Al Hodeidah","الحديدة","YE1821","Al Hawak","الحوك","Economic Reasons","Other economic reason","No",null,null,2,0,0,0,0,0,0,1,0,1,0,{"$f":"IF(OR(COUNTIF(WestCoast[],IDPs[[#This Row],[Dis_Pcode]])>=1,COUNTIF(WestCoast[],#REF!)>=1),\"Yes\",\"No\")","v":"Yes"},{"$f":"IF(IDPs[[#This Row],[Gov_Pcode]]=IDPs[[#This Row],[Gov_Coming_Pcode]],\"Yes\",\"No\")","v":"Yes"},{"$f":"IF(IDPs[[#This Row],[Dis_Pcode]]=IDPs[[#This Row],[Dis_Coming_Pcode]],\"Yes\",\"No\")","v":"No"}]
["2024-03-02","2024-02-25","YE26","Marib","مأرب","YE2612","Marib City","مدينة مأرب","IDPs","Rapid Tracking","2024-02-24","YE26","Marib","مأرب","YE2609","Harib","حريب","Conflict Reasons","General Insecure Conditions","No",null,null,1,0,0,0,0,0,0,1,0,0,0,{"$f":"IF(OR(COUNTIF(WestCoast[],IDPs[[#This Row],[Dis_Pcode]])>=1,COUNTIF(WestCoast[],#REF!)>=1),\"Yes\",\"No\")","v":"No"},{"$f":"IF(IDPs[[#This Row],[Gov_Pcode]]=IDPs[[#This Row],[Gov_Coming_Pcode]],\"Yes\",\"No\")","v":"Yes"},{"$f":"IF(IDPs[[#This Row],[Dis_Pcode]]=IDPs[[#This Row],[Dis_Coming_Pcode]],\"Yes\",\"No\")","v":"No"}]
["2024-03-02","2024-02-26","YE26","Marib","مأرب","YE2612","Marib City","مدينة مأرب","IDPs","Rapid Tracking","2024-02-24","YE31","Raymah","ريمة","YE3104","Mazhar","مزهر","Economic Reasons","Other economic reason","No",null,null,1,0,0,0,1,0,0,0,0,0,0,{"$f":"IF(OR(COUNTIF(WestCoast[],IDPs[[#This Row],[Dis_Pcode]])>=1,COUNTIF(WestCoast[],#REF!)>=1),\"Yes\",\"No\")","v":"No"},{"$f":"IF(IDPs[[#This Row],[Gov_Pcode]]=IDPs[[#This Row],[Gov_Coming_Pcode]],\"Yes\",\"No\")","v":"No"},{"$f":"IF(IDPs[[#This Row],[Dis_Pcode]]=IDPs[[#This Row],[Dis_Coming_Pcode]],\"Yes\",\"No\")","v":"No"}]
["2024-03-02","2024-02-26","YE26","Marib","مأرب","YE2613","Marib","مأرب","IDPs","Rapid Tracking","2024-02-24","YE11","Ibb","إب","YE1108","Hobeish","حبيش","Economic Reasons","Other economic reason","No",null,null,2,0,0,0,0,1,0,0,0,1,0,{"$f":"IF(OR(COUNTIF(WestCoast[],IDPs[[#This Row],[Dis_Pcode]])>=1,COUNTIF(WestCoast[],#REF!)>=1),\"Yes\",\"No\")","v":"No"},{"$f":"IF(IDPs[[#This Row],[Gov_Pcode]]=IDPs[[#This Row],[Gov_Coming_Pcode]],\"Yes\",\"No\")","v":"No"},{"$f":"IF(IDPs[[#This Row],[Dis_Pcode]]=IDPs[[#This Row],[Dis_Coming_Pcode]],\"Yes\",\"No\")","v":"No"}]
["2024-03-02","2024-02-28","YE26","Marib","مأرب","YE2613","Marib","مأرب","IDPs","Rapid Tracking","2024-02-24","YE15","Taiz","تعز","YE1510","Sabir Al Mawadim","صبر الموادم","Conflict Reasons","General Insecure Conditions","No",null,null,1,0,0,0,0,0,0,1,0,0,0,{"$f":"IF(OR(COUNTIF(WestCoast[],IDPs[[#This Row],[Dis_Pcode]])>=1,COUNTIF(WestCoast[],#REF!)>=1),\"Yes\",\"No\")","v":"No"},{"$f":"IF(IDPs[[#This Row],[Gov_Pcode]]=IDPs[[#This Row],[Gov_Coming_Pcode]],\"Yes\",\"No\")","v":"No"},{"$f":"IF(IDPs[[#This Row],[Dis_Pcode]]=IDPs[[#This Row],[Dis_Coming_Pcode]],\"Yes\",\"No\")","v":"No"}]
["2024-03-02","2024-02-29","YE26","Marib","مأرب","YE2612","Marib City","مدينة مأرب","IDPs","Rapid Tracking","2024-02-24","YE15","Taiz","تعز","YE1501","Mawiyah","ماوية","Economic Reasons","Unemployment / Salary Cut","No",null,null,1,0,0,0,0,0,0,1,0,0,0,{"$f":"IF(OR(COUNTIF(WestCoast[],IDPs[[#This Row],[Dis_Pcode]])>=1,COUNTIF(WestCoast[],#REF!)>=1),\"Yes\",\"No\")","v":"No"},{"$f":"IF(IDPs[[#This Row],[Gov_Pcode]]=IDPs[[#This Row],[Gov_Coming_Pcode]],\"Yes\",\"No\")","v":"No"},{"$f":"IF(IDPs[[#This Row],[Dis_Pcode]]=IDPs[[#This Row],[Dis_Coming_Pcode]],\"Yes\",\"No\")","v":"No"}]
["2024-02-29","2024-02-29","YE18","Al Hodeidah","الحديدة","YE1819","Hays","حيس","IDPs","Rapid Tracking","2024-02-25","YE15","Taiz","تعز","YE1504","Maqbanah","مقبنة","Conflict Reasons","Combat / Shelling","No",null,null,3,0,0,0,0,1,0,2,0,0,0,{"$f":"IF(OR(COUNTIF(WestCoast[],IDPs[[#This Row],[Dis_Pcode]])>=1,COUNTIF(WestCoast[],#REF!)>=1),\"Yes\",\"No\")","v":"Yes"},{"$f":"IF(IDPs[[#This Row],[Gov_Pcode]]=IDPs[[#This Row],[Gov_Coming_Pcode]],\"Yes\",\"No\")","v":"No"},{"$f":"IF(IDPs[[#This Row],[Dis_Pcode]]=IDPs[[#This Row],[Dis_Coming_Pcode]],\"Yes\",\"No\")","v":"No"}]
["2024-02-29","2024-02-29","YE18","Al Hodeidah","الحديدة","YE1819","Hays","حيس","IDPs","Rapid Tracking","2024-02-25","YE18","Al Hodeidah","الحديدة","YE1819","Hays","حيس","Conflict Reasons","Combat / Shelling","No",null,null,2,0,2,0,0,0,0,0,0,0,0,{"$f":"IF(OR(COUNTIF(WestCoast[],IDPs[[#This Row],[Dis_Pcode]])>=1,COUNTIF(WestCoast[],#REF!)>=1),\"Yes\",\"No\")","v":"Yes"},{"$f":"IF(IDPs[[#This Row],[Gov_Pcode]]=IDPs[[#This Row],[Gov_Coming_Pcode]],\"Yes\",\"No\")","v":"Yes"},{"$f":"IF(IDPs[[#This Row],[Dis_Pcode]]=IDPs[[#This Row],[Dis_Coming_Pcode]],\"Yes\",\"No\")","v":"Yes"}]
["2024-02-29","2024-02-29","YE18","Al Hodeidah","الحديدة","YE1819","Hays","حيس","IDPs","Rapid Tracking","2024-02-25","YE18","Al Hodeidah","الحديدة","YE1825","Al Jarrahi","الجراحي","Conflict Reasons","Combat / Shelling","No",null,null,2,0,1,0,0,0,0,1,0,0,0,{"$f":"IF(OR(COUNTIF(WestCoast[],IDPs[[#This Row],[Dis_Pcode]])>=1,COUNTIF(WestCoast[],#REF!)>=1),\"Yes\",\"No\")","v":"Yes"},{"$f":"IF(IDPs[[#This Row],[Gov_Pcode]]=IDPs[[#This Row],[Gov_Coming_Pcode]],\"Yes\",\"No\")","v":"Yes"},{"$f":"IF(IDPs[[#This Row],[Dis_Pcode]]=IDPs[[#This Row],[Dis_Coming_Pcode]],\"Yes\",\"No\")","v":"No"}]
["2024-02-29","2024-02-29","YE18","Al Hodeidah","الحديدة","YE1819","Hays","حيس","IDPs","Rapid Tracking","2024-02-25","YE18","Al Hodeidah","الحديدة","YE1819","Hays","حيس","Conflict Reasons","Combat / Shelling","No",null,null,2,0,0,0,1,0,0,1,0,0,0,{"$f":"IF(OR(COUNTIF(WestCoast[],IDPs[[#This Row],[Dis_Pcode]])>=1,COUNTIF(WestCoast[],#REF!)>=1),\"Yes\",\"No\")","v":"Yes"},{"$f":"IF(IDPs[[#This Row],[Gov_Pcode]]=IDPs[[#This Row],[Gov_Coming_Pcode]],\"Yes\",\"No\")","v":"Yes"},{"$f":"IF(IDPs[[#This Row],[Dis_Pcode]]=IDPs[[#This Row],[Dis_Coming_Pcode]],\"Yes\",\"No\")","v":"Yes"}]
["2024-03-02","2024-02-25","YE26","Marib","مأرب","YE2612","Marib City","مدينة مأرب","IDPs","Rapid Tracking","2024-02-25","YE27","Al Mahwit","المحويت","YE2704","Al Khabt","الخبت","Economic Reasons","Increasing market prices","No",null,null,1,0,1,0,0,0,0,0,0,0,0,{"$f":"IF(OR(COUNTIF(WestCoast[],IDPs[[#This Row],[Dis_Pcode]])>=1,COUNTIF(WestCoast[],#REF!)>=1),\"Yes\",\"No\")","v":"No"},{"$f":"IF(IDPs[[#This Row],[Gov_Pcode]]=IDPs[[#This Row],[Gov_Coming_Pcode]],\"Yes\",\"No\")","v":"No"},{"$f":"IF(IDPs[[#This Row],[Dis_Pcode]]=IDPs[[#This Row],[Dis_Coming_Pcode]],\"Yes\",\"No\")","v":"No"}]
["2024-03-02","2024-02-28","YE26","Marib","مأرب","YE2612","Marib City","مدينة مأرب","IDPs","Rapid Tracking","2024-02-25","YE23","Sanaa","صنعاء","YE2316","Jihanah","جحانة","Economic Reasons","Other economic reason","No",null,null,1,0,0,0,1,0,0,0,0,0,0,{"$f":"IF(OR(COUNTIF(WestCoast[],IDPs[[#This Row],[Dis_Pcode]])>=1,COUNTIF(WestCoast[],#REF!)>=1),\"Yes\",\"No\")","v":"No"},{"$f":"IF(IDPs[[#This Row],[Gov_Pcode]]=IDPs[[#This Row],[Gov_Coming_Pcode]],\"Yes\",\"No\")","v":"No"},{"$f":"IF(IDPs[[#This Row],[Dis_Pcode]]=IDPs[[#This Row],[Dis_Coming_Pcode]],\"Yes\",\"No\")","v":"No"}]
["2024-03-02","2024-02-28","YE26","Marib","مأرب","YE2613","Marib","مأرب","IDPs","Rapid Tracking","2024-02-25","YE26","Marib","مأرب","YE2606","Sirwah","صرواح","Economic Reasons","Unemployment / Salary Cut","No",null,null,1,0,0,0,0,0,0,1,0,0,0,{"$f":"IF(OR(COUNTIF(WestCoast[],IDPs[[#This Row],[Dis_Pcode]])>=1,COUNTIF(WestCoast[],#REF!)>=1),\"Yes\",\"No\")","v":"No"},{"$f":"IF(IDPs[[#This Row],[Gov_Pcode]]=IDPs[[#This Row],[Gov_Coming_Pcode]],\"Yes\",\"No\")","v":"Yes"},{"$f":"IF(IDPs[[#This Row],[Dis_Pcode]]=IDPs[[#This Row],[Dis_Coming_Pcode]],\"Yes\",\"No\")","v":"No"}]
["2024-03-02","2024-02-29","YE26","Marib","مأرب","YE2612","Marib City","مدينة مأرب","IDPs","Rapid Tracking","2024-02-25","YE23","Sanaa","صنعاء","YE2302","Arhab","أرحب","Conflict Reasons","General Insecure Conditions","No",null,null,1,0,0,0,1,0,0,0,0,0,0,{"$f":"IF(OR(COUNTIF(WestCoast[],IDPs[[#This Row],[Dis_Pcode]])>=1,COUNTIF(WestCoast[],#REF!)>=1),\"Yes\",\"No\")","v":"No"},{"$f":"IF(IDPs[[#This Row],[Gov_Pcode]]=IDPs[[#This Row],[Gov_Coming_Pcode]],\"Yes\",\"No\")","v":"No"},{"$f":"IF(IDPs[[#This Row],[Dis_Pcode]]=IDPs[[#This Row],[Dis_Coming_Pcode]],\"Yes\",\"No\")","v":"No"}]
["2024-03-02","2024-02-29","YE26","Marib","مأرب","YE2613","Marib","مأرب","IDPs","Rapid Tracking","2024-02-25","YE16","Al Jawf","الجوف","YE1601","Khab wa Ash Shaf","خب و الشعف","Conflict Reasons","General Insecure Conditions","No",null,null,1,0,0,0,0,0,0,1,0,0,0,{"$f":"IF(OR(COUNTIF(WestCoast[],IDPs[[#This Row],[Dis_Pcode]])>=1,COUNTIF(WestCoast[],#REF!)>=1),\"Yes\",\"No\")","v":"No"},{"$f":"IF(IDPs[[#This Row],[Gov_Pcode]]=IDPs[[#This Row],[Gov_Coming_Pcode]],\"Yes\",\"No\")","v":"No"},{"$f":"IF(IDPs[[#This Row],[Dis_Pcode]]=IDPs[[#This Row],[Dis_Coming_Pcode]],\"Yes\",\"No\")","v":"No"}]
["2024-03-02","2024-03-01","YE26","Marib","مأرب","YE2612","Marib City","مدينة مأرب","IDPs","Rapid Tracking","2024-02-25","YE20","Dhamar","ذمار","YE2002","Jahran","جهران","Economic Reasons","Unemployment / Salary Cut","No",null,null,1,0,1,0,0,0,0,0,0,0,0,{"$f":"IF(OR(COUNTIF(WestCoast[],IDPs[[#This Row],[Dis_Pcode]])>=1,COUNTIF(WestCoast[],#REF!)>=1),\"Yes\",\"No\")","v":"No"},{"$f":"IF(IDPs[[#This Row],[Gov_Pcode]]=IDPs[[#This Row],[Gov_Coming_Pcode]],\"Yes\",\"No\")","v":"No"},{"$f":"IF(IDPs[[#This Row],[Dis_Pcode]]=IDPs[[#This Row],[Dis_Coming_Pcode]],\"Yes\",\"No\")","v":"No"}]
["2024-02-27","2024-02-27","YE18","Al Hodeidah","الحديدة","YE1820","Al Khukhah","الخوخة","IDPs","Rapid Tracking","2024-02-26","YE18","Al Hodeidah","الحديدة","YE1814","Ad Durayhimi","الدريهمي","Economic Reasons","Other economic reason","No",null,null,1,0,1,0,0,0,0,0,0,0,0,{"$f":"IF(OR(COUNTIF(WestCoast[],IDPs[[#This Row],[Dis_Pcode]])>=1,COUNTIF(WestCoast[],#REF!)>=1),\"Yes\",\"No\")","v":"Yes"},{"$f":"IF(IDPs[[#This Row],[Gov_Pcode]]=IDPs[[#This Row],[Gov_Coming_Pcode]],\"Yes\",\"No\")","v":"Yes"},{"$f":"IF(IDPs[[#This Row],[Dis_Pcode]]=IDPs[[#This Row],[Dis_Coming_Pcode]],\"Yes\",\"No\")","v":"No"}]
["2024-02-27","2024-02-27","YE18","Al Hodeidah","الحديدة","YE1820","Al Khukhah","الخوخة","IDPs","Rapid Tracking","2024-02-26","YE18","Al Hodeidah","الحديدة","YE1813","Al Marawiah","المراوعة","Economic Reasons","Other economic reason","No",null,null,1,0,1,0,0,0,0,0,0,0,0,{"$f":"IF(OR(COUNTIF(WestCoast[],IDPs[[#This Row],[Dis_Pcode]])>=1,COUNTIF(WestCoast[],#REF!)>=1),\"Yes\",\"No\")","v":"Yes"},{"$f":"IF(IDPs[[#This Row],[Gov_Pcode]]=IDPs[[#This Row],[Gov_Coming_Pcode]],\"Yes\",\"No\")","v":"Yes"},{"$f":"IF(IDPs[[#This Row],[Dis_Pcode]]=IDPs[[#This Row],[Dis_Coming_Pcode]],\"Yes\",\"No\")","v":"No"}]
["2024-03-01","2024-03-01","YE15","Taiz","تعز","YE1521","Al Maafer","المعافر","IDPs","Rapid Tracking","2024-02-26","YE15","Taiz","تعز","YE1515","Al Waziyah","الوازعية","Conflict Reasons","General Insecure Conditions","Yes","No",null,1,0,0,0,1,0,0,0,0,0,0,{"$f":"IF(OR(COUNTIF(WestCoast[],IDPs[[#This Row],[Dis_Pcode]])>=1,COUNTIF(WestCoast[],#REF!)>=1),\"Yes\",\"No\")","v":"No"},{"$f":"IF(IDPs[[#This Row],[Gov_Pcode]]=IDPs[[#This Row],[Gov_Coming_Pcode]],\"Yes\",\"No\")","v":"Yes"},{"$f":"IF(IDPs[[#This Row],[Dis_Pcode]]=IDPs[[#This Row],[Dis_Coming_Pcode]],\"Yes\",\"No\")","v":"No"}]
["2024-03-02","2024-02-26","YE26","Marib","مأرب","YE2613","Marib","مأرب","IDPs","Rapid Tracking","2024-02-26","YE13","Sanaa City","أمانة العاصمة","YE1308","Main","معين","Economic Reasons","Unemployment / Salary Cut","No",null,null,1,0,0,0,0,0,0,0,0,1,0,{"$f":"IF(OR(COUNTIF(WestCoast[],IDPs[[#This Row],[Dis_Pcode]])>=1,COUNTIF(WestCoast[],#REF!)>=1),\"Yes\",\"No\")","v":"No"},{"$f":"IF(IDPs[[#This Row],[Gov_Pcode]]=IDPs[[#This Row],[Gov_Coming_Pcode]],\"Yes\",\"No\")","v":"No"},{"$f":"IF(IDPs[[#This Row],[Dis_Pcode]]=IDPs[[#This Row],[Dis_Coming_Pcode]],\"Yes\",\"No\")","v":"No"}]
["2024-03-02","2024-02-28","YE26","Marib","مأرب","YE2612","Marib City","مدينة مأرب","IDPs","Rapid Tracking","2024-02-26","YE22","Sadah","صعدة","YE2214","Kitaf wa Al Boqa","كتاف والبقع","Conflict Reasons","General Insecure Conditions","No",null,null,1,0,0,0,0,0,0,0,0,0,1,{"$f":"IF(OR(COUNTIF(WestCoast[],IDPs[[#This Row],[Dis_Pcode]])>=1,COUNTIF(WestCoast[],#REF!)>=1),\"Yes\",\"No\")","v":"No"},{"$f":"IF(IDPs[[#This Row],[Gov_Pcode]]=IDPs[[#This Row],[Gov_Coming_Pcode]],\"Yes\",\"No\")","v":"No"},{"$f":"IF(IDPs[[#This Row],[Dis_Pcode]]=IDPs[[#This Row],[Dis_Coming_Pcode]],\"Yes\",\"No\")","v":"No"}]
["2024-03-02","2024-02-28","YE26","Marib","مأرب","YE2613","Marib","مأرب","IDPs","Rapid Tracking","2024-02-26","YE23","Sanaa","صنعاء","YE2314","Bani Dabyan","بني ضبيان","Economic Reasons","Other economic reason","No",null,null,1,0,0,0,0,0,0,1,0,0,0,{"$f":"IF(OR(COUNTIF(WestCoast[],IDPs[[#This Row],[Dis_Pcode]])>=1,COUNTIF(WestCoast[],#REF!)>=1),\"Yes\",\"No\")","v":"No"},{"$f":"IF(IDPs[[#This Row],[Gov_Pcode]]=IDPs[[#This Row],[Gov_Coming_Pcode]],\"Yes\",\"No\")","v":"No"},{"$f":"IF(IDPs[[#This Row],[Dis_Pcode]]=IDPs[[#This Row],[Dis_Coming_Pcode]],\"Yes\",\"No\")","v":"No"}]
["2024-03-02","2024-02-29","YE26","Marib","مأرب","YE2612","Marib City","مدينة مأرب","IDPs","Rapid Tracking","2024-02-26","YE26","Marib","مأرب","YE2607","Al Jubah","الجوبة","Economic Reasons","Unemployment / Salary Cut","No",null,null,1,0,0,0,0,1,0,0,0,0,0,{"$f":"IF(OR(COUNTIF(WestCoast[],IDPs[[#This Row],[Dis_Pcode]])>=1,COUNTIF(WestCoast[],#REF!)>=1),\"Yes\",\"No\")","v":"No"},{"$f":"IF(IDPs[[#This Row],[Gov_Pcode]]=IDPs[[#This Row],[Gov_Coming_Pcode]],\"Yes\",\"No\")","v":"Yes"},{"$f":"IF(IDPs[[#This Row],[Dis_Pcode]]=IDPs[[#This Row],[Dis_Coming_Pcode]],\"Yes\",\"No\")","v":"No"}]
["2024-03-02","2024-02-29","YE26","Marib","مأرب","YE2613","Marib","مأرب","IDPs","Rapid Tracking","2024-02-26","YE23","Sanaa","صنعاء","YE2312","Khawlan","خولان","Conflict Reasons","General Insecure Conditions","No",null,null,1,0,0,0,0,0,0,1,0,0,0,{"$f":"IF(OR(COUNTIF(WestCoast[],IDPs[[#This Row],[Dis_Pcode]])>=1,COUNTIF(WestCoast[],#REF!)>=1),\"Yes\",\"No\")","v":"No"},{"$f":"IF(IDPs[[#This Row],[Gov_Pcode]]=IDPs[[#This Row],[Gov_Coming_Pcode]],\"Yes\",\"No\")","v":"No"},{"$f":"IF(IDPs[[#This Row],[Dis_Pcode]]=IDPs[[#This Row],[Dis_Coming_Pcode]],\"Yes\",\"No\")","v":"No"}]
["2024-03-02","2024-03-02","YE30","Ad Dali","الضالع","YE3006","Ad Dali","الضالع","IDPs","Rapid Tracking","2024-02-26","YE30","Ad Dali","الضالع","YE3003","Qatabah","قعطبة","Conflict Reasons","Combat / Shelling","No",null,null,1,0,0,0,0,0,0,1,0,0,0,{"$f":"IF(OR(COUNTIF(WestCoast[],IDPs[[#This Row],[Dis_Pcode]])>=1,COUNTIF(WestCoast[],#REF!)>=1),\"Yes\",\"No\")","v":"No"},{"$f":"IF(IDPs[[#This Row],[Gov_Pcode]]=IDPs[[#This Row],[Gov_Coming_Pcode]],\"Yes\",\"No\")","v":"Yes"},{"$f":"IF(IDPs[[#This Row],[Dis_Pcode]]=IDPs[[#This Row],[Dis_Coming_Pcode]],\"Yes\",\"No\")","v":"No"}]
["2024-02-29","2024-02-28","YE18","Al Hodeidah","الحديدة","YE1819","Hays","حيس","IDPs","Rapid Tracking","2024-02-27","YE15","Taiz","تعز","YE1504","Maqbanah","مقبنة","Conflict Reasons","Combat / Shelling","No",null,null,3,0,1,0,0,0,0,2,0,0,0,{"$f":"IF(OR(COUNTIF(WestCoast[],IDPs[[#This Row],[Dis_Pcode]])>=1,COUNTIF(WestCoast[],#REF!)>=1),\"Yes\",\"No\")","v":"Yes"},{"$f":"IF(IDPs[[#This Row],[Gov_Pcode]]=IDPs[[#This Row],[Gov_Coming_Pcode]],\"Yes\",\"No\")","v":"No"},{"$f":"IF(IDPs[[#This Row],[Dis_Pcode]]=IDPs[[#This Row],[Dis_Coming_Pcode]],\"Yes\",\"No\")","v":"No"}]
["2024-03-02","2024-02-28","YE26","Marib","مأرب","YE2612","Marib City","مدينة مأرب","IDPs","Rapid Tracking","2024-02-27","YE29","Amran","عمران","YE2919","Khamir","خمر","Economic Reasons","Unemployment / Salary Cut","No",null,null,1,0,0,0,0,0,0,1,0,0,0,{"$f":"IF(OR(COUNTIF(WestCoast[],IDPs[[#This Row],[Dis_Pcode]])>=1,COUNTIF(WestCoast[],#REF!)>=1),\"Yes\",\"No\")","v":"No"},{"$f":"IF(IDPs[[#This Row],[Gov_Pcode]]=IDPs[[#This Row],[Gov_Coming_Pcode]],\"Yes\",\"No\")","v":"No"},{"$f":"IF(IDPs[[#This Row],[Dis_Pcode]]=IDPs[[#This Row],[Dis_Coming_Pcode]],\"Yes\",\"No\")","v":"No"}]
["2024-03-02","2024-02-28","YE26","Marib","مأرب","YE2612","Marib City","مدينة مأرب","IDPs","Rapid Tracking","2024-02-27","YE26","Marib","مأرب","YE2609","Harib","حريب","Conflict Reasons","Combat / Shelling","No",null,null,1,0,0,0,0,0,0,1,0,0,0,{"$f":"IF(OR(COUNTIF(WestCoast[],IDPs[[#This Row],[Dis_Pcode]])>=1,COUNTIF(WestCoast[],#REF!)>=1),\"Yes\",\"No\")","v":"No"},{"$f":"IF(IDPs[[#This Row],[Gov_Pcode]]=IDPs[[#This Row],[Gov_Coming_Pcode]],\"Yes\",\"No\")","v":"Yes"},{"$f":"IF(IDPs[[#This Row],[Dis_Pcode]]=IDPs[[#This Row],[Dis_Coming_Pcode]],\"Yes\",\"No\")","v":"No"}]
["2024-03-02","2024-02-29","YE26","Marib","مأرب","YE2612","Marib City","مدينة مأرب","IDPs","Rapid Tracking","2024-02-27","YE15","Taiz","تعز","YE1520","At Taiziyah","التعزية","Economic Reasons","Unemployment / Salary Cut","No",null,null,1,0,0,0,0,1,0,0,0,0,0,{"$f":"IF(OR(COUNTIF(WestCoast[],IDPs[[#This Row],[Dis_Pcode]])>=1,COUNTIF(WestCoast[],#REF!)>=1),\"Yes\",\"No\")","v":"No"},{"$f":"IF(IDPs[[#This Row],[Gov_Pcode]]=IDPs[[#This Row],[Gov_Coming_Pcode]],\"Yes\",\"No\")","v":"No"},{"$f":"IF(IDPs[[#This Row],[Dis_Pcode]]=IDPs[[#This Row],[Dis_Coming_Pcode]],\"Yes\",\"No\")","v":"No"}]
["2024-03-02","2024-02-29","YE26","Marib","مأرب","YE2612","Marib City","مدينة مأرب","IDPs","Rapid Tracking","2024-02-27","YE15","Taiz","تعز","YE1513","As Silw","الصلو","Economic Reasons","Other economic reason","No",null,null,1,0,1,0,0,0,0,0,0,0,0,{"$f":"IF(OR(COUNTIF(WestCoast[],IDPs[[#This Row],[Dis_Pcode]])>=1,COUNTIF(WestCoast[],#REF!)>=1),\"Yes\",\"No\")","v":"No"},{"$f":"IF(IDPs[[#This Row],[Gov_Pcode]]=IDPs[[#This Row],[Gov_Coming_Pcode]],\"Yes\",\"No\")","v":"No"},{"$f":"IF(IDPs[[#This Row],[Dis_Pcode]]=IDPs[[#This Row],[Dis_Coming_Pcode]],\"Yes\",\"No\")","v":"No"}]
["2024-03-02","2024-02-29","YE26","Marib","مأرب","YE2612","Marib City","مدينة مأرب","IDPs","Rapid Tracking","2024-02-27","YE19","Hadramawt","حضرموت","YE1906","Al Abr","العبر","Economic Reasons","Unemployment / Salary Cut","Yes","No",null,1,0,0,0,0,1,0,0,0,0,0,{"$f":"IF(OR(COUNTIF(WestCoast[],IDPs[[#This Row],[Dis_Pcode]])>=1,COUNTIF(WestCoast[],#REF!)>=1),\"Yes\",\"No\")","v":"No"},{"$f":"IF(IDPs[[#This Row],[Gov_Pcode]]=IDPs[[#This Row],[Gov_Coming_Pcode]],\"Yes\",\"No\")","v":"No"},{"$f":"IF(IDPs[[#This Row],[Dis_Pcode]]=IDPs[[#This Row],[Dis_Coming_Pcode]],\"Yes\",\"No\")","v":"No"}]
["2024-03-02","2024-02-29","YE26","Marib","مأرب","YE2613","Marib","مأرب","IDPs","Rapid Tracking","2024-02-27","YE18","Al Hodeidah","الحديدة","YE1808","Al Mighlaf","المغلاف","Economic Reasons","Other economic reason","No",null,null,1,0,0,0,1,0,0,0,0,0,0,{"$f":"IF(OR(COUNTIF(WestCoast[],IDPs[[#This Row],[Dis_Pcode]])>=1,COUNTIF(WestCoast[],#REF!)>=1),\"Yes\",\"No\")","v":"No"},{"$f":"IF(IDPs[[#This Row],[Gov_Pcode]]=IDPs[[#This Row],[Gov_Coming_Pcode]],\"Yes\",\"No\")","v":"No"},{"$f":"IF(IDPs[[#This Row],[Dis_Pcode]]=IDPs[[#This Row],[Dis_Coming_Pcode]],\"Yes\",\"No\")","v":"No"}]
["2024-03-02","2024-03-01","YE26","Marib","مأرب","YE2612","Marib City","مدينة مأرب","IDPs","Rapid Tracking","2024-02-27","YE11","Ibb","إب","YE1108","Hobeish","حبيش","Economic Reasons","Unemployment / Salary Cut","No",null,null,2,0,0,0,1,0,0,1,0,0,0,{"$f":"IF(OR(COUNTIF(WestCoast[],IDPs[[#This Row],[Dis_Pcode]])>=1,COUNTIF(WestCoast[],#REF!)>=1),\"Yes\",\"No\")","v":"No"},{"$f":"IF(IDPs[[#This Row],[Gov_Pcode]]=IDPs[[#This Row],[Gov_Coming_Pcode]],\"Yes\",\"No\")","v":"No"},{"$f":"IF(IDPs[[#This Row],[Dis_Pcode]]=IDPs[[#This Row],[Dis_Coming_Pcode]],\"Yes\",\"No\")","v":"No"}]
["2024-02-29","2024-02-29","YE18","Al Hodeidah","الحديدة","YE1819","Hays","حيس","IDPs","Rapid Tracking","2024-02-28","YE18","Al Hodeidah","الحديدة","YE1819","Hays","حيس","Conflict Reasons","Combat / Shelling","No",null,null,3,0,0,0,0,1,0,2,0,0,0,{"$f":"IF(OR(COUNTIF(WestCoast[],IDPs[[#This Row],[Dis_Pcode]])>=1,COUNTIF(WestCoast[],#REF!)>=1),\"Yes\",\"No\")","v":"Yes"},{"$f":"IF(IDPs[[#This Row],[Gov_Pcode]]=IDPs[[#This Row],[Gov_Coming_Pcode]],\"Yes\",\"No\")","v":"Yes"},{"$f":"IF(IDPs[[#This Row],[Dis_Pcode]]=IDPs[[#This Row],[Dis_Coming_Pcode]],\"Yes\",\"No\")","v":"Yes"}]
["2024-03-02","2024-02-29","YE26","Marib","مأرب","YE2609","Harib","حريب","IDPs","Rapid Tracking","2024-02-28","YE14","Al Bayda","البيضاء","YE1410","Al Bayda","البيضاء","Economic Reasons","Unemployment / Salary Cut","No",null,null,3,0,0,0,1,1,0,1,0,0,0,{"$f":"IF(OR(COUNTIF(WestCoast[],IDPs[[#This Row],[Dis_Pcode]])>=1,COUNTIF(WestCoast[],#REF!)>=1),\"Yes\",\"No\")","v":"No"},{"$f":"IF(IDPs[[#This Row],[Gov_Pcode]]=IDPs[[#This Row],[Gov_Coming_Pcode]],\"Yes\",\"No\")","v":"No"},{"$f":"IF(IDPs[[#This Row],[Dis_Pcode]]=IDPs[[#This Row],[Dis_Coming_Pcode]],\"Yes\",\"No\")","v":"No"}]
["2024-03-02","2024-02-29","YE26","Marib","مأرب","YE2612","Marib City","مدينة مأرب","IDPs","Rapid Tracking","2024-02-28","YE14","Al Bayda","البيضاء","YE1411","As Sawadiyah","السوادية","Economic Reasons","Increasing market prices","No",null,null,1,0,1,0,0,0,0,0,0,0,0,{"$f":"IF(OR(COUNTIF(WestCoast[],IDPs[[#This Row],[Dis_Pcode]])>=1,COUNTIF(WestCoast[],#REF!)>=1),\"Yes\",\"No\")","v":"No"},{"$f":"IF(IDPs[[#This Row],[Gov_Pcode]]=IDPs[[#This Row],[Gov_Coming_Pcode]],\"Yes\",\"No\")","v":"No"},{"$f":"IF(IDPs[[#This Row],[Dis_Pcode]]=IDPs[[#This Row],[Dis_Coming_Pcode]],\"Yes\",\"No\")","v":"No"}]
["2024-03-02","2024-02-29","YE26","Marib","مأرب","YE2612","Marib City","مدينة مأرب","IDPs","Rapid Tracking","2024-02-28","YE26","Marib","مأرب","YE2602","Raghwan","رغوان","Economic Reasons","Unemployment / Salary Cut","Yes","No",null,2,0,0,0,0,1,0,1,0,0,0,{"$f":"IF(OR(COUNTIF(WestCoast[],IDPs[[#This Row],[Dis_Pcode]])>=1,COUNTIF(WestCoast[],#REF!)>=1),\"Yes\",\"No\")","v":"No"},{"$f":"IF(IDPs[[#This Row],[Gov_Pcode]]=IDPs[[#This Row],[Gov_Coming_Pcode]],\"Yes\",\"No\")","v":"Yes"},{"$f":"IF(IDPs[[#This Row],[Dis_Pcode]]=IDPs[[#This Row],[Dis_Coming_Pcode]],\"Yes\",\"No\")","v":"No"}]
["2024-03-02","2024-02-29","YE26","Marib","مأرب","YE2612","Marib City","مدينة مأرب","IDPs","Rapid Tracking","2024-02-28","YE26","Marib","مأرب","YE2609","Harib","حريب","Economic Reasons","Unemployment / Salary Cut","No",null,null,2,0,0,1,1,0,0,0,0,0,0,{"$f":"IF(OR(COUNTIF(WestCoast[],IDPs[[#This Row],[Dis_Pcode]])>=1,COUNTIF(WestCoast[],#REF!)>=1),\"Yes\",\"No\")","v":"No"},{"$f":"IF(IDPs[[#This Row],[Gov_Pcode]]=IDPs[[#This Row],[Gov_Coming_Pcode]],\"Yes\",\"No\")","v":"Yes"},{"$f":"IF(IDPs[[#This Row],[Dis_Pcode]]=IDPs[[#This Row],[Dis_Coming_Pcode]],\"Yes\",\"No\")","v":"No"}]
["2024-03-02","2024-02-29","YE26","Marib","مأرب","YE2613","Marib","مأرب","IDPs","Rapid Tracking","2024-02-28","YE18","Al Hodeidah","الحديدة","YE1822","Al Mina","الميناء","Economic Reasons","Other economic reason","Don't Know",null,null,1,0,0,0,0,0,0,1,0,0,0,{"$f":"IF(OR(COUNTIF(WestCoast[],IDPs[[#This Row],[Dis_Pcode]])>=1,COUNTIF(WestCoast[],#REF!)>=1),\"Yes\",\"No\")","v":"No"},{"$f":"IF(IDPs[[#This Row],[Gov_Pcode]]=IDPs[[#This Row],[Gov_Coming_Pcode]],\"Yes\",\"No\")","v":"No"},{"$f":"IF(IDPs[[#This Row],[Dis_Pcode]]=IDPs[[#This Row],[Dis_Coming_Pcode]],\"Yes\",\"No\")","v":"No"}]
["2024-03-02","2024-03-02","YE30","Ad Dali","الضالع","YE3006","Ad Dali","الضالع","IDPs","Rapid Tracking","2024-02-28","YE30","Ad Dali","الضالع","YE3003","Qatabah","قعطبة","Conflict Reasons","Combat / Shelling","No",null,null,1,0,0,0,0,0,0,1,0,0,0,{"$f":"IF(OR(COUNTIF(WestCoast[],IDPs[[#This Row],[Dis_Pcode]])>=1,COUNTIF(WestCoast[],#REF!)>=1),\"Yes\",\"No\")","v":"No"},{"$f":"IF(IDPs[[#This Row],[Gov_Pcode]]=IDPs[[#This Row],[Gov_Coming_Pcode]],\"Yes\",\"No\")","v":"Yes"},{"$f":"IF(IDPs[[#This Row],[Dis_Pcode]]=IDPs[[#This Row],[Dis_Coming_Pcode]],\"Yes\",\"No\")","v":"No"}]
["2024-03-02","2024-03-01","YE26","Marib","مأرب","YE2612","Marib City","مدينة مأرب","IDPs","Rapid Tracking","2024-02-29","YE30","Ad Dali","الضالع","YE3009","Al Husha","الحشاء","Economic Reasons","Unemployment / Salary Cut","No",null,null,1,0,0,0,1,0,0,0,0,0,0,{"$f":"IF(OR(COUNTIF(WestCoast[],IDPs[[#This Row],[Dis_Pcode]])>=1,COUNTIF(WestCoast[],#REF!)>=1),\"Yes\",\"No\")","v":"No"},{"$f":"IF(IDPs[[#This Row],[Gov_Pcode]]=IDPs[[#This Row],[Gov_Coming_Pcode]],\"Yes\",\"No\")","v":"No"},{"$f":"IF(IDPs[[#This Row],[Dis_Pcode]]=IDPs[[#This Row],[Dis_Coming_Pcode]],\"Yes\",\"No\")","v":"No"}]
["2024-03-02","2024-03-02","YE30","Ad Dali","الضالع","YE3006","Ad Dali","الضالع","IDPs","Rapid Tracking","2024-02-29","YE30","Ad Dali","الضالع","YE3009","Al Husha","الحشاء","Conflict Reasons","Combat / Shelling","No",null,null,1,0,0,0,0,0,0,1,0,0,0,{"$f":"IF(OR(COUNTIF(WestCoast[],IDPs[[#This Row],[Dis_Pcode]])>=1,COUNTIF(WestCoast[],#REF!)>=1),\"Yes\",\"No\")","v":"No"},{"$f":"IF(IDPs[[#This Row],[Gov_Pcode]]=IDPs[[#This Row],[Gov_Coming_Pcode]],\"Yes\",\"No\")","v":"Yes"},{"$f":"IF(IDPs[[#This Row],[Dis_Pcode]]=IDPs[[#This Row],[Dis_Coming_Pcode]],\"Yes\",\"No\")","v":"No"}]
["2024-03-03","2024-03-03","YE18","Al Hodeidah","الحديدة","YE1820","Al Khukhah","الخوخة","IDPs","Rapid Tracking","2024-02-28","YE18","Al Hodeidah","الحديدة","YE1825","Al Jarrahi","الجراحي","Conflict Reasons","Combat / Shelling","No",null,null,4,0,1,0,0,1,0,2,0,0,0,{"$f":"IF(OR(COUNTIF(WestCoast[],IDPs[[#This Row],[Dis_Pcode]])>=1,COUNTIF(WestCoast[],#REF!)>=1),\"Yes\",\"No\")","v":"Yes"},{"$f":"IF(IDPs[[#This Row],[Gov_Pcode]]=IDPs[[#This Row],[Gov_Coming_Pcode]],\"Yes\",\"No\")","v":"Yes"},{"$f":"IF(IDPs[[#This Row],[Dis_Pcode]]=IDPs[[#This Row],[Dis_Coming_Pcode]],\"Yes\",\"No\")","v":"No"}]
["2024-03-03","2024-03-03","YE18","Al Hodeidah","الحديدة","YE1820","Al Khukhah","الخوخة","IDPs","Rapid Tracking","2024-02-28","YE18","Al Hodeidah","الحديدة","YE1826","At Tuhayta","التحيتا","Conflict Reasons","Combat / Shelling","No",null,null,1,0,0,0,0,0,0,1,0,0,0,{"$f":"IF(OR(COUNTIF(WestCoast[],IDPs[[#This Row],[Dis_Pcode]])>=1,COUNTIF(WestCoast[],#REF!)>=1),\"Yes\",\"No\")","v":"Yes"},{"$f":"IF(IDPs[[#This Row],[Gov_Pcode]]=IDPs[[#This Row],[Gov_Coming_Pcode]],\"Yes\",\"No\")","v":"Yes"},{"$f":"IF(IDPs[[#This Row],[Dis_Pcode]]=IDPs[[#This Row],[Dis_Coming_Pcode]],\"Yes\",\"No\")","v":"No"}]
["2024-03-04","2024-03-04","YE18","Al Hodeidah","الحديدة","YE1820","Al Khukhah","الخوخة","IDPs","Rapid Tracking","2024-02-28","YE11","Ibb","إب","YE1111","Al Odayn","العدين","Economic Reasons","Other economic reason","No",null,null,2,0,1,0,0,0,0,1,0,0,0,{"$f":"IF(OR(COUNTIF(WestCoast[],IDPs[[#This Row],[Dis_Pcode]])>=1,COUNTIF(WestCoast[],#REF!)>=1),\"Yes\",\"No\")","v":"Yes"},{"$f":"IF(IDPs[[#This Row],[Gov_Pcode]]=IDPs[[#This Row],[Gov_Coming_Pcode]],\"Yes\",\"No\")","v":"No"},{"$f":"IF(IDPs[[#This Row],[Dis_Pcode]]=IDPs[[#This Row],[Dis_Coming_Pcode]],\"Yes\",\"No\")","v":"No"}]
["2024-03-03","2024-03-03","YE18","Al Hodeidah","الحديدة","YE1820","Al Khukhah","الخوخة","IDPs","Rapid Tracking","2024-02-29","YE18","Al Hodeidah","الحديدة","YE1826","At Tuhayta","التحيتا","Conflict Reasons","Combat / Shelling","Yes","Yes","Yes",1,0,1,0,0,0,0,0,0,0,0,{"$f":"IF(OR(COUNTIF(WestCoast[],IDPs[[#This Row],[Dis_Pcode]])>=1,COUNTIF(WestCoast[],#REF!)>=1),\"Yes\",\"No\")","v":"Yes"},{"$f":"IF(IDPs[[#This Row],[Gov_Pcode]]=IDPs[[#This Row],[Gov_Coming_Pcode]],\"Yes\",\"No\")","v":"Yes"},{"$f":"IF(IDPs[[#This Row],[Dis_Pcode]]=IDPs[[#This Row],[Dis_Coming_Pcode]],\"Yes\",\"No\")","v":"No"}]
["2024-03-04","2024-03-04","YE18","Al Hodeidah","الحديدة","YE1820","Al Khukhah","الخوخة","IDPs","Rapid Tracking","2024-02-29","YE18","Al Hodeidah","الحديدة","YE1815","As Sukhnah","السخنة","Economic Reasons","Other economic reason","No",null,null,1,0,0,0,0,0,0,0,0,1,0,{"$f":"IF(OR(COUNTIF(WestCoast[],IDPs[[#This Row],[Dis_Pcode]])>=1,COUNTIF(WestCoast[],#REF!)>=1),\"Yes\",\"No\")","v":"Yes"},{"$f":"IF(IDPs[[#This Row],[Gov_Pcode]]=IDPs[[#This Row],[Gov_Coming_Pcode]],\"Yes\",\"No\")","v":"Yes"},{"$f":"IF(IDPs[[#This Row],[Dis_Pcode]]=IDPs[[#This Row],[Dis_Coming_Pcode]],\"Yes\",\"No\")","v":"No"}]
["2024-03-04","2024-03-04","YE18","Al Hodeidah","الحديدة","YE1820","Al Khukhah","الخوخة","IDPs","Rapid Tracking","2024-03-01","YE18","Al Hodeidah","الحديدة","YE1814","Ad Durayhimi","الدريهمي","Economic Reasons","Other economic reason","No",null,null,1,0,0,0,0,0,0,0,0,1,0,{"$f":"IF(OR(COUNTIF(WestCoast[],IDPs[[#This Row],[Dis_Pcode]])>=1,COUNTIF(WestCoast[],#REF!)>=1),\"Yes\",\"No\")","v":"Yes"},{"$f":"IF(IDPs[[#This Row],[Gov_Pcode]]=IDPs[[#This Row],[Gov_Coming_Pcode]],\"Yes\",\"No\")","v":"Yes"},{"$f":"IF(IDPs[[#This Row],[Dis_Pcode]]=IDPs[[#This Row],[Dis_Coming_Pcode]],\"Yes\",\"No\")","v":"No"}]
["2024-03-04","2024-03-04","YE18","Al Hodeidah","الحديدة","YE1820","Al Khukhah","الخوخة","IDPs","Rapid Tracking","2024-03-01","YE18","Al Hodeidah","الحديدة","YE1819","Hays","حيس","Conflict Reasons","Combat / Shelling","No",null,null,1,0,1,0,0,0,0,0,0,0,0,{"$f":"IF(OR(COUNTIF(WestCoast[],IDPs[[#This Row],[Dis_Pcode]])>=1,COUNTIF(WestCoast[],#REF!)>=1),\"Yes\",\"No\")","v":"Yes"},{"$f":"IF(IDPs[[#This Row],[Gov_Pcode]]=IDPs[[#This Row],[Gov_Coming_Pcode]],\"Yes\",\"No\")","v":"Yes"},{"$f":"IF(IDPs[[#This Row],[Dis_Pcode]]=IDPs[[#This Row],[Dis_Coming_Pcode]],\"Yes\",\"No\")","v":"No"}]
["2024-03-09","2024-03-09","YE15","Taiz","تعز","YE1508","Jabal Habashi","جبل حبشي","IDPs","Rapid Tracking","2024-03-01","YE15","Taiz","تعز","YE1521","Al Maafer","المعافر","Conflict Reasons","General Insecure Conditions","Yes","Yes","No",38,0,0,0,38,0,0,0,0,0,0,{"$f":"IF(OR(COUNTIF(WestCoast[],IDPs[[#This Row],[Dis_Pcode]])>=1,COUNTIF(WestCoast[],#REF!)>=1),\"Yes\",\"No\")","v":"No"},{"$f":"IF(IDPs[[#This Row],[Gov_Pcode]]=IDPs[[#This Row],[Gov_Coming_Pcode]],\"Yes\",\"No\")","v":"Yes"},{"$f":"IF(IDPs[[#This Row],[Dis_Pcode]]=IDPs[[#This Row],[Dis_Coming_Pcode]],\"Yes\",\"No\")","v":"No"}]
["2024-03-09","2024-03-09","YE15","Taiz","تعز","YE1508","Jabal Habashi","جبل حبشي","IDPs","Rapid Tracking","2024-03-01","YE15","Taiz","تعز","YE1521","Al Maafer","المعافر","Conflict Reasons","General Insecure Conditions","Yes","Yes","No",58,0,0,0,58,0,0,0,0,0,0,{"$f":"IF(OR(COUNTIF(WestCoast[],IDPs[[#This Row],[Dis_Pcode]])>=1,COUNTIF(WestCoast[],#REF!)>=1),\"Yes\",\"No\")","v":"No"},{"$f":"IF(IDPs[[#This Row],[Gov_Pcode]]=IDPs[[#This Row],[Gov_Coming_Pcode]],\"Yes\",\"No\")","v":"Yes"},{"$f":"IF(IDPs[[#This Row],[Dis_Pcode]]=IDPs[[#This Row],[Dis_Coming_Pcode]],\"Yes\",\"No\")","v":"No"}]
["2024-03-03","2024-03-04","YE18","Al Hodeidah","الحديدة","YE1819","Hays","حيس","IDPs","Rapid Tracking","2024-03-02","YE15","Taiz","تعز","YE1504","Maqbanah","مقبنة","Conflict Reasons","Combat / Shelling","No",null,null,1,0,0,0,0,0,0,1,0,0,0,{"$f":"IF(OR(COUNTIF(WestCoast[],IDPs[[#This Row],[Dis_Pcode]])>=1,COUNTIF(WestCoast[],#REF!)>=1),\"Yes\",\"No\")","v":"Yes"},{"$f":"IF(IDPs[[#This Row],[Gov_Pcode]]=IDPs[[#This Row],[Gov_Coming_Pcode]],\"Yes\",\"No\")","v":"No"},{"$f":"IF(IDPs[[#This Row],[Dis_Pcode]]=IDPs[[#This Row],[Dis_Coming_Pcode]],\"Yes\",\"No\")","v":"No"}]
["2024-03-03","2024-03-03","YE18","Al Hodeidah","الحديدة","YE1819","Hays","حيس","IDPs","Rapid Tracking","2024-03-02","YE18","Al Hodeidah","الحديدة","YE1823","Al Hali","الحالي","Conflict Reasons","Combat / Shelling","No",null,null,1,0,0,0,0,0,0,1,0,0,0,{"$f":"IF(OR(COUNTIF(WestCoast[],IDPs[[#This Row],[Dis_Pcode]])>=1,COUNTIF(WestCoast[],#REF!)>=1),\"Yes\",\"No\")","v":"Yes"},{"$f":"IF(IDPs[[#This Row],[Gov_Pcode]]=IDPs[[#This Row],[Gov_Coming_Pcode]],\"Yes\",\"No\")","v":"Yes"},{"$f":"IF(IDPs[[#This Row],[Dis_Pcode]]=IDPs[[#This Row],[Dis_Coming_Pcode]],\"Yes\",\"No\")","v":"No"}]
["2024-03-06","2024-03-06","YE30","Ad Dali","الضالع","YE3006","Ad Dali","الضالع","IDPs","Rapid Tracking","2024-03-02","YE30","Ad Dali","الضالع","YE3003","Qatabah","قعطبة","Conflict Reasons","Combat / Shelling","No",null,null,1,0,0,0,0,0,0,1,0,0,0,{"$f":"IF(OR(COUNTIF(WestCoast[],IDPs[[#This Row],[Dis_Pcode]])>=1,COUNTIF(WestCoast[],#REF!)>=1),\"Yes\",\"No\")","v":"No"},{"$f":"IF(IDPs[[#This Row],[Gov_Pcode]]=IDPs[[#This Row],[Gov_Coming_Pcode]],\"Yes\",\"No\")","v":"Yes"},{"$f":"IF(IDPs[[#This Row],[Dis_Pcode]]=IDPs[[#This Row],[Dis_Coming_Pcode]],\"Yes\",\"No\")","v":"No"}]
["2024-03-09","2024-03-04","YE26","Marib","مأرب","YE2612","Marib City","مدينة مأرب","IDPs","Rapid Tracking","2024-03-02","YE18","Al Hodeidah","الحديدة","YE1823","Al Hali","الحالي","Economic Reasons","Unemployment / Salary Cut","No",null,null,2,0,0,0,0,0,0,0,0,2,0,{"$f":"IF(OR(COUNTIF(WestCoast[],IDPs[[#This Row],[Dis_Pcode]])>=1,COUNTIF(WestCoast[],#REF!)>=1),\"Yes\",\"No\")","v":"No"},{"$f":"IF(IDPs[[#This Row],[Gov_Pcode]]=IDPs[[#This Row],[Gov_Coming_Pcode]],\"Yes\",\"No\")","v":"No"},{"$f":"IF(IDPs[[#This Row],[Dis_Pcode]]=IDPs[[#This Row],[Dis_Coming_Pcode]],\"Yes\",\"No\")","v":"No"}]
["2024-03-09","2024-03-09","YE15","Taiz","تعز","YE1504","Maqbanah","مقبنة","IDPs","Rapid Tracking","2024-03-02","YE15","Taiz","تعز","YE1504","Maqbanah","مقبنة","Conflict Reasons","General Insecure Conditions","No",null,null,2,0,0,0,2,0,0,0,0,0,0,{"$f":"IF(OR(COUNTIF(WestCoast[],IDPs[[#This Row],[Dis_Pcode]])>=1,COUNTIF(WestCoast[],#REF!)>=1),\"Yes\",\"No\")","v":"No"},{"$f":"IF(IDPs[[#This Row],[Gov_Pcode]]=IDPs[[#This Row],[Gov_Coming_Pcode]],\"Yes\",\"No\")","v":"Yes"},{"$f":"IF(IDPs[[#This Row],[Dis_Pcode]]=IDPs[[#This Row],[Dis_Coming_Pcode]],\"Yes\",\"No\")","v":"Yes"}]
["2024-03-06","2024-03-06","YE30","Ad Dali","الضالع","YE3008","Al Azariq","الأزارق","IDPs","Rapid Tracking","2024-03-03","YE18","Al Hodeidah","الحديدة","YE1825","Al Jarrahi","الجراحي","Conflict Reasons","General Insecure Conditions","No",null,null,1,0,0,0,0,0,0,1,0,0,0,{"$f":"IF(OR(COUNTIF(WestCoast[],IDPs[[#This Row],[Dis_Pcode]])>=1,COUNTIF(WestCoast[],#REF!)>=1),\"Yes\",\"No\")","v":"No"},{"$f":"IF(IDPs[[#This Row],[Gov_Pcode]]=IDPs[[#This Row],[Gov_Coming_Pcode]],\"Yes\",\"No\")","v":"No"},{"$f":"IF(IDPs[[#This Row],[Dis_Pcode]]=IDPs[[#This Row],[Dis_Coming_Pcode]],\"Yes\",\"No\")","v":"No"}]
["2024-03-09","2024-03-05","YE26","Marib","مأرب","YE2613","Marib","مأرب","IDPs","Rapid Tracking","2024-03-03","YE26","Marib","مأرب","YE2601","Majzar","مجزر","Conflict Reasons","General Insecure Conditions","Don't Know",null,null,1,0,0,0,0,0,0,1,0,0,0,{"$f":"IF(OR(COUNTIF(WestCoast[],IDPs[[#This Row],[Dis_Pcode]])>=1,COUNTIF(WestCoast[],#REF!)>=1),\"Yes\",\"No\")","v":"No"},{"$f":"IF(IDPs[[#This Row],[Gov_Pcode]]=IDPs[[#This Row],[Gov_Coming_Pcode]],\"Yes\",\"No\")","v":"Yes"},{"$f":"IF(IDPs[[#This Row],[Dis_Pcode]]=IDPs[[#This Row],[Dis_Coming_Pcode]],\"Yes\",\"No\")","v":"No"}]
["2024-03-09","2024-03-06","YE26","Marib","مأرب","YE2612","Marib City","مدينة مأرب","IDPs","Rapid Tracking","2024-03-03","YE26","Marib","مأرب","YE2609","Harib","حريب","Conflict Reasons","General Insecure Conditions","No",null,null,1,0,0,0,0,0,0,1,0,0,0,{"$f":"IF(OR(COUNTIF(WestCoast[],IDPs[[#This Row],[Dis_Pcode]])>=1,COUNTIF(WestCoast[],#REF!)>=1),\"Yes\",\"No\")","v":"No"},{"$f":"IF(IDPs[[#This Row],[Gov_Pcode]]=IDPs[[#This Row],[Gov_Coming_Pcode]],\"Yes\",\"No\")","v":"Yes"},{"$f":"IF(IDPs[[#This Row],[Dis_Pcode]]=IDPs[[#This Row],[Dis_Coming_Pcode]],\"Yes\",\"No\")","v":"No"}]
["2024-03-09","2024-03-08","YE26","Marib","مأرب","YE2612","Marib City","مدينة مأرب","IDPs","Rapid Tracking","2024-03-03","YE14","Al Bayda","البيضاء","YE1413","Rada","رداع","Conflict Reasons","General Insecure Conditions","No",null,null,1,0,0,0,1,0,0,0,0,0,0,{"$f":"IF(OR(COUNTIF(WestCoast[],IDPs[[#This Row],[Dis_Pcode]])>=1,COUNTIF(WestCoast[],#REF!)>=1),\"Yes\",\"No\")","v":"No"},{"$f":"IF(IDPs[[#This Row],[Gov_Pcode]]=IDPs[[#This Row],[Gov_Coming_Pcode]],\"Yes\",\"No\")","v":"No"},{"$f":"IF(IDPs[[#This Row],[Dis_Pcode]]=IDPs[[#This Row],[Dis_Coming_Pcode]],\"Yes\",\"No\")","v":"No"}]
["2024-03-05","2024-03-05","YE18","Al Hodeidah","الحديدة","YE1819","Hays","حيس","IDPs","Rapid Tracking","2024-03-04","YE18","Al Hodeidah","الحديدة","YE1822","Al Mina","الميناء","Conflict Reasons","Combat / Shelling","No",null,null,2,0,0,0,0,0,0,2,0,0,0,{"$f":"IF(OR(COUNTIF(WestCoast[],IDPs[[#This Row],[Dis_Pcode]])>=1,COUNTIF(WestCoast[],#REF!)>=1),\"Yes\",\"No\")","v":"Yes"},{"$f":"IF(IDPs[[#This Row],[Gov_Pcode]]=IDPs[[#This Row],[Gov_Coming_Pcode]],\"Yes\",\"No\")","v":"Yes"},{"$f":"IF(IDPs[[#This Row],[Dis_Pcode]]=IDPs[[#This Row],[Dis_Coming_Pcode]],\"Yes\",\"No\")","v":"No"}]
["2024-03-05","2024-03-05","YE18","Al Hodeidah","الحديدة","YE1819","Hays","حيس","IDPs","Rapid Tracking","2024-03-04","YE18","Al Hodeidah","الحديدة","YE1825","Al Jarrahi","الجراحي","Conflict Reasons","Combat / Shelling","No",null,null,1,0,0,0,0,0,0,1,0,0,0,{"$f":"IF(OR(COUNTIF(WestCoast[],IDPs[[#This Row],[Dis_Pcode]])>=1,COUNTIF(WestCoast[],#REF!)>=1),\"Yes\",\"No\")","v":"Yes"},{"$f":"IF(IDPs[[#This Row],[Gov_Pcode]]=IDPs[[#This Row],[Gov_Coming_Pcode]],\"Yes\",\"No\")","v":"Yes"},{"$f":"IF(IDPs[[#This Row],[Dis_Pcode]]=IDPs[[#This Row],[Dis_Coming_Pcode]],\"Yes\",\"No\")","v":"No"}]
["2024-03-07","2024-03-07","YE15","Taiz","تعز","YE1505","Al Makha","المخا","IDPs","Rapid Tracking","2024-03-04","YE15","Taiz","تعز","YE1520","At Taiziyah","التعزية","Conflict Reasons","General Insecure Conditions","No",null,null,2,0,0,0,2,0,0,0,0,0,0,{"$f":"IF(OR(COUNTIF(WestCoast[],IDPs[[#This Row],[Dis_Pcode]])>=1,COUNTIF(WestCoast[],#REF!)>=1),\"Yes\",\"No\")","v":"Yes"},{"$f":"IF(IDPs[[#This Row],[Gov_Pcode]]=IDPs[[#This Row],[Gov_Coming_Pcode]],\"Yes\",\"No\")","v":"Yes"},{"$f":"IF(IDPs[[#This Row],[Dis_Pcode]]=IDPs[[#This Row],[Dis_Coming_Pcode]],\"Yes\",\"No\")","v":"No"}]
["2024-03-09","2024-03-09","YE30","Ad Dali","الضالع","YE3005","Al Hasayn","الحصين","IDPs","Rapid Tracking","2024-03-04","YE30","Ad Dali","الضالع","YE3008","Al Azariq","الأزارق","Economic Reasons","Other economic reason","No",null,null,1,0,0,0,0,0,0,1,0,0,0,{"$f":"IF(OR(COUNTIF(WestCoast[],IDPs[[#This Row],[Dis_Pcode]])>=1,COUNTIF(WestCoast[],#REF!)>=1),\"Yes\",\"No\")","v":"No"},{"$f":"IF(IDPs[[#This Row],[Gov_Pcode]]=IDPs[[#This Row],[Gov_Coming_Pcode]],\"Yes\",\"No\")","v":"Yes"},{"$f":"IF(IDPs[[#This Row],[Dis_Pcode]]=IDPs[[#This Row],[Dis_Coming_Pcode]],\"Yes\",\"No\")","v":"No"}]
["2024-03-09","2024-03-06","YE26","Marib","مأرب","YE2612","Marib City","مدينة مأرب","IDPs","Rapid Tracking","2024-03-04","YE26","Marib","مأرب","YE2609","Harib","حريب","Conflict Reasons","General Insecure Conditions","No",null,null,1,0,0,0,1,0,0,0,0,0,0,{"$f":"IF(OR(COUNTIF(WestCoast[],IDPs[[#This Row],[Dis_Pcode]])>=1,COUNTIF(WestCoast[],#REF!)>=1),\"Yes\",\"No\")","v":"No"},{"$f":"IF(IDPs[[#This Row],[Gov_Pcode]]=IDPs[[#This Row],[Gov_Coming_Pcode]],\"Yes\",\"No\")","v":"Yes"},{"$f":"IF(IDPs[[#This Row],[Dis_Pcode]]=IDPs[[#This Row],[Dis_Coming_Pcode]],\"Yes\",\"No\")","v":"No"}]
["2024-03-09","2024-03-06","YE26","Marib","مأرب","YE2612","Marib City","مدينة مأرب","IDPs","Rapid Tracking","2024-03-04","YE15","Taiz","تعز","YE1517","Al Mudhaffar","المظفر","Economic Reasons","Increasing market prices","No",null,null,1,0,0,0,1,0,0,0,0,0,0,{"$f":"IF(OR(COUNTIF(WestCoast[],IDPs[[#This Row],[Dis_Pcode]])>=1,COUNTIF(WestCoast[],#REF!)>=1),\"Yes\",\"No\")","v":"No"},{"$f":"IF(IDPs[[#This Row],[Gov_Pcode]]=IDPs[[#This Row],[Gov_Coming_Pcode]],\"Yes\",\"No\")","v":"No"},{"$f":"IF(IDPs[[#This Row],[Dis_Pcode]]=IDPs[[#This Row],[Dis_Coming_Pcode]],\"Yes\",\"No\")","v":"No"}]
["2024-03-06","2024-03-05","YE18","Al Hodeidah","الحديدة","YE1819","Hays","حيس","IDPs","Rapid Tracking","2024-03-05","YE18","Al Hodeidah","الحديدة","YE1825","Al Jarrahi","الجراحي","Conflict Reasons","Combat / Shelling","No",null,null,2,0,0,0,0,0,0,2,0,0,0,{"$f":"IF(OR(COUNTIF(WestCoast[],IDPs[[#This Row],[Dis_Pcode]])>=1,COUNTIF(WestCoast[],#REF!)>=1),\"Yes\",\"No\")","v":"Yes"},{"$f":"IF(IDPs[[#This Row],[Gov_Pcode]]=IDPs[[#This Row],[Gov_Coming_Pcode]],\"Yes\",\"No\")","v":"Yes"},{"$f":"IF(IDPs[[#This Row],[Dis_Pcode]]=IDPs[[#This Row],[Dis_Coming_Pcode]],\"Yes\",\"No\")","v":"No"}]
["2024-03-07","2024-03-07","YE18","Al Hodeidah","الحديدة","YE1819","Hays","حيس","IDPs","Rapid Tracking","2024-03-05","YE15","Taiz","تعز","YE1504","Maqbanah","مقبنة","Conflict Reasons","Combat / Shelling","No",null,null,1,0,0,0,0,0,0,1,0,0,0,{"$f":"IF(OR(COUNTIF(WestCoast[],IDPs[[#This Row],[Dis_Pcode]])>=1,COUNTIF(WestCoast[],#REF!)>=1),\"Yes\",\"No\")","v":"Yes"},{"$f":"IF(IDPs[[#This Row],[Gov_Pcode]]=IDPs[[#This Row],[Gov_Coming_Pcode]],\"Yes\",\"No\")","v":"No"},{"$f":"IF(IDPs[[#This Row],[Dis_Pcode]]=IDPs[[#This Row],[Dis_Coming_Pcode]],\"Yes\",\"No\")","v":"No"}]
["2024-03-07","2024-03-07","YE15","Taiz","تعز","YE1505","Al Makha","المخا","IDPs","Rapid Tracking","2024-03-05","YE15","Taiz","تعز","YE1504","Maqbanah","مقبنة","Conflict Reasons","General Insecure Conditions","No",null,null,1,0,0,0,1,0,0,0,0,0,0,{"$f":"IF(OR(COUNTIF(WestCoast[],IDPs[[#This Row],[Dis_Pcode]])>=1,COUNTIF(WestCoast[],#REF!)>=1),\"Yes\",\"No\")","v":"Yes"},{"$f":"IF(IDPs[[#This Row],[Gov_Pcode]]=IDPs[[#This Row],[Gov_Coming_Pcode]],\"Yes\",\"No\")","v":"Yes"},{"$f":"IF(IDPs[[#This Row],[Dis_Pcode]]=IDPs[[#This Row],[Dis_Coming_Pcode]],\"Yes\",\"No\")","v":"No"}]
["2024-03-09","2024-03-07","YE26","Marib","مأرب","YE2613","Marib","مأرب","IDPs","Rapid Tracking","2024-03-05","YE26","Marib","مأرب","YE2607","Al Jubah","الجوبة","Economic Reasons","Other economic reason","No",null,null,1,0,0,0,0,0,0,1,0,0,0,{"$f":"IF(OR(COUNTIF(WestCoast[],IDPs[[#This Row],[Dis_Pcode]])>=1,COUNTIF(WestCoast[],#REF!)>=1),\"Yes\",\"No\")","v":"No"},{"$f":"IF(IDPs[[#This Row],[Gov_Pcode]]=IDPs[[#This Row],[Gov_Coming_Pcode]],\"Yes\",\"No\")","v":"Yes"},{"$f":"IF(IDPs[[#This Row],[Dis_Pcode]]=IDPs[[#This Row],[Dis_Coming_Pcode]],\"Yes\",\"No\")","v":"No"}]
["2024-03-09","2024-03-07","YE26","Marib","مأرب","YE2613","Marib","مأرب","IDPs","Rapid Tracking","2024-03-05","YE26","Marib","مأرب","YE2607","Al Jubah","الجوبة","Conflict Reasons","General Insecure Conditions","No",null,null,1,0,0,0,0,0,0,1,0,0,0,{"$f":"IF(OR(COUNTIF(WestCoast[],IDPs[[#This Row],[Dis_Pcode]])>=1,COUNTIF(WestCoast[],#REF!)>=1),\"Yes\",\"No\")","v":"No"},{"$f":"IF(IDPs[[#This Row],[Gov_Pcode]]=IDPs[[#This Row],[Gov_Coming_Pcode]],\"Yes\",\"No\")","v":"Yes"},{"$f":"IF(IDPs[[#This Row],[Dis_Pcode]]=IDPs[[#This Row],[Dis_Coming_Pcode]],\"Yes\",\"No\")","v":"No"}]
["2024-03-09","2024-03-07","YE26","Marib","مأرب","YE2613","Marib","مأرب","IDPs","Rapid Tracking","2024-03-05","YE20","Dhamar","ذمار","YE2009","Mayfaat Ans","ميفعة عنس","Economic Reasons","Other economic reason","No",null,null,1,0,0,0,1,0,0,0,0,0,0,{"$f":"IF(OR(COUNTIF(WestCoast[],IDPs[[#This Row],[Dis_Pcode]])>=1,COUNTIF(WestCoast[],#REF!)>=1),\"Yes\",\"No\")","v":"No"},{"$f":"IF(IDPs[[#This Row],[Gov_Pcode]]=IDPs[[#This Row],[Gov_Coming_Pcode]],\"Yes\",\"No\")","v":"No"},{"$f":"IF(IDPs[[#This Row],[Dis_Pcode]]=IDPs[[#This Row],[Dis_Coming_Pcode]],\"Yes\",\"No\")","v":"No"}]
["2024-03-09","2024-03-07","YE26","Marib","مأرب","YE2613","Marib","مأرب","IDPs","Rapid Tracking","2024-03-05","YE17","Hajjah","حجة","YE1715","Al Mahabishah","المحابشة","Economic Reasons","Other economic reason","No",null,null,1,0,0,0,0,0,0,0,0,1,0,{"$f":"IF(OR(COUNTIF(WestCoast[],IDPs[[#This Row],[Dis_Pcode]])>=1,COUNTIF(WestCoast[],#REF!)>=1),\"Yes\",\"No\")","v":"No"},{"$f":"IF(IDPs[[#This Row],[Gov_Pcode]]=IDPs[[#This Row],[Gov_Coming_Pcode]],\"Yes\",\"No\")","v":"No"},{"$f":"IF(IDPs[[#This Row],[Dis_Pcode]]=IDPs[[#This Row],[Dis_Coming_Pcode]],\"Yes\",\"No\")","v":"No"}]
["2024-03-09","2024-03-08","YE26","Marib","مأرب","YE2612","Marib City","مدينة مأرب","IDPs","Rapid Tracking","2024-03-05","YE16","Al Jawf","الجوف","YE1605","Al Hazm","الحزم","Economic Reasons","Other economic reason","No",null,null,1,0,0,0,0,0,0,1,0,0,0,{"$f":"IF(OR(COUNTIF(WestCoast[],IDPs[[#This Row],[Dis_Pcode]])>=1,COUNTIF(WestCoast[],#REF!)>=1),\"Yes\",\"No\")","v":"No"},{"$f":"IF(IDPs[[#This Row],[Gov_Pcode]]=IDPs[[#This Row],[Gov_Coming_Pcode]],\"Yes\",\"No\")","v":"No"},{"$f":"IF(IDPs[[#This Row],[Dis_Pcode]]=IDPs[[#This Row],[Dis_Coming_Pcode]],\"Yes\",\"No\")","v":"No"}]
["2024-03-07","2024-03-06","YE18","Al Hodeidah","الحديدة","YE1819","Hays","حيس","IDPs","Rapid Tracking","2024-03-06","YE18","Al Hodeidah","الحديدة","YE1819","Hays","حيس","Conflict Reasons","Combat / Shelling","No",null,null,1,0,0,0,0,0,0,1,0,0,0,{"$f":"IF(OR(COUNTIF(WestCoast[],IDPs[[#This Row],[Dis_Pcode]])>=1,COUNTIF(WestCoast[],#REF!)>=1),\"Yes\",\"No\")","v":"Yes"},{"$f":"IF(IDPs[[#This Row],[Gov_Pcode]]=IDPs[[#This Row],[Gov_Coming_Pcode]],\"Yes\",\"No\")","v":"Yes"},{"$f":"IF(IDPs[[#This Row],[Dis_Pcode]]=IDPs[[#This Row],[Dis_Coming_Pcode]],\"Yes\",\"No\")","v":"Yes"}]
["2024-03-09","2024-03-06","YE26","Marib","مأرب","YE2612","Marib City","مدينة مأرب","IDPs","Rapid Tracking","2024-03-06","YE26","Marib","مأرب","YE2610","Mahliyah","ماهلية","Economic Reasons","Unemployment / Salary Cut","No",null,null,1,0,0,0,0,0,0,1,0,0,0,{"$f":"IF(OR(COUNTIF(WestCoast[],IDPs[[#This Row],[Dis_Pcode]])>=1,COUNTIF(WestCoast[],#REF!)>=1),\"Yes\",\"No\")","v":"No"},{"$f":"IF(IDPs[[#This Row],[Gov_Pcode]]=IDPs[[#This Row],[Gov_Coming_Pcode]],\"Yes\",\"No\")","v":"Yes"},{"$f":"IF(IDPs[[#This Row],[Dis_Pcode]]=IDPs[[#This Row],[Dis_Coming_Pcode]],\"Yes\",\"No\")","v":"No"}]
["2024-03-09","2024-03-07","YE26","Marib","مأرب","YE2613","Marib","مأرب","IDPs","Rapid Tracking","2024-03-06","YE15","Taiz","تعز","YE1510","Sabir Al Mawadim","صبر الموادم","Economic Reasons","Other economic reason","No",null,null,2,0,0,0,0,0,0,2,0,0,0,{"$f":"IF(OR(COUNTIF(WestCoast[],IDPs[[#This Row],[Dis_Pcode]])>=1,COUNTIF(WestCoast[],#REF!)>=1),\"Yes\",\"No\")","v":"No"},{"$f":"IF(IDPs[[#This Row],[Gov_Pcode]]=IDPs[[#This Row],[Gov_Coming_Pcode]],\"Yes\",\"No\")","v":"No"},{"$f":"IF(IDPs[[#This Row],[Dis_Pcode]]=IDPs[[#This Row],[Dis_Coming_Pcode]],\"Yes\",\"No\")","v":"No"}]
["2024-03-09","2024-03-07","YE26","Marib","مأرب","YE2613","Marib","مأرب","IDPs","Rapid Tracking","2024-03-06","YE18","Al Hodeidah","الحديدة","YE1810","Bajil","باجل","Economic Reasons","Other economic reason","No",null,null,1,0,0,0,0,0,0,1,0,0,0,{"$f":"IF(OR(COUNTIF(WestCoast[],IDPs[[#This Row],[Dis_Pcode]])>=1,COUNTIF(WestCoast[],#REF!)>=1),\"Yes\",\"No\")","v":"No"},{"$f":"IF(IDPs[[#This Row],[Gov_Pcode]]=IDPs[[#This Row],[Gov_Coming_Pcode]],\"Yes\",\"No\")","v":"No"},{"$f":"IF(IDPs[[#This Row],[Dis_Pcode]]=IDPs[[#This Row],[Dis_Coming_Pcode]],\"Yes\",\"No\")","v":"No"}]
["2024-03-09","2024-03-07","YE26","Marib","مأرب","YE2613","Marib","مأرب","IDPs","Rapid Tracking","2024-03-06","YE29","Amran","عمران","YE2904","Qaflat Odhar","قفلة عذر","Economic Reasons","Unemployment / Salary Cut","No",null,null,1,0,0,0,0,0,0,0,0,1,0,{"$f":"IF(OR(COUNTIF(WestCoast[],IDPs[[#This Row],[Dis_Pcode]])>=1,COUNTIF(WestCoast[],#REF!)>=1),\"Yes\",\"No\")","v":"No"},{"$f":"IF(IDPs[[#This Row],[Gov_Pcode]]=IDPs[[#This Row],[Gov_Coming_Pcode]],\"Yes\",\"No\")","v":"No"},{"$f":"IF(IDPs[[#This Row],[Dis_Pcode]]=IDPs[[#This Row],[Dis_Coming_Pcode]],\"Yes\",\"No\")","v":"No"}]
["2024-03-09","2024-03-08","YE26","Marib","مأرب","YE2612","Marib City","مدينة مأرب","IDPs","Rapid Tracking","2024-03-06","YE15","Taiz","تعز","YE1510","Sabir Al Mawadim","صبر الموادم","Economic Reasons","Unemployment / Salary Cut","No",null,null,2,0,0,0,1,0,0,1,0,0,0,{"$f":"IF(OR(COUNTIF(WestCoast[],IDPs[[#This Row],[Dis_Pcode]])>=1,COUNTIF(WestCoast[],#REF!)>=1),\"Yes\",\"No\")","v":"No"},{"$f":"IF(IDPs[[#This Row],[Gov_Pcode]]=IDPs[[#This Row],[Gov_Coming_Pcode]],\"Yes\",\"No\")","v":"No"},{"$f":"IF(IDPs[[#This Row],[Dis_Pcode]]=IDPs[[#This Row],[Dis_Coming_Pcode]],\"Yes\",\"No\")","v":"No"}]
["2024-03-09","2024-03-09","YE18","Al Hodeidah","الحديدة","YE1819","Hays","حيس","IDPs","Rapid Tracking","2024-03-07","YE18","Al Hodeidah","الحديدة","YE1819","Hays","حيس","Conflict Reasons","Combat / Shelling","No",null,null,1,0,0,0,0,0,0,1,0,0,0,{"$f":"IF(OR(COUNTIF(WestCoast[],IDPs[[#This Row],[Dis_Pcode]])>=1,COUNTIF(WestCoast[],#REF!)>=1),\"Yes\",\"No\")","v":"Yes"},{"$f":"IF(IDPs[[#This Row],[Gov_Pcode]]=IDPs[[#This Row],[Gov_Coming_Pcode]],\"Yes\",\"No\")","v":"Yes"},{"$f":"IF(IDPs[[#This Row],[Dis_Pcode]]=IDPs[[#This Row],[Dis_Coming_Pcode]],\"Yes\",\"No\")","v":"Yes"}]
["2024-03-09","2024-03-09","YE18","Al Hodeidah","الحديدة","YE1819","Hays","حيس","IDPs","Rapid Tracking","2024-03-08","YE18","Al Hodeidah","الحديدة","YE1819","Hays","حيس","Conflict Reasons","Combat / Shelling","No",null,null,1,0,0,0,0,0,0,1,0,0,0,{"$f":"IF(OR(COUNTIF(WestCoast[],IDPs[[#This Row],[Dis_Pcode]])>=1,COUNTIF(WestCoast[],#REF!)>=1),\"Yes\",\"No\")","v":"Yes"},{"$f":"IF(IDPs[[#This Row],[Gov_Pcode]]=IDPs[[#This Row],[Gov_Coming_Pcode]],\"Yes\",\"No\")","v":"Yes"},{"$f":"IF(IDPs[[#This Row],[Dis_Pcode]]=IDPs[[#This Row],[Dis_Coming_Pcode]],\"Yes\",\"No\")","v":"Yes"}]
["2024-03-11","2024-03-11","YE18","Al Hodeidah","الحديدة","YE1820","Al Khukhah","الخوخة","IDPs","Rapid Tracking","2024-03-02","YE15","Taiz","تعز","YE1504","Maqbanah","مقبنة","Conflict Reasons","Combat / Shelling","No",null,null,2,0,1,0,0,0,0,1,0,0,0,{"$f":"IF(OR(COUNTIF(WestCoast[],IDPs[[#This Row],[Dis_Pcode]])>=1,COUNTIF(WestCoast[],#REF!)>=1),\"Yes\",\"No\")","v":"Yes"},{"$f":"IF(IDPs[[#This Row],[Gov_Pcode]]=IDPs[[#This Row],[Gov_Coming_Pcode]],\"Yes\",\"No\")","v":"No"},{"$f":"IF(IDPs[[#This Row],[Dis_Pcode]]=IDPs[[#This Row],[Dis_Coming_Pcode]],\"Yes\",\"No\")","v":"No"}]
["2024-03-11","2024-03-11","YE18","Al Hodeidah","الحديدة","YE1820","Al Khukhah","الخوخة","IDPs","Rapid Tracking","2024-03-07","YE18","Al Hodeidah","الحديدة","YE1825","Al Jarrahi","الجراحي","Conflict Reasons","Combat / Shelling","No",null,null,1,0,0,0,0,0,0,1,0,0,0,{"$f":"IF(OR(COUNTIF(WestCoast[],IDPs[[#This Row],[Dis_Pcode]])>=1,COUNTIF(WestCoast[],#REF!)>=1),\"Yes\",\"No\")","v":"Yes"},{"$f":"IF(IDPs[[#This Row],[Gov_Pcode]]=IDPs[[#This Row],[Gov_Coming_Pcode]],\"Yes\",\"No\")","v":"Yes"},{"$f":"IF(IDPs[[#This Row],[Dis_Pcode]]=IDPs[[#This Row],[Dis_Coming_Pcode]],\"Yes\",\"No\")","v":"No"}]
["2024-03-14","2024-03-14","YE18","Al Hodeidah","الحديدة","YE1819","Hays","حيس","IDPs","Rapid Tracking","2024-03-08","YE15","Taiz","تعز","YE1504","Maqbanah","مقبنة","Conflict Reasons","Combat / Shelling","No",null,null,8,0,2,0,0,2,0,4,0,0,0,{"$f":"IF(OR(COUNTIF(WestCoast[],IDPs[[#This Row],[Dis_Pcode]])>=1,COUNTIF(WestCoast[],#REF!)>=1),\"Yes\",\"No\")","v":"Yes"},{"$f":"IF(IDPs[[#This Row],[Gov_Pcode]]=IDPs[[#This Row],[Gov_Coming_Pcode]],\"Yes\",\"No\")","v":"No"},{"$f":"IF(IDPs[[#This Row],[Dis_Pcode]]=IDPs[[#This Row],[Dis_Coming_Pcode]],\"Yes\",\"No\")","v":"No"}]
["2024-03-14","2024-03-15","YE15","Taiz","تعز","YE1510","Sabir Al Mawadim","صبر الموادم","IDPs","Rapid Tracking","2024-03-08","YE31","Raymah","ريمة","YE3106","Al Jafariyyah","الجعفرية","Conflict Reasons","General Insecure Conditions","No",null,null,1,0,0,0,1,0,0,0,0,0,0,{"$f":"IF(OR(COUNTIF(WestCoast[],IDPs[[#This Row],[Dis_Pcode]])>=1,COUNTIF(WestCoast[],#REF!)>=1),\"Yes\",\"No\")","v":"No"},{"$f":"IF(IDPs[[#This Row],[Gov_Pcode]]=IDPs[[#This Row],[Gov_Coming_Pcode]],\"Yes\",\"No\")","v":"No"},{"$f":"IF(IDPs[[#This Row],[Dis_Pcode]]=IDPs[[#This Row],[Dis_Coming_Pcode]],\"Yes\",\"No\")","v":"No"}]
["2024-03-16","2024-03-10","YE26","Marib","مأرب","YE2612","Marib City","مدينة مأرب","IDPs","Rapid Tracking","2024-03-08","YE18","Al Hodeidah","الحديدة","YE1811","Al Hujjaylah","الحجيلة","Economic Reasons","Unemployment / Salary Cut","No",null,null,1,0,0,0,0,0,0,0,0,1,0,{"$f":"IF(OR(COUNTIF(WestCoast[],IDPs[[#This Row],[Dis_Pcode]])>=1,COUNTIF(WestCoast[],#REF!)>=1),\"Yes\",\"No\")","v":"No"},{"$f":"IF(IDPs[[#This Row],[Gov_Pcode]]=IDPs[[#This Row],[Gov_Coming_Pcode]],\"Yes\",\"No\")","v":"No"},{"$f":"IF(IDPs[[#This Row],[Dis_Pcode]]=IDPs[[#This Row],[Dis_Coming_Pcode]],\"Yes\",\"No\")","v":"No"}]
["2024-03-16","2024-03-14","YE26","Marib","مأرب","YE2612","Marib City","مدينة مأرب","IDPs","Rapid Tracking","2024-03-08","YE18","Al Hodeidah","الحديدة","YE1810","Bajil","باجل","Conflict Reasons","General Insecure Conditions","No",null,null,1,0,1,0,0,0,0,0,0,0,0,{"$f":"IF(OR(COUNTIF(WestCoast[],IDPs[[#This Row],[Dis_Pcode]])>=1,COUNTIF(WestCoast[],#REF!)>=1),\"Yes\",\"No\")","v":"No"},{"$f":"IF(IDPs[[#This Row],[Gov_Pcode]]=IDPs[[#This Row],[Gov_Coming_Pcode]],\"Yes\",\"No\")","v":"No"},{"$f":"IF(IDPs[[#This Row],[Dis_Pcode]]=IDPs[[#This Row],[Dis_Coming_Pcode]],\"Yes\",\"No\")","v":"No"}]
["2024-03-16","2024-03-14","YE26","Marib","مأرب","YE2613","Marib","مأرب","IDPs","Rapid Tracking","2024-03-09","YE20","Dhamar","ذمار","YE2005","Otmah","عتمة","Economic Reasons","Increasing market prices","No",null,null,1,0,0,0,0,0,0,1,0,0,0,{"$f":"IF(OR(COUNTIF(WestCoast[],IDPs[[#This Row],[Dis_Pcode]])>=1,COUNTIF(WestCoast[],#REF!)>=1),\"Yes\",\"No\")","v":"No"},{"$f":"IF(IDPs[[#This Row],[Gov_Pcode]]=IDPs[[#This Row],[Gov_Coming_Pcode]],\"Yes\",\"No\")","v":"No"},{"$f":"IF(IDPs[[#This Row],[Dis_Pcode]]=IDPs[[#This Row],[Dis_Coming_Pcode]],\"Yes\",\"No\")","v":"No"}]
["2024-03-16","2024-03-10","YE26","Marib","مأرب","YE2612","Marib City","مدينة مأرب","IDPs","Rapid Tracking","2024-03-09","YE20","Dhamar","ذمار","YE2006","Wusab Al Aali","وصاب العالي","Economic Reasons","Increasing market prices","No",null,null,1,0,1,0,0,0,0,0,0,0,0,{"$f":"IF(OR(COUNTIF(WestCoast[],IDPs[[#This Row],[Dis_Pcode]])>=1,COUNTIF(WestCoast[],#REF!)>=1),\"Yes\",\"No\")","v":"No"},{"$f":"IF(IDPs[[#This Row],[Gov_Pcode]]=IDPs[[#This Row],[Gov_Coming_Pcode]],\"Yes\",\"No\")","v":"No"},{"$f":"IF(IDPs[[#This Row],[Dis_Pcode]]=IDPs[[#This Row],[Dis_Coming_Pcode]],\"Yes\",\"No\")","v":"No"}]
["2024-03-11","2024-03-11","YE18","Al Hodeidah","الحديدة","YE1819","Hays","حيس","IDPs","Rapid Tracking","2024-03-10","YE18","Al Hodeidah","الحديدة","YE1825","Al Jarrahi","الجراحي","Conflict Reasons","Combat / Shelling","No",null,null,3,0,1,0,0,0,0,2,0,0,0,{"$f":"IF(OR(COUNTIF(WestCoast[],IDPs[[#This Row],[Dis_Pcode]])>=1,COUNTIF(WestCoast[],#REF!)>=1),\"Yes\",\"No\")","v":"Yes"},{"$f":"IF(IDPs[[#This Row],[Gov_Pcode]]=IDPs[[#This Row],[Gov_Coming_Pcode]],\"Yes\",\"No\")","v":"Yes"},{"$f":"IF(IDPs[[#This Row],[Dis_Pcode]]=IDPs[[#This Row],[Dis_Coming_Pcode]],\"Yes\",\"No\")","v":"No"}]
["2024-03-16","2024-03-12","YE26","Marib","مأرب","YE2612","Marib City","مدينة مأرب","IDPs","Rapid Tracking","2024-03-10","YE17","Hajjah","حجة","YE1731","Qarah","قارة","Economic Reasons","Unemployment / Salary Cut","No",null,null,1,0,0,0,0,0,0,0,0,1,0,{"$f":"IF(OR(COUNTIF(WestCoast[],IDPs[[#This Row],[Dis_Pcode]])>=1,COUNTIF(WestCoast[],#REF!)>=1),\"Yes\",\"No\")","v":"No"},{"$f":"IF(IDPs[[#This Row],[Gov_Pcode]]=IDPs[[#This Row],[Gov_Coming_Pcode]],\"Yes\",\"No\")","v":"No"},{"$f":"IF(IDPs[[#This Row],[Dis_Pcode]]=IDPs[[#This Row],[Dis_Coming_Pcode]],\"Yes\",\"No\")","v":"No"}]
["2024-03-16","2024-03-14","YE26","Marib","مأرب","YE2612","Marib City","مدينة مأرب","IDPs","Rapid Tracking","2024-03-10","YE29","Amran","عمران","YE2915","Amran","عمران","Economic Reasons","Unemployment / Salary Cut","No",null,null,1,0,0,0,1,0,0,0,0,0,0,{"$f":"IF(OR(COUNTIF(WestCoast[],IDPs[[#This Row],[Dis_Pcode]])>=1,COUNTIF(WestCoast[],#REF!)>=1),\"Yes\",\"No\")","v":"No"},{"$f":"IF(IDPs[[#This Row],[Gov_Pcode]]=IDPs[[#This Row],[Gov_Coming_Pcode]],\"Yes\",\"No\")","v":"No"},{"$f":"IF(IDPs[[#This Row],[Dis_Pcode]]=IDPs[[#This Row],[Dis_Coming_Pcode]],\"Yes\",\"No\")","v":"No"}]
["2024-03-16","2024-03-14","YE26","Marib","مأرب","YE2613","Marib","مأرب","IDPs","Rapid Tracking","2024-03-10","YE18","Al Hodeidah","الحديدة","YE1813","Al Marawiah","المراوعة","Economic Reasons","Other economic reason","No",null,null,1,0,0,0,0,0,0,1,0,0,0,{"$f":"IF(OR(COUNTIF(WestCoast[],IDPs[[#This Row],[Dis_Pcode]])>=1,COUNTIF(WestCoast[],#REF!)>=1),\"Yes\",\"No\")","v":"No"},{"$f":"IF(IDPs[[#This Row],[Gov_Pcode]]=IDPs[[#This Row],[Gov_Coming_Pcode]],\"Yes\",\"No\")","v":"No"},{"$f":"IF(IDPs[[#This Row],[Dis_Pcode]]=IDPs[[#This Row],[Dis_Coming_Pcode]],\"Yes\",\"No\")","v":"No"}]
["2024-03-16","2024-03-14","YE26","Marib","مأرب","YE2613","Marib","مأرب","IDPs","Rapid Tracking","2024-03-10","YE26","Marib","مأرب","YE2609","Harib","حريب","Economic Reasons","Increasing market prices","No",null,null,1,0,0,0,0,0,0,1,0,0,0,{"$f":"IF(OR(COUNTIF(WestCoast[],IDPs[[#This Row],[Dis_Pcode]])>=1,COUNTIF(WestCoast[],#REF!)>=1),\"Yes\",\"No\")","v":"No"},{"$f":"IF(IDPs[[#This Row],[Gov_Pcode]]=IDPs[[#This Row],[Gov_Coming_Pcode]],\"Yes\",\"No\")","v":"Yes"},{"$f":"IF(IDPs[[#This Row],[Dis_Pcode]]=IDPs[[#This Row],[Dis_Coming_Pcode]],\"Yes\",\"No\")","v":"No"}]
["2024-03-16","2024-03-16","YE26","Marib","مأرب","YE2612","Marib City","مدينة مأرب","IDPs","Rapid Tracking","2024-03-10","YE13","Sanaa City","أمانة العاصمة","YE1308","Main","معين","Economic Reasons","Unemployment / Salary Cut","No",null,null,1,0,0,0,0,0,0,1,0,0,0,{"$f":"IF(OR(COUNTIF(WestCoast[],IDPs[[#This Row],[Dis_Pcode]])>=1,COUNTIF(WestCoast[],#REF!)>=1),\"Yes\",\"No\")","v":"No"},{"$f":"IF(IDPs[[#This Row],[Gov_Pcode]]=IDPs[[#This Row],[Gov_Coming_Pcode]],\"Yes\",\"No\")","v":"No"},{"$f":"IF(IDPs[[#This Row],[Dis_Pcode]]=IDPs[[#This Row],[Dis_Coming_Pcode]],\"Yes\",\"No\")","v":"No"}]
["2024-03-17","2024-03-16","YE15","Taiz","تعز","YE1522","Al Mawasit","المواسط","IDPs","Rapid Tracking","2024-03-10","YE18","Al Hodeidah","الحديدة","YE1821","Al Hawak","الحوك","Economic Reasons","Other economic reason","No",null,null,1,0,1,0,0,0,0,0,0,0,0,{"$f":"IF(OR(COUNTIF(WestCoast[],IDPs[[#This Row],[Dis_Pcode]])>=1,COUNTIF(WestCoast[],#REF!)>=1),\"Yes\",\"No\")","v":"No"},{"$f":"IF(IDPs[[#This Row],[Gov_Pcode]]=IDPs[[#This Row],[Gov_Coming_Pcode]],\"Yes\",\"No\")","v":"No"},{"$f":"IF(IDPs[[#This Row],[Dis_Pcode]]=IDPs[[#This Row],[Dis_Coming_Pcode]],\"Yes\",\"No\")","v":"No"}]
["2024-03-16","2024-03-11","YE26","Marib","مأرب","YE2612","Marib City","مدينة مأرب","IDPs","Rapid Tracking","2024-03-11","YE15","Taiz","تعز","YE1509","Mashrah Wa Hadnan","مشرعة وحدنان","Economic Reasons","Unemployment / Salary Cut","No",null,null,1,0,0,0,1,0,0,0,0,0,0,{"$f":"IF(OR(COUNTIF(WestCoast[],IDPs[[#This Row],[Dis_Pcode]])>=1,COUNTIF(WestCoast[],#REF!)>=1),\"Yes\",\"No\")","v":"No"},{"$f":"IF(IDPs[[#This Row],[Gov_Pcode]]=IDPs[[#This Row],[Gov_Coming_Pcode]],\"Yes\",\"No\")","v":"No"},{"$f":"IF(IDPs[[#This Row],[Dis_Pcode]]=IDPs[[#This Row],[Dis_Coming_Pcode]],\"Yes\",\"No\")","v":"No"}]
["2024-03-16","2024-03-13","YE26","Marib","مأرب","YE2613","Marib","مأرب","IDPs","Rapid Tracking","2024-03-11","YE11","Ibb","إب","YE1108","Hobeish","حبيش","Economic Reasons","Other economic reason","No",null,null,1,0,0,0,1,0,0,0,0,0,0,{"$f":"IF(OR(COUNTIF(WestCoast[],IDPs[[#This Row],[Dis_Pcode]])>=1,COUNTIF(WestCoast[],#REF!)>=1),\"Yes\",\"No\")","v":"No"},{"$f":"IF(IDPs[[#This Row],[Gov_Pcode]]=IDPs[[#This Row],[Gov_Coming_Pcode]],\"Yes\",\"No\")","v":"No"},{"$f":"IF(IDPs[[#This Row],[Dis_Pcode]]=IDPs[[#This Row],[Dis_Coming_Pcode]],\"Yes\",\"No\")","v":"No"}]
["2024-03-16","2024-03-13","YE26","Marib","مأرب","YE2613","Marib","مأرب","IDPs","Rapid Tracking","2024-03-11","YE17","Hajjah","حجة","YE1708","Al Jamimah","الجميمة","Economic Reasons","Other economic reason","No",null,null,1,0,0,0,0,0,0,0,0,1,0,{"$f":"IF(OR(COUNTIF(WestCoast[],IDPs[[#This Row],[Dis_Pcode]])>=1,COUNTIF(WestCoast[],#REF!)>=1),\"Yes\",\"No\")","v":"No"},{"$f":"IF(IDPs[[#This Row],[Gov_Pcode]]=IDPs[[#This Row],[Gov_Coming_Pcode]],\"Yes\",\"No\")","v":"No"},{"$f":"IF(IDPs[[#This Row],[Dis_Pcode]]=IDPs[[#This Row],[Dis_Coming_Pcode]],\"Yes\",\"No\")","v":"No"}]
["2024-03-16","2024-03-14","YE26","Marib","مأرب","YE2613","Marib","مأرب","IDPs","Rapid Tracking","2024-03-11","YE16","Al Jawf","الجوف","YE1601","Khab wa Ash Shaf","خب و الشعف","Economic Reasons","Increasing market prices","No",null,null,1,0,0,0,0,0,0,1,0,0,0,{"$f":"IF(OR(COUNTIF(WestCoast[],IDPs[[#This Row],[Dis_Pcode]])>=1,COUNTIF(WestCoast[],#REF!)>=1),\"Yes\",\"No\")","v":"No"},{"$f":"IF(IDPs[[#This Row],[Gov_Pcode]]=IDPs[[#This Row],[Gov_Coming_Pcode]],\"Yes\",\"No\")","v":"No"},{"$f":"IF(IDPs[[#This Row],[Dis_Pcode]]=IDPs[[#This Row],[Dis_Coming_Pcode]],\"Yes\",\"No\")","v":"No"}]
["2024-03-16","2024-03-16","YE26","Marib","مأرب","YE2612","Marib City","مدينة مأرب","IDPs","Rapid Tracking","2024-03-11","YE26","Marib","مأرب","YE2607","Al Jubah","الجوبة","Conflict Reasons","General Insecure Conditions","No",null,null,2,0,0,0,2,0,0,0,0,0,0,{"$f":"IF(OR(COUNTIF(WestCoast[],IDPs[[#This Row],[Dis_Pcode]])>=1,COUNTIF(WestCoast[],#REF!)>=1),\"Yes\",\"No\")","v":"No"},{"$f":"IF(IDPs[[#This Row],[Gov_Pcode]]=IDPs[[#This Row],[Gov_Coming_Pcode]],\"Yes\",\"No\")","v":"Yes"},{"$f":"IF(IDPs[[#This Row],[Dis_Pcode]]=IDPs[[#This Row],[Dis_Coming_Pcode]],\"Yes\",\"No\")","v":"No"}]
["2024-03-14","2024-03-15","YE15","Taiz","تعز","YE1507","Mawza","موزع","IDPs","Rapid Tracking","2024-03-12","YE15","Taiz","تعز","YE1505","Al Makha","المخا","Economic Reasons","Other economic reason","Yes","No",null,1,0,0,0,1,0,0,0,0,0,0,{"$f":"IF(OR(COUNTIF(WestCoast[],IDPs[[#This Row],[Dis_Pcode]])>=1,COUNTIF(WestCoast[],#REF!)>=1),\"Yes\",\"No\")","v":"Yes"},{"$f":"IF(IDPs[[#This Row],[Gov_Pcode]]=IDPs[[#This Row],[Gov_Coming_Pcode]],\"Yes\",\"No\")","v":"Yes"},{"$f":"IF(IDPs[[#This Row],[Dis_Pcode]]=IDPs[[#This Row],[Dis_Coming_Pcode]],\"Yes\",\"No\")","v":"No"}]
["2024-03-14","2024-03-15","YE15","Taiz","تعز","YE1507","Mawza","موزع","IDPs","Rapid Tracking","2024-03-12","YE15","Taiz","تعز","YE1507","Mawza","موزع","Economic Reasons","Other economic reason","Yes","No",null,3,0,0,0,3,0,0,0,0,0,0,{"$f":"IF(OR(COUNTIF(WestCoast[],IDPs[[#This Row],[Dis_Pcode]])>=1,COUNTIF(WestCoast[],#REF!)>=1),\"Yes\",\"No\")","v":"Yes"},{"$f":"IF(IDPs[[#This Row],[Gov_Pcode]]=IDPs[[#This Row],[Gov_Coming_Pcode]],\"Yes\",\"No\")","v":"Yes"},{"$f":"IF(IDPs[[#This Row],[Dis_Pcode]]=IDPs[[#This Row],[Dis_Coming_Pcode]],\"Yes\",\"No\")","v":"Yes"}]
["2024-03-14","2024-03-15","YE15","Taiz","تعز","YE1507","Mawza","موزع","IDPs","Rapid Tracking","2024-03-12","YE15","Taiz","تعز","YE1504","Maqbanah","مقبنة","Economic Reasons","Other economic reason","Yes","No",null,7,0,0,0,7,0,0,0,0,0,0,{"$f":"IF(OR(COUNTIF(WestCoast[],IDPs[[#This Row],[Dis_Pcode]])>=1,COUNTIF(WestCoast[],#REF!)>=1),\"Yes\",\"No\")","v":"Yes"},{"$f":"IF(IDPs[[#This Row],[Gov_Pcode]]=IDPs[[#This Row],[Gov_Coming_Pcode]],\"Yes\",\"No\")","v":"Yes"},{"$f":"IF(IDPs[[#This Row],[Dis_Pcode]]=IDPs[[#This Row],[Dis_Coming_Pcode]],\"Yes\",\"No\")","v":"No"}]
["2024-03-16","2024-03-13","YE26","Marib","مأرب","YE2613","Marib","مأرب","IDPs","Rapid Tracking","2024-03-12","YE18","Al Hodeidah","الحديدة","YE1813","Al Marawiah","المراوعة","Economic Reasons","Unemployment / Salary Cut","No",null,null,1,0,0,0,0,0,0,1,0,0,0,{"$f":"IF(OR(COUNTIF(WestCoast[],IDPs[[#This Row],[Dis_Pcode]])>=1,COUNTIF(WestCoast[],#REF!)>=1),\"Yes\",\"No\")","v":"No"},{"$f":"IF(IDPs[[#This Row],[Gov_Pcode]]=IDPs[[#This Row],[Gov_Coming_Pcode]],\"Yes\",\"No\")","v":"No"},{"$f":"IF(IDPs[[#This Row],[Dis_Pcode]]=IDPs[[#This Row],[Dis_Coming_Pcode]],\"Yes\",\"No\")","v":"No"}]
["2024-03-16","2024-03-14","YE26","Marib","مأرب","YE2613","Marib","مأرب","IDPs","Rapid Tracking","2024-03-12","YE26","Marib","مأرب","YE2609","Harib","حريب","Economic Reasons","Unemployment / Salary Cut","No",null,null,1,0,0,0,0,1,0,0,0,0,0,{"$f":"IF(OR(COUNTIF(WestCoast[],IDPs[[#This Row],[Dis_Pcode]])>=1,COUNTIF(WestCoast[],#REF!)>=1),\"Yes\",\"No\")","v":"No"},{"$f":"IF(IDPs[[#This Row],[Gov_Pcode]]=IDPs[[#This Row],[Gov_Coming_Pcode]],\"Yes\",\"No\")","v":"Yes"},{"$f":"IF(IDPs[[#This Row],[Dis_Pcode]]=IDPs[[#This Row],[Dis_Coming_Pcode]],\"Yes\",\"No\")","v":"No"}]
["2024-03-16","2024-03-16","YE26","Marib","مأرب","YE2612","Marib City","مدينة مأرب","IDPs","Rapid Tracking","2024-03-12","YE29","Amran","عمران","YE2903","Al Ashah","العشة","Conflict Reasons","General Insecure Conditions","No",null,null,1,0,0,0,0,0,0,1,0,0,0,{"$f":"IF(OR(COUNTIF(WestCoast[],IDPs[[#This Row],[Dis_Pcode]])>=1,COUNTIF(WestCoast[],#REF!)>=1),\"Yes\",\"No\")","v":"No"},{"$f":"IF(IDPs[[#This Row],[Gov_Pcode]]=IDPs[[#This Row],[Gov_Coming_Pcode]],\"Yes\",\"No\")","v":"No"},{"$f":"IF(IDPs[[#This Row],[Dis_Pcode]]=IDPs[[#This Row],[Dis_Coming_Pcode]],\"Yes\",\"No\")","v":"No"}]
["2024-03-16","2024-03-14","YE26","Marib","مأرب","YE2612","Marib City","مدينة مأرب","IDPs","Rapid Tracking","2024-03-13","YE18","Al Hodeidah","الحديدة","YE1824","Zabid","زبيد","Economic Reasons","Unemployment / Salary Cut","No",null,null,1,0,1,0,0,0,0,0,0,0,0,{"$f":"IF(OR(COUNTIF(WestCoast[],IDPs[[#This Row],[Dis_Pcode]])>=1,COUNTIF(WestCoast[],#REF!)>=1),\"Yes\",\"No\")","v":"No"},{"$f":"IF(IDPs[[#This Row],[Gov_Pcode]]=IDPs[[#This Row],[Gov_Coming_Pcode]],\"Yes\",\"No\")","v":"No"},{"$f":"IF(IDPs[[#This Row],[Dis_Pcode]]=IDPs[[#This Row],[Dis_Coming_Pcode]],\"Yes\",\"No\")","v":"No"}]
["2024-03-16","2024-03-14","YE26","Marib","مأرب","YE2613","Marib","مأرب","IDPs","Rapid Tracking","2024-03-13","YE20","Dhamar","ذمار","YE2008","Dhamar City","مدينة ذمار","Economic Reasons","Other economic reason","No",null,null,1,0,0,0,0,0,0,1,0,0,0,{"$f":"IF(OR(COUNTIF(WestCoast[],IDPs[[#This Row],[Dis_Pcode]])>=1,COUNTIF(WestCoast[],#REF!)>=1),\"Yes\",\"No\")","v":"No"},{"$f":"IF(IDPs[[#This Row],[Gov_Pcode]]=IDPs[[#This Row],[Gov_Coming_Pcode]],\"Yes\",\"No\")","v":"No"},{"$f":"IF(IDPs[[#This Row],[Dis_Pcode]]=IDPs[[#This Row],[Dis_Coming_Pcode]],\"Yes\",\"No\")","v":"No"}]
["2024-03-16","2024-03-16","YE26","Marib","مأرب","YE2612","Marib City","مدينة مأرب","IDPs","Rapid Tracking","2024-03-13","YE23","Sanaa","صنعاء","YE2312","Khawlan","خولان","Conflict Reasons","General Insecure Conditions","No",null,null,1,0,0,0,1,0,0,0,0,0,0,{"$f":"IF(OR(COUNTIF(WestCoast[],IDPs[[#This Row],[Dis_Pcode]])>=1,COUNTIF(WestCoast[],#REF!)>=1),\"Yes\",\"No\")","v":"No"},{"$f":"IF(IDPs[[#This Row],[Gov_Pcode]]=IDPs[[#This Row],[Gov_Coming_Pcode]],\"Yes\",\"No\")","v":"No"},{"$f":"IF(IDPs[[#This Row],[Dis_Pcode]]=IDPs[[#This Row],[Dis_Coming_Pcode]],\"Yes\",\"No\")","v":"No"}]
["2024-03-23","2024-03-22","YE18","Al Hodeidah","الحديدة","YE1820","Al Khukhah","الخوخة","IDPs","Rapid Tracking","2024-03-14","YE18","Al Hodeidah","الحديدة","YE1825","Al Jarrahi","الجراحي","Conflict Reasons","Combat / Shelling","No",null,null,3,0,1,0,0,0,0,2,0,0,0,{"$f":"IF(OR(COUNTIF(WestCoast[],IDPs[[#This Row],[Dis_Pcode]])>=1,COUNTIF(WestCoast[],#REF!)>=1),\"Yes\",\"No\")","v":"Yes"},{"$f":"IF(IDPs[[#This Row],[Gov_Pcode]]=IDPs[[#This Row],[Gov_Coming_Pcode]],\"Yes\",\"No\")","v":"Yes"},{"$f":"IF(IDPs[[#This Row],[Dis_Pcode]]=IDPs[[#This Row],[Dis_Coming_Pcode]],\"Yes\",\"No\")","v":"No"}]
["2024-03-23","2024-03-17","YE26","Marib","مأرب","YE2612","Marib City","مدينة مأرب","IDPs","Rapid Tracking","2024-03-15","YE20","Dhamar","ذمار","YE2006","Wusab Al Aali","وصاب العالي","Economic Reasons","Other economic reason","No",null,null,1,0,0,0,0,0,0,1,0,0,0,{"$f":"IF(OR(COUNTIF(WestCoast[],IDPs[[#This Row],[Dis_Pcode]])>=1,COUNTIF(WestCoast[],#REF!)>=1),\"Yes\",\"No\")","v":"No"},{"$f":"IF(IDPs[[#This Row],[Gov_Pcode]]=IDPs[[#This Row],[Gov_Coming_Pcode]],\"Yes\",\"No\")","v":"No"},{"$f":"IF(IDPs[[#This Row],[Dis_Pcode]]=IDPs[[#This Row],[Dis_Coming_Pcode]],\"Yes\",\"No\")","v":"No"}]
["2024-03-23","2024-03-17","YE26","Marib","مأرب","YE2612","Marib City","مدينة مأرب","IDPs","Rapid Tracking","2024-03-15","YE20","Dhamar","ذمار","YE2011","Dawran Anis","ضوران أنس","Economic Reasons","Other economic reason","No",null,null,1,0,0,0,0,0,0,0,0,1,0,{"$f":"IF(OR(COUNTIF(WestCoast[],IDPs[[#This Row],[Dis_Pcode]])>=1,COUNTIF(WestCoast[],#REF!)>=1),\"Yes\",\"No\")","v":"No"},{"$f":"IF(IDPs[[#This Row],[Gov_Pcode]]=IDPs[[#This Row],[Gov_Coming_Pcode]],\"Yes\",\"No\")","v":"No"},{"$f":"IF(IDPs[[#This Row],[Dis_Pcode]]=IDPs[[#This Row],[Dis_Coming_Pcode]],\"Yes\",\"No\")","v":"No"}]
["2024-03-23","2024-03-18","YE26","Marib","مأرب","YE2609","Harib","حريب","IDPs","Rapid Tracking","2024-03-15","YE20","Dhamar","ذمار","YE2005","Otmah","عتمة","Economic Reasons","Unemployment / Salary Cut","No",null,null,1,0,0,0,0,0,0,1,0,0,0,{"$f":"IF(OR(COUNTIF(WestCoast[],IDPs[[#This Row],[Dis_Pcode]])>=1,COUNTIF(WestCoast[],#REF!)>=1),\"Yes\",\"No\")","v":"No"},{"$f":"IF(IDPs[[#This Row],[Gov_Pcode]]=IDPs[[#This Row],[Gov_Coming_Pcode]],\"Yes\",\"No\")","v":"No"},{"$f":"IF(IDPs[[#This Row],[Dis_Pcode]]=IDPs[[#This Row],[Dis_Coming_Pcode]],\"Yes\",\"No\")","v":"No"}]
["2024-03-23","2024-03-22","YE18","Al Hodeidah","الحديدة","YE1820","Al Khukhah","الخوخة","IDPs","Rapid Tracking","2024-03-15","YE18","Al Hodeidah","الحديدة","YE1825","Al Jarrahi","الجراحي","Conflict Reasons","Combat / Shelling","No",null,null,2,0,0,0,0,0,0,2,0,0,0,{"$f":"IF(OR(COUNTIF(WestCoast[],IDPs[[#This Row],[Dis_Pcode]])>=1,COUNTIF(WestCoast[],#REF!)>=1),\"Yes\",\"No\")","v":"Yes"},{"$f":"IF(IDPs[[#This Row],[Gov_Pcode]]=IDPs[[#This Row],[Gov_Coming_Pcode]],\"Yes\",\"No\")","v":"Yes"},{"$f":"IF(IDPs[[#This Row],[Dis_Pcode]]=IDPs[[#This Row],[Dis_Coming_Pcode]],\"Yes\",\"No\")","v":"No"}]
["2024-03-23","2024-03-23","YE15","Taiz","تعز","YE1508","Jabal Habashi","جبل حبشي","IDPs","Rapid Tracking","2024-03-15","YE15","Taiz","تعز","YE1504","Maqbanah","مقبنة","Conflict Reasons","Combat / Shelling","No",null,null,2,0,0,0,2,0,0,0,0,0,0,{"$f":"IF(OR(COUNTIF(WestCoast[],IDPs[[#This Row],[Dis_Pcode]])>=1,COUNTIF(WestCoast[],#REF!)>=1),\"Yes\",\"No\")","v":"No"},{"$f":"IF(IDPs[[#This Row],[Gov_Pcode]]=IDPs[[#This Row],[Gov_Coming_Pcode]],\"Yes\",\"No\")","v":"Yes"},{"$f":"IF(IDPs[[#This Row],[Dis_Pcode]]=IDPs[[#This Row],[Dis_Coming_Pcode]],\"Yes\",\"No\")","v":"No"}]
["2024-03-24","2024-03-24","YE15","Taiz","تعز","YE1513","As Silw","الصلو","IDPs","Rapid Tracking","2024-03-15","YE15","Taiz","تعز","YE1513","As Silw","الصلو","Economic Reasons","Increasing market prices","No",null,null,1,0,0,0,1,0,0,0,0,0,0,{"$f":"IF(OR(COUNTIF(WestCoast[],IDPs[[#This Row],[Dis_Pcode]])>=1,COUNTIF(WestCoast[],#REF!)>=1),\"Yes\",\"No\")","v":"No"},{"$f":"IF(IDPs[[#This Row],[Gov_Pcode]]=IDPs[[#This Row],[Gov_Coming_Pcode]],\"Yes\",\"No\")","v":"Yes"},{"$f":"IF(IDPs[[#This Row],[Dis_Pcode]]=IDPs[[#This Row],[Dis_Coming_Pcode]],\"Yes\",\"No\")","v":"Yes"}]
["2024-03-18","2024-03-18","YE30","Ad Dali","الضالع","YE3006","Ad Dali","الضالع","IDPs","Rapid Tracking","2024-03-16","YE30","Ad Dali","الضالع","YE3006","Ad Dali","الضالع","Conflict Reasons","Combat / Shelling","No",null,null,1,0,0,0,0,0,0,1,0,0,0,{"$f":"IF(OR(COUNTIF(WestCoast[],IDPs[[#This Row],[Dis_Pcode]])>=1,COUNTIF(WestCoast[],#REF!)>=1),\"Yes\",\"No\")","v":"No"},{"$f":"IF(IDPs[[#This Row],[Gov_Pcode]]=IDPs[[#This Row],[Gov_Coming_Pcode]],\"Yes\",\"No\")","v":"Yes"},{"$f":"IF(IDPs[[#This Row],[Dis_Pcode]]=IDPs[[#This Row],[Dis_Coming_Pcode]],\"Yes\",\"No\")","v":"Yes"}]
["2024-03-18","2024-03-18","YE30","Ad Dali","الضالع","YE3006","Ad Dali","الضالع","IDPs","Rapid Tracking","2024-03-16","YE30","Ad Dali","الضالع","YE3003","Qatabah","قعطبة","Conflict Reasons","Combat / Shelling","No",null,null,1,0,0,0,0,0,0,1,0,0,0,{"$f":"IF(OR(COUNTIF(WestCoast[],IDPs[[#This Row],[Dis_Pcode]])>=1,COUNTIF(WestCoast[],#REF!)>=1),\"Yes\",\"No\")","v":"No"},{"$f":"IF(IDPs[[#This Row],[Gov_Pcode]]=IDPs[[#This Row],[Gov_Coming_Pcode]],\"Yes\",\"No\")","v":"Yes"},{"$f":"IF(IDPs[[#This Row],[Dis_Pcode]]=IDPs[[#This Row],[Dis_Coming_Pcode]],\"Yes\",\"No\")","v":"No"}]
["2024-03-23","2024-03-17","YE26","Marib","مأرب","YE2612","Marib City","مدينة مأرب","IDPs","Rapid Tracking","2024-03-16","YE18","Al Hodeidah","الحديدة","YE1811","Al Hujjaylah","الحجيلة","Economic Reasons","Unemployment / Salary Cut","No",null,null,1,0,0,0,0,0,0,0,0,1,0,{"$f":"IF(OR(COUNTIF(WestCoast[],IDPs[[#This Row],[Dis_Pcode]])>=1,COUNTIF(WestCoast[],#REF!)>=1),\"Yes\",\"No\")","v":"No"},{"$f":"IF(IDPs[[#This Row],[Gov_Pcode]]=IDPs[[#This Row],[Gov_Coming_Pcode]],\"Yes\",\"No\")","v":"No"},{"$f":"IF(IDPs[[#This Row],[Dis_Pcode]]=IDPs[[#This Row],[Dis_Coming_Pcode]],\"Yes\",\"No\")","v":"No"}]
["2024-03-23","2024-03-17","YE26","Marib","مأرب","YE2612","Marib City","مدينة مأرب","IDPs","Rapid Tracking","2024-03-16","YE16","Al Jawf","الجوف","YE1602","Al Humaydat","الحميدات","Economic Reasons","Unemployment / Salary Cut","No",null,null,1,0,0,0,0,1,0,0,0,0,0,{"$f":"IF(OR(COUNTIF(WestCoast[],IDPs[[#This Row],[Dis_Pcode]])>=1,COUNTIF(WestCoast[],#REF!)>=1),\"Yes\",\"No\")","v":"No"},{"$f":"IF(IDPs[[#This Row],[Gov_Pcode]]=IDPs[[#This Row],[Gov_Coming_Pcode]],\"Yes\",\"No\")","v":"No"},{"$f":"IF(IDPs[[#This Row],[Dis_Pcode]]=IDPs[[#This Row],[Dis_Coming_Pcode]],\"Yes\",\"No\")","v":"No"}]
["2024-03-23","2024-03-18","YE26","Marib","مأرب","YE2609","Harib","حريب","IDPs","Rapid Tracking","2024-03-17","YE18","Al Hodeidah","الحديدة","YE1810","Bajil","باجل","Economic Reasons","Other economic reason","No",null,null,1,0,0,0,1,0,0,0,0,0,0,{"$f":"IF(OR(COUNTIF(WestCoast[],IDPs[[#This Row],[Dis_Pcode]])>=1,COUNTIF(WestCoast[],#REF!)>=1),\"Yes\",\"No\")","v":"No"},{"$f":"IF(IDPs[[#This Row],[Gov_Pcode]]=IDPs[[#This Row],[Gov_Coming_Pcode]],\"Yes\",\"No\")","v":"No"},{"$f":"IF(IDPs[[#This Row],[Dis_Pcode]]=IDPs[[#This Row],[Dis_Coming_Pcode]],\"Yes\",\"No\")","v":"No"}]
["2024-03-23","2024-03-19","YE26","Marib","مأرب","YE2612","Marib City","مدينة مأرب","IDPs","Rapid Tracking","2024-03-17","YE15","Taiz","تعز","YE1505","Al Makha","المخا","Economic Reasons","Other economic reason","No",null,null,1,0,0,0,1,0,0,0,0,0,0,{"$f":"IF(OR(COUNTIF(WestCoast[],IDPs[[#This Row],[Dis_Pcode]])>=1,COUNTIF(WestCoast[],#REF!)>=1),\"Yes\",\"No\")","v":"No"},{"$f":"IF(IDPs[[#This Row],[Gov_Pcode]]=IDPs[[#This Row],[Gov_Coming_Pcode]],\"Yes\",\"No\")","v":"No"},{"$f":"IF(IDPs[[#This Row],[Dis_Pcode]]=IDPs[[#This Row],[Dis_Coming_Pcode]],\"Yes\",\"No\")","v":"No"}]
["2024-03-23","2024-03-19","YE26","Marib","مأرب","YE2613","Marib","مأرب","IDPs","Rapid Tracking","2024-03-17","YE16","Al Jawf","الجوف","YE1610","Barat Al Anan","برط العنان","Conflict Reasons","General Insecure Conditions","No",null,null,1,0,0,0,0,0,0,1,0,0,0,{"$f":"IF(OR(COUNTIF(WestCoast[],IDPs[[#This Row],[Dis_Pcode]])>=1,COUNTIF(WestCoast[],#REF!)>=1),\"Yes\",\"No\")","v":"No"},{"$f":"IF(IDPs[[#This Row],[Gov_Pcode]]=IDPs[[#This Row],[Gov_Coming_Pcode]],\"Yes\",\"No\")","v":"No"},{"$f":"IF(IDPs[[#This Row],[Dis_Pcode]]=IDPs[[#This Row],[Dis_Coming_Pcode]],\"Yes\",\"No\")","v":"No"}]
["2024-03-23","2024-03-19","YE26","Marib","مأرب","YE2613","Marib","مأرب","IDPs","Rapid Tracking","2024-03-17","YE17","Hajjah","حجة","YE1727","Bani Al Awam","بني العوام","Economic Reasons","Other economic reason","No",null,null,1,0,0,0,0,0,0,0,0,1,0,{"$f":"IF(OR(COUNTIF(WestCoast[],IDPs[[#This Row],[Dis_Pcode]])>=1,COUNTIF(WestCoast[],#REF!)>=1),\"Yes\",\"No\")","v":"No"},{"$f":"IF(IDPs[[#This Row],[Gov_Pcode]]=IDPs[[#This Row],[Gov_Coming_Pcode]],\"Yes\",\"No\")","v":"No"},{"$f":"IF(IDPs[[#This Row],[Dis_Pcode]]=IDPs[[#This Row],[Dis_Coming_Pcode]],\"Yes\",\"No\")","v":"No"}]
["2024-03-23","2024-03-19","YE26","Marib","مأرب","YE2613","Marib","مأرب","IDPs","Rapid Tracking","2024-03-18","YE18","Al Hodeidah","الحديدة","YE1812","Bura","برع","Economic Reasons","Unemployment / Salary Cut","No",null,null,1,0,0,0,0,1,0,0,0,0,0,{"$f":"IF(OR(COUNTIF(WestCoast[],IDPs[[#This Row],[Dis_Pcode]])>=1,COUNTIF(WestCoast[],#REF!)>=1),\"Yes\",\"No\")","v":"No"},{"$f":"IF(IDPs[[#This Row],[Gov_Pcode]]=IDPs[[#This Row],[Gov_Coming_Pcode]],\"Yes\",\"No\")","v":"No"},{"$f":"IF(IDPs[[#This Row],[Dis_Pcode]]=IDPs[[#This Row],[Dis_Coming_Pcode]],\"Yes\",\"No\")","v":"No"}]
["2024-03-23","2024-03-20","YE26","Marib","مأرب","YE2612","Marib City","مدينة مأرب","IDPs","Rapid Tracking","2024-03-18","YE29","Amran","عمران","YE2906","Al Madan","المدان","Economic Reasons","Increasing market prices","No",null,null,1,0,1,0,0,0,0,0,0,0,0,{"$f":"IF(OR(COUNTIF(WestCoast[],IDPs[[#This Row],[Dis_Pcode]])>=1,COUNTIF(WestCoast[],#REF!)>=1),\"Yes\",\"No\")","v":"No"},{"$f":"IF(IDPs[[#This Row],[Gov_Pcode]]=IDPs[[#This Row],[Gov_Coming_Pcode]],\"Yes\",\"No\")","v":"No"},{"$f":"IF(IDPs[[#This Row],[Dis_Pcode]]=IDPs[[#This Row],[Dis_Coming_Pcode]],\"Yes\",\"No\")","v":"No"}]
["2024-03-23","2024-03-20","YE26","Marib","مأرب","YE2613","Marib","مأرب","IDPs","Rapid Tracking","2024-03-18","YE20","Dhamar","ذمار","YE2011","Dawran Anis","ضوران أنس","Economic Reasons","Increasing market prices","Yes","No",null,1,0,0,0,0,0,0,1,0,0,0,{"$f":"IF(OR(COUNTIF(WestCoast[],IDPs[[#This Row],[Dis_Pcode]])>=1,COUNTIF(WestCoast[],#REF!)>=1),\"Yes\",\"No\")","v":"No"},{"$f":"IF(IDPs[[#This Row],[Gov_Pcode]]=IDPs[[#This Row],[Gov_Coming_Pcode]],\"Yes\",\"No\")","v":"No"},{"$f":"IF(IDPs[[#This Row],[Dis_Pcode]]=IDPs[[#This Row],[Dis_Coming_Pcode]],\"Yes\",\"No\")","v":"No"}]
["2024-03-23","2024-03-20","YE26","Marib","مأرب","YE2613","Marib","مأرب","IDPs","Rapid Tracking","2024-03-18","YE26","Marib","مأرب","YE2609","Harib","حريب","Conflict Reasons","General Insecure Conditions","Yes","No",null,1,0,0,0,0,0,0,1,0,0,0,{"$f":"IF(OR(COUNTIF(WestCoast[],IDPs[[#This Row],[Dis_Pcode]])>=1,COUNTIF(WestCoast[],#REF!)>=1),\"Yes\",\"No\")","v":"No"},{"$f":"IF(IDPs[[#This Row],[Gov_Pcode]]=IDPs[[#This Row],[Gov_Coming_Pcode]],\"Yes\",\"No\")","v":"Yes"},{"$f":"IF(IDPs[[#This Row],[Dis_Pcode]]=IDPs[[#This Row],[Dis_Coming_Pcode]],\"Yes\",\"No\")","v":"No"}]
["2024-03-23","2024-03-20","YE26","Marib","مأرب","YE2613","Marib","مأرب","IDPs","Rapid Tracking","2024-03-18","YE15","Taiz","تعز","YE1512","Dimnat Khadir","خدير","Economic Reasons","Other economic reason","No",null,null,1,0,0,0,0,0,0,0,0,1,0,{"$f":"IF(OR(COUNTIF(WestCoast[],IDPs[[#This Row],[Dis_Pcode]])>=1,COUNTIF(WestCoast[],#REF!)>=1),\"Yes\",\"No\")","v":"No"},{"$f":"IF(IDPs[[#This Row],[Gov_Pcode]]=IDPs[[#This Row],[Gov_Coming_Pcode]],\"Yes\",\"No\")","v":"No"},{"$f":"IF(IDPs[[#This Row],[Dis_Pcode]]=IDPs[[#This Row],[Dis_Coming_Pcode]],\"Yes\",\"No\")","v":"No"}]
["2024-03-23","2024-03-21","YE26","Marib","مأرب","YE2613","Marib","مأرب","IDPs","Rapid Tracking","2024-03-18","YE26","Marib","مأرب","YE2609","Harib","حريب","Economic Reasons","Increasing market prices","Yes","No",null,1,0,0,0,1,0,0,0,0,0,0,{"$f":"IF(OR(COUNTIF(WestCoast[],IDPs[[#This Row],[Dis_Pcode]])>=1,COUNTIF(WestCoast[],#REF!)>=1),\"Yes\",\"No\")","v":"No"},{"$f":"IF(IDPs[[#This Row],[Gov_Pcode]]=IDPs[[#This Row],[Gov_Coming_Pcode]],\"Yes\",\"No\")","v":"Yes"},{"$f":"IF(IDPs[[#This Row],[Dis_Pcode]]=IDPs[[#This Row],[Dis_Coming_Pcode]],\"Yes\",\"No\")","v":"No"}]
["2024-03-23","2024-03-22","YE26","Marib","مأرب","YE2612","Marib City","مدينة مأرب","IDPs","Rapid Tracking","2024-03-18","YE11","Ibb","إب","YE1108","Hobeish","حبيش","Economic Reasons","Unemployment / Salary Cut","No",null,null,1,0,0,0,1,0,0,0,0,0,0,{"$f":"IF(OR(COUNTIF(WestCoast[],IDPs[[#This Row],[Dis_Pcode]])>=1,COUNTIF(WestCoast[],#REF!)>=1),\"Yes\",\"No\")","v":"No"},{"$f":"IF(IDPs[[#This Row],[Gov_Pcode]]=IDPs[[#This Row],[Gov_Coming_Pcode]],\"Yes\",\"No\")","v":"No"},{"$f":"IF(IDPs[[#This Row],[Dis_Pcode]]=IDPs[[#This Row],[Dis_Coming_Pcode]],\"Yes\",\"No\")","v":"No"}]
["2024-03-23","2024-03-19","YE26","Marib","مأرب","YE2612","Marib City","مدينة مأرب","IDPs","Rapid Tracking","2024-03-19","YE18","Al Hodeidah","الحديدة","YE1810","Bajil","باجل","Conflict Reasons","General Insecure Conditions","No",null,null,2,0,1,0,0,0,0,1,0,0,0,{"$f":"IF(OR(COUNTIF(WestCoast[],IDPs[[#This Row],[Dis_Pcode]])>=1,COUNTIF(WestCoast[],#REF!)>=1),\"Yes\",\"No\")","v":"No"},{"$f":"IF(IDPs[[#This Row],[Gov_Pcode]]=IDPs[[#This Row],[Gov_Coming_Pcode]],\"Yes\",\"No\")","v":"No"},{"$f":"IF(IDPs[[#This Row],[Dis_Pcode]]=IDPs[[#This Row],[Dis_Coming_Pcode]],\"Yes\",\"No\")","v":"No"}]
["2024-03-23","2024-03-20","YE26","Marib","مأرب","YE2613","Marib","مأرب","IDPs","Rapid Tracking","2024-03-19","YE21","Shabwah","شبوة","YE2107","Bayhan","بيحان","Economic Reasons","Unemployment / Salary Cut","Don't Know",null,null,1,0,0,0,0,1,0,0,0,0,0,{"$f":"IF(OR(COUNTIF(WestCoast[],IDPs[[#This Row],[Dis_Pcode]])>=1,COUNTIF(WestCoast[],#REF!)>=1),\"Yes\",\"No\")","v":"No"},{"$f":"IF(IDPs[[#This Row],[Gov_Pcode]]=IDPs[[#This Row],[Gov_Coming_Pcode]],\"Yes\",\"No\")","v":"No"},{"$f":"IF(IDPs[[#This Row],[Dis_Pcode]]=IDPs[[#This Row],[Dis_Coming_Pcode]],\"Yes\",\"No\")","v":"No"}]
["2024-03-23","2024-03-21","YE26","Marib","مأرب","YE2613","Marib","مأرب","IDPs","Rapid Tracking","2024-03-19","YE23","Sanaa","صنعاء","YE2304","Bani Hushaysh","بني حشيش","Economic Reasons","Increasing market prices","No",null,null,1,0,0,0,0,0,0,1,0,0,0,{"$f":"IF(OR(COUNTIF(WestCoast[],IDPs[[#This Row],[Dis_Pcode]])>=1,COUNTIF(WestCoast[],#REF!)>=1),\"Yes\",\"No\")","v":"No"},{"$f":"IF(IDPs[[#This Row],[Gov_Pcode]]=IDPs[[#This Row],[Gov_Coming_Pcode]],\"Yes\",\"No\")","v":"No"},{"$f":"IF(IDPs[[#This Row],[Dis_Pcode]]=IDPs[[#This Row],[Dis_Coming_Pcode]],\"Yes\",\"No\")","v":"No"}]
["2024-03-23","2024-03-21","YE26","Marib","مأرب","YE2613","Marib","مأرب","IDPs","Rapid Tracking","2024-03-19","YE18","Al Hodeidah","الحديدة","YE1826","At Tuhayta","التحيتا","Economic Reasons","Other economic reason","No",null,null,1,0,0,0,0,0,0,1,0,0,0,{"$f":"IF(OR(COUNTIF(WestCoast[],IDPs[[#This Row],[Dis_Pcode]])>=1,COUNTIF(WestCoast[],#REF!)>=1),\"Yes\",\"No\")","v":"No"},{"$f":"IF(IDPs[[#This Row],[Gov_Pcode]]=IDPs[[#This Row],[Gov_Coming_Pcode]],\"Yes\",\"No\")","v":"No"},{"$f":"IF(IDPs[[#This Row],[Dis_Pcode]]=IDPs[[#This Row],[Dis_Coming_Pcode]],\"Yes\",\"No\")","v":"No"}]
["2024-03-23","2024-03-22","YE18","Al Hodeidah","الحديدة","YE1820","Al Khukhah","الخوخة","IDPs","Rapid Tracking","2024-03-19","YE15","Taiz","تعز","YE1508","Jabal Habashi","جبل حبشي","Economic Reasons","Other economic reason","No",null,null,3,0,3,0,0,0,0,0,0,0,0,{"$f":"IF(OR(COUNTIF(WestCoast[],IDPs[[#This Row],[Dis_Pcode]])>=1,COUNTIF(WestCoast[],#REF!)>=1),\"Yes\",\"No\")","v":"Yes"},{"$f":"IF(IDPs[[#This Row],[Gov_Pcode]]=IDPs[[#This Row],[Gov_Coming_Pcode]],\"Yes\",\"No\")","v":"No"},{"$f":"IF(IDPs[[#This Row],[Dis_Pcode]]=IDPs[[#This Row],[Dis_Coming_Pcode]],\"Yes\",\"No\")","v":"No"}]
["2024-03-23","2024-03-22","YE18","Al Hodeidah","الحديدة","YE1820","Al Khukhah","الخوخة","IDPs","Rapid Tracking","2024-03-19","YE18","Al Hodeidah","الحديدة","YE1817","Bayt Al Faqih","بيت الفقيه","Economic Reasons","Unemployment / Salary Cut","No",null,null,1,0,1,0,0,0,0,0,0,0,0,{"$f":"IF(OR(COUNTIF(WestCoast[],IDPs[[#This Row],[Dis_Pcode]])>=1,COUNTIF(WestCoast[],#REF!)>=1),\"Yes\",\"No\")","v":"Yes"},{"$f":"IF(IDPs[[#This Row],[Gov_Pcode]]=IDPs[[#This Row],[Gov_Coming_Pcode]],\"Yes\",\"No\")","v":"Yes"},{"$f":"IF(IDPs[[#This Row],[Dis_Pcode]]=IDPs[[#This Row],[Dis_Coming_Pcode]],\"Yes\",\"No\")","v":"No"}]
["2024-03-23","2024-03-22","YE18","Al Hodeidah","الحديدة","YE1820","Al Khukhah","الخوخة","IDPs","Rapid Tracking","2024-03-19","YE18","Al Hodeidah","الحديدة","YE1826","At Tuhayta","التحيتا","Conflict Reasons","Combat / Shelling","No",null,null,1,0,1,0,0,0,0,0,0,0,0,{"$f":"IF(OR(COUNTIF(WestCoast[],IDPs[[#This Row],[Dis_Pcode]])>=1,COUNTIF(WestCoast[],#REF!)>=1),\"Yes\",\"No\")","v":"Yes"},{"$f":"IF(IDPs[[#This Row],[Gov_Pcode]]=IDPs[[#This Row],[Gov_Coming_Pcode]],\"Yes\",\"No\")","v":"Yes"},{"$f":"IF(IDPs[[#This Row],[Dis_Pcode]]=IDPs[[#This Row],[Dis_Coming_Pcode]],\"Yes\",\"No\")","v":"No"}]
["2024-03-23","2024-03-23","YE15","Taiz","تعز","YE1511","Al Misrakh","المسراخ","IDPs","Rapid Tracking","2024-03-19","YE15","Taiz","تعز","YE1513","As Silw","الصلو","Conflict Reasons","Combat / Shelling","No",null,null,1,0,0,0,1,0,0,0,0,0,0,{"$f":"IF(OR(COUNTIF(WestCoast[],IDPs[[#This Row],[Dis_Pcode]])>=1,COUNTIF(WestCoast[],#REF!)>=1),\"Yes\",\"No\")","v":"No"},{"$f":"IF(IDPs[[#This Row],[Gov_Pcode]]=IDPs[[#This Row],[Gov_Coming_Pcode]],\"Yes\",\"No\")","v":"Yes"},{"$f":"IF(IDPs[[#This Row],[Dis_Pcode]]=IDPs[[#This Row],[Dis_Coming_Pcode]],\"Yes\",\"No\")","v":"No"}]
["2024-03-23","2024-03-20","YE26","Marib","مأرب","YE2612","Marib City","مدينة مأرب","IDPs","Rapid Tracking","2024-03-20","YE26","Marib","مأرب","YE2602","Raghwan","رغوان","Conflict Reasons","General Insecure Conditions","No",null,null,1,0,0,0,1,0,0,0,0,0,0,{"$f":"IF(OR(COUNTIF(WestCoast[],IDPs[[#This Row],[Dis_Pcode]])>=1,COUNTIF(WestCoast[],#REF!)>=1),\"Yes\",\"No\")","v":"No"},{"$f":"IF(IDPs[[#This Row],[Gov_Pcode]]=IDPs[[#This Row],[Gov_Coming_Pcode]],\"Yes\",\"No\")","v":"Yes"},{"$f":"IF(IDPs[[#This Row],[Dis_Pcode]]=IDPs[[#This Row],[Dis_Coming_Pcode]],\"Yes\",\"No\")","v":"No"}]
["2024-03-23","2024-03-21","YE26","Marib","مأرب","YE2613","Marib","مأرب","IDPs","Rapid Tracking","2024-03-20","YE22","Sadah","صعدة","YE2209","Saqin","ساقين","Economic Reasons","Other economic reason","No",null,null,1,0,0,0,0,0,0,1,0,0,0,{"$f":"IF(OR(COUNTIF(WestCoast[],IDPs[[#This Row],[Dis_Pcode]])>=1,COUNTIF(WestCoast[],#REF!)>=1),\"Yes\",\"No\")","v":"No"},{"$f":"IF(IDPs[[#This Row],[Gov_Pcode]]=IDPs[[#This Row],[Gov_Coming_Pcode]],\"Yes\",\"No\")","v":"No"},{"$f":"IF(IDPs[[#This Row],[Dis_Pcode]]=IDPs[[#This Row],[Dis_Coming_Pcode]],\"Yes\",\"No\")","v":"No"}]
["2024-03-23","2024-03-22","YE26","Marib","مأرب","YE2612","Marib City","مدينة مأرب","IDPs","Rapid Tracking","2024-03-20","YE26","Marib","مأرب","YE2607","Al Jubah","الجوبة","Economic Reasons","Unemployment / Salary Cut","No",null,null,3,0,0,0,1,0,0,2,0,0,0,{"$f":"IF(OR(COUNTIF(WestCoast[],IDPs[[#This Row],[Dis_Pcode]])>=1,COUNTIF(WestCoast[],#REF!)>=1),\"Yes\",\"No\")","v":"No"},{"$f":"IF(IDPs[[#This Row],[Gov_Pcode]]=IDPs[[#This Row],[Gov_Coming_Pcode]],\"Yes\",\"No\")","v":"Yes"},{"$f":"IF(IDPs[[#This Row],[Dis_Pcode]]=IDPs[[#This Row],[Dis_Coming_Pcode]],\"Yes\",\"No\")","v":"No"}]
["2024-03-23","2024-03-23","YE15","Taiz","تعز","YE1517","Al Mudhaffar","المظفر","IDPs","Rapid Tracking","2024-03-20","YE15","Taiz","تعز","YE1505","Al Makha","المخا","Conflict Reasons","General Insecure Conditions","No",null,null,1,0,0,0,1,0,0,0,0,0,0,{"$f":"IF(OR(COUNTIF(WestCoast[],IDPs[[#This Row],[Dis_Pcode]])>=1,COUNTIF(WestCoast[],#REF!)>=1),\"Yes\",\"No\")","v":"No"},{"$f":"IF(IDPs[[#This Row],[Gov_Pcode]]=IDPs[[#This Row],[Gov_Coming_Pcode]],\"Yes\",\"No\")","v":"Yes"},{"$f":"IF(IDPs[[#This Row],[Dis_Pcode]]=IDPs[[#This Row],[Dis_Coming_Pcode]],\"Yes\",\"No\")","v":"No"}]
["2024-03-23","2024-03-23","YE30","Ad Dali","الضالع","YE3006","Ad Dali","الضالع","IDPs","Rapid Tracking","2024-03-20","YE30","Ad Dali","الضالع","YE3003","Qatabah","قعطبة","Conflict Reasons","Combat / Shelling","No",null,null,1,0,0,0,0,0,0,1,0,0,0,{"$f":"IF(OR(COUNTIF(WestCoast[],IDPs[[#This Row],[Dis_Pcode]])>=1,COUNTIF(WestCoast[],#REF!)>=1),\"Yes\",\"No\")","v":"No"},{"$f":"IF(IDPs[[#This Row],[Gov_Pcode]]=IDPs[[#This Row],[Gov_Coming_Pcode]],\"Yes\",\"No\")","v":"Yes"},{"$f":"IF(IDPs[[#This Row],[Dis_Pcode]]=IDPs[[#This Row],[Dis_Coming_Pcode]],\"Yes\",\"No\")","v":"No"}]
["2024-03-24","2024-03-24","YE15","Taiz","تعز","YE1513","As Silw","الصلو","IDPs","Rapid Tracking","2024-03-20","YE15","Taiz","تعز","YE1513","As Silw","الصلو","Economic Reasons","Increasing market prices","No",null,null,1,0,0,0,1,0,0,0,0,0,0,{"$f":"IF(OR(COUNTIF(WestCoast[],IDPs[[#This Row],[Dis_Pcode]])>=1,COUNTIF(WestCoast[],#REF!)>=1),\"Yes\",\"No\")","v":"No"},{"$f":"IF(IDPs[[#This Row],[Gov_Pcode]]=IDPs[[#This Row],[Gov_Coming_Pcode]],\"Yes\",\"No\")","v":"Yes"},{"$f":"IF(IDPs[[#This Row],[Dis_Pcode]]=IDPs[[#This Row],[Dis_Coming_Pcode]],\"Yes\",\"No\")","v":"Yes"}]
["2024-03-23","2024-03-22","YE26","Marib","مأرب","YE2612","Marib City","مدينة مأرب","IDPs","Rapid Tracking","2024-03-21","YE16","Al Jawf","الجوف","YE1607","Al Maslub","المصلوب","Conflict Reasons","General Insecure Conditions","No",null,null,1,0,1,0,0,0,0,0,0,0,0,{"$f":"IF(OR(COUNTIF(WestCoast[],IDPs[[#This Row],[Dis_Pcode]])>=1,COUNTIF(WestCoast[],#REF!)>=1),\"Yes\",\"No\")","v":"No"},{"$f":"IF(IDPs[[#This Row],[Gov_Pcode]]=IDPs[[#This Row],[Gov_Coming_Pcode]],\"Yes\",\"No\")","v":"No"},{"$f":"IF(IDPs[[#This Row],[Dis_Pcode]]=IDPs[[#This Row],[Dis_Coming_Pcode]],\"Yes\",\"No\")","v":"No"}]
["2024-03-23","2024-03-23","YE30","Ad Dali","الضالع","YE3006","Ad Dali","الضالع","IDPs","Rapid Tracking","2024-03-21","YE30","Ad Dali","الضالع","YE3006","Ad Dali","الضالع","Conflict Reasons","Combat / Shelling","No",null,null,1,0,0,0,0,0,0,1,0,0,0,{"$f":"IF(OR(COUNTIF(WestCoast[],IDPs[[#This Row],[Dis_Pcode]])>=1,COUNTIF(WestCoast[],#REF!)>=1),\"Yes\",\"No\")","v":"No"},{"$f":"IF(IDPs[[#This Row],[Gov_Pcode]]=IDPs[[#This Row],[Gov_Coming_Pcode]],\"Yes\",\"No\")","v":"Yes"},{"$f":"IF(IDPs[[#This Row],[Dis_Pcode]]=IDPs[[#This Row],[Dis_Coming_Pcode]],\"Yes\",\"No\")","v":"Yes"}]
["2024-03-24","2024-03-24","YE15","Taiz","تعز","YE1513","As Silw","الصلو","IDPs","Rapid Tracking","2024-03-22","YE24","Aden","عدن","YE2403","Al Mansurah","المنصورة","Economic Reasons","Other economic reason","No",null,null,1,0,0,0,1,0,0,0,0,0,0,{"$f":"IF(OR(COUNTIF(WestCoast[],IDPs[[#This Row],[Dis_Pcode]])>=1,COUNTIF(WestCoast[],#REF!)>=1),\"Yes\",\"No\")","v":"No"},{"$f":"IF(IDPs[[#This Row],[Gov_Pcode]]=IDPs[[#This Row],[Gov_Coming_Pcode]],\"Yes\",\"No\")","v":"No"},{"$f":"IF(IDPs[[#This Row],[Dis_Pcode]]=IDPs[[#This Row],[Dis_Coming_Pcode]],\"Yes\",\"No\")","v":"No"}]
["2024-03-24","2024-03-24","YE15","Taiz","تعز","YE1521","Al Maafer","المعافر","IDPs","Rapid Tracking","2024-03-22","YE18","Al Hodeidah","الحديدة","YE1814","Ad Durayhimi","الدريهمي","Conflict Reasons","General Insecure Conditions","No",null,null,1,0,0,0,1,0,0,0,0,0,0,{"$f":"IF(OR(COUNTIF(WestCoast[],IDPs[[#This Row],[Dis_Pcode]])>=1,COUNTIF(WestCoast[],#REF!)>=1),\"Yes\",\"No\")","v":"No"},{"$f":"IF(IDPs[[#This Row],[Gov_Pcode]]=IDPs[[#This Row],[Gov_Coming_Pcode]],\"Yes\",\"No\")","v":"No"},{"$f":"IF(IDPs[[#This Row],[Dis_Pcode]]=IDPs[[#This Row],[Dis_Coming_Pcode]],\"Yes\",\"No\")","v":"No"}]

{"sheet":"WhoLeft","index":2,"n_rows":6,"n_cols":20,"rows_kept":6,"cut":false,"hidden":false,"merged":[]}
["Encoding Date","Date of Assessment","Gov_Pcode","Governorate","Dis_Pcode","District","Population Type","Type of Tracking","Date of Event","Reasons IDPs Left","Primary Event Desc","Where Did The Majority Of IDP HouseHold Move To","Gov Moved To Pcode","Governorate Moved To","District Moved To Pcode","District Moved To","Total Number of Households","Is West Coast","Displaced from Same Governorate","Displaced from Same District"]
["2024-01-20","2024-01-18","YE25","Lahj","YE2515","Tuban","IDPs who Left a Displaced Location","Rapid Tracking","2024-01-15","Economic Reasons","Improved economic conditions at destination","An unknown district of displacement","YE18","Al Hodeidah","YE1822","Al Mina",12,{"$f":"IF(OR(COUNTIF(WestCoast[],WhoLeft[[#This Row],[Dis_Pcode]])>=1,COUNTIF(WestCoast[],#REF!)>=1),\"Yes\",\"No\")","v":"No"},{"$f":"IF(WhoLeft[[#This Row],[Gov_Pcode]]=WhoLeft[[#This Row],[Gov Moved To Pcode]],\"Yes\",\"No\")","v":"No"},{"$f":"IF(WhoLeft[[#This Row],[Dis_Pcode]]=WhoLeft[[#This Row],[District Moved To Pcode]],\"Yes\",\"No\")","v":"No"}]
["2024-02-24","2024-02-20","YE26","Marib","YE2612","Marib City","IDPs who Left a Displaced Location","Rapid Tracking","2024-02-15","Economic Reasons","Improved economic conditions at destination","A known district of displacement","YE17","Hajjah","YE1703","Midi",1,{"$f":"IF(OR(COUNTIF(WestCoast[],WhoLeft[[#This Row],[Dis_Pcode]])>=1,COUNTIF(WestCoast[],#REF!)>=1),\"Yes\",\"No\")","v":"No"},{"$f":"IF(WhoLeft[[#This Row],[Gov_Pcode]]=WhoLeft[[#This Row],[Gov Moved To Pcode]],\"Yes\",\"No\")","v":"No"},{"$f":"IF(WhoLeft[[#This Row],[Dis_Pcode]]=WhoLeft[[#This Row],[District Moved To Pcode]],\"Yes\",\"No\")","v":"No"}]
["2024-03-09","2024-03-09","YE15","Taiz","YE1521","Al Maafer","IDPs who Left a Displaced Location","Rapid Tracking","2024-02-29","Conflict Reasons","Due to security conditions in location of assessment","A known district of displacement","YE15","Taiz","YE1508","Jabal Habashi",38,{"$f":"IF(OR(COUNTIF(WestCoast[],WhoLeft[[#This Row],[Dis_Pcode]])>=1,COUNTIF(WestCoast[],#REF!)>=1),\"Yes\",\"No\")","v":"No"},{"$f":"IF(WhoLeft[[#This Row],[Gov_Pcode]]=WhoLeft[[#This Row],[Gov Moved To Pcode]],\"Yes\",\"No\")","v":"Yes"},{"$f":"IF(WhoLeft[[#This Row],[Dis_Pcode]]=WhoLeft[[#This Row],[District Moved To Pcode]],\"Yes\",\"No\")","v":"No"}]
["2024-03-09","2024-03-09","YE15","Taiz","YE1521","Al Maafer","IDPs who Left a Displaced Location","Rapid Tracking","2024-02-29","Economic Reasons","Eviction","A known district of displacement","YE15","Taiz","YE1508","Jabal Habashi",58,{"$f":"IF(OR(COUNTIF(WestCoast[],WhoLeft[[#This Row],[Dis_Pcode]])>=1,COUNTIF(WestCoast[],#REF!)>=1),\"Yes\",\"No\")","v":"No"},{"$f":"IF(WhoLeft[[#This Row],[Gov_Pcode]]=WhoLeft[[#This Row],[Gov Moved To Pcode]],\"Yes\",\"No\")","v":"Yes"},{"$f":"IF(WhoLeft[[#This Row],[Dis_Pcode]]=WhoLeft[[#This Row],[District Moved To Pcode]],\"Yes\",\"No\")","v":"No"}]
["2024-03-06","2024-03-06","YE30","Ad Dali","YE3008","Al Azariq","IDPs who Left a Displaced Location","Rapid Tracking","2024-03-03","Economic Reasons","Due to economic conditions in location of assessment","Return to a known district of origin","YE15","Taiz","YE1501","Mawiyah",2,{"$f":"IF(OR(COUNTIF(WestCoast[],WhoLeft[[#This Row],[Dis_Pcode]])>=1,COUNTIF(WestCoast[],#REF!)>=1),\"Yes\",\"No\")","v":"No"},{"$f":"IF(WhoLeft[[#This Row],[Gov_Pcode]]=WhoLeft[[#This Row],[Gov Moved To Pcode]],\"Yes\",\"No\")","v":"No"},{"$f":"IF(WhoLeft[[#This Row],[Dis_Pcode]]=WhoLeft[[#This Row],[District Moved To Pcode]],\"Yes\",\"No\")","v":"No"}]

{"sheet":"Returnees","index":3,"n_rows":13,"n_cols":30,"rows_kept":13,"cut":false,"hidden":false,"merged":[]}
["Encoding Date","Date of Assessment","Gov_Pcode","Governorate","Dis_Pcode","District","Population Type","Type of Tracking","Date of Event","Gov of Displacement Pcode","Governorate of Displacement","District of Displacement Pcode","District of Displacement","Reason for Return","Primary Event Description For The Majority of Returnees","Majority of Returnees Returned To Own Home","TotalNumberOfHouseholds","NeedsWater","NeedsFoodAssistance","NeedsHealthService","NeedsFinancialSupport","NeedsNonFoodItems","NeedsSanitationAndHygien","NeedsShelter","NeedsEducation","NeedsLivelihood","NeedsProtectionServices","Is West Coast","Returned from Same Governorate","Returned from Same District"]
["2024-01-27","2024-01-22","YE26","Marib","YE2609","Harib","Returnees","Rapid Tracking","2024-01-21","YE26","Marib","YE2613","Marib","Conflict Reasons"," Improved security conditions in location of origin","Yes",2,0,0,0,1,0,0,1,0,0,0,{"$f":"IF(OR(COUNTIF(WestCoast[],Table6[[#This Row],[Dis_Pcode]])>=1,COUNTIF(WestCoast[],#REF!)>=1),\"Yes\",\"No\")","v":"No"},{"$f":"IF(Table6[[#This Row],[Gov_Pcode]]=Table6[[#This Row],[Gov of Displacement Pcode]],\"Yes\",\"No\")","v":"Yes"},{"$f":"IF(Table6[[#This Row],[Dis_Pcode]]=Table6[[#This Row],[District of Displacement Pcode]],\"Yes\",\"No\")","v":"No"}]
["2024-02-02","2024-01-30","YE26","Marib","YE2609","Harib","Returnees","Rapid Tracking","2024-01-29","YE26","Marib","YE2612","Marib City","Economic Reasons"," Improved economic conditions in location of origin","Yes",2,0,0,0,1,1,0,0,0,0,0,{"$f":"IF(OR(COUNTIF(WestCoast[],Table6[[#This Row],[Dis_Pcode]])>=1,COUNTIF(WestCoast[],#REF!)>=1),\"Yes\",\"No\")","v":"No"},{"$f":"IF(Table6[[#This Row],[Gov_Pcode]]=Table6[[#This Row],[Gov of Displacement Pcode]],\"Yes\",\"No\")","v":"Yes"},{"$f":"IF(Table6[[#This Row],[Dis_Pcode]]=Table6[[#This Row],[District of Displacement Pcode]],\"Yes\",\"No\")","v":"No"}]
["2024-02-12","2024-02-11","YE15","Taiz","YE1519","Salah","Returnees","Rapid Tracking","2024-02-02","YE15","Taiz","YE1512","Dimnat Khadir","Conflict Reasons"," Improved security conditions in location of origin","No",1,0,1,0,0,0,0,0,0,0,0,{"$f":"IF(OR(COUNTIF(WestCoast[],Table6[[#This Row],[Dis_Pcode]])>=1,COUNTIF(WestCoast[],#REF!)>=1),\"Yes\",\"No\")","v":"No"},{"$f":"IF(Table6[[#This Row],[Gov_Pcode]]=Table6[[#This Row],[Gov of Displacement Pcode]],\"Yes\",\"No\")","v":"Yes"},{"$f":"IF(Table6[[#This Row],[Dis_Pcode]]=Table6[[#This Row],[District of Displacement Pcode]],\"Yes\",\"No\")","v":"No"}]
["2024-02-24","2024-02-22","YE26","Marib","YE2609","Harib","Returnees","Rapid Tracking","2024-02-19","YE26","Marib","YE2612","Marib City","Economic Reasons"," Improved economic conditions in location of origin","Yes",4,0,0,0,2,2,0,0,0,0,0,{"$f":"IF(OR(COUNTIF(WestCoast[],Table6[[#This Row],[Dis_Pcode]])>=1,COUNTIF(WestCoast[],#REF!)>=1),\"Yes\",\"No\")","v":"No"},{"$f":"IF(Table6[[#This Row],[Gov_Pcode]]=Table6[[#This Row],[Gov of Displacement Pcode]],\"Yes\",\"No\")","v":"Yes"},{"$f":"IF(Table6[[#This Row],[Dis_Pcode]]=Table6[[#This Row],[District of Displacement Pcode]],\"Yes\",\"No\")","v":"No"}]
["2024-02-29","2024-02-28","YE18","Al Hodeidah","YE1819","Hays","Returnees","Rapid Tracking","2024-02-20","YE24","Aden","YE2401","Dar Sad","Economic Reasons"," Improved economic conditions in location of origin","Yes",2,0,2,0,0,0,0,0,0,0,0,{"$f":"IF(OR(COUNTIF(WestCoast[],Table6[[#This Row],[Dis_Pcode]])>=1,COUNTIF(WestCoast[],#REF!)>=1),\"Yes\",\"No\")","v":"Yes"},{"$f":"IF(Table6[[#This Row],[Gov_Pcode]]=Table6[[#This Row],[Gov of Displacement Pcode]],\"Yes\",\"No\")","v":"No"},{"$f":"IF(Table6[[#This Row],[Dis_Pcode]]=Table6[[#This Row],[District of Displacement Pcode]],\"Yes\",\"No\")","v":"No"}]
["2024-02-29","2024-02-28","YE18","Al Hodeidah","YE1819","Hays","Returnees","Rapid Tracking","2024-02-21","YE18","Al Hodeidah","YE1817","Bayt Al Faqih","Economic Reasons"," Improved economic conditions in location of origin","Yes",3,0,2,0,0,0,0,0,0,1,0,{"$f":"IF(OR(COUNTIF(WestCoast[],Table6[[#This Row],[Dis_Pcode]])>=1,COUNTIF(WestCoast[],#REF!)>=1),\"Yes\",\"No\")","v":"Yes"},{"$f":"IF(Table6[[#This Row],[Gov_Pcode]]=Table6[[#This Row],[Gov of Displacement Pcode]],\"Yes\",\"No\")","v":"Yes"},{"$f":"IF(Table6[[#This Row],[Dis_Pcode]]=Table6[[#This Row],[District of Displacement Pcode]],\"Yes\",\"No\")","v":"No"}]
["2024-03-02","2024-02-27","YE26","Marib","YE2609","Harib","Returnees","Rapid Tracking","2024-02-26","YE26","Marib","YE2612","Marib City","Economic Reasons"," Improved economic conditions in location of origin","Yes",2,0,0,0,1,1,0,0,0,0,0,{"$f":"IF(OR(COUNTIF(WestCoast[],Table6[[#This Row],[Dis_Pcode]])>=1,COUNTIF(WestCoast[],#REF!)>=1),\"Yes\",\"No\")","v":"No"},{"$f":"IF(Table6[[#This Row],[Gov_Pcode]]=Table6[[#This Row],[Gov of Displacement Pcode]],\"Yes\",\"No\")","v":"Yes"},{"$f":"IF(Table6[[#This Row],[Dis_Pcode]]=Table6[[#This Row],[District of Displacement Pcode]],\"Yes\",\"No\")","v":"No"}]
["2024-03-02","2024-02-25","YE26","Marib","YE2602","Raghwan","Returnees","Rapid Tracking","2024-02-28","YE26","Marib","YE2613","Marib","Conflict Reasons"," Improved security conditions in location of origin","No",2,0,1,0,1,0,0,0,0,0,0,{"$f":"IF(OR(COUNTIF(WestCoast[],Table6[[#This Row],[Dis_Pcode]])>=1,COUNTIF(WestCoast[],#REF!)>=1),\"Yes\",\"No\")","v":"No"},{"$f":"IF(Table6[[#This Row],[Gov_Pcode]]=Table6[[#This Row],[Gov of Displacement Pcode]],\"Yes\",\"No\")","v":"Yes"},{"$f":"IF(Table6[[#This Row],[Dis_Pcode]]=Table6[[#This Row],[District of Displacement Pcode]],\"Yes\",\"No\")","v":"No"}]
["2024-03-09","2024-03-04","YE26","Marib","YE2609","Harib","Returnees","Rapid Tracking","2024-03-04","YE26","Marib","YE2612","Marib City","Economic Reasons"," Due to economic conditions in location of displacement","No",3,0,0,0,2,1,0,0,0,0,0,{"$f":"IF(OR(COUNTIF(WestCoast[],Table6[[#This Row],[Dis_Pcode]])>=1,COUNTIF(WestCoast[],#REF!)>=1),\"Yes\",\"No\")","v":"No"},{"$f":"IF(Table6[[#This Row],[Gov_Pcode]]=Table6[[#This Row],[Gov of Displacement Pcode]],\"Yes\",\"No\")","v":"Yes"},{"$f":"IF(Table6[[#This Row],[Dis_Pcode]]=Table6[[#This Row],[District of Displacement Pcode]],\"Yes\",\"No\")","v":"No"}]
["2024-03-16","2024-03-16","YE15","Taiz","YE1517","Al Mudhaffar","Returnees","Rapid Tracking","2024-03-11","YE20","Dhamar","YE2006","Wusab Al Aali","Conflict Reasons"," Improved security conditions in location of origin","No",1,0,0,0,1,0,0,0,0,0,0,{"$f":"IF(OR(COUNTIF(WestCoast[],Table6[[#This Row],[Dis_Pcode]])>=1,COUNTIF(WestCoast[],#REF!)>=1),\"Yes\",\"No\")","v":"No"},{"$f":"IF(Table6[[#This Row],[Gov_Pcode]]=Table6[[#This Row],[Gov of Displacement Pcode]],\"Yes\",\"No\")","v":"No"},{"$f":"IF(Table6[[#This Row],[Dis_Pcode]]=Table6[[#This Row],[District of Displacement Pcode]],\"Yes\",\"No\")","v":"No"}]
["2024-03-16","2024-03-12","YE26","Marib","YE2609","Harib","Returnees","Rapid Tracking","2024-03-11","YE26","Marib","YE2612","Marib City","Economic Reasons"," Due to economic conditions in location of displacement","No",2,0,0,0,1,1,0,0,0,0,0,{"$f":"IF(OR(COUNTIF(WestCoast[],Table6[[#This Row],[Dis_Pcode]])>=1,COUNTIF(WestCoast[],#REF!)>=1),\"Yes\",\"No\")","v":"No"},{"$f":"IF(Table6[[#This Row],[Gov_Pcode]]=Table6[[#This Row],[Gov of Displacement Pcode]],\"Yes\",\"No\")","v":"Yes"},{"$f":"IF(Table6[[#This Row],[Dis_Pcode]]=Table6[[#This Row],[District of Displacement Pcode]],\"Yes\",\"No\")","v":"No"}]
["2024-03-24","2024-03-24","YE15","Taiz","YE1513","As Silw","Returnees","Rapid Tracking","2024-03-17","YE13","Sanaa City","YE1308","Main","Economic Reasons"," Improved economic conditions in location of origin","No",1,0,0,0,1,0,0,0,0,0,0,{"$f":"IF(OR(COUNTIF(WestCoast[],Table6[[#This Row],[Dis_Pcode]])>=1,COUNTIF(WestCoast[],#REF!)>=1),\"Yes\",\"No\")","v":"No"},{"$f":"IF(Table6[[#This Row],[Gov_Pcode]]=Table6[[#This Row],[Gov of Displacement Pcode]],\"Yes\",\"No\")","v":"No"},{"$f":"IF(Table6[[#This Row],[Dis_Pcode]]=Table6[[#This Row],[District of Displacement Pcode]],\"Yes\",\"No\")","v":"No"}]

{"sheet":"Summary for a month","index":4,"n_rows":83,"n_cols":25,"rows_kept":83,"cut":false,"hidden":false,"merged":[[3,1,4,1]]}
[]
[null,null,"Enter Month Number",3]
[]
[null,"Governorate","IDP HH Displaced during the month","IDP HH who left displaced location within the month","Total IDP HH",null,null,null,"IDPs by Gov",null,null,"IDPs by Gov of origin",null,null,"Gov <-- gov of origin",null,null,null,"IDPs by Gov and District",null,null,null,"IDPs by Gov and district of origin"]
[null,null,{"$f":"TEXT(DATE(Analysis!$C$5,$D$2,1),\"mmm\")","v":"Mar"},{"$f":"TEXT(DATE(Analysis!$C$5,$D$2,1),\"mmm\")","v":"Mar"},{"$f":"\"01 Jan to \"&TEXT(EOMONTH(DATE(Analysis!$C$5,$D$2,1),0),\"dd mmm\")&\"\"","v":"01 Jan to 31 Mar"}]
[null,"Hajjah","N/A","N/A","N/A"]
[null,"Ad Dali",{"$f":"SUMIFS(IDPs[Total Number Of Households],IDPs[Governorate],$B7,IDPs[Date of Event],\">=\"&DATE(2024,$D$2,1),IDPs[Date of Event],\"<=\"&EOMONTH(DATE(2024,$D$2,1),0))","v":7},{"$f":"SUMIFS(WhoLeft[Total Number of Households],WhoLeft[Governorate],B7,WhoLeft[Date of Event],\">=\"&DATE(2024,$D$2,1),WhoLeft[Date of Event],\"<=\"&EOMONTH(DATE(2024,$D$2,1),0))","v":2},{"$f":"SUMIFS(IDPs[Total Number Of Households],IDPs[Governorate],$B7,IDPs[Date of Event],\">=\"&DATE(2024,1,1),IDPs[Date of Event],\"<=\"&EOMONTH(DATE(2024,$D$2,1),0))","v":18},null,null,null,"Governorate","# Of Households",null,"Governorate Coming From","# Of Households",null,"Governorate","Governorate Coming From","# Of Households",null,"Governorate","District","# Of Households",null,"Governorate Coming From","District Coming From","# Of Households"]
[null,"Al Hodeidah",{"$f":"SUMIFS(IDPs[Total Number Of Households],IDPs[Governorate],$B8,IDPs[Date of Event],\">=\"&DATE(2024,$D$2,1),IDPs[Date of Event],\"<=\"&EOMONTH(DATE(2024,$D$2,1),0))","v":37},{"$f":"SUMIFS(WhoLeft[Total Number of Households],WhoLeft[Governorate],B8,WhoLeft[Date of Event],\">=\"&DATE(2024,$D$2,1),WhoLeft[Date of Event],\"<=\"&EOMONTH(DATE(2024,$D$2,1),0))","v":0},{"$f":"SUMIFS(IDPs[Total Number Of Households],IDPs[Governorate],$B8,IDPs[Date of Event],\">=\"&DATE(2024,1,1),IDPs[Date of Event],\"<=\"&EOMONTH(DATE(2024,$D$2,1),0))","v":242},null,null,null,"Taiz",122,null,"Taiz",141,null,"Taiz","Taiz",118,null,"Taiz","Jabal Habashi",98,null,"Taiz","Al Maafer",96]
[null,"Taiz",{"$f":"SUMIFS(IDPs[Total Number Of Households],IDPs[Governorate],$B9,IDPs[Date of Event],\">=\"&DATE(2024,$D$2,1),IDPs[Date of Event],\"<=\"&EOMONTH(DATE(2024,$D$2,1),0))","v":122},{"$f":"SUMIFS(WhoLeft[Total Number of Households],WhoLeft[Governorate],B9,WhoLeft[Date of Event],\">=\"&DATE(2024,$D$2,1),WhoLeft[Date of Event],\"<=\"&EOMONTH(DATE(2024,$D$2,1),0))","v":0},{"$f":"SUMIFS(IDPs[Total Number Of Households],IDPs[Governorate],$B9,IDPs[Date of Event],\">=\"&DATE(2024,1,1),IDPs[Date of Event],\"<=\"&EOMONTH(DATE(2024,$D$2,1),0))","v":261},null,null,null,"Marib",67,null,"Al Hodeidah",39,null,null,"Al Hodeidah",2,null,null,"Mawza",11,null,null,"Maqbanah",24]
[null,"Sanaa City","N/A","N/A","N/A",null,null,null,"Al Hodeidah",37,null,"Marib",16,null,null,"Aden",1,null,null,"Al Makha",3,null,null,"Sabir Al Mawadim",4]
[null,"Ibb","N/A","N/A","N/A",null,null,null,"Ad Dali",7,null,"Dhamar",8,null,null,"Raymah",1,null,null,"As Silw",3,null,null,"Al Makha",3]
[null,"Marib",{"$f":"SUMIFS(IDPs[Total Number Of Households],IDPs[Governorate],$B12,IDPs[Date of Event],\">=\"&DATE(2024,$D$2,1),IDPs[Date of Event],\"<=\"&EOMONTH(DATE(2024,$D$2,1),0))","v":67},{"$f":"SUMIFS(WhoLeft[Total Number of Households],WhoLeft[Governorate],B12,WhoLeft[Date of Event],\">=\"&DATE(2024,$D$2,1),WhoLeft[Date of Event],\"<=\"&EOMONTH(DATE(2024,$D$2,1),0))","v":0},{"$f":"SUMIFS(IDPs[Total Number Of Households],IDPs[Governorate],$B12,IDPs[Date of Event],\">=\"&DATE(2024,1,1),IDPs[Date of Event],\"<=\"&EOMONTH(DATE(2024,$D$2,1),0))","v":349},null,null,null,"Grand Total",233,null,"Ad Dali",6,null,"Taiz Total",null,122,null,null,"Maqbanah",2,null,null,"Jabal Habashi",3]
[null,"Amran","N/A","N/A","N/A",null,null,null,null,null,null,"Al Jawf",5,null,"Marib","Marib",16,null,null,"Al Misrakh",1,null,null,"Mawza",3]
[null,"Sanaa","N/A","N/A","N/A",null,null,null,null,null,null,"Amran",4,null,null,"Al Hodeidah",14,null,null,"Al Maafer",1,null,null,"As Silw",3]
[null,"Shabwah",{"$f":"SUMIFS(IDPs[Total Number Of Households],IDPs[Governorate],$B15,IDPs[Date of Event],\">=\"&DATE(2024,$D$2,1),IDPs[Date of Event],\"<=\"&EOMONTH(DATE(2024,$D$2,1),0))","v":0},{"$f":"SUMIFS(WhoLeft[Total Number of Households],WhoLeft[Governorate],B15,WhoLeft[Date of Event],\">=\"&DATE(2024,$D$2,1),WhoLeft[Date of Event],\"<=\"&EOMONTH(DATE(2024,$D$2,1),0))","v":0},{"$f":"SUMIFS(IDPs[Total Number Of Households],IDPs[Governorate],$B15,IDPs[Date of Event],\">=\"&DATE(2024,1,1),IDPs[Date of Event],\"<=\"&EOMONTH(DATE(2024,$D$2,1),0))","v":0},null,null,null,null,null,null,"Hajjah",4,null,null,"Taiz",8,null,null,"Al Mawasit",1,null,null,"At Taiziyah",2]
[null,"Lahj",{"$f":"SUMIFS(IDPs[Total Number Of Households],IDPs[Governorate],$B16,IDPs[Date of Event],\">=\"&DATE(2024,$D$2,1),IDPs[Date of Event],\"<=\"&EOMONTH(DATE(2024,$D$2,1),0))","v":0},{"$f":"SUMIFS(WhoLeft[Total Number of Households],WhoLeft[Governorate],B16,WhoLeft[Date of Event],\">=\"&DATE(2024,$D$2,1),WhoLeft[Date of Event],\"<=\"&EOMONTH(DATE(2024,$D$2,1),0))","v":0},{"$f":"SUMIFS(IDPs[Total Number Of Households],IDPs[Governorate],$B16,IDPs[Date of Event],\">=\"&DATE(2024,1,1),IDPs[Date of Event],\"<=\"&EOMONTH(DATE(2024,$D$2,1),0))","v":9},null,null,null,null,null,null,"Ibb",2,null,null,"Dhamar",8,null,null,"Al Mudhaffar",1,null,null,"Mashrah Wa Hadnan",1]
[null,"Aden",{"$f":"SUMIFS(IDPs[Total Number Of Households],IDPs[Governorate],$B17,IDPs[Date of Event],\">=\"&DATE(2024,$D$2,1),IDPs[Date of Event],\"<=\"&EOMONTH(DATE(2024,$D$2,1),0))","v":0},{"$f":"SUMIFS(WhoLeft[Total Number of Households],WhoLeft[Governorate],B17,WhoLeft[Date of Event],\">=\"&DATE(2024,$D$2,1),WhoLeft[Date of Event],\"<=\"&EOMONTH(DATE(2024,$D$2,1),0))","v":0},{"$f":"SUMIFS(IDPs[Total Number Of Households],IDPs[Governorate],$B17,IDPs[Date of Event],\">=\"&DATE(2024,1,1),IDPs[Date of Event],\"<=\"&EOMONTH(DATE(2024,$D$2,1),0))","v":0},null,null,null,null,null,null,"Sanaa",2,null,null,"Al Jawf",5,null,null,"Sabir Al Mawadim",1,null,null,"Al Mudhaffar",1]
[null,"Sadah","N/A","N/A","N/A",null,null,null,null,null,null,"Al Bayda",1,null,null,"Hajjah",4,null,"Taiz Total",null,122,null,null,"Dimnat Khadir",1]
[null,"Abyan",{"$f":"SUMIFS(IDPs[Total Number Of Households],IDPs[Governorate],$B19,IDPs[Date of Event],\">=\"&DATE(2024,$D$2,1),IDPs[Date of Event],\"<=\"&EOMONTH(DATE(2024,$D$2,1),0))","v":0},{"$f":"SUMIFS(WhoLeft[Total Number of Households],WhoLeft[Governorate],B19,WhoLeft[Date of Event],\">=\"&DATE(2024,$D$2,1),WhoLeft[Date of Event],\"<=\"&EOMONTH(DATE(2024,$D$2,1),0))","v":0},{"$f":"SUMIFS(IDPs[Total Number Of Households],IDPs[Governorate],$B19,IDPs[Date of Event],\">=\"&DATE(2024,1,1),IDPs[Date of Event],\"<=\"&EOMONTH(DATE(2024,$D$2,1),0))","v":0},null,null,null,null,null,null,"Sanaa City",1,null,null,"Amran",4,null,"Marib","Marib City",36,null,"Taiz Total",null,141]
[null,"Dhamar","N/A","N/A","N/A",null,null,null,null,null,null,"Aden",1,null,null,"Ibb",2,null,null,"Marib",29,null,"Al Hodeidah","Al Jarrahi",13]
[null,"Hadramawt",{"$f":"SUMIFS(IDPs[Total Number Of Households],IDPs[Governorate],$B21,IDPs[Date of Event],\">=\"&DATE(2024,$D$2,1),IDPs[Date of Event],\"<=\"&EOMONTH(DATE(2024,$D$2,1),0))","v":0},{"$f":"SUMIFS(WhoLeft[Total Number of Households],WhoLeft[Governorate],B21,WhoLeft[Date of Event],\">=\"&DATE(2024,$D$2,1),WhoLeft[Date of Event],\"<=\"&EOMONTH(DATE(2024,$D$2,1),0))","v":0},{"$f":"SUMIFS(IDPs[Total Number Of Households],IDPs[Governorate],$B21,IDPs[Date of Event],\">=\"&DATE(2024,1,1),IDPs[Date of Event],\"<=\"&EOMONTH(DATE(2024,$D$2,1),0))","v":0},null,null,null,null,null,null,"Sadah",1,null,null,"Sanaa",2,null,null,"Harib",2,null,null,"Bajil",5]
[null,"Al Bayda",{"$f":"SUMIFS(IDPs[Total Number Of Households],IDPs[Governorate],$B22,IDPs[Date of Event],\">=\"&DATE(2024,$D$2,1),IDPs[Date of Event],\"<=\"&EOMONTH(DATE(2024,$D$2,1),0))","v":0},{"$f":"SUMIFS(WhoLeft[Total Number of Households],WhoLeft[Governorate],B22,WhoLeft[Date of Event],\">=\"&DATE(2024,$D$2,1),WhoLeft[Date of Event],\"<=\"&EOMONTH(DATE(2024,$D$2,1),0))","v":0},{"$f":"SUMIFS(IDPs[Total Number Of Households],IDPs[Governorate],$B22,IDPs[Date of Event],\">=\"&DATE(2024,1,1),IDPs[Date of Event],\"<=\"&EOMONTH(DATE(2024,$D$2,1),0))","v":0},null,null,null,null,null,null,"Raymah",1,null,null,"Shabwah",1,null,"Marib Total",null,67,null,null,"Hays",4]
[null,"Al Jawf",{"$f":"SUMIFS(IDPs[Total Number Of Households],IDPs[Governorate],$B23,IDPs[Date of Event],\">=\"&DATE(2024,$D$2,1),IDPs[Date of Event],\"<=\"&EOMONTH(DATE(2024,$D$2,1),0))","v":0},{"$f":"SUMIFS(WhoLeft[Total Number of Households],WhoLeft[Governorate],B23,WhoLeft[Date of Event],\">=\"&DATE(2024,$D$2,1),WhoLeft[Date of Event],\"<=\"&EOMONTH(DATE(2024,$D$2,1),0))","v":0},{"$f":"SUMIFS(IDPs[Total Number Of Households],IDPs[Governorate],$B23,IDPs[Date of Event],\">=\"&DATE(2024,1,1),IDPs[Date of Event],\"<=\"&EOMONTH(DATE(2024,$D$2,1),0))","v":0},null,null,null,null,null,null,"Shabwah",1,null,null,"Sanaa City",1,null,"Al Hodeidah","Hays",22,null,null,"Al Hali",3]
[null,"Raymah","N/A","N/A","N/A",null,null,null,null,null,null,"Grand Total",233,null,null,"Sadah",1,null,null,"Al Khukhah",15,null,null,"At Tuhayta",2]
[null,"Al Mahwit","N/A","N/A","N/A",null,null,null,null,null,null,null,null,null,null,"Al Bayda",1,null,"Al Hodeidah Total",null,37,null,null,"Al Hujjaylah",2]
[null,"Socotra",{"$f":"SUMIFS(IDPs[Total Number Of Households],IDPs[Governorate],$B26,IDPs[Date of Event],\">=\"&DATE(2024,$D$2,1),IDPs[Date of Event],\"<=\"&EOMONTH(DATE(2024,$D$2,1),0))","v":0},{"$f":"SUMIFS(WhoLeft[Total Number of Households],WhoLeft[Governorate],B26,WhoLeft[Date of Event],\">=\"&DATE(2024,$D$2,1),WhoLeft[Date of Event],\"<=\"&EOMONTH(DATE(2024,$D$2,1),0))","v":0},{"$f":"SUMIFS(IDPs[Total Number Of Households],IDPs[Governorate],$B26,IDPs[Date of Event],\">=\"&DATE(2024,1,1),IDPs[Date of Event],\"<=\"&EOMONTH(DATE(2024,$D$2,1),0))","v":0},null,null,null,null,null,null,null,null,null,"Marib Total",null,67,null,"Ad Dali","Ad Dali",5,null,null,"Al Marawiah",2]
[null,"Al Maharah",{"$f":"SUMIFS(IDPs[Total Number Of Households],IDPs[Governorate],$B27,IDPs[Date of Event],\">=\"&DATE(2024,$D$2,1),IDPs[Date of Event],\"<=\"&EOMONTH(DATE(2024,$D$2,1),0))","v":0},{"$f":"SUMIFS(WhoLeft[Total Number of Households],WhoLeft[Governorate],B27,WhoLeft[Date of Event],\">=\"&DATE(2024,$D$2,1),WhoLeft[Date of Event],\"<=\"&EOMONTH(DATE(2024,$D$2,1),0))","v":0},{"$f":"SUMIFS(IDPs[Total Number Of Households],IDPs[Governorate],$B27,IDPs[Date of Event],\">=\"&DATE(2024,1,1),IDPs[Date of Event],\"<=\"&EOMONTH(DATE(2024,$D$2,1),0))","v":0},null,null,null,null,null,null,null,null,null,"Al Hodeidah","Al Hodeidah",22,null,null,"Al Hasayn",1,null,null,"Ad Durayhimi",2]
[null,"Total",{"$f":"SUM(C6:C27)","v":233},{"$f":"SUM(D6:D27)","v":2},{"$f":"SUM(E6:E27)","v":879},null,null,null,null,null,null,null,null,null,null,"Taiz",15,null,null,"Al Azariq",1,null,null,"Al Mina",2]
[null,null,null,null,null,null,null,null,null,null,null,null,null,null,"Al Hodeidah Total",null,37,null,"Ad Dali Total",null,7,null,null,"Bura",1]
[null,null,null,null,null,null,null,null,null,null,null,null,null,null,"Ad Dali","Ad Dali",6,null,"Grand Total",null,233,null,null,"Bayt Al Faqih",1]
[null,null,null,null,null,null,null,null,null,null,null,null,null,null,null,"Al Hodeidah",1,null,null,null,null,null,null,"Al Hawak",1]
[null,null,null,null,null,null,null,null,null,null,null,null,null,null,"Ad Dali Total",null,7,null,null,null,null,null,null,"Zabid",1]
[null,null,null,null,null,null,null,null,null,null,null,null,null,null,"Grand Total",null,233,null,null,null,null,null,"Al Hodeidah Total",null,39]
[null,null,null,null,null,null,null,null,null,null,null,null,null,null,null,null,null,null,null,null,null,null,"Marib","Al Jubah",7]
[null,null,null,null,null,null,null,null,null,null,null,null,null,null,null,null,null,null,null,null,null,null,null,"Harib",6]
[null,null,null,null,null,null,null,null,null,null,null,null,null,null,null,null,null,null,null,null,null,null,null,"Majzar",1]
[null,null,null,null,null,null,null,null,null,null,null,null,null,null,null,null,null,null,null,null,null,null,null,"Raghwan",1]
[null,null,null,null,null,null,null,null,null,null,null,null,null,null,null,null,null,null,null,null,null,null,null,"Mahliyah",1]
[null,null,null,"Most displacement resulted from increased conflict in the following Governorates and districts.",null,null,null,null,null,null,null,null,null,null,null,null,null,null,null,null,null,null,"Marib Total",null,16]
[null,null,null,{"$f":"L8","v":"Taiz"},{"$f":"\" (\"&M8&\" HH) – \"","v":" (141 HH) – "},{"$f":"\"\"&W9&\" (\"&X9&\" HH), \"&W10&\" (\"&X10&\" HH), \"&W11&\" (\"&X11&\" HH), \"&W12&\" (\"&X12&\" HH) districts. \"","v":" (Maqbanah HH),  (Sabir Al Mawadim HH),  (Al Makha HH),  (Jabal Habashi HH) districts. "},null,null,null,null,null,null,null,null,null,null,null,null,null,null,null,null,"Dhamar","Wusab Al Aali",2]
[null,null,null,{"$f":"L9","v":"Al Hodeidah"},{"$f":"\" (\"&M9&\" HH) – \"","v":" (39 HH) – "},{"$f":"\"\"&W24&\" (\"&X24&\" HH), \"&W25&\" (\"&X25&\" HH) districts. \"","v":" (At Tuhayta HH),  (Al Hujjaylah HH) districts. "},null,null,null,null,null,null,null,null,null,null,null,null,null,null,null,null,null,"Otmah",2]
[null,null,null,"Marib"," (16 HH) – ",{"$f":"\"\"&W29&\" (\"&X29&\" HH), \"&W30&\" (\"&X30&\" HH), \"&W31&\" (\"&X31&\" HH), \"&W32&\" (\"&X32&\" HH), \"&W33&\" (\"&X33&\" HH) districts. \"","v":" (Bura HH),  (Bayt Al Faqih HH),  (Al Hawak HH),  (Zabid HH), Al Hodeidah Total ( HH) districts. "},null,null,null,null,null,null,null,null,null,null,null,null,null,null,null,null,null,"Dawran Anis",2]
[null,null,null,"Dhamar"," (8 HH) – ",{"$f":"\"\"&W42&\" (\"&X42&\" HH), \"&W43&\" (\"&X43&\" HH) districts. \"","v":" (Dawran Anis HH),  (Mayfaat Ans HH) districts. "},null,null,null,null,null,null,null,null,null,null,null,null,null,null,null,null,null,"Mayfaat Ans",1]
[null,null,null,"Ad Dali"," (6 HH) – ",{"$f":"\"\"&W49&\" (\"&X49&\" HH), \"&W50&\" (\"&X50&\" HH) districts. \"","v":"Ad Dali Total ( HH), Al Jawf (Al Maslub HH) districts. "},null,null,null,null,null,null,null,null,null,null,null,null,null,null,null,null,null,"Dhamar City",1]
[null,null,null,null,null,null,null,null,null,null,null,null,null,null,null,null,null,null,null,null,null,null,"Dhamar Total",null,8]
[null,null,null,null,null,null,null,null,null,null,null,null,null,null,null,null,null,null,null,null,null,null,"Ad Dali","Qatabah",3]
[null,null,null,null,null,null,null,null,null,null,null,null,null,null,null,null,null,null,null,null,null,null,null,"Ad Dali",2]
[null,null,null,null,null,null,null,null,null,null,null,null,null,null,null,null,null,null,null,null,null,null,null,"Al Azariq",1]
[null,null,null,null,null,null,null,null,null,null,null,null,null,null,null,null,null,null,null,null,null,null,"Ad Dali Total",null,6]
[null,null,null,null,null,null,null,null,null,null,null,null,null,null,null,null,null,null,null,null,null,null,"Al Jawf","Al Maslub",1]
[null,null,null,null,null,null,null,null,null,null,null,null,null,null,null,null,null,null,null,null,null,null,null,"Al Hazm",1]
[null,null,null,null,null,null,null,null,null,null,null,null,null,null,null,null,null,null,null,null,null,null,null,"Al Humaydat",1]
[null,null,null,null,null,null,null,null,null,null,null,null,null,null,null,null,null,null,null,null,null,null,null,"Khab wa Ash Shaf",1]
[null,null,null,null,null,null,null,null,null,null,null,null,null,null,null,null,null,null,null,null,null,null,null,"Barat Al Anan",1]
[null,null,null,null,null,null,null,null,null,null,null,null,null,null,null,null,null,null,null,null,null,null,"Al Jawf Total",null,5]
[null,null,null,null,null,null,null,null,null,null,null,null,null,null,null,null,null,null,null,null,null,null,"Amran","Al Ashah",1]
[null,null,null,null,null,null,null,null,null,null,null,null,null,null,null,null,null,null,null,null,null,null,null,"Qaflat Odhar",1]
[null,null,null,null,null,null,null,null,null,null,null,null,null,null,null,null,null,null,null,null,null,null,null,"Al Madan",1]
[null,null,null,null,null,null,null,null,null,null,null,null,null,null,null,null,null,null,null,null,null,null,null,"Amran",1]
[null,null,null,null,null,null,null,null,null,null,null,null,null,null,null,null,null,null,null,null,null,null,"Amran Total",null,4]
[null,null,null,null,null,null,null,null,null,null,null,null,null,null,null,null,null,null,null,null,null,null,"Hajjah","Qarah",1]
[null,null,null,null,null,null,null,null,null,null,null,null,null,null,null,null,null,null,null,null,null,null,null,"Bani Al Awam",1]
[null,null,null,null,null,null,null,null,null,null,null,null,null,null,null,null,null,null,null,null,null,null,null,"Al Jamimah",1]
[null,null,null,null,null,null,null,null,null,null,null,null,null,null,null,null,null,null,null,null,null,null,null,"Al Mahabishah",1]
[null,null,null,null,null,null,null,null,null,null,null,null,null,null,null,null,null,null,null,null,null,null,"Hajjah Total",null,4]
[null,null,null,null,null,null,null,null,null,null,null,null,null,null,null,null,null,null,null,null,null,null,"Ibb","Hobeish",2]
[null,null,null,null,null,null,null,null,null,null,null,null,null,null,null,null,null,null,null,null,null,null,"Ibb Total",null,2]
[null,null,null,null,null,null,null,null,null,null,null,null,null,null,null,null,null,null,null,null,null,null,"Sanaa","Khawlan",1]
[null,null,null,null,null,null,null,null,null,null,null,null,null,null,null,null,null,null,null,null,null,null,null,"Bani Hushaysh",1]
[null,null,null,null,null,null,null,null,null,null,null,null,null,null,null,null,null,null,null,null,null,null,"Sanaa Total",null,2]
[null,null,null,null,null,null,null,null,null,null,null,null,null,null,null,null,null,null,null,null,null,null,"Al Bayda","Rada",1]
[null,null,null,null,null,null,null,null,null,null,null,null,null,null,null,null,null,null,null,null,null,null,"Al Bayda Total",null,1]
[null,null,null,null,null,null,null,null,null,null,null,null,null,null,null,null,null,null,null,null,null,null,"Sanaa City","Main",1]
[null,null,null,null,null,null,null,null,null,null,null,null,null,null,null,null,null,null,null,null,null,null,"Sanaa City Total",null,1]
[null,null,null,null,null,null,null,null,null,null,null,null,null,null,null,null,null,null,null,null,null,null,"Aden","Al Mansurah",1]
[null,null,null,null,null,null,null,null,null,null,null,null,null,null,null,null,null,null,null,null,null,null,"Aden Total",null,1]
[null,null,null,null,null,null,null,null,null,null,null,null,null,null,null,null,null,null,null,null,null,null,"Sadah","Saqin",1]
[null,null,null,null,null,null,null,null,null,null,null,null,null,null,null,null,null,null,null,null,null,null,"Sadah Total",null,1]
[null,null,null,null,null,null,null,null,null,null,null,null,null,null,null,null,null,null,null,null,null,null,"Raymah","Al Jafariyyah",1]
[null,null,null,null,null,null,null,null,null,null,null,null,null,null,null,null,null,null,null,null,null,null,"Raymah Total",null,1]
[null,null,null,null,null,null,null,null,null,null,null,null,null,null,null,null,null,null,null,null,null,null,"Shabwah","Bayhan",1]
[null,null,null,null,null,null,null,null,null,null,null,null,null,null,null,null,null,null,null,null,null,null,"Shabwah Total",null,1]
[null,null,null,null,null,null,null,null,null,null,null,null,null,null,null,null,null,null,null,null,null,null,"Grand Total",null,233]

{"sheet":"Admin2","index":5,"n_rows":334,"n_cols":9,"rows_kept":334,"cut":false,"hidden":true,"merged":[]}
["admin1Name_en","admin1Name_ar","admin1Pcode","admin2Name_en","admin2Pcode","admin2Name_ar","admin2RefName_en","admin2RefName_ar","admin2OldPcode"]
["Abyan","أبين","YE12","Ahwar","YE1209","احوار","Ahwar","احوار","YE1209"]
["Abyan","أبين","YE12","Al Mahfad","YE1201","المحفد","Al Mahfad","المحفد","YE1201"]
["Abyan","أبين","YE12","Al Wade'a","YE1208","الوضيع","Al Wadea","الوضيع","YE1208"]
["Abyan","أبين","YE12","Jayshan","YE1203","جيشان","Jayshan","جيشان","YE1203"]
["Abyan","أبين","YE12","Khanfir","YE1211","خنفر","Khanfir","خنفر","YE1211"]
["Abyan","أبين","YE12","Lawdar","YE1204","لودر","Lawdar","لودر","YE1204"]
["Abyan","أبين","YE12","Mudiyah","YE1202","موديه","Mudiyah","موديه","YE1202"]
["Abyan","أبين","YE12","Rasad","YE1206","رصد","Rasad","رصد","YE1206"]
["Abyan","أبين","YE12","Sarar","YE1207","سرار","Sarar","سرار","YE1207"]
["Abyan","أبين","YE12","Sibah","YE1205","سباح","Sibah","سباح","YE1205"]
["Abyan","أبين","YE12","Zingibar","YE1210","زنجبار","Zingibar","زنجبار","YE1210"]
["Aden","عدن","YE24","Al Buraiqeh","YE2404","البريقه","Al Buraiqeh","البريقه","YE2404"]
["Aden","عدن","YE24","Al Mansura","YE2403","المنصورة","Al Mansura","المنصورة","YE2403"]
["Aden","عدن","YE24","Al Mualla","YE2406","المعلا","Al Mualla","المعلا","YE2406"]
["Aden","عدن","YE24","Ash Shaikh Outhman","YE2402","الشيخ عثمان","Ash Shaikh Outhman","الشيخ عثمان","YE2402"]
["Aden","عدن","YE24","Attawahi","YE2405","التواهي","Attawahi","التواهي","YE2405"]
["Aden","عدن","YE24","Craiter","YE2407","كريتر","Craiter","كريتر","YE2407"]
["Aden","عدن","YE24","Dar Sad","YE2401","دار سعد","Dar Sad","دار سعد","YE2401"]
["Aden","عدن","YE24","Khur Maksar","YE2408","خور مكسر","Khur Maksar","خور مكسر","YE2408"]
["Al Bayda","البيضاء","YE14","Al A'rsh","YE1416","العرش","Al Arsh","العرش","YE1416"]
["Al Bayda","البيضاء","YE14","Al Bayda","YE1410","البيضاء","Al Bayda","البيضاء","YE1410"]
["Al Bayda","البيضاء","YE14","Al Bayda City","YE1409","مدينة البيضاء","Al Bayda City","مدينة البيضاء","YE1409"]
["Al Bayda","البيضاء","YE14","Al Malagim","YE1420","الملاجم","Al Malagim","الملاجم","YE1420"]
["Al Bayda","البيضاء","YE14","Al Quraishyah","YE1414","القريشية","Al Quraishyah","القريشية","YE1414"]
["Al Bayda","البيضاء","YE14","Ar Ryashyyah","YE1418","الرياشية","Ar Ryashyyah","الرياشية","YE1418"]
["Al Bayda","البيضاء","YE14","As Sawadiyah","YE1411","السوادية","As Sawadiyah","السوادية","YE1411"]
["Al Bayda","البيضاء","YE14","As Sawma'ah","YE1404","الصومعة","As Sawmaah","الصومعة","YE1404"]
["Al Bayda","البيضاء","YE14","Ash Sharyah","YE1419","الشرية","Ash Sharyah","الشرية","YE1419"]
["Al Bayda","البيضاء","YE14","At Taffah","YE1407","الطفة","At Taffah","الطفة","YE1407"]
["Al Bayda","البيضاء","YE14","Az Zahir","YE1405","الزاهر","Az Zahir-Al Bayda","الزاهر-البيضاء","YE1405"]
["Al Bayda","البيضاء","YE14","Dhi Na'im","YE1406","ذي ناعم","Dhi Naim","ذي ناعم","YE1406"]
["Al Bayda","البيضاء","YE14","Maswarah","YE1403","مسورة","Maswarah","مسورة","YE1403"]
["Al Bayda","البيضاء","YE14","Mukayras","YE1408","مكيراس","Mukayras","مكيراس","YE1408"]
["Al Bayda","البيضاء","YE14","Na'man","YE1401","نعمان","Naman","نعمان","YE1401"]
["Al Bayda","البيضاء","YE14","Nati'","YE1402","ناطع","Nati","ناطع","YE1402"]
["Al Bayda","البيضاء","YE14","Rada'","YE1413","رداع","Rada","رداع","YE1413"]
["Al Bayda","البيضاء","YE14","Radman Al Awad","YE1412","ردمان","Radman Al Awad","ردمان","YE1412"]
["Al Bayda","البيضاء","YE14","Sabah","YE1417","صباح","Sabah","صباح","YE1417"]
["Al Bayda","البيضاء","YE14","Wald Rabi'","YE1415","ولد ربيع","Wald Rabi","ولد ربيع","YE1415"]
["Al Dhale'e","الضالع","YE30","Ad Dhale'e","YE3006","الضالع","Ad Dhalee","الضالع","YE3006"]
["Al Dhale'e","الضالع","YE30","Al Azariq","YE3008","الازارق","Al Azariq","الازارق","YE3008"]
["Al Dhale'e","الضالع","YE30","Al Husha","YE3009","الحشاء","Al Husha","الحشاء","YE3009"]
["Al Dhale'e","الضالع","YE30","Al Hussein","YE3005","الحصين","Al Hussein","الحصين","YE3005"]
["Al Dhale'e","الضالع","YE30","Ash Shu'ayb","YE3004","الشعيب","Ash Shuayb","الشعيب","YE3004"]
["Al Dhale'e","الضالع","YE30","Damt","YE3002","دمت","Damt","دمت","YE3002"]
["Al Dhale'e","الضالع","YE30","Jahaf","YE3007","جحاف","Jahaf","جحاف","YE3007"]
["Al Dhale'e","الضالع","YE30","Juban","YE3001","جبن","Juban","جبن","YE3001"]
["Al Dhale'e","الضالع","YE30","Qa'atabah","YE3003","قعطبة","Qaatabah","قعطبة","YE3003"]
["Al Hudaydah","الحديدة","YE18","Ad Dahi","YE1809","الضحي","Ad Dahi","الضحي","YE1809"]
["Al Hudaydah","الحديدة","YE18","Ad Durayhimi","YE1814","الدريهمي","Ad Durayhimi","الدريهمي","YE1814"]
["Al Hudaydah","الحديدة","YE18","Al Garrahi","YE1825","الجراحي","Al Garrahi","الجراحي","YE1825"]
["Al Hudaydah","الحديدة","YE18","Al Hajjaylah","YE1811","الحجيلة","Al Hajjaylah","الحجيلة","YE1811"]
["Al Hudaydah","الحديدة","YE18","Al Hali","YE1823","الحالي","Al Hali","الحالي","YE1823"]
["Al Hudaydah","الحديدة","YE18","Al Hawak","YE1821","الحوك","Al Hawak","الحوك","YE1821"]
["Al Hudaydah","الحديدة","YE18","Al Khawkhah","YE1820","الخوخه","Al Khawkhah","الخوخه","YE1820"]
["Al Hudaydah","الحديدة","YE18","Al Mansuriyah","YE1816","المنصورية","Al Mansuriyah","المنصورية","YE1816"]
["Al Hudaydah","الحديدة","YE18","Al Marawi'ah","YE1813","المراوعة","Al Marawiah","المراوعة","YE1813"]
["Al Hudaydah","الحديدة","YE18","Al Mighlaf","YE1808","المغلاف","Al Mighlaf","المغلاف","YE1808"]
["Al Hudaydah","الحديدة","YE18","Al Mina","YE1822","الميناء","Al Mina","الميناء","YE1822"]
["Al Hudaydah","الحديدة","YE18","Al Munirah","YE1805","المنيرة","Al Munirah","المنيرة","YE1805"]
["Al Hudaydah","الحديدة","YE18","Al Qanawis","YE1806","القناوص","Al Qanawis","القناوص","YE1806"]
["Al Hudaydah","الحديدة","YE18","Alluheyah","YE1802","اللحية","Alluheyah","اللحية","YE1802"]
["Al Hudaydah","الحديدة","YE18","As Salif","YE1804","الصليف","As Salif","الصليف","YE1804"]
["Al Hudaydah","الحديدة","YE18","As Sukhnah","YE1815","السخنة","As Sukhnah","السخنة","YE1815"]
["Al Hudaydah","الحديدة","YE18","At Tuhayat","YE1826","التحيتا","At Tuhayat","التحيتا","YE1826"]
["Al Hudaydah","الحديدة","YE18","Az Zaydiyah","YE1807","الزيدية","Az Zaydiyah","الزيدية","YE1807"]
["Al Hudaydah","الحديدة","YE18","Az Zuhrah","YE1801","الزهرة","Az Zuhrah","الزهرة","YE1801"]
["Al Hudaydah","الحديدة","YE18","Bajil","YE1810","باجل","Bajil","باجل","YE1810"]
["Al Hudaydah","الحديدة","YE18","Bayt Al Faqiah","YE1817","بيت الفقيه","Bayt Al Faqiah","بيت الفقيه","YE1817"]
["Al Hudaydah","الحديدة","YE18","Bura","YE1812","براع","Bura","براع","YE1812"]
["Al Hudaydah","الحديدة","YE18","Hays","YE1819","حيس","Hays","حيس","YE1819"]
["Al Hudaydah","الحديدة","YE18","Jabal Ra's","YE1818","جبل راس","Jabal Ras","جبل راس","YE1818"]
["Al Hudaydah","الحديدة","YE18","Kamaran","YE1803","كمران","Kamaran","كمران","YE1803"]
["Al Hudaydah","الحديدة","YE18","Zabid","YE1824","زبيد","Zabid","زبيد","YE1824"]
["Al Jawf","الجوف","YE16","Al Ghayl","YE1608","الغيل","Al Ghayl","الغيل","YE1608"]
["Al Jawf","الجوف","YE16","Al Hazm","YE1605","الحزم","Al Hazm","الحزم","YE1605"]
["Al Jawf","الجوف","YE16","Al Humaydat","YE1602","الحميدات","Al Humaydat","الحميدات","YE1602"]
["Al Jawf","الجوف","YE16","Al Khalq","YE1609","الخلق","Al Khalq","الخلق","YE1609"]
["Al Jawf","الجوف","YE16","Al Maslub","YE1607","المصلوب","Al Maslub","المصلوب","YE1607"]
["Al Jawf","الجوف","YE16","Al Matammah","YE1603","المطمه","Al Matammah","المطمه","YE1603"]
["Al Jawf","الجوف","YE16","Al Maton","YE1606","المتون","Al Maton","المتون","YE1606"]
["Al Jawf","الجوف","YE16","Az Zahir","YE1604","الزاهر","Az Zahir-Al Jawf","الزاهر-الجوف","YE1604"]
["Al Jawf","الجوف","YE16","Bart Al Anan","YE1610","برط العنان","Bart Al Anan","برط العنان","YE1610"]
["Al Jawf","الجوف","YE16","Khabb wa ash Sha'af","YE1601","خب و الشعف","Khabb wa ash Shaaf","خب و الشعف","YE1601"]
["Al Jawf","الجوف","YE16","Kharab Al Marashi","YE1612","خراب المراشى","Kharab Al Marashi","خراب المراشى","YE1612"]
["Al Jawf","الجوف","YE16","Rajuzah","YE1611","رجوزه","Rajuzah","رجوزه","YE1611"]
["Al Maharah","المهرة","YE28","Al Ghaydah","YE2804","الغيظه","Al Ghaydah","الغيظه","YE2804"]
["Al Maharah","المهرة","YE28","Al Masilah","YE2806","المسيلة","Al Masilah","المسيلة","YE2806"]
["Al Maharah","المهرة","YE28","Hat","YE2802","حات","Hat","حات","YE2802"]
["Al Maharah","المهرة","YE28","Hawf","YE2803","حوف","Hawf","حوف","YE2803"]
["Al Maharah","المهرة","YE28","Huswain","YE2809","حصوين","Huswain","حصوين","YE2809"]
["Al Maharah","المهرة","YE28","Man'ar","YE2805","منعر","Manar","منعر","YE2805"]
["Al Maharah","المهرة","YE28","Qishn","YE2808","قشن","Qishn","قشن","YE2808"]
["Al Maharah","المهرة","YE28","Sayhut","YE2807","سيحوت","Sayhut","سيحوت","YE2807"]
["Al Maharah","المهرة","YE28","Shahan","YE2801","شحن","Shahan","شحن","YE2801"]
["Al Mahwit","المحويت","YE27","Al Khabt","YE2704","الخبت","Al Khabt","الخبت","YE2704"]
["Al Mahwit","المحويت","YE27","Al Mahwait","YE2709","المحويت","Al Mahwait","المحويت","YE2709"]
["Al Mahwit","المحويت","YE27","Al Mahwait City","YE2708","مدينة المحويت","Al Mahwait City","مدينة المحويت","YE2708"]
["Al Mahwit","المحويت","YE27","Ar Rujum","YE2703","الرجم","Ar Rujum","الرجم","YE2703"]
["Al Mahwit","المحويت","YE27","At Tawilah","YE2702","الطويلة","At Tawilah","الطويلة","YE2702"]
["Al Mahwit","المحويت","YE27","Bani Sa'd","YE2707","بني سعد","Bani Sad","بني سعد","YE2707"]
["Al Mahwit","المحويت","YE27","Hufash","YE2706","حفاش","Hufash","حفاش","YE2706"]
["Al Mahwit","المحويت","YE27","Milhan","YE2705","ملحان","Milhan","ملحان","YE2705"]
["Al Mahwit","المحويت","YE27","Shibam Kawkaban","YE2701","شبام كوكبان","Shibam Kawkaban","شبام كوكبان","YE2701"]
["Amanat Al Asimah","أمانة العاصمة","YE13","Al Wahdah","YE1306","الوحدة","Al Wahdah","الوحدة","YE1306"]
["Amanat Al Asimah","أمانة العاصمة","YE13","As Sabain","YE1305","السبعين","As Sabain","السبعين","YE1305"]
["Amanat Al Asimah","أمانة العاصمة","YE13","Assafi'yah","YE1304","الصافية","Assafiyah","الصافية","YE1304"]
["Amanat Al Asimah","أمانة العاصمة","YE13","At Tahrir","YE1307","التحرير","At Tahrir","التحرير","YE1307"]
["Amanat Al Asimah","أمانة العاصمة","YE13","Ath'thaorah","YE1309","الثورة","Aththaorah","الثورة","YE1309"]
["Amanat Al Asimah","أمانة العاصمة","YE13","Az'zal","YE1303","أزال","Azzal","أزال","YE1303"]
["Amanat Al Asimah","أمانة العاصمة","YE13","Bani Al Harith","YE1310","بني الحارث","Bani Al Harith","بني الحارث","YE1310"]
["Amanat Al Asimah","أمانة العاصمة","YE13","Ma'ain","YE1308","معين","Maain","معين","YE1308"]
["Amanat Al Asimah","أمانة العاصمة","YE13","Old City","YE1301","صنعاء القديمة","Old City","صنعاء القديمة","YE1301"]
["Amanat Al Asimah","أمانة العاصمة","YE13","Shu'aub","YE1302","شعوب","Shuaub","شعوب","YE1302"]
["Amran","عمران","YE29","Al Ashah","YE2903","العشـــــه","Al Ashah","العشـــــه","YE2903"]
["Amran","عمران","YE29","Al Madan","YE2906","المــدان","Al Madan","المــدان","YE2906"]
["Amran","عمران","YE29","Al Qaflah","YE2904","القفلة","Al Qaflah","القفلة","YE2904"]
["Amran","عمران","YE29","Amran","YE2915","عمران","Amran","عمران","YE2915"]
["Amran","عمران","YE29","As Sawd","YE2914","السود","As Sawd","السود","YE2914"]
["Amran","عمران","YE29","As Sudah","YE2913","السوده","As Sudah","السوده","YE2913"]
["Amran","عمران","YE29","Bani Suraim","YE2920","بني صريم","Bani Suraim","بني صريم","YE2920"]
["Amran","عمران","YE29","Dhi Bin","YE2909","ذيبين","Dhi Bin","ذيبين","YE2909"]
["Amran","عمران","YE29","Habur Zulaymah","YE2908","حبور ظليمة","Habur Zulaymah","حبور ظليمة","YE2908"]
["Amran","عمران","YE29","Harf Sufyan","YE2901","حرف سفيان","Harf Sufyan","حرف سفيان","YE2901"]
["Amran","عمران","YE29","Huth","YE2902","حوث","Huth","حوث","YE2902"]
["Amran","عمران","YE29","Iyal Surayh","YE2918","عيال سريح","Iyal Surayh","عيال سريح","YE2918"]
["Amran","عمران","YE29","Jabal Iyal Yazid","YE2912","جبل عيال يزيد","Jabal Iyal Yazid","جبل عيال يزيد","YE2912"]
["Amran","عمران","YE29","Khamir","YE2919","خمر","Khamir","خمر","YE2919"]
["Amran","عمران","YE29","Kharif","YE2910","خارف","Kharif","خارف","YE2910"]
["Amran","عمران","YE29","Maswar","YE2916","مسور","Maswar","مسور","YE2916"]
["Amran","عمران","YE29","Raydah","YE2911","ريده","Raydah","ريده","YE2911"]
["Amran","عمران","YE29","Shaharah","YE2905","شهاره","Shaharah","شهاره","YE2905"]
["Amran","عمران","YE29","Suwayr","YE2907","صـويــــر","Suwayr","صـويــــر","YE2907"]
["Amran","عمران","YE29","Thula","YE2917","ثلاء","Thula","ثلاء","YE2917"]
["Dhamar","ذمار","YE20","Al Hada","YE2001","الحداء","Al Hada","الحداء","YE2001"]
["Dhamar","ذمار","YE20","Al Manar","YE2012","المنار","Al Manar","المنار","YE2012"]
["Dhamar","ذمار","YE20","Anss","YE2010","عنس","Anss","عنس","YE2010"]
["Dhamar","ذمار","YE20","Dawran Aness","YE2011","ضوران اًنس","Dawran Aness","ضوران اًنس","YE2011"]
["Dhamar","ذمار","YE20","Dhamar City","YE2008","مدينة ذمار","Dhamar City","مدينة ذمار","YE2008"]
["Dhamar","ذمار","YE20","Jabal Ash sharq","YE2003","جبل الشرق","Jabal Ash sharq","جبل الشرق","YE2003"]
["Dhamar","ذمار","YE20","Jahran","YE2002","جهران","Jahran","جهران","YE2002"]
["Dhamar","ذمار","YE20","Maghirib Ans","YE2004","مغرب عنس","Maghirib Ans","مغرب عنس","YE2004"]
["Dhamar","ذمار","YE20","Mayfa'at Anss","YE2009","ميفعة عنس","Mayfaat Anss","ميفعة عنس","YE2009"]
["Dhamar","ذمار","YE20","Utmah","YE2005","عتمة","Utmah","عتمة","YE2005"]
["Dhamar","ذمار","YE20","Wusab Al Ali","YE2006","وصاب العالي","Wusab Al Ali","وصاب العالي","YE2006"]
["Dhamar","ذمار","YE20","Wusab As Safil","YE2007","وصاب السافل","Wusab As Safil","وصاب السافل","YE2007"]
["Hadramaut","حضرموت","YE19","Ad Dis","YE1914","الديس","Ad Dis","الديس","YE1914"]
["Hadramaut","حضرموت","YE19","Adh Dhlia'ah","YE1922","الضليعه","Adh Dhliaah","الضليعه","YE1922"]
["Hadramaut","حضرموت","YE19","Al Abr","YE1906","العبر","Al Abr","العبر","YE1906"]
["Hadramaut","حضرموت","YE19","Al Mukalla","YE1926","المكلا","Al Mukalla","المكلا","YE1930"]
["Hadramaut","حضرموت","YE19","Al Mukalla City","YE1927","مدينة المكلا","Al Mukalla City","مدينة المكلا","YE1929"]
["Hadramaut","حضرموت","YE19","Al Qaf","YE1903","القف","Al Qaf","القف","YE1903"]
["Hadramaut","حضرموت","YE19","Al Qatn","YE1907","القطن","Al Qatn","القطن","YE1907"]
["Hadramaut","حضرموت","YE19","Amd","YE1921","عمد","Amd","عمد","YE1921"]
["Hadramaut","حضرموت","YE19","Ar Raydah Wa Qusayar","YE1913","الريده وقصيعر","Ar Raydah Wa Qusayar","الريده وقصيعر","YE1913"]
["Hadramaut","حضرموت","YE19","As Sawm","YE1912","السوم","As Sawm","السوم","YE1912"]
["Hadramaut","حضرموت","YE19","Ash Shihr","YE1915","الشحر","Ash Shihr","الشحر","YE1915"]
["Hadramaut","حضرموت","YE19","Brom Mayfa","YE1925","بروم ميفع","Brom Mayfa","بروم ميفع","YE1925"]
["Hadramaut","حضرموت","YE19","Daw'an","YE1918","دوعن","Dawan","دوعن","YE1918"]
["Hadramaut","حضرموت","YE19","Ghayl Ba Wazir","YE1917","غيل باوزير","Ghayl Ba Wazir","غيل باوزير","YE1917"]
["Hadramaut","حضرموت","YE19","Ghayl Bin Yamin","YE1916","غيل بن يمين","Ghayl Bin Yamin","غيل بن يمين","YE1916"]
["Hadramaut","حضرموت","YE19","Hagr As Sai'ar","YE1905","حجر الصيعر","Hagr As Saiar","حجر الصيعر","YE1905"]
["Hadramaut","حضرموت","YE19","Hajr","YE1924","حجر","Hajr","حجر","YE1924"]
["Hadramaut","حضرموت","YE19","Huraidhah","YE1928","حريضه","Huraidhah","حريضه","YE1928"]
["Hadramaut","حضرموت","YE19","Rakhyah","YE1920","رخيه","Rakhyah","رخيه","YE1920"]
["Hadramaut","حضرموت","YE19","Rumah","YE1901","رماه","Rumah","رماه","YE1901"]
["Hadramaut","حضرموت","YE19","Sah","YE1909","ساه","Sah","ساه","YE1909"]
["Hadramaut","حضرموت","YE19","Sayun","YE1910","سيئون","Sayun","سيئون","YE1910"]
["Hadramaut","حضرموت","YE19","Shibam","YE1908","شبام","Shibam","شبام","YE1908"]
["Hadramaut","حضرموت","YE19","Tarim","YE1911","تريم","Tarim","تريم","YE1911"]
["Hadramaut","حضرموت","YE19","Thamud","YE1902","ثمود","Thamud","ثمود","YE1902"]
["Hadramaut","حضرموت","YE19","Wadi Al Ayn","YE1919","وادي العين وحوره","Wadi Al Ayn","وادي العين وحوره","YE1919"]
["Hadramaut","حضرموت","YE19","Yabuth","YE1923","يبعث","Yabuth","يبعث","YE1923"]
["Hadramaut","حضرموت","YE19","Zamakh wa Manwakh","YE1904","زموخ ومنوخ","Zamakh wa Manwakh","زموخ ومنوخ","YE1904"]
["Hajjah","حجة","YE17","Abs","YE1704","عبس","Abs","عبس","YE1704"]
["Hajjah","حجة","YE17","Aflah Al Yaman","YE1714","افلح اليمن","Aflah Al Yaman","افلح اليمن","YE1714"]
["Hajjah","حجة","YE17","Aflah Ash Shawm","YE1710","افلح الشام","Aflah Ash Shawm","افلح الشام","YE1710"]
["Hajjah","حجة","YE17","Al Jamimah","YE1708","الجميمة","Al Jamimah","الجميمة","YE1708"]
["Hajjah","حجة","YE17","Al Maghrabah","YE1717","المغربة","Al Maghrabah","المغربة","YE1717"]
["Hajjah","حجة","YE17","Al Mahabishah","YE1715","المحابشة","Al Mahabishah","المحابشة","YE1715"]
["Hajjah","حجة","YE17","Al Miftah","YE1716","المفتاح","Al Miftah","المفتاح","YE1716"]
["Hajjah","حجة","YE17","Ash Shaghadirah","YE1725","الشغادرة","Ash Shaghadirah","الشغادرة","YE1725"]
["Hajjah","حجة","YE17","Ash Shahil","YE1721","الشاهل","Ash Shahil","الشاهل","YE1721"]
["Hajjah","حجة","YE17","Aslem","YE1712","اسلم","Aslem","اسلم","YE1712"]
["Hajjah","حجة","YE17","Bakil Al Mir","YE1701","بكيل المير","Bakil Al Mir","بكيل المير","YE1701"]
["Hajjah","حجة","YE17","Bani Al Awam","YE1727","بني العوام","Bani Al Awam","بني العوام","YE1727"]
["Hajjah","حجة","YE17","Bani Qa'is","YE1724","بني قيس","Bani Qais","بني قيس","YE1724"]
["Hajjah","حجة","YE17","Hajjah","YE1729","حجة","Hajjah","حجة","YE1729"]
["Hajjah","حجة","YE17","Hajjah City","YE1728","مدينة حجة","Hajjah City","مدينة حجة","YE1728"]
["Hajjah","حجة","YE17","Haradh","YE1702","حرض","Haradh","حرض","YE1702"]
["Hajjah","حجة","YE17","Hayran","YE1705","حيران","Hayran","حيران","YE1705"]
["Hajjah","حجة","YE17","Khayran Al Muharraq","YE1711","خيران المحرق","Khayran Al Muharraq","خيران المحرق","YE1711"]
["Hajjah","حجة","YE17","Ku'aydinah","YE1722","كعيدنه","Kuaydinah","كعيدنه","YE1722"]
["Hajjah","حجة","YE17","Kuhlan Affar","YE1718","كحلان عفار","Kuhlan Affar","كحلان عفار","YE1718"]
["Hajjah","حجة","YE17","Kuhlan Ash Sharaf","YE1709","كحلان الشرف","Kuhlan Ash Sharaf","كحلان الشرف","YE1709"]
["Hajjah","حجة","YE17","Kushar","YE1707","كشر","Kushar","كشر","YE1707"]
["Hajjah","حجة","YE17","Mabyan","YE1720","مبين","Mabyan","مبين","YE1720"]
["Hajjah","حجة","YE17","Midi","YE1703","ميدي","Midi","ميدي","YE1703"]
["Hajjah","حجة","YE17","Mustaba","YE1706","مستباء","Mustaba","مستباء","YE1706"]
["Hajjah","حجة","YE17","Najrah","YE1726","نجرة","Najrah","نجرة","YE1726"]
["Hajjah","حجة","YE17","Qafl Shamer","YE1713","قفل شمر","Qafl Shamer","قفل شمر","YE1713"]
["Hajjah","حجة","YE17","Qarah","YE1731","قارة","Qarah","قارة","YE1731"]
["Hajjah","حجة","YE17","Sharas","YE1719","شرس","Sharas","شرس","YE1719"]
["Hajjah","حجة","YE17","Wadhrah","YE1723","وضرة","Wadhrah","وضرة","YE1723"]
["Hajjah","حجة","YE17","Washhah","YE1730","وشحة","Washhah","وشحة","YE1730"]
["Ibb","إب","YE11","Al Dhihar","YE1119","الظهار","Al Dhihar","الظهار","YE1119"]
["Ibb","إب","YE11","Al Makhadir","YE1107","المخادر","Al Makhadir","المخادر","YE1107"]
["Ibb","إب","YE11","Al Mashannah","YE1118","المشنة","Al Mashannah","المشنة","YE1118"]
["Ibb","إب","YE11","Al Qafr","YE1101","القفر","Al Qafr","القفر","YE1101"]
["Ibb","إب","YE11","Al Udayn","YE1111","العدين","Al Udayn","العدين","YE1111"]
["Ibb","إب","YE11","An Nadirah","YE1104","النادرة","An Nadirah","النادرة","YE1104"]
["Ibb","إب","YE11","Ar Radmah","YE1103","الرضمة","Ar Radmah","الرضمة","YE1103"]
["Ibb","إب","YE11","As Sabrah","YE1114","السبرة","As Sabrah","السبرة","YE1114"]
["Ibb","إب","YE11","As Saddah","YE1106","السدة","As Saddah","السدة","YE1106"]
["Ibb","إب","YE11","As Sayyani","YE1115","السياني","As Sayyani","السياني","YE1115"]
["Ibb","إب","YE11","Ash Sha'ir","YE1105","الشعر","Ash Shair","الشعر","YE1105"]
["Ibb","إب","YE11","Ba'dan","YE1113","بعدان","Badan","بعدان","YE1113"]
["Ibb","إب","YE11","Dhi As Sufal","YE1116","ذي السفال","Dhi As Sufal","ذي السفال","YE1116"]
["Ibb","إب","YE11","Far Al Udayn","YE1110","فرع العدين","Far Al Udayn","فرع العدين","YE1110"]
["Ibb","إب","YE11","Hazm Al Udayn","YE1109","حزم العدين","Hazm Al Udayn","حزم العدين","YE1109"]
["Ibb","إب","YE11","Hubaysh","YE1108","حبيش","Hubaysh","حبيش","YE1108"]
["Ibb","إب","YE11","Ibb","YE1120","إب","Ibb","إب","YE1120"]
["Ibb","إب","YE11","Jiblah","YE1112","جبلة","Jiblah","جبلة","YE1112"]
["Ibb","إب","YE11","Mudhaykhirah","YE1117","مذيخرة","Mudhaykhirah","مذيخرة","YE1117"]
["Ibb","إب","YE11","Yarim","YE1102","يريم","Yarim","يريم","YE1102"]
["Lahj","لحج","YE25","Al Hawtah","YE2514","الحوطة","Al Hawtah","الحوطة","YE2514"]
["Lahj","لحج","YE25","Al Had","YE2501","الحد","Al Had","الحد","YE2501"]
["Lahj","لحج","YE25","Al Madaribah Wa Al Arah","YE2513","المضاربة و العاره","Al Madaribah Wa Al Arah","المضاربة و العاره","YE2513"]
["Lahj","لحج","YE25","Al Maflahy","YE2503","المفلحي","Al Maflahy","المفلحي","YE2503"]
["Lahj","لحج","YE25","Al Maqatirah","YE2512","المقاطرة","Al Maqatirah","المقاطرة","YE2512"]
["Lahj","لحج","YE25","Al Milah","YE2508","الملاح","Al Milah","الملاح","YE2508"]
["Lahj","لحج","YE25","Al Musaymir","YE2509","المسيمير","Al Musaymir","المسيمير","YE2509"]
["Lahj","لحج","YE25","Al Qabbaytah","YE2510","القبيطه","Al Qabbaytah","القبيطه","YE2510"]
["Lahj","لحج","YE25","Habil Jabr","YE2505","حبيل جبر","Habil Jabr","حبيل جبر","YE2505"]
["Lahj","لحج","YE25","Halimayn","YE2506","حالمين","Halimayn","حالمين","YE2506"]
["Lahj","لحج","YE25","Radfan","YE2507","ردفان","Radfan","ردفان","YE2507"]
["Lahj","لحج","YE25","Tuban","YE2515","تبن","Tuban","تبن","YE2515"]
["Lahj","لحج","YE25","Tur Al Bahah","YE2511","طور الباحة","Tur Al Bahah","طور الباحة","YE2511"]
["Lahj","لحج","YE25","Yafa'a","YE2502","يافع","Yafaa","يافع","YE2502"]
["Lahj","لحج","YE25","Yahr","YE2504","يهر","Yahr","يهر","YE2504"]
["Marib","مأرب","YE26","Al Abdiyah","YE2611","العبدية","Al Abdiyah","العبدية","YE2611"]
["Marib","مأرب","YE26","Al Jubah","YE2607","الجوبة","Al Jubah","الجوبة","YE2607"]
["Marib","مأرب","YE26","Bidbadah","YE2605","بدبده","Bidbadah","بدبده","YE2605"]
["Marib","مأرب","YE26","Harib","YE2609","حريب","Harib","حريب","YE2609"]
["Marib","مأرب","YE26","Harib Al Qaramish","YE2604","حريب القرامش","Harib Al Qaramish","حريب القرامش","YE2604"]
["Marib","مأرب","YE26","Jabal Murad","YE2614","جبل مراد","Jabal Murad","جبل مراد","YE2614"]
["Marib","مأرب","YE26","Mahliyah","YE2610","ماهليه","Mahliyah","ماهليه","YE2610"]
["Marib","مأرب","YE26","Majzar","YE2601","مجزر","Majzar","مجزر","YE2601"]
["Marib","مأرب","YE26","Marib","YE2613","مأرب","Marib","مأرب","YE2613"]
["Marib","مأرب","YE26","Marib City","YE2612","مدينة مأرب","Marib City","مدينة مأرب","YE2612"]
["Marib","مأرب","YE26","Medghal","YE2603","مدغل","Medghal","مدغل","YE2603"]
["Marib","مأرب","YE26","Raghwan","YE2602","رغوان","Raghwan","رغوان","YE2602"]
["Marib","مأرب","YE26","Rahabah","YE2608","رحبه","Rahabah","رحبه","YE2608"]
["Marib","مأرب","YE26","Sirwah","YE2606","صرواح","Sirwah","صرواح","YE2606"]
["Raymah","ريمة","YE31","Al Jabin","YE3103","الجبين","Al Jabin","الجبين","YE3102"]
["Raymah","ريمة","YE31","Al Jafariyah","YE3106","الجعفرية","Al Jafariyah","الجعفرية","YE3105"]
["Raymah","ريمة","YE31","As Salafiyah","YE3102","السلفية","As Salafiyah","السلفية","YE3103"]
["Raymah","ريمة","YE31","Bilad At Ta'am","YE3101","بلاد الطعام","Bilad At Taam","بلاد الطعام","YE3101"]
["Raymah","ريمة","YE31","Kusmah","YE3105","كسمه","Kusmah","كسمه","YE3104"]
["Raymah","ريمة","YE31","Mazhar","YE3104","مزهر","Mazhar","مزهر","YE3106"]
["Sa'ada","صعدة","YE22","Al Dhaher","YE2207","الظاهر","Al Dhaher","الظاهر","YE2207"]
["Sa'ada","صعدة","YE22","Al Hashwah","YE2213","الحشوه","Al Hashwah","الحشوه","YE2213"]
["Sa'ada","صعدة","YE22","As Safra","YE2212","الصفراء","As Safra","الصفراء","YE2212"]
["Sa'ada","صعدة","YE22","Baqim","YE2201","باقم","Baqim","باقم","YE2201"]
["Sa'ada","صعدة","YE22","Ghamr","YE2204","غمر","Ghamr","غمر","YE2204"]
["Sa'ada","صعدة","YE22","Haydan","YE2208","حيدان","Haydan","حيدان","YE2208"]
["Sa'ada","صعدة","YE22","Kitaf wa Al Boqe'e","YE2214","كتاف والبقع","Kitaf wa Al Boqee","كتاف والبقع","YE2214"]
["Sa'ada","صعدة","YE22","Majz","YE2210","مجز","Majz","مجز","YE2210"]
["Sa'ada","صعدة","YE22","Monabbih","YE2203","منبه","Monabbih","منبه","YE2203"]
["Sa'ada","صعدة","YE22","Qatabir","YE2202","قطابر","Qatabir","قطابر","YE2202"]
["Sa'ada","صعدة","YE22","Razih","YE2205","رازح","Razih","رازح","YE2205"]
["Sa'ada","صعدة","YE22","Sa'adah","YE2215","صعدة","Saadah","صعدة","YE2215"]
["Sa'ada","صعدة","YE22","Sahar","YE2211","سحار","Sahar","سحار","YE2211"]
["Sa'ada","صعدة","YE22","Saqayn","YE2209","ساقين","Saqayn","ساقين","YE2209"]
["Sa'ada","صعدة","YE22","Shada'a","YE2206","شداء","Shadaa","شداء","YE2206"]
["Sana'a","صنعاء","YE23","Al Haymah Ad Dakhiliyah","YE2308","الحيمة الداخلية","Al Haymah Ad Dakhiliyah","الحيمة الداخلية","YE2308"]
["Sana'a","صنعاء","YE23","Al Haymah Al Kharijiyah","YE2309","الحيمة الخارجية","Al Haymah Al Kharijiyah","الحيمة الخارجية","YE2309"]
["Sana'a","صنعاء","YE23","Al Husn","YE2315","الحصن","Al Husn","الحصن","YE2315"]
["Sana'a","صنعاء","YE23","Arhab","YE2302","ارحب","Arhab","ارحب","YE2302"]
["Sana'a","صنعاء","YE23","Attyal","YE2313","الطيال","Attyal","الطيال","YE2313"]
["Sana'a","صنعاء","YE23","Bani Dhabyan","YE2314","بني ضبيان","Bani Dhabyan","بني ضبيان","YE2314"]
["Sana'a","صنعاء","YE23","Bani Hushaysh","YE2304","بني حشيش","Bani Hushaysh","بني حشيش","YE2304"]
["Sana'a","صنعاء","YE23","Bani Matar","YE2307","بني مطر","Bani Matar","بني مطر","YE2307"]
["Sana'a","صنعاء","YE23","Bilad Ar Rus","YE2306","بلاد الروس","Bilad Ar Rus","بلاد الروس","YE2306"]
["Sana'a","صنعاء","YE23","Hamdan","YE2301","همدان","Hamdan","همدان","YE2301"]
["Sana'a","صنعاء","YE23","Jihanah","YE2316","جحانة","Jihanah","جحانة","YE2316"]
["Sana'a","صنعاء","YE23","Khwlan","YE2312","خولان","Khwlan","خولان","YE2312"]
["Sana'a","صنعاء","YE23","Manakhah","YE2310","مناخه","Manakhah","مناخه","YE2310"]
["Sana'a","صنعاء","YE23","Nihm","YE2303","نهم","Nihm","نهم","YE2303"]
["Sana'a","صنعاء","YE23","Sa'fan","YE2311","صعفان","Safan","صعفان","YE2311"]
["Sana'a","صنعاء","YE23","Sanhan","YE2305","سنحان وبني بهلول","Sanhan","سنحان وبني بهلول","YE2305"]
["Shabwah","شبوة","YE21","Ain","YE2106","عين","Ain","عين","YE2106"]
["Shabwah","شبوة","YE21","Al Talh","YE2102","الطلح","Al Talh","الطلح","YE2102"]
["Shabwah","شبوة","YE21","Ar Rawdah","YE2115","الروضه","Ar Rawdah","الروضه","YE2115"]
["Shabwah","شبوة","YE21","Arma","YE2104","عرماء","Arma","عرماء","YE2104"]
["Shabwah","شبوة","YE21","As Said","YE2112","الصعيد","As Said","الصعيد","YE2112"]
["Shabwah","شبوة","YE21","Ataq","YE2113","عتق","Ataq","عتق","YE2113"]
["Shabwah","شبوة","YE21","Bayhan","YE2107","بيحان","Bayhan","بيحان","YE2107"]
["Shabwah","شبوة","YE21","Dhar","YE2101","دهر","Dhar","دهر","YE2101"]
["Shabwah","شبوة","YE21","Habban","YE2114","حبان","Habban","حبان","YE2114"]
["Shabwah","شبوة","YE21","Hatib","YE2111","حطيب","Hatib","حطيب","YE2111"]
["Shabwah","شبوة","YE21","Jardan","YE2103","جردان","Jardan","جردان","YE2103"]
["Shabwah","شبوة","YE21","Mayfa'a","YE2116","ميفعه","Mayfaa","ميفعه","YE2116"]
["Shabwah","شبوة","YE21","Merkhah Al Ulya","YE2108","مرخه العليا","Merkhah Al Ulya","مرخه العليا","YE2108"]
["Shabwah","شبوة","YE21","Merkhah As Sufla","YE2109","مرخه السفلى","Merkhah As Sufla","مرخه السفلى","YE2109"]
["Shabwah","شبوة","YE21","Nisab","YE2110","نصاب","Nisab","نصاب","YE2110"]
["Shabwah","شبوة","YE21","Rudum","YE2117","رضوم","Rudum","رضوم","YE2117"]
["Shabwah","شبوة","YE21","Usaylan","YE2105","عسيلان","Usaylan","عسيلان","YE2105"]
["Socotra","سقطرى","YE32","Hidaybu","YE3201","حديبو","Hidaybu","حديبو","YE1926"]
["Socotra","سقطرى","YE32","Qulensya Wa Abd Al Kuri","YE3202","قلنسيه وعبدالكوري","Qulensya Wa Abd Al Kuri","قلنسيه وعبدالكوري","YE1927"]
["Taizz","تعز","YE15","Al Mukha","YE1505","المخاء","Al  Mukha","المخاء","YE1506"]
["Taizz","تعز","YE15","Al Ma'afer","YE1521","المعافر","Al Maafer","المعافر","YE1521"]
["Taizz","تعز","YE15","Al Mawasit","YE1522","المواسط","Al Mawasit","المواسط","YE1522"]
["Taizz","تعز","YE15","Al Misrakh","YE1511","المسراخ","Al Misrakh","المسراخ","YE1512"]
["Taizz","تعز","YE15","Al Mudhaffar","YE1517","المظفر","Al Mudhaffar","المظفر","YE1518"]
["Taizz","تعز","YE15","Al Qahirah","YE1518","القاهرة","Al Qahirah","القاهرة","YE1519"]
["Taizz","تعز","YE15","Al Wazi'iyah","YE1515","الوازعية","Al Waziiyah","الوازعية","YE1516"]
["Taizz","تعز","YE15","As Silw","YE1513","الصلو","As Silw","الصلو","YE1514"]
["Taizz","تعز","YE15","Ash Shamayatayn","YE1514","الشمايتين","Ash Shamayatayn","الشمايتين","YE1515"]
["Taizz","تعز","YE15","At Ta'iziyah","YE1520","التعزية","At Taiziyah","التعزية","YE1502"]
["Taizz","تعز","YE15","Dhubab","YE1506","ذباب","Dhubab","ذباب","YE1507"]
["Taizz","تعز","YE15","Dimnat Khadir","YE1512","دمنة خدير","Dimnat Khadir","دمنة خدير","YE1513"]
["Taizz","تعز","YE15","Hayfan","YE1516","حيفان","Hayfan","حيفان","YE1517"]
["Taizz","تعز","YE15","Jabal Habashy","YE1508","جبل حبشي","Jabal Habashy","جبل حبشي","YE1509"]
["Taizz","تعز","YE15","Maqbanah","YE1504","مقبنة","Maqbanah","مقبنة","YE1505"]
["Taizz","تعز","YE15","Mashra'a Wa Hadnan","YE1509","مشرعة وحدنان","Mashraa Wa Hadnan","مشرعة وحدنان","YE1510"]
["Taizz","تعز","YE15","Mawiyah","YE1501","ماوية","Mawiyah","ماوية","YE1501"]
["Taizz","تعز","YE15","Mawza","YE1507","موزع","Mawza","موزع","YE1508"]
["Taizz","تعز","YE15","Sabir Al Mawadim","YE1510","صبر الموادم","Sabir Al Mawadim","صبر الموادم","YE1511"]
["Taizz","تعز","YE15","Salh","YE1519","صالة","Salh","صالة","YE1520"]
["Taizz","تعز","YE15","Sama","YE1523","سامع","Sama","سامع","YE1523"]
["Taizz","تعز","YE15","Shara'b Ar Rawnah","YE1503","شرعب الرونة","Sharab Ar Rawnah","شرعب الرونة","YE1504"]
["Taizz","تعز","YE15","Shara'b As Salam","YE1502","شرعب السلام","Sharab As Salam","شرعب السلام","YE1503"]

{"sheet":"admin2_new","index":6,"n_rows":334,"n_cols":18,"rows_kept":334,"cut":false,"hidden":true,"merged":[]}
["admin1Pcode","admin1Name_en","admin1Name_ar","admin2Pcode","admin2RefName_en","admin2RefName_ar","admin2oldPcode","admin2Name_en","admin2Name_ar",null,null,"admin1Pcode","admin1Name_en","admin1RefName_en","admin1Name_ar",null,null,"West Coast Pcodes"]
["YE11","Ibb","إب","YE1101","Al Qafr","القفر","YE1101","Al Qafr","القفر",null,null,"YE11","Ibb","Ibb","إب",null,null,"YE1820"]
["YE11","Ibb","إب","YE1102","Yarim","يريم","YE1102","Yarim","يريم",null,null,"YE12","Abyan","Abyan","أبين",null,null,"YE1819"]
["YE11","Ibb","إب","YE1103","Ar Radmah","الرضمة","YE1103","Ar Radmah","الرضمة",null,null,"YE13","Sana'a City","Sanaa City","أمانة العاصمة",null,null,"YE1506"]
["YE11","Ibb","إب","YE1104","An Nadirah","النادرة","YE1104","An Nadirah","النادرة",null,null,"YE14","Al Bayda","Al Bayda","البيضاء",null,null,"YE1505"]
["YE11","Ibb","إب","YE1105","Ash Shair","الشعر","YE1105","Ash Sha'ir","الشعر",null,null,"YE15","Ta'iz","Taiz","تعز",null,null,"YE1507"]
["YE11","Ibb","إب","YE1106","As Saddah","السدة","YE1106","As Saddah","السدة",null,null,"YE16","Al Jawf","Al Jawf","الجوف",null,null,"YE1515"]
["YE11","Ibb","إب","YE1107","Al Makhadir","المخادر","YE1107","Al Makhadir","المخادر",null,null,"YE17","Hajjah","Hajjah","حجة",null,null,"YE18262510700"]
["YE11","Ibb","إب","YE1108","Hobeish","حبيش","YE1108","Hobeish","حبيش",null,null,"YE18","Al Hodeidah","Al Hodeidah","الحديدة"]
["YE11","Ibb","إب","YE1109","Hazm Al Odayn","حزم العدين","YE1109","Hazm Al Odayn","حزم العدين",null,null,"YE19","Hadramawt","Hadramawt","حضرموت"]
["YE11","Ibb","إب","YE1110","Far Al Odayn","فرع العدين","YE1110","Far' Al Odayn","فرع العدين",null,null,"YE20","Dhamar","Dhamar","ذمار"]
["YE11","Ibb","إب","YE1111","Al Odayn","العدين","YE1111","Al Odayn","العدين",null,null,"YE21","Shabwah","Shabwah","شبوة"]
["YE11","Ibb","إب","YE1112","Jiblah","جبلة","YE1112","Jiblah","جبلة",null,null,"YE22","Sa'dah","Sadah","صعدة"]
["YE11","Ibb","إب","YE1113","Badan","بعدان","YE1113","Ba'dan","بعدان",null,null,"YE23","Sana'a","Sanaa","صنعاء"]
["YE11","Ibb","إب","YE1114","As Sabrah","السبرة","YE1114","As Sabrah","السبرة",null,null,"YE24","Aden","Aden","عدن"]
["YE11","Ibb","إب","YE1115","As Saiyani","السياني","YE1115","As Saiyani","السياني",null,null,"YE25","Lahj","Lahj","لحج"]
["YE11","Ibb","إب","YE1116","Dhi As Sufal","ذي السفال","YE1116","Dhi As Sufal","ذي السفال",null,null,"YE26","Ma'rib","Marib","مأرب"]
["YE11","Ibb","إب","YE1117","Mudhaykhirah","مذيخرة","YE1117","Mudhaykhirah","مذيخرة",null,null,"YE27","Al Mahwit","Al Mahwit","المحويت"]
["YE11","Ibb","إب","YE1118","Al Mashannah","المشنة","YE1118","Al Mashannah","المشنة",null,null,"YE28","Al Maharah","Al Maharah","المهرة"]
["YE11","Ibb","إب","YE1119","Adh Dhihar","الظهار","YE1119","Adh Dhihar","الظهار",null,null,"YE29","Amran","Amran","عمران"]
["YE11","Ibb","إب","YE1120","Ibb","إب","YE1120","Ibb","إب",null,null,"YE30","Ad Dali'","Ad Dali","الضالع"]
["YE12","Abyan","أبين","YE1201","Al Mahfad","المحفد","YE1201","Al Mahfad","المحفد",null,null,"YE31","Raymah","Raymah","ريمة"]
["YE12","Abyan","أبين","YE1202","Mudiyah","مودية","YE1202","Mudiyah","مودية",null,null,"YE32","Socotra","Socotra","سقطرى"]
["YE12","Abyan","أبين","YE1203","Jayshan","جيشان","YE1203","Jayshan","جيشان"]
["YE12","Abyan","أبين","YE1204","Lawdar","لودر","YE1204","Lawdar","لودر"]
["YE12","Abyan","أبين","YE1205","Sibah","سباح","YE1205","Sibah","سباح"]
["YE12","Abyan","أبين","YE1206","Rassd","رصد","YE1206","Rassd","رصد"]
["YE12","Abyan","أبين","YE1207","Sarar","سرار","YE1207","Sarar","سرار"]
["YE12","Abyan","أبين","YE1208","Al Wadi","الوضيع","YE1208","Al Wadi'","الوضيع"]
["YE12","Abyan","أبين","YE1209","Ahwar","أحور","YE1209","Ahwar","أحور"]
["YE12","Abyan","أبين","YE1210","Zinjibar","زنجبار","YE1210","Zinjibar","زنجبار"]
["YE12","Abyan","أبين","YE1211","Khanfar","خنفر","YE1211","Khanfar","خنفر"]
["YE13","Sana'a City","أمانة العاصمة","YE1301","Old City","صنعاء القديمة","YE1301","Old City","صنعاء القديمة"]
["YE13","Sana'a City","أمانة العاصمة","YE1302","Shuub","شعوب","YE1302","Shu'ub","شعوب"]
["YE13","Sana'a City","أمانة العاصمة","YE1303","Azaal","أزال","YE1303","Azaal","أزال"]
["YE13","Sana'a City","أمانة العاصمة","YE1304","As Safiyah","الصافية","YE1304","As Safiyah","الصافية"]
["YE13","Sana'a City","أمانة العاصمة","YE1305","As Sabin","السبعين","YE1305","As Sab'in","السبعين"]
["YE13","Sana'a City","أمانة العاصمة","YE1306","Al Wehdah","الوحدة","YE1306","Al Wehdah","الوحدة"]
["YE13","Sana'a City","أمانة العاصمة","YE1307","At Tahrir","التحرير","YE1307","At Tahrir","التحرير"]
["YE13","Sana'a City","أمانة العاصمة","YE1308","Main","معين","YE1308","Ma'in","معين"]
["YE13","Sana'a City","أمانة العاصمة","YE1309","Ath Thawrah","الثورة","YE1309","Ath Thawrah","الثورة"]
["YE13","Sana'a City","أمانة العاصمة","YE1310","Bani Al Harith","بني الحارث","YE1310","Bani Al Harith","بني الحارث"]
["YE14","Al Bayda","البيضاء","YE1401","Numan","نعمان","YE1401","Nu'man","نعمان"]
["YE14","Al Bayda","البيضاء","YE1402","Nati","ناطع","YE1402","Nati'","ناطع"]
["YE14","Al Bayda","البيضاء","YE1403","Maswarah","مسورة","YE1403","Maswarah","مسورة"]
["YE14","Al Bayda","البيضاء","YE1404","As Sawmaah","الصومعة","YE1404","As Sawma'ah","الصومعة"]
["YE14","Al Bayda","البيضاء","YE1405","Az Zahir - Al Bayda","الزاهر - البيضاء","YE1405","Az Zahir","الزاهر"]
["YE14","Al Bayda","البيضاء","YE1406","Dhi Naim","ذي ناعم","YE1406","Dhi Na'im","ذي ناعم"]
["YE14","Al Bayda","البيضاء","YE1407","At Taffah","الطفة","YE1407","At Taffah","الطفة"]
["YE14","Al Bayda","البيضاء","YE1408","Mukayras","مكيراس","YE1408","Mukayras","مكيراس"]
["YE14","Al Bayda","البيضاء","YE1409","Al Bayda City","مدينة البيضاء","YE1409","Al Bayda City","مدينة البيضاء"]
["YE14","Al Bayda","البيضاء","YE1410","Al Bayda","البيضاء","YE1410","Al Bayda","البيضاء"]
["YE14","Al Bayda","البيضاء","YE1411","As Sawadiyah","السوادية","YE1411","As Sawadiyah","السوادية"]
["YE14","Al Bayda","البيضاء","YE1412","Radman","ردمان","YE1412","Radman","ردمان"]
["YE14","Al Bayda","البيضاء","YE1413","Rada","رداع","YE1413","Rada'","رداع"]
["YE14","Al Bayda","البيضاء","YE1414","Al Quraishyah","القريشية","YE1414","Al Quraishyah","القريشية"]
["YE14","Al Bayda","البيضاء","YE1415","Wald Rabi","ولد ربيع","YE1415","Wald Rabi'","ولد ربيع"]
["YE14","Al Bayda","البيضاء","YE1416","Al Arsh","العرش","YE1416","Al Arsh","العرش"]
["YE14","Al Bayda","البيضاء","YE1417","Sabah","صباح","YE1417","Sabah","صباح"]
["YE14","Al Bayda","البيضاء","YE1418","Ar Ryashyyah","الرياشية","YE1418","Ar Ryashyyah","الرياشية"]
["YE14","Al Bayda","البيضاء","YE1419","Ash Sharyah","الشرية","YE1419","Ash Sharyah","الشرية"]
["YE14","Al Bayda","البيضاء","YE1420","Al Malajim","الملاجم","YE1420","Al Malajim","الملاجم"]
["YE15","Ta'iz","تعز","YE1501","Mawiyah","ماوية","YE1501","Mawiyah","ماوية"]
["YE15","Ta'iz","تعز","YE1502","Sharab As Salam","شرعب السلام","YE1503","Shar'ab As Salam","شرعب السلام"]
["YE15","Ta'iz","تعز","YE1503","Sharab Ar Rawnah","شرعب الرونة","YE1504","Shar'ab Ar Rawnah","شرعب الرونة"]
["YE15","Ta'iz","تعز","YE1504","Maqbanah","مقبنة","YE1505","Maqbanah","مقبنة"]
["YE15","Ta'iz","تعز","YE1505","Al Makha","المخا","YE1506","Al Makha","المخا"]
["YE15","Ta'iz","تعز","YE1506","Dhubab","باب المندب","YE1507","Dhubab","باب المندب"]
["YE15","Ta'iz","تعز","YE1507","Mawza","موزع","YE1508","Mawza'","موزع"]
["YE15","Ta'iz","تعز","YE1508","Jabal Habashi","جبل حبشي","YE1509","Jabal Habashi","جبل حبشي"]
["YE15","Ta'iz","تعز","YE1509","Mashrah Wa Hadnan","مشرعة وحدنان","YE1510","Mashr'ah Wa Hadnan","مشرعة وحدنان"]
["YE15","Ta'iz","تعز","YE1510","Sabir Al Mawadim","صبر الموادم","YE1511","Sabir Al Mawadim","صبر الموادم"]
["YE15","Ta'iz","تعز","YE1511","Al Misrakh","المسراخ","YE1512","Al Misrakh","المسراخ"]
["YE15","Ta'iz","تعز","YE1512","Dimnat Khadir","خدير","YE1513","Dimnat Khadir","خدير"]
["YE15","Ta'iz","تعز","YE1513","As Silw","الصلو","YE1514","As Silw","الصلو"]
["YE15","Ta'iz","تعز","YE1514","Ash Shamayatayn","الشمايتين","YE1515","Ash Shamayatayn","الشمايتين"]
["YE15","Ta'iz","تعز","YE1515","Al Waziyah","الوازعية","YE1516","Al Wazi'yah","الوازعية"]
["YE15","Ta'iz","تعز","YE1516","Hayfan","حيفان","YE1517","Hayfan","حيفان"]
["YE15","Ta'iz","تعز","YE1517","Al Mudhaffar","المظفر","YE1518","Al Mudhaffar","المظفر"]
["YE15","Ta'iz","تعز","YE1518","Al Qahirah","القاهرة","YE1519","Al Qahirah","القاهرة"]
["YE15","Ta'iz","تعز","YE1519","Salah","صالة","YE1520","Salah","صالة"]
["YE15","Ta'iz","تعز","YE1520","At Taiziyah","التعزية","YE1502","At Ta'iziyah","التعزية"]
["YE15","Ta'iz","تعز","YE1521","Al Maafer","المعافر","YE1521","Al Ma'afer","المعافر"]
["YE15","Ta'iz","تعز","YE1522","Al Mawasit","المواسط","YE1522","Al Mawasit","المواسط"]
["YE15","Ta'iz","تعز","YE1523","Sami","سامع","YE1523","Sami'","سامع"]
["YE16","Al Jawf","الجوف","YE1601","Khab wa Ash Shaf","خب و الشعف","YE1601","Khab wa Ash Sha'f","خب و الشعف"]
["YE16","Al Jawf","الجوف","YE1602","Al Humaydat","الحميدات","YE1602","Al Humaydat","الحميدات"]
["YE16","Al Jawf","الجوف","YE1603","Al Matammah","المطمة","YE1603","Al Matammah","المطمة"]
["YE16","Al Jawf","الجوف","YE1604","Az Zahir - Al Jawf","الزاهر - الجوف","YE1604","Az Zahir","الزاهر"]
["YE16","Al Jawf","الجوف","YE1605","Al Hazm","الحزم","YE1605","Al Hazm","الحزم"]
["YE16","Al Jawf","الجوف","YE1606","Al Mutun","المتون","YE1606","Al Mutun","المتون"]
["YE16","Al Jawf","الجوف","YE1607","Al Maslub","المصلوب","YE1607","Al Maslub","المصلوب"]
["YE16","Al Jawf","الجوف","YE1608","Al Ghayl","الغيل","YE1608","Al Ghayl","الغيل"]
["YE16","Al Jawf","الجوف","YE1609","Al Khalaq","الخلق","YE1609","Al Khalaq","الخلق"]
["YE16","Al Jawf","الجوف","YE1610","Barat Al Anan","برط العنان","YE1610","Barat Al Anan","برط العنان"]
["YE16","Al Jawf","الجوف","YE1611","Rajuzah","رجوزة","YE1611","Rajuzah","رجوزة"]
["YE16","Al Jawf","الجوف","YE1612","Kharab Al Marashi","خراب المراشي","YE1612","Kharab Al Marashi","خراب المراشي"]
["YE17","Hajjah","حجة","YE1701","Bakil Al Mir","بكيل المير","YE1701","Bakil Al Mir","بكيل المير"]
["YE17","Hajjah","حجة","YE1702","Harad","حرض","YE1702","Harad","حرض"]
["YE17","Hajjah","حجة","YE1703","Midi","ميدي","YE1703","Midi","ميدي"]
["YE17","Hajjah","حجة","YE1704","Abs","عبس","YE1704","Abs","عبس"]
["YE17","Hajjah","حجة","YE1705","Hayran","حيران","YE1705","Hayran","حيران"]
["YE17","Hajjah","حجة","YE1706","Mustaba","مستباء","YE1706","Mustaba","مستباء"]
["YE17","Hajjah","حجة","YE1707","Kushar","كشر","YE1707","Kushar","كشر"]
["YE17","Hajjah","حجة","YE1708","Al Jamimah","الجميمة","YE1708","Al Jamimah","الجميمة"]
["YE17","Hajjah","حجة","YE1709","Kuhlan Ash Sharaf","كحلان الشرف","YE1709","Kuhlan Ash Sharaf","كحلان الشرف"]
["YE17","Hajjah","حجة","YE1710","Aflah Ash Sham","أفلح الشام","YE1710","Aflah Ash Sham","أفلح الشام"]
["YE17","Hajjah","حجة","YE1711","Khayran Al Muharraq","خيران المحرق","YE1711","Khayran Al Muharraq","خيران المحرق"]
["YE17","Hajjah","حجة","YE1712","Aslam","أسلم","YE1712","Aslam","أسلم"]
["YE17","Hajjah","حجة","YE1713","Qafl Shammar","قفل شمر","YE1713","Qafl Shammar","قفل شمر"]
["YE17","Hajjah","حجة","YE1714","Aflah Al Yaman","أفلح اليمن","YE1714","Aflah Al Yaman","أفلح اليمن"]
["YE17","Hajjah","حجة","YE1715","Al Mahabishah","المحابشة","YE1715","Al Mahabishah","المحابشة"]
["YE17","Hajjah","حجة","YE1716","Al Miftah","المفتاح","YE1716","Al Miftah","المفتاح"]
["YE17","Hajjah","حجة","YE1717","Al Maghrabah","المغربة","YE1717","Al Maghrabah","المغربة"]
["YE17","Hajjah","حجة","YE1718","Kuhlan Afar","كحلان عفار","YE1718","Kuhlan Afar","كحلان عفار"]
["YE17","Hajjah","حجة","YE1719","Sharas","شرس","YE1719","Sharas","شرس"]
["YE17","Hajjah","حجة","YE1720","Mabyan","مبين","YE1720","Mabyan","مبين"]
["YE17","Hajjah","حجة","YE1721","Ash Shahil","الشاهل","YE1721","Ash Shahil","الشاهل"]
["YE17","Hajjah","حجة","YE1722","Kuaydinah","كعيدنة","YE1722","Ku'aydinah","كعيدنة"]
["YE17","Hajjah","حجة","YE1723","Wadrah","وضرة","YE1723","Wadrah","وضرة"]
["YE17","Hajjah","حجة","YE1724","Bani Qays","بني قيس الطور","YE1724","Bani Qays","بني قيس الطور"]
["YE17","Hajjah","حجة","YE1725","Ash shaghadirah","الشغادرة","YE1725","Ash shaghadirah","الشغادرة"]
["YE17","Hajjah","حجة","YE1726","Najrah","نجرة","YE1726","Najrah","نجرة"]
["YE17","Hajjah","حجة","YE1727","Bani Al Awam","بني العوام","YE1727","Bani Al Awam","بني العوام"]
["YE17","Hajjah","حجة","YE1728","Hajjah City","مدينة حجة","YE1728","Hajjah City","مدينة حجة"]
["YE17","Hajjah","حجة","YE1729","Hajjah","حجة","YE1729","Hajjah","حجة"]
["YE17","Hajjah","حجة","YE1730","Washhah","وشحة","YE1730","Washhah","وشحة"]
["YE17","Hajjah","حجة","YE1731","Qarah","قارة","YE1731","Qarah","قارة"]
["YE18","Al Hodeidah","الحديدة","YE1801","Az Zuhrah","الزهرة","YE1801","Az Zuhrah","الزهرة"]
["YE18","Al Hodeidah","الحديدة","YE1802","Alluhayah","اللحية","YE1802","Alluhayah","اللحية"]
["YE18","Al Hodeidah","الحديدة","YE1803","Kamaran","كمران","YE1803","Kamaran","كمران"]
["YE18","Al Hodeidah","الحديدة","YE1804","As Salif","الصليف","YE1804","As Salif","الصليف"]
["YE18","Al Hodeidah","الحديدة","YE1805","Al Munirah","المنيرة","YE1805","Al Munirah","المنيرة"]
["YE18","Al Hodeidah","الحديدة","YE1806","Al Qanawis","القناوص","YE1806","Al Qanawis","القناوص"]
["YE18","Al Hodeidah","الحديدة","YE1807","Az Zaydiah","الزيدية","YE1807","Az Zaydiah","الزيدية"]
["YE18","Al Hodeidah","الحديدة","YE1808","Al Mighlaf","المغلاف","YE1808","Al Mighlaf","المغلاف"]
["YE18","Al Hodeidah","الحديدة","YE1809","Ad Dohi","الضحي","YE1809","Ad Dohi","الضحي"]
["YE18","Al Hodeidah","الحديدة","YE1810","Bajil","باجل","YE1810","Bajil","باجل"]
["YE18","Al Hodeidah","الحديدة","YE1811","Al Hujjaylah","الحجيلة","YE1811","Al Hujjaylah","الحجيلة"]
["YE18","Al Hodeidah","الحديدة","YE1812","Bura","برع","YE1812","Bura'","برع"]
["YE18","Al Hodeidah","الحديدة","YE1813","Al Marawiah","المراوعة","YE1813","Al Marawi'ah","المراوعة"]
["YE18","Al Hodeidah","الحديدة","YE1814","Ad Durayhimi","الدريهمي","YE1814","Ad Durayhimi","الدريهمي"]
["YE18","Al Hodeidah","الحديدة","YE1815","As Sukhnah","السخنة","YE1815","As Sukhnah","السخنة"]
["YE18","Al Hodeidah","الحديدة","YE1816","Al Mansuriyah","المنصورية","YE1816","Al Mansuriyah","المنصورية"]
["YE18","Al Hodeidah","الحديدة","YE1817","Bayt Al Faqih","بيت الفقيه","YE1817","Bayt Al Faqih","بيت الفقيه"]
["YE18","Al Hodeidah","الحديدة","YE1818","Jabal Ras","جبل راس","YE1818","Jabal Ras","جبل راس"]
["YE18","Al Hodeidah","الحديدة","YE1819","Hays","حيس","YE1819","Hays","حيس"]
["YE18","Al Hodeidah","الحديدة","YE1820","Al Khukhah","الخوخة","YE1820","Al Khukhah","الخوخة"]
["YE18","Al Hodeidah","الحديدة","YE1821","Al Hawak","الحوك","YE1821","Al Hawak","الحوك"]
["YE18","Al Hodeidah","الحديدة","YE1822","Al Mina","الميناء","YE1822","Al Mina","الميناء"]
["YE18","Al Hodeidah","الحديدة","YE1823","Al Hali","الحالي","YE1823","Al Hali","الحالي"]
["YE18","Al Hodeidah","الحديدة","YE1824","Zabid","زبيد","YE1824","Zabid","زبيد"]
["YE18","Al Hodeidah","الحديدة","YE1825","Al Jarrahi","الجراحي","YE1825","Al Jarrahi","الجراحي"]
["YE18","Al Hodeidah","الحديدة","YE1826","At Tuhayta","التحيتا","YE1826","At Tuhayta","التحيتا"]
["YE19","Hadramawt","حضرموت","YE1901","Rumah","رماه","YE1901","Rumah","رماه"]
["YE19","Hadramawt","حضرموت","YE1902","Thamud","ثمود","YE1902","Thamud","ثمود"]
["YE19","Hadramawt","حضرموت","YE1903","Al Qaff","القف","YE1903","Al Qaff","القف"]
["YE19","Hadramawt","حضرموت","YE1904","Zamakh wa Manwokh","زمخ ومنوخ","YE1904","Zamakh wa Manwokh","زمخ ومنوخ"]
["YE19","Hadramawt","حضرموت","YE1905","Hajar As Sayar","حجر الصيعر","YE1905","Hajar As Say'ar","حجر الصيعر"]
["YE19","Hadramawt","حضرموت","YE1906","Al Abr","العبر","YE1906","Al Abr","العبر"]
["YE19","Hadramawt","حضرموت","YE1907","Al Qatn","القطن","YE1907","Al Qatn","القطن"]
["YE19","Hadramawt","حضرموت","YE1908","Shibam","شبام","YE1908","Shibam","شبام"]
["YE19","Hadramawt","حضرموت","YE1909","Sah","ساه","YE1909","Sah","ساه"]
["YE19","Hadramawt","حضرموت","YE1910","Sayun","سيئون","YE1910","Sayun","سيئون"]
["YE19","Hadramawt","حضرموت","YE1911","Tarim","تريم","YE1911","Tarim","تريم"]
["YE19","Hadramawt","حضرموت","YE1912","As Sawm","السوم","YE1912","As Sawm","السوم"]
["YE19","Hadramawt","حضرموت","YE1913","Ar Raydah wa Qussayar","الريدة وقصيعر","YE1913","Ar Raydah wa Qussay'ar","الريدة وقصيعر"]
["YE19","Hadramawt","حضرموت","YE1914","Ad Dis","الديس","YE1914","Ad Dis","الديس"]
["YE19","Hadramawt","حضرموت","YE1915","Ash Shihr","الشحر","YE1915","Ash Shihr","الشحر"]
["YE19","Hadramawt","حضرموت","YE1916","Ghayl bin Yamin","غيل بن يمين","YE1916","Ghayl bin Yamin","غيل بن يمين"]
["YE19","Hadramawt","حضرموت","YE1917","Ghayl Bawazir","غيل باوزير","YE1917","Ghayl Bawazir","غيل باوزير"]
["YE19","Hadramawt","حضرموت","YE1918","Dawan","دوعن","YE1918","Daw'an","دوعن"]
["YE19","Hadramawt","حضرموت","YE1919","Wadi Al Ayn","وادي العين","YE1919","Wadi Al Ayn","وادي العين"]
["YE19","Hadramawt","حضرموت","YE1920","Rakhyah","رخية","YE1920","Rakhyah","رخية"]
["YE19","Hadramawt","حضرموت","YE1921","Amd","عمد","YE1921","Amd","عمد"]
["YE19","Hadramawt","حضرموت","YE1922","Ad Dulayah","الضليعة","YE1922","Ad Dulay'ah","الضليعة"]
["YE19","Hadramawt","حضرموت","YE1923","Yabuth","يبعث","YE1923","Yab'uth","يبعث"]
["YE19","Hadramawt","حضرموت","YE1924","Hajar","حجر","YE1924","Hajar","حجر"]
["YE19","Hadramawt","حضرموت","YE1925","Brum Mayfa'","بروم ميفع","YE1925","Brum Mayfa'","بروم ميفع"]
["YE19","Hadramawt","حضرموت","YE1926","Al Mukalla","المكلا","YE1930","Al Mukalla","المكلا"]
["YE19","Hadramawt","حضرموت","YE1927","Al Mukalla City","مدينة المكلا","YE1929","Al Mukalla City","مدينة المكلا"]
["YE19","Hadramawt","حضرموت","YE1928","Haridah","حريضة","YE1928","Haridah","حريضة"]
["YE20","Dhamar","ذمار","YE2001","Al Hada","الحداء","YE2001","Al Hada","الحداء"]
["YE20","Dhamar","ذمار","YE2002","Jahran","جهران","YE2002","Jahran","جهران"]
["YE20","Dhamar","ذمار","YE2003","Jabal Ash sharq","جبل الشرق","YE2003","Jabal Ash sharq","جبل الشرق"]
["YE20","Dhamar","ذمار","YE2004","Maghrib Ans","مغرب عنس","YE2004","Maghrib Ans","مغرب عنس"]
["YE20","Dhamar","ذمار","YE2005","Otmah","عتمة","YE2005","Otmah","عتمة"]
["YE20","Dhamar","ذمار","YE2006","Wusab Al Aali","وصاب العالي","YE2006","Wusab Al Aali","وصاب العالي"]
["YE20","Dhamar","ذمار","YE2007","Wusab As Safil","وصاب السافل","YE2007","Wusab As Safil","وصاب السافل"]
["YE20","Dhamar","ذمار","YE2008","Dhamar City","مدينة ذمار","YE2008","Dhamar City","مدينة ذمار"]
["YE20","Dhamar","ذمار","YE2009","Mayfaat Ans","ميفعة عنس","YE2009","Mayfa'at Ans","ميفعة عنس"]
["YE20","Dhamar","ذمار","YE2010","Ans","عنس","YE2010","Ans","عنس"]
["YE20","Dhamar","ذمار","YE2011","Dawran Anis","ضوران أنس","YE2011","Dawran Anis","ضوران أنس"]
["YE20","Dhamar","ذمار","YE2012","Al Manar","المنار","YE2012","Al Manar","المنار"]
["YE21","Shabwah","شبوة","YE2101","Dahr","دهر","YE2101","Dahr","دهر"]
["YE21","Shabwah","شبوة","YE2102","At Talh","الطلح","YE2102","At Talh","الطلح"]
["YE21","Shabwah","شبوة","YE2103","Jardan","جردان","YE2103","Jardan","جردان"]
["YE21","Shabwah","شبوة","YE2104","Armaa","عرماء","YE2104","Arma'a","عرماء"]
["YE21","Shabwah","شبوة","YE2105","Osaylan","عسيلان","YE2105","Osaylan","عسيلان"]
["YE21","Shabwah","شبوة","YE2106","Ayn","عين","YE2106","Ayn","عين"]
["YE21","Shabwah","شبوة","YE2107","Bayhan","بيحان","YE2107","Bayhan","بيحان"]
["YE21","Shabwah","شبوة","YE2108","Markhah Al Olya","مرخة العليا","YE2108","Markhah Al Olya","مرخة العليا"]
["YE21","Shabwah","شبوة","YE2109","Markhah As Sufla","مرخة السفلى","YE2109","Markhah As Sufla","مرخة السفلى"]
["YE21","Shabwah","شبوة","YE2110","Nisab","نصاب","YE2110","Nisab","نصاب"]
["YE21","Shabwah","شبوة","YE2111","Hatib","حطيب","YE2111","Hatib","حطيب"]
["YE21","Shabwah","شبوة","YE2112","As Said","الصعيد","YE2112","As Sa'id","الصعيد"]
["YE21","Shabwah","شبوة","YE2113","Ataq","عتق","YE2113","Ataq","عتق"]
["YE21","Shabwah","شبوة","YE2114","Habban","حبان","YE2114","Habban","حبان"]
["YE21","Shabwah","شبوة","YE2115","Ar Rawdah","الروضة","YE2115","Ar Rawdah","الروضة"]
["YE21","Shabwah","شبوة","YE2116","Mayfaah","ميفعة","YE2116","Mayfa'ah","ميفعة"]
["YE21","Shabwah","شبوة","YE2117","Radum","رضوم","YE2117","Radum","رضوم"]
["YE22","Sa'dah","صعدة","YE2201","Baqim","باقم","YE2201","Baqim","باقم"]
["YE22","Sa'dah","صعدة","YE2202","Qatabir","قطابر","YE2202","Qatabir","قطابر"]
["YE22","Sa'dah","صعدة","YE2203","Monabbih","منبه","YE2203","Monabbih","منبه"]
["YE22","Sa'dah","صعدة","YE2204","Ghamr","غمر","YE2204","Ghamr","غمر"]
["YE22","Sa'dah","صعدة","YE2205","Razih","رازح","YE2205","Razih","رازح"]
["YE22","Sa'dah","صعدة","YE2206","Shadaa","شداء","YE2206","Shada'a","شداء"]
["YE22","Sa'dah","صعدة","YE2207","Adh Dhahir","الظاهر","YE2207","Adh Dhahir","الظاهر"]
["YE22","Sa'dah","صعدة","YE2208","Haydan","حيدان","YE2208","Haydan","حيدان"]
["YE22","Sa'dah","صعدة","YE2209","Saqin","ساقين","YE2209","Saqin","ساقين"]
["YE22","Sa'dah","صعدة","YE2210","Majz","مجز","YE2210","Majz","مجز"]
["YE22","Sa'dah","صعدة","YE2211","Sahar","سحار","YE2211","Sahar","سحار"]
["YE22","Sa'dah","صعدة","YE2212","As Safra","الصفراء","YE2212","As Safra","الصفراء"]
["YE22","Sa'dah","صعدة","YE2213","Al Hashwah","الحشوة","YE2213","Al Hashwah","الحشوة"]
["YE22","Sa'dah","صعدة","YE2214","Kitaf wa Al Boqa","كتاف والبقع","YE2214","Kitaf wa Al Boqa'","كتاف والبقع"]
["YE22","Sa'dah","صعدة","YE2215","Sadah","صعدة","YE2215","Sa'dah","صعدة"]
["YE23","Sana'a","صنعاء","YE2301","Hamdan","همدان","YE2301","Hamdan","همدان"]
["YE23","Sana'a","صنعاء","YE2302","Arhab","أرحب","YE2302","Arhab","أرحب"]
["YE23","Sana'a","صنعاء","YE2303","Nihm","نهم","YE2303","Nihm","نهم"]
["YE23","Sana'a","صنعاء","YE2304","Bani Hushaysh","بني حشيش","YE2304","Bani Hushaysh","بني حشيش"]
["YE23","Sana'a","صنعاء","YE2305","Sanhan wa Bani Bahlul","سنحان وبني بهلول","YE2305","Sanhan wa Bani Bahlul","سنحان وبني بهلول"]
["YE23","Sana'a","صنعاء","YE2306","Bilad Ar Rus","بلاد الروس","YE2306","Bilad Ar Rus","بلاد الروس"]
["YE23","Sana'a","صنعاء","YE2307","Bani Matar","بني مطر","YE2307","Bani Matar","بني مطر"]
["YE23","Sana'a","صنعاء","YE2308","Al Haymah Ad Dakhiliyah","الحيمة الداخلية","YE2308","Al Haymah Ad Dakhiliyah","الحيمة الداخلية"]
["YE23","Sana'a","صنعاء","YE2309","Al Haymah Al Kharijiyah","الحيمة الخارجية","YE2309","Al Haymah Al Kharijiyah","الحيمة الخارجية"]
["YE23","Sana'a","صنعاء","YE2310","Manakhah","مناخة","YE2310","Manakhah","مناخة"]
["YE23","Sana'a","صنعاء","YE2311","Safan","صعفان","YE2311","Sa'fan","صعفان"]
["YE23","Sana'a","صنعاء","YE2312","Khawlan","خولان","YE2312","Khawlan","خولان"]
["YE23","Sana'a","صنعاء","YE2313","At Tyal","الطيال","YE2313","At Tyal","الطيال"]
["YE23","Sana'a","صنعاء","YE2314","Bani Dabyan","بني ضبيان","YE2314","Bani Dabyan","بني ضبيان"]
["YE23","Sana'a","صنعاء","YE2315","Al Hissn","الحصن","YE2315","Al Hissn","الحصن"]
["YE23","Sana'a","صنعاء","YE2316","Jihanah","جحانة","YE2316","Jihanah","جحانة"]
["YE24","Aden","عدن","YE2401","Dar Sad","دار سعد","YE2401","Dar Sa'd","دار سعد"]
["YE24","Aden","عدن","YE2402","Ash Shaykh Othman","الشيخ عثمان","YE2402","Ash Shaykh Othman","الشيخ عثمان"]
["YE24","Aden","عدن","YE2403","Al Mansurah","المنصورة","YE2403","Al Mansurah","المنصورة"]
["YE24","Aden","عدن","YE2404","Al Burayqah","البريقة","YE2404","Al Burayqah","البريقة"]
["YE24","Aden","عدن","YE2405","At Tawahi","التواهي","YE2405","At Tawahi","التواهي"]
["YE24","Aden","عدن","YE2406","Al Mualla","المعلا","YE2406","Al Mu'alla","المعلا"]
["YE24","Aden","عدن","YE2407","Kritar - Sirah","صيرة","YE2407","Kritar - Sirah","صيرة"]
["YE24","Aden","عدن","YE2408","Khur Maksar","خور مكسر","YE2408","Khur Maksar","خور مكسر"]
["YE25","Lahj","لحج","YE2501","Al Had","الحد","YE2501","Al Had","الحد"]
["YE25","Lahj","لحج","YE2502","Yafi","يافع","YE2502","Yafi'","يافع"]
["YE25","Lahj","لحج","YE2503","Al Maflahi","المفلحي","YE2503","Al Maflahi","المفلحي"]
["YE25","Lahj","لحج","YE2504","Yahr","يهر","YE2504","Yahr","يهر"]
["YE25","Lahj","لحج","YE2505","Habil Jabr","حبيل جبر","YE2505","Habil Jabr","حبيل جبر"]
["YE25","Lahj","لحج","YE2506","Halmin","حالمين","YE2506","Halmin","حالمين"]
["YE25","Lahj","لحج","YE2507","Radfan","ردفان","YE2507","Radfan","ردفان"]
["YE25","Lahj","لحج","YE2508","Al Malah","الملاح","YE2508","Al Malah","الملاح"]
["YE25","Lahj","لحج","YE2509","Al Musaymir","المسيمير","YE2509","Al Musaymir","المسيمير"]
["YE25","Lahj","لحج","YE2510","Al Qubaytah","القبيطة","YE2510","Al Qubaytah","القبيطة"]
["YE25","Lahj","لحج","YE2511","Tur Al Bahah","طور الباحة","YE2511","Tur Al Bahah","طور الباحة"]
["YE25","Lahj","لحج","YE2512","Al Maqatirah","المقاطرة","YE2512","Al Maqatirah","المقاطرة"]
["YE25","Lahj","لحج","YE2513","Al Madaribah Wa Al Aarah","المضاربة و العارة","YE2513","Al Madaribah Wa Al Aarah","المضاربة و العارة"]
["YE25","Lahj","لحج","YE2514","Al Hawtah","الحوطة","YE2514","Al Hawtah","الحوطة"]
["YE25","Lahj","لحج","YE2515","Tuban","تبن","YE2515","Tuban","تبن"]
["YE26","Ma'rib","مأرب","YE2601","Majzar","مجزر","YE2601","Majzar","مجزر"]
["YE26","Ma'rib","مأرب","YE2602","Raghwan","رغوان","YE2602","Raghwan","رغوان"]
["YE26","Ma'rib","مأرب","YE2603","Madghal Al Jidan","مدغل الجدعان","YE2603","Madghal Al Jid'an","مدغل الجدعان"]
["YE26","Ma'rib","مأرب","YE2604","Harib Al Qaramish","حريب القرامش","YE2604","Harib Al Qaramish","حريب القرامش"]
["YE26","Ma'rib","مأرب","YE2605","Bidbadah","بدبدة","YE2605","Bidbadah","بدبدة"]
["YE26","Ma'rib","مأرب","YE2606","Sirwah","صرواح","YE2606","Sirwah","صرواح"]
["YE26","Ma'rib","مأرب","YE2607","Al Jubah","الجوبة","YE2607","Al Jubah","الجوبة"]
["YE26","Ma'rib","مأرب","YE2608","Rahabah","رحبة","YE2608","Rahabah","رحبة"]
["YE26","Ma'rib","مأرب","YE2609","Harib","حريب","YE2609","Harib","حريب"]
["YE26","Ma'rib","مأرب","YE2610","Mahliyah","ماهلية","YE2610","Mahliyah","ماهلية"]
["YE26","Ma'rib","مأرب","YE2611","Al Abdiyah","العبدية","YE2611","Al Abdiyah","العبدية"]
["YE26","Ma'rib","مأرب","YE2612","Marib City","مدينة مأرب","YE2612","Ma'rib City","مدينة مأرب"]
["YE26","Ma'rib","مأرب","YE2613","Marib","مأرب","YE2613","Ma'rib","مأرب"]
["YE26","Ma'rib","مأرب","YE2614","Jabal Murad","جبل مراد","YE2614","Jabal Murad","جبل مراد"]
["YE27","Al Mahwit","المحويت","YE2701","Shibam Kawkaban","شبام كوكبان","YE2701","Shibam Kawkaban","شبام كوكبان"]
["YE27","Al Mahwit","المحويت","YE2702","At Tawilah","الطويلة","YE2702","At Tawilah","الطويلة"]
["YE27","Al Mahwit","المحويت","YE2703","Ar Rujum","الرجم","YE2703","Ar Rujum","الرجم"]
["YE27","Al Mahwit","المحويت","YE2704","Al Khabt","الخبت","YE2704","Al Khabt","الخبت"]
["YE27","Al Mahwit","المحويت","YE2705","Melhan","ملحان","YE2705","Melhan","ملحان"]
["YE27","Al Mahwit","المحويت","YE2706","Hufash","حفاش","YE2706","Hufash","حفاش"]
["YE27","Al Mahwit","المحويت","YE2707","Bani Sad","بني سعد","YE2707","Bani Sa'd","بني سعد"]
["YE27","Al Mahwit","المحويت","YE2708","Al Mahwit City","مدينة المحويت","YE2708","Al Mahwit City","مدينة المحويت"]
["YE27","Al Mahwit","المحويت","YE2709","Al Mahwit","المحويت","YE2709","Al Mahwit","المحويت"]
["YE28","Al Maharah","المهرة","YE2801","Shahin","شحن","YE2801","Shahin","شحن"]
["YE28","Al Maharah","المهرة","YE2802","Hat","حات","YE2802","Hat","حات"]
["YE28","Al Maharah","المهرة","YE2803","Hawf","حوف","YE2803","Hawf","حوف"]
["YE28","Al Maharah","المهرة","YE2804","Al Ghaydhah","الغيظة","YE2804","Al Ghaydhah","الغيظة"]
["YE28","Al Maharah","المهرة","YE2805","Manar","منعر","YE2805","Man'ar","منعر"]
["YE28","Al Maharah","المهرة","YE2806","Al Masilah","المسيلة","YE2806","Al Masilah","المسيلة"]
["YE28","Al Maharah","المهرة","YE2807","Sayhut","سيحوت","YE2807","Sayhut","سيحوت"]
["YE28","Al Maharah","المهرة","YE2808","Qishn","قشن","YE2808","Qishn","قشن"]
["YE28","Al Maharah","المهرة","YE2809","Haswin","حصوين","YE2809","Haswin","حصوين"]
["YE29","Amran","عمران","YE2901","Harf Sufyan","حرف سفيان","YE2901","Harf Sufyan","حرف سفيان"]
["YE29","Amran","عمران","YE2902","Huth","حوث","YE2902","Huth","حوث"]
["YE29","Amran","عمران","YE2903","Al Ashah","العشة","YE2903","Al Ashah","العشة"]
["YE29","Amran","عمران","YE2904","Qaflat Odhar","قفلة عذر","YE2904","Qaflat Odhar","قفلة عذر"]
["YE29","Amran","عمران","YE2905","Shaharah","شهارة","YE2905","Shaharah","شهارة"]
["YE29","Amran","عمران","YE2906","Al Madan","المدان","YE2906","Al Madan","المدان"]
["YE29","Amran","عمران","YE2907","Suwayr","صوير","YE2907","Suwayr","صوير"]
["YE29","Amran","عمران","YE2908","Dhulaymat Habur","ظليمة حبور","YE2908","Dhulaymat Habur","ظليمة حبور"]
["YE29","Amran","عمران","YE2909","Dhibain","ذيبين","YE2909","Dhibain","ذيبين"]
["YE29","Amran","عمران","YE2910","Kharif","خارف","YE2910","Kharif","خارف"]
["YE29","Amran","عمران","YE2911","Raydah","ريدة","YE2911","Raydah","ريدة"]
["YE29","Amran","عمران","YE2912","Jabal Eyal Yazid","جبل عيال يزيد","YE2912","Jabal Eyal Yazid","جبل عيال يزيد"]
["YE29","Amran","عمران","YE2913","As Sudah","السودة","YE2913","As Sudah","السودة"]
["YE29","Amran","عمران","YE2914","As Sawd","السود","YE2914","As Sawd","السود"]
["YE29","Amran","عمران","YE2915","Amran","عمران","YE2915","Amran","عمران"]
["YE29","Amran","عمران","YE2916","Maswar","مسور","YE2916","Maswar","مسور"]
["YE29","Amran","عمران","YE2917","Thula","ثلاء","YE2917","Thula","ثلاء"]
["YE29","Amran","عمران","YE2918","Eyal Surayh","عيال سريح","YE2918","Eyal Surayh","عيال سريح"]
["YE29","Amran","عمران","YE2919","Khamir","خمر","YE2919","Khamir","خمر"]
["YE29","Amran","عمران","YE2920","Bani Surim","بني صريم","YE2920","Bani Surim","بني صريم"]
["YE30","Ad Dali'","الضالع","YE3001","Juban","جبن","YE3001","Juban","جبن"]
["YE30","Ad Dali'","الضالع","YE3002","Damt","دمت","YE3002","Damt","دمت"]
["YE30","Ad Dali'","الضالع","YE3003","Qatabah","قعطبة","YE3003","Qa'tabah","قعطبة"]
["YE30","Ad Dali'","الضالع","YE3004","Ash Shuayb","الشعيب","YE3004","Ash Shu'ayb","الشعيب"]
["YE30","Ad Dali'","الضالع","YE3005","Al Hasayn","الحصين","YE3005","Al Hasayn","الحصين"]
["YE30","Ad Dali'","الضالع","YE3006","Ad Dali","الضالع","YE3006","Ad Dali'","الضالع"]
["YE30","Ad Dali'","الضالع","YE3007","Jahaf","جحاف","YE3007","Jahaf","جحاف"]
["YE30","Ad Dali'","الضالع","YE3008","Al Azariq","الأزارق","YE3008","Al Azariq","الأزارق"]
["YE30","Ad Dali'","الضالع","YE3009","Al Husha","الحشاء","YE3009","Al Husha","الحشاء"]
["YE31","Raymah","ريمة","YE3101","Bilad Attaam","بلاد الطعام","YE3101","Bilad Atta'am","بلاد الطعام"]
["YE31","Raymah","ريمة","YE3102","As Salafiyyah","السلفية","YE3103","As Salafiyyah","السلفية"]
["YE31","Raymah","ريمة","YE3103","Al Jabin","الجبين","YE3102","Al Jabin","الجبين"]
["YE31","Raymah","ريمة","YE3104","Mazhar","مزهر","YE3106","Mazhar","مزهر"]
["YE31","Raymah","ريمة","YE3105","Kusmah","كسمة","YE3104","Kusmah","كسمة"]
["YE31","Raymah","ريمة","YE3106","Al Jafariyyah","الجعفرية","YE3105","Al Ja'fariyyah","الجعفرية"]
["YE32","Socotra","سقطرى","YE3201","Hadibu","حديبو","YE1926","Hadibu","حديبو"]
["YE32","Socotra","سقطرى","YE3202","Qalansiyah wa Abd Al Kuri","قلنسية وعبد الكوري","YE1927","Qalansiyah wa Abd Al Kuri","قلنسية وعبد الكوري"]